Workbook

Sheet Info
B3: Supporting data for Consumptive Uses and Losses Data from 1971-2015
B5: The main Excel workbook "upperbasinCUL_2015vX.X.xls" has a sheet "PublishedSummaryDifference" that shows the difference from the previously published values for each category (Note the minor differences under approx. 150 are ignored).The first sheet "Summary" will be most useful. We have highlighted each significant difference and applied a comment to the farthest right cell of the highlighted region that notes the reason for the difference. The top and left most cell with an orange highlight on each sheet has a comment explaining the use of that particular sheet. One can see any comments by hovering over the cell with the red triangle in the upper right. Each sheet in the workbook has the top and left most orange highlighted cell with a comment.
B14: This workbook is set up that all source data is only entered once and referenced anywhere else that data is needed.
B16: NOTE: all cells are locked unless noted below. This is to maintain the integrity of the data.
B18: Throughout the workbook the following color legend is followed.
C20: orange highlight signifies source data
C22: green highlight signifies provisional data
C24: cream highlight signifies an unlocked cell ready to accept data
C26: yellow usually signifies a problem or difference. Typically a comment in the right-top most cell explains the reason for the highlight
C28: purple pink text signifies data developed from a distribution. Follow equations in cell to track distribution method.

Sheet Summary
A4: USE TYPE | D4: STATE | E4: HUC | F4: COUNTY | G4: 1971 | H4: 1972 | I4: 1973 | J4: 1974 | K4: 1975 | L4: 1976 | M4: 1977 | N4: 1978 | O4: 1979 | P4: 1980 | Q4: 1981 | R4: 1982 | S4: 1983 | T4: 1984 | U4: 1985 | V4: 1986 | W4: =V4+1 -> 1987 | X4: =W4+1 -> 1988 | Y4: 1989 | Z4: 1990 | AA4: 1991 | AB4: 1992 | AC4: 1993 | AD4: 1994 | AE4: 1995 | AF4: =AE4+1 -> 1996 | AG4: =AF4+1 -> 1997 | AH4: =AG4+1 -> 1998 | AI4: =AH4+1 -> 1999 | AJ4: =AI4+1 -> 2000 | AK4: =AJ4+1 -> 2001 | AL4: 2002 | AM4: 2003 | AN4: 2004 | AO4: 2005 | AP4: 2006 | AQ4: 2007 | AR4: 2008 | AS4: 2009 | AT4: 2010 | AU4: 2011 | AV4: 2012 | AW4: 2013 | AX4: 2014 | AY4: 2015 | AZ4: =AY4+1 -> 2016 | BA4: =AZ4+1 -> 2017 | BB4: =BA4+1 -> 2018 | BC4: =BB4+1 -> 2019 | BD4: =BC4+1 -> 2020
A7: TOTAL CONSUMPTIVE USE (Includes CRSP reservoir) | G7: ='CP-1'!G12+'CP-2'!G12+Stateline!G12+'CP-3'!G12+'CP-4'!G12+'CP-5'!G12+'CP-6'!G12+'CP-7'!G12+'CP-8'!G12+'CP-9'!G12+'CP-10'!G12+'CP-11'!G12+'CP-12'!G12+'CP-13'!G12+Jensen!G12+'CP-14'!G12+'CP-15'!G12+Ouray!G12+'CP-16'!G12+'CP-17'!G12+'Grn-Colo-Confl'!G12+'CP-18'!G12+'CP-19'!G19+'Colo-SanJuan-Confl'!G13+'CP-20'!G12+'CP-21'!G12 -> 3659477.415 | H7: ='CP-1'!H12+'CP-2'!H12+Stateline!H12+'CP-3'!H12+'CP-4'!H12+'CP-5'!H12+'CP-6'!H12+'CP-7'!H12+'CP-8'!H12+'CP-9'!H12+'CP-10'!H12+'CP-11'!H12+'CP-12'!H12+'CP-13'!H12+Jensen!H12+'CP-14'!H12+'CP-15'!H12+Ouray!H12+'CP-16'!H12+'CP-17'!H12+'Grn-Colo-Confl'!H12+'CP-18'!H12+'CP-19'!H19+'Colo-SanJuan-Confl'!H13+'CP-20'!H12+'CP-21'!H12 -> 3741060.026 | I7: ='CP-1'!I12+'CP-2'!I12+Stateline!I12+'CP-3'!I12+'CP-4'!I12+'CP-5'!I12+'CP-6'!I12+'CP-7'!I12+'CP-8'!I12+'CP-9'!I12+'CP-10'!I12+'CP-11'!I12+'CP-12'!I12+'CP-13'!I12+Jensen!I12+'CP-14'!I12+'CP-15'!I12+Ouray!I12+'CP-16'!I12+'CP-17'!I12+'Grn-Colo-Confl'!I12+'CP-18'!I12+'CP-19'!I19+'Colo-SanJuan-Confl'!I13+'CP-20'!I12+'CP-21'!I12 -> 3635714.962 | J7: ='CP-1'!J12+'CP-2'!J12+Stateline!J12+'CP-3'!J12+'CP-4'!J12+'CP-5'!J12+'CP-6'!J12+'CP-7'!J12+'CP-8'!J12+'CP-9'!J12+'CP-10'!J12+'CP-11'!J12+'CP-12'!J12+'CP-13'!J12+Jensen!J12+'CP-14'!J12+'CP-15'!J12+Ouray!J12+'CP-16'!J12+'CP-17'!J12+'Grn-Colo-Confl'!J12+'CP-18'!J12+'CP-19'!J19+'Colo-SanJuan-Confl'!J13+'CP-20'!J12+'CP-21'!J12 -> 4063965.533 | K7: ='CP-1'!K12+'CP-2'!K12+Stateline!K12+'CP-3'!K12+'CP-4'!K12+'CP-5'!K12+'CP-6'!K12+'CP-7'!K12+'CP-8'!K12+'CP-9'!K12+'CP-10'!K12+'CP-11'!K12+'CP-12'!K12+'CP-13'!K12+Jensen!K12+'CP-14'!K12+'CP-15'!K12+Ouray!K12+'CP-16'!K12+'CP-17'!K12+'Grn-Colo-Confl'!K12+'CP-18'!K12+'CP-19'!K19+'Colo-SanJuan-Confl'!K13+'CP-20'!K12+'CP-21'!K12 -> 3894121.257 | L7: ='CP-1'!L12+'CP-2'!L12+Stateline!L12+'CP-3'!L12+'CP-4'!L12+'CP-5'!L12+'CP-6'!L12+'CP-7'!L12+'CP-8'!L12+'CP-9'!L12+'CP-10'!L12+'CP-11'!L12+'CP-12'!L12+'CP-13'!L12+Jensen!L12+'CP-14'!L12+'CP-15'!L12+Ouray!L12+'CP-16'!L12+'CP-17'!L12+'Grn-Colo-Confl'!L12+'CP-18'!L12+'CP-19'!L19+'Colo-SanJuan-Confl'!L13+'CP-20'!L12+'CP-21'!L12 -> 3755438.893 | M7: ='CP-1'!M12+'CP-2'!M12+Stateline!M12+'CP-3'!M12+'CP-4'!M12+'CP-5'!M12+'CP-6'!M12+'CP-7'!M12+'CP-8'!M12+'CP-9'!M12+'CP-10'!M12+'CP-11'!M12+'CP-12'!M12+'CP-13'!M12+Jensen!M12+'CP-14'!M12+'CP-15'!M12+Ouray!M12+'CP-16'!M12+'CP-17'!M12+'Grn-Colo-Confl'!M12+'CP-18'!M12+'CP-19'!M19+'Colo-SanJuan-Confl'!M13+'CP-20'!M12+'CP-21'!M12 -> 3126499.132 | N7: ='CP-1'!N12+'CP-2'!N12+Stateline!N12+'CP-3'!N12+'CP-4'!N12+'CP-5'!N12+'CP-6'!N12+'CP-7'!N12+'CP-8'!N12+'CP-9'!N12+'CP-10'!N12+'CP-11'!N12+'CP-12'!N12+'CP-13'!N12+Jensen!N12+'CP-14'!N12+'CP-15'!N12+Ouray!N12+'CP-16'!N12+'CP-17'!N12+'Grn-Colo-Confl'!N12+'CP-18'!N12+'CP-19'!N19+'Colo-SanJuan-Confl'!N13+'CP-20'!N12+'CP-21'!N12 -> 4011680.477 | O7: ='CP-1'!O12+'CP-2'!O12+Stateline!O12+'CP-3'!O12+'CP-4'!O12+'CP-5'!O12+'CP-6'!O12+'CP-7'!O12+'CP-8'!O12+'CP-9'!O12+'CP-10'!O12+'CP-11'!O12+'CP-12'!O12+'CP-13'!O12+Jensen!O12+'CP-14'!O12+'CP-15'!O12+Ouray!O12+'CP-16'!O12+'CP-17'!O12+'Grn-Colo-Confl'!O12+'CP-18'!O12+'CP-19'!O19+'Colo-SanJuan-Confl'!O13+'CP-20'!O12+'CP-21'!O12 -> 4082719.59 | P7: ='CP-1'!P12+'CP-2'!P12+Stateline!P12+'CP-3'!P12+'CP-4'!P12+'CP-5'!P12+'CP-6'!P12+'CP-7'!P12+'CP-8'!P12+'CP-9'!P12+'CP-10'!P12+'CP-11'!P12+'CP-12'!P12+'CP-13'!P12+Jensen!P12+'CP-14'!P12+'CP-15'!P12+Ouray!P12+'CP-16'!P12+'CP-17'!P12+'Grn-Colo-Confl'!P12+'CP-18'!P12+'CP-19'!P19+'Colo-SanJuan-Confl'!P13+'CP-20'!P12+'CP-21'!P12 -> 4109000.709 | Q7: ='CP-1'!Q12+'CP-2'!Q12+Stateline!Q12+'CP-3'!Q12+'CP-4'!Q12+'CP-5'!Q12+'CP-6'!Q12+'CP-7'!Q12+'CP-8'!Q12+'CP-9'!Q12+'CP-10'!Q12+'CP-11'!Q12+'CP-12'!Q12+'CP-13'!Q12+Jensen!Q12+'CP-14'!Q12+'CP-15'!Q12+Ouray!Q12+'CP-16'!Q12+'CP-17'!Q12+'Grn-Colo-Confl'!Q12+'CP-18'!Q12+'CP-19'!Q19+'Colo-SanJuan-Confl'!Q13+'CP-20'!Q12+'CP-21'!Q12 -> 4130731.43 | R7: ='CP-1'!R12+'CP-2'!R12+Stateline!R12+'CP-3'!R12+'CP-4'!R12+'CP-5'!R12+'CP-6'!R12+'CP-7'!R12+'CP-8'!R12+'CP-9'!R12+'CP-10'!R12+'CP-11'!R12+'CP-12'!R12+'CP-13'!R12+Jensen!R12+'CP-14'!R12+'CP-15'!R12+Ouray!R12+'CP-16'!R12+'CP-17'!R12+'Grn-Colo-Confl'!R12+'CP-18'!R12+'CP-19'!R19+'Colo-SanJuan-Confl'!R13+'CP-20'!R12+'CP-21'!R12 -> 4181753.786 | S7: ='CP-1'!S12+'CP-2'!S12+Stateline!S12+'CP-3'!S12+'CP-4'!S12+'CP-5'!S12+'CP-6'!S12+'CP-7'!S12+'CP-8'!S12+'CP-9'!S12+'CP-10'!S12+'CP-11'!S12+'CP-12'!S12+'CP-13'!S12+Jensen!S12+'CP-14'!S12+'CP-15'!S12+Ouray!S12+'CP-16'!S12+'CP-17'!S12+'Grn-Colo-Confl'!S12+'CP-18'!S12+'CP-19'!S19+'Colo-SanJuan-Confl'!S13+'CP-20'!S12+'CP-21'!S12 -> 4105218.608 | T7: ='CP-1'!T12+'CP-2'!T12+Stateline!T12+'CP-3'!T12+'CP-4'!T12+'CP-5'!T12+'CP-6'!T12+'CP-7'!T12+'CP-8'!T12+'CP-9'!T12+'CP-10'!T12+'CP-11'!T12+'CP-12'!T12+'CP-13'!T12+Jensen!T12+'CP-14'!T12+'CP-15'!T12+Ouray!T12+'CP-16'!T12+'CP-17'!T12+'Grn-Colo-Confl'!T12+'CP-18'!T12+'CP-19'!T19+'Colo-SanJuan-Confl'!T13+'CP-20'!T12+'CP-21'!T12 -> 4001297.607 | U7: ='CP-1'!U12+'CP-2'!U12+Stateline!U12+'CP-3'!U12+'CP-4'!U12+'CP-5'!U12+'CP-6'!U12+'CP-7'!U12+'CP-8'!U12+'CP-9'!U12+'CP-10'!U12+'CP-11'!U12+'CP-12'!U12+'CP-13'!U12+Jensen!U12+'CP-14'!U12+'CP-15'!U12+Ouray!U12+'CP-16'!U12+'CP-17'!U12+'Grn-Colo-Confl'!U12+'CP-18'!U12+'CP-19'!U19+'Colo-SanJuan-Confl'!U13+'CP-20'!U12+'CP-21'!U12 -> 4274487.673 | V7: ='CP-1'!V12+'CP-2'!V12+Stateline!V12+'CP-3'!V12+'CP-4'!V12+'CP-5'!V12+'CP-6'!V12+'CP-7'!V12+'CP-8'!V12+'CP-9'!V12+'CP-10'!V12+'CP-11'!V12+'CP-12'!V12+'CP-13'!V12+Jensen!V12+'CP-14'!V12+'CP-15'!V12+Ouray!V12+'CP-16'!V12+'CP-17'!V12+'Grn-Colo-Confl'!V12+'CP-18'!V12+'CP-19'!V19+'Colo-SanJuan-Confl'!V13+'CP-20'!V12+'CP-21'!V12 -> 4168196.181 | W7: ='CP-1'!W12+'CP-2'!W12+Stateline!W12+'CP-3'!W12+'CP-4'!W12+'CP-5'!W12+'CP-6'!W12+'CP-7'!W12+'CP-8'!W12+'CP-9'!W12+'CP-10'!W12+'CP-11'!W12+'CP-12'!W12+'CP-13'!W12+Jensen!W12+'CP-14'!W12+'CP-15'!W12+Ouray!W12+'CP-16'!W12+'CP-17'!W12+'Grn-Colo-Confl'!W12+'CP-18'!W12+'CP-19'!W19+'Colo-SanJuan-Confl'!W13+'CP-20'!W12+'CP-21'!W12 -> 4260165.812 | X7: ='CP-1'!X12+'CP-2'!X12+Stateline!X12+'CP-3'!X12+'CP-4'!X12+'CP-5'!X12+'CP-6'!X12+'CP-7'!X12+'CP-8'!X12+'CP-9'!X12+'CP-10'!X12+'CP-11'!X12+'CP-12'!X12+'CP-13'!X12+Jensen!X12+'CP-14'!X12+'CP-15'!X12+Ouray!X12+'CP-16'!X12+'CP-17'!X12+'Grn-Colo-Confl'!X12+'CP-18'!X12+'CP-19'!X19+'Colo-SanJuan-Confl'!X13+'CP-20'!X12+'CP-21'!X12 -> 4664924.349 | Y7: ='CP-1'!Y12+'CP-2'!Y12+Stateline!Y12+'CP-3'!Y12+'CP-4'!Y12+'CP-5'!Y12+'CP-6'!Y12+'CP-7'!Y12+'CP-8'!Y12+'CP-9'!Y12+'CP-10'!Y12+'CP-11'!Y12+'CP-12'!Y12+'CP-13'!Y12+Jensen!Y12+'CP-14'!Y12+'CP-15'!Y12+Ouray!Y12+'CP-16'!Y12+'CP-17'!Y12+'Grn-Colo-Confl'!Y12+'CP-18'!Y12+'CP-19'!Y19+'Colo-SanJuan-Confl'!Y13+'CP-20'!Y12+'CP-21'!Y12 -> 4693129.15 | Z7: ='CP-1'!Z12+'CP-2'!Z12+Stateline!Z12+'CP-3'!Z12+'CP-4'!Z12+'CP-5'!Z12+'CP-6'!Z12+'CP-7'!Z12+'CP-8'!Z12+'CP-9'!Z12+'CP-10'!Z12+'CP-11'!Z12+'CP-12'!Z12+'CP-13'!Z12+Jensen!Z12+'CP-14'!Z12+'CP-15'!Z12+Ouray!Z12+'CP-16'!Z12+'CP-17'!Z12+'Grn-Colo-Confl'!Z12+'CP-18'!Z12+'CP-19'!Z19+'Colo-SanJuan-Confl'!Z13+'CP-20'!Z12+'CP-21'!Z12 -> 4383240.893 | AA7: ='CP-1'!AA12+'CP-2'!AA12+Stateline!AA12+'CP-3'!AA12+'CP-4'!AA12+'CP-5'!AA12+'CP-6'!AA12+'CP-7'!AA12+'CP-8'!AA12+'CP-9'!AA12+'CP-10'!AA12+'CP-11'!AA12+'CP-12'!AA12+'CP-13'!AA12+Jensen!AA12+'CP-14'!AA12+'CP-15'!AA12+Ouray!AA12+'CP-16'!AA12+'CP-17'!AA12+'Grn-Colo-Confl'!AA12+'CP-18'!AA12+'CP-19'!AA19+'Colo-SanJuan-Confl'!AA13+'CP-20'!AA12+'CP-21'!AA12 -> 4423869.367 | AB7: ='CP-1'!AB12+'CP-2'!AB12+Stateline!AB12+'CP-3'!AB12+'CP-4'!AB12+'CP-5'!AB12+'CP-6'!AB12+'CP-7'!AB12+'CP-8'!AB12+'CP-9'!AB12+'CP-10'!AB12+'CP-11'!AB12+'CP-12'!AB12+'CP-13'!AB12+Jensen!AB12+'CP-14'!AB12+'CP-15'!AB12+Ouray!AB12+'CP-16'!AB12+'CP-17'!AB12+'Grn-Colo-Confl'!AB12+'CP-18'!AB12+'CP-19'!AB19+'Colo-SanJuan-Confl'!AB13+'CP-20'!AB12+'CP-21'!AB12 -> 4555068.937 | AC7: ='CP-1'!AC12+'CP-2'!AC12+Stateline!AC12+'CP-3'!AC12+'CP-4'!AC12+'CP-5'!AC12+'CP-6'!AC12+'CP-7'!AC12+'CP-8'!AC12+'CP-9'!AC12+'CP-10'!AC12+'CP-11'!AC12+'CP-12'!AC12+'CP-13'!AC12+Jensen!AC12+'CP-14'!AC12+'CP-15'!AC12+Ouray!AC12+'CP-16'!AC12+'CP-17'!AC12+'Grn-Colo-Confl'!AC12+'CP-18'!AC12+'CP-19'!AC19+'Colo-SanJuan-Confl'!AC13+'CP-20'!AC12+'CP-21'!AC12 -> 4360938.12 | AD7: ='CP-1'!AD12+'CP-2'!AD12+Stateline!AD12+'CP-3'!AD12+'CP-4'!AD12+'CP-5'!AD12+'CP-6'!AD12+'CP-7'!AD12+'CP-8'!AD12+'CP-9'!AD12+'CP-10'!AD12+'CP-11'!AD12+'CP-12'!AD12+'CP-13'!AD12+Jensen!AD12+'CP-14'!AD12+'CP-15'!AD12+Ouray!AD12+'CP-16'!AD12+'CP-17'!AD12+'Grn-Colo-Confl'!AD12+'CP-18'!AD12+'CP-19'!AD19+'Colo-SanJuan-Confl'!AD13+'CP-20'!AD12+'CP-21'!AD12 -> 4873774.69 | AE7: ='CP-1'!AE12+'CP-2'!AE12+Stateline!AE12+'CP-3'!AE12+'CP-4'!AE12+'CP-5'!AE12+'CP-6'!AE12+'CP-7'!AE12+'CP-8'!AE12+'CP-9'!AE12+'CP-10'!AE12+'CP-11'!AE12+'CP-12'!AE12+'CP-13'!AE12+Jensen!AE12+'CP-14'!AE12+'CP-15'!AE12+Ouray!AE12+'CP-16'!AE12+'CP-17'!AE12+'Grn-Colo-Confl'!AE12+'CP-18'!AE12+'CP-19'!AE19+'Colo-SanJuan-Confl'!AE13+'CP-20'!AE12+'CP-21'!AE12 -> 4070657.144 | AF7: ='CP-1'!AF12+'CP-2'!AF12+Stateline!AF12+'CP-3'!AF12+'CP-4'!AF12+'CP-5'!AF12+'CP-6'!AF12+'CP-7'!AF12+'CP-8'!AF12+'CP-9'!AF12+'CP-10'!AF12+'CP-11'!AF12+'CP-12'!AF12+'CP-13'!AF12+Jensen!AF12+'CP-14'!AF12+'CP-15'!AF12+Ouray!AF12+'CP-16'!AF12+'CP-17'!AF12+'Grn-Colo-Confl'!AF12+'CP-18'!AF12+'CP-19'!AF19+'Colo-SanJuan-Confl'!AF13+'CP-20'!AF12+'CP-21'!AF12 -> 4540828.446 | AG7: ='CP-1'!AG12+'CP-2'!AG12+Stateline!AG12+'CP-3'!AG12+'CP-4'!AG12+'CP-5'!AG12+'CP-6'!AG12+'CP-7'!AG12+'CP-8'!AG12+'CP-9'!AG12+'CP-10'!AG12+'CP-11'!AG12+'CP-12'!AG12+'CP-13'!AG12+Jensen!AG12+'CP-14'!AG12+'CP-15'!AG12+Ouray!AG12+'CP-16'!AG12+'CP-17'!AG12+'Grn-Colo-Confl'!AG12+'CP-18'!AG12+'CP-19'!AG19+'Colo-SanJuan-Confl'!AG13+'CP-20'!AG12+'CP-21'!AG12 -> 4327747.967 | AH7: ='CP-1'!AH12+'CP-2'!AH12+Stateline!AH12+'CP-3'!AH12+'CP-4'!AH12+'CP-5'!AH12+'CP-6'!AH12+'CP-7'!AH12+'CP-8'!AH12+'CP-9'!AH12+'CP-10'!AH12+'CP-11'!AH12+'CP-12'!AH12+'CP-13'!AH12+Jensen!AH12+'CP-14'!AH12+'CP-15'!AH12+Ouray!AH12+'CP-16'!AH12+'CP-17'!AH12+'Grn-Colo-Confl'!AH12+'CP-18'!AH12+'CP-19'!AH19+'Colo-SanJuan-Confl'!AH13+'CP-20'!AH12+'CP-21'!AH12 -> 4439319.851 | AI7: ='CP-1'!AI12+'CP-2'!AI12+Stateline!AI12+'CP-3'!AI12+'CP-4'!AI12+'CP-5'!AI12+'CP-6'!AI12+'CP-7'!AI12+'CP-8'!AI12+'CP-9'!AI12+'CP-10'!AI12+'CP-11'!AI12+'CP-12'!AI12+'CP-13'!AI12+Jensen!AI12+'CP-14'!AI12+'CP-15'!AI12+Ouray!AI12+'CP-16'!AI12+'CP-17'!AI12+'Grn-Colo-Confl'!AI12+'CP-18'!AI12+'CP-19'!AI19+'Colo-SanJuan-Confl'!AI13+'CP-20'!AI12+'CP-21'!AI12 -> 4257900.433 | AJ7: ='CP-1'!AJ12+'CP-2'!AJ12+Stateline!AJ12+'CP-3'!AJ12+'CP-4'!AJ12+'CP-5'!AJ12+'CP-6'!AJ12+'CP-7'!AJ12+'CP-8'!AJ12+'CP-9'!AJ12+'CP-10'!AJ12+'CP-11'!AJ12+'CP-12'!AJ12+'CP-13'!AJ12+Jensen!AJ12+'CP-14'!AJ12+'CP-15'!AJ12+Ouray!AJ12+'CP-16'!AJ12+'CP-17'!AJ12+'Grn-Colo-Confl'!AJ12+'CP-18'!AJ12+'CP-19'!AJ19+'Colo-SanJuan-Confl'!AJ13+'CP-20'!AJ12+'CP-21'!AJ12 -> 4655067.551 | AK7: ='CP-1'!AK12+'CP-2'!AK12+Stateline!AK12+'CP-3'!AK12+'CP-4'!AK12+'CP-5'!AK12+'CP-6'!AK12+'CP-7'!AK12+'CP-8'!AK12+'CP-9'!AK12+'CP-10'!AK12+'CP-11'!AK12+'CP-12'!AK12+'CP-13'!AK12+Jensen!AK12+'CP-14'!AK12+'CP-15'!AK12+Ouray!AK12+'CP-16'!AK12+'CP-17'!AK12+'Grn-Colo-Confl'!AK12+'CP-18'!AK12+'CP-19'!AK19+'Colo-SanJuan-Confl'!AK13+'CP-20'!AK12+'CP-21'!AK12 -> 4862908.439 | AL7: ='CP-1'!AL12+'CP-2'!AL12+Stateline!AL12+'CP-3'!AL12+'CP-4'!AL12+'CP-5'!AL12+'CP-6'!AL12+'CP-7'!AL12+'CP-8'!AL12+'CP-9'!AL12+'CP-10'!AL12+'CP-11'!AL12+'CP-12'!AL12+'CP-13'!AL12+Jensen!AL12+'CP-14'!AL12+'CP-15'!AL12+Ouray!AL12+'CP-16'!AL12+'CP-17'!AL12+'Grn-Colo-Confl'!AL12+'CP-18'!AL12+'CP-19'!AL19+'Colo-SanJuan-Confl'!AL13+'CP-20'!AL12+'CP-21'!AL12 -> 4309730.137 | AM7: ='CP-1'!AM12+'CP-2'!AM12+Stateline!AM12+'CP-3'!AM12+'CP-4'!AM12+'CP-5'!AM12+'CP-6'!AM12+'CP-7'!AM12+'CP-8'!AM12+'CP-9'!AM12+'CP-10'!AM12+'CP-11'!AM12+'CP-12'!AM12+'CP-13'!AM12+Jensen!AM12+'CP-14'!AM12+'CP-15'!AM12+Ouray!AM12+'CP-16'!AM12+'CP-17'!AM12+'Grn-Colo-Confl'!AM12+'CP-18'!AM12+'CP-19'!AM19+'Colo-SanJuan-Confl'!AM13+'CP-20'!AM12+'CP-21'!AM12 -> 4253386.715 | AN7: ='CP-1'!AN12+'CP-2'!AN12+Stateline!AN12+'CP-3'!AN12+'CP-4'!AN12+'CP-5'!AN12+'CP-6'!AN12+'CP-7'!AN12+'CP-8'!AN12+'CP-9'!AN12+'CP-10'!AN12+'CP-11'!AN12+'CP-12'!AN12+'CP-13'!AN12+Jensen!AN12+'CP-14'!AN12+'CP-15'!AN12+Ouray!AN12+'CP-16'!AN12+'CP-17'!AN12+'Grn-Colo-Confl'!AN12+'CP-18'!AN12+'CP-19'!AN19+'Colo-SanJuan-Confl'!AN13+'CP-20'!AN12+'CP-21'!AN12 -> 3944836.118 | AO7: ='CP-1'!AO12+'CP-2'!AO12+Stateline!AO12+'CP-3'!AO12+'CP-4'!AO12+'CP-5'!AO12+'CP-6'!AO12+'CP-7'!AO12+'CP-8'!AO12+'CP-9'!AO12+'CP-10'!AO12+'CP-11'!AO12+'CP-12'!AO12+'CP-13'!AO12+Jensen!AO12+'CP-14'!AO12+'CP-15'!AO12+Ouray!AO12+'CP-16'!AO12+'CP-17'!AO12+'Grn-Colo-Confl'!AO12+'CP-18'!AO12+'CP-19'!AO19+'Colo-SanJuan-Confl'!AO13+'CP-20'!AO12+'CP-21'!AO12 -> 4077169.619 | AP7: ='CP-1'!AP12+'CP-2'!AP12+Stateline!AP12+'CP-3'!AP12+'CP-4'!AP12+'CP-5'!AP12+'CP-6'!AP12+'CP-7'!AP12+'CP-8'!AP12+'CP-9'!AP12+'CP-10'!AP12+'CP-11'!AP12+'CP-12'!AP12+'CP-13'!AP12+Jensen!AP12+'CP-14'!AP12+'CP-15'!AP12+Ouray!AP12+'CP-16'!AP12+'CP-17'!AP12+'Grn-Colo-Confl'!AP12+'CP-18'!AP12+'CP-19'!AP19+'Colo-SanJuan-Confl'!AP13+'CP-20'!AP12+'CP-21'!AP12 -> 4270146.968 | AQ7: ='CP-1'!AQ12+'CP-2'!AQ12+Stateline!AQ12+'CP-3'!AQ12+'CP-4'!AQ12+'CP-5'!AQ12+'CP-6'!AQ12+'CP-7'!AQ12+'CP-8'!AQ12+'CP-9'!AQ12+'CP-10'!AQ12+'CP-11'!AQ12+'CP-12'!AQ12+'CP-13'!AQ12+Jensen!AQ12+'CP-14'!AQ12+'CP-15'!AQ12+Ouray!AQ12+'CP-16'!AQ12+'CP-17'!AQ12+'Grn-Colo-Confl'!AQ12+'CP-18'!AQ12+'CP-19'!AQ19+'Colo-SanJuan-Confl'!AQ13+'CP-20'!AQ12+'CP-21'!AQ12 -> 4340451.815 | AR7: ='CP-1'!AR12+'CP-2'!AR12+Stateline!AR12+'CP-3'!AR12+'CP-4'!AR12+'CP-5'!AR12+'CP-6'!AR12+'CP-7'!AR12+'CP-8'!AR12+'CP-9'!AR12+'CP-10'!AR12+'CP-11'!AR12+'CP-12'!AR12+'CP-13'!AR12+Jensen!AR12+'CP-14'!AR12+'CP-15'!AR12+Ouray!AR12+'CP-16'!AR12+'CP-17'!AR12+'Grn-Colo-Confl'!AR12+'CP-18'!AR12+'CP-19'!AR19+'Colo-SanJuan-Confl'!AR13+'CP-20'!AR12+'CP-21'!AR12 -> 4526901.727 | AS7: ='CP-1'!AS12+'CP-2'!AS12+Stateline!AS12+'CP-3'!AS12+'CP-4'!AS12+'CP-5'!AS12+'CP-6'!AS12+'CP-7'!AS12+'CP-8'!AS12+'CP-9'!AS12+'CP-10'!AS12+'CP-11'!AS12+'CP-12'!AS12+'CP-13'!AS12+Jensen!AS12+'CP-14'!AS12+'CP-15'!AS12+Ouray!AS12+'CP-16'!AS12+'CP-17'!AS12+'Grn-Colo-Confl'!AS12+'CP-18'!AS12+'CP-19'!AS19+'Colo-SanJuan-Confl'!AS13+'CP-20'!AS12+'CP-21'!AS12 -> 4403308.972 | AT7: ='CP-1'!AT12+'CP-2'!AT12+Stateline!AT12+'CP-3'!AT12+'CP-4'!AT12+'CP-5'!AT12+'CP-6'!AT12+'CP-7'!AT12+'CP-8'!AT12+'CP-9'!AT12+'CP-10'!AT12+'CP-11'!AT12+'CP-12'!AT12+'CP-13'!AT12+Jensen!AT12+'CP-14'!AT12+'CP-15'!AT12+Ouray!AT12+'CP-16'!AT12+'CP-17'!AT12+'Grn-Colo-Confl'!AT12+'CP-18'!AT12+'CP-19'!AT19+'Colo-SanJuan-Confl'!AT13+'CP-20'!AT12+'CP-21'!AT12 -> 4300999.714 | AU7: ='CP-1'!AU12+'CP-2'!AU12+Stateline!AU12+'CP-3'!AU12+'CP-4'!AU12+'CP-5'!AU12+'CP-6'!AU12+'CP-7'!AU12+'CP-8'!AU12+'CP-9'!AU12+'CP-10'!AU12+'CP-11'!AU12+'CP-12'!AU12+'CP-13'!AU12+Jensen!AU12+'CP-14'!AU12+'CP-15'!AU12+Ouray!AU12+'CP-16'!AU12+'CP-17'!AU12+'Grn-Colo-Confl'!AU12+'CP-18'!AU12+'CP-19'!AU19+'Colo-SanJuan-Confl'!AU13+'CP-20'!AU12+'CP-21'!AU12 -> 4537695.761 | AV7: ='CP-1'!AV12+'CP-2'!AV12+Stateline!AV12+'CP-3'!AV12+'CP-4'!AV12+'CP-5'!AV12+'CP-6'!AV12+'CP-7'!AV12+'CP-8'!AV12+'CP-9'!AV12+'CP-10'!AV12+'CP-11'!AV12+'CP-12'!AV12+'CP-13'!AV12+Jensen!AV12+'CP-14'!AV12+'CP-15'!AV12+Ouray!AV12+'CP-16'!AV12+'CP-17'!AV12+'Grn-Colo-Confl'!AV12+'CP-18'!AV12+'CP-19'!AV19+'Colo-SanJuan-Confl'!AV13+'CP-20'!AV12+'CP-21'!AV12 -> 4892438.972 | AW7: ='CP-1'!AW12+'CP-2'!AW12+Stateline!AW12+'CP-3'!AW12+'CP-4'!AW12+'CP-5'!AW12+'CP-6'!AW12+'CP-7'!AW12+'CP-8'!AW12+'CP-9'!AW12+'CP-10'!AW12+'CP-11'!AW12+'CP-12'!AW12+'CP-13'!AW12+Jensen!AW12+'CP-14'!AW12+'CP-15'!AW12+Ouray!AW12+'CP-16'!AW12+'CP-17'!AW12+'Grn-Colo-Confl'!AW12+'CP-18'!AW12+'CP-19'!AW19+'Colo-SanJuan-Confl'!AW13+'CP-20'!AW12+'CP-21'!AW12 -> 4106959.768 | AX7: ='CP-1'!AX12+'CP-2'!AX12+Stateline!AX12+'CP-3'!AX12+'CP-4'!AX12+'CP-5'!AX12+'CP-6'!AX12+'CP-7'!AX12+'CP-8'!AX12+'CP-9'!AX12+'CP-10'!AX12+'CP-11'!AX12+'CP-12'!AX12+'CP-13'!AX12+Jensen!AX12+'CP-14'!AX12+'CP-15'!AX12+Ouray!AX12+'CP-16'!AX12+'CP-17'!AX12+'Grn-Colo-Confl'!AX12+'CP-18'!AX12+'CP-19'!AX19+'Colo-SanJuan-Confl'!AX13+'CP-20'!AX12+'CP-21'!AX12 -> 3951338.12 | AY7: ='CP-1'!AY12+'CP-2'!AY12+Stateline!AY12+'CP-3'!AY12+'CP-4'!AY12+'CP-5'!AY12+'CP-6'!AY12+'CP-7'!AY12+'CP-8'!AY12+'CP-9'!AY12+'CP-10'!AY12+'CP-11'!AY12+'CP-12'!AY12+'CP-13'!AY12+Jensen!AY12+'CP-14'!AY12+'CP-15'!AY12+Ouray!AY12+'CP-16'!AY12+'CP-17'!AY12+'Grn-Colo-Confl'!AY12+'CP-18'!AY12+'CP-19'!AY19+'Colo-SanJuan-Confl'!AY13+'CP-20'!AY12+'CP-21'!AY12 -> 3633871.969 | AZ7: ='CP-1'!AZ12+'CP-2'!AZ12+Stateline!AZ12+'CP-3'!AZ12+'CP-4'!AZ12+'CP-5'!AZ12+'CP-6'!AZ12+'CP-7'!AZ12+'CP-8'!AZ12+'CP-9'!AZ12+'CP-10'!AZ12+'CP-11'!AZ12+'CP-12'!AZ12+'CP-13'!AZ12+Jensen!AZ12+'CP-14'!AZ12+'CP-15'!AZ12+Ouray!AZ12+'CP-16'!AZ12+'CP-17'!AZ12+'Grn-Colo-Confl'!AZ12+'CP-18'!AZ12+'CP-19'!AZ19+'Colo-SanJuan-Confl'!AZ13+'CP-20'!AZ12+'CP-21'!AZ12 -> 4365834.541 | BA7: ='CP-1'!BA12+'CP-2'!BA12+Stateline!BA12+'CP-3'!BA12+'CP-4'!BA12+'CP-5'!BA12+'CP-6'!BA12+'CP-7'!BA12+'CP-8'!BA12+'CP-9'!BA12+'CP-10'!BA12+'CP-11'!BA12+'CP-12'!BA12+'CP-13'!BA12+Jensen!BA12+'CP-14'!BA12+'CP-15'!BA12+Ouray!BA12+'CP-16'!BA12+'CP-17'!BA12+'Grn-Colo-Confl'!BA12+'CP-18'!BA12+'CP-19'!BA19+'Colo-SanJuan-Confl'!BA13+'CP-20'!BA12+'CP-21'!BA12 -> 4692963.532 | BB7: ='CP-1'!BB12+'CP-2'!BB12+Stateline!BB12+'CP-3'!BB12+'CP-4'!BB12+'CP-5'!BB12+'CP-6'!BB12+'CP-7'!BB12+'CP-8'!BB12+'CP-9'!BB12+'CP-10'!BB12+'CP-11'!BB12+'CP-12'!BB12+'CP-13'!BB12+Jensen!BB12+'CP-14'!BB12+'CP-15'!BB12+Ouray!BB12+'CP-16'!BB12+'CP-17'!BB12+'Grn-Colo-Confl'!BB12+'CP-18'!BB12+'CP-19'!BB19+'Colo-SanJuan-Confl'!BB13+'CP-20'!BB12+'CP-21'!BB12 -> 6266.34783 | BC7: ='CP-1'!BC12+'CP-2'!BC12+Stateline!BC12+'CP-3'!BC12+'CP-4'!BC12+'CP-5'!BC12+'CP-6'!BC12+'CP-7'!BC12+'CP-8'!BC12+'CP-9'!BC12+'CP-10'!BC12+'CP-11'!BC12+'CP-12'!BC12+'CP-13'!BC12+Jensen!BC12+'CP-14'!BC12+'CP-15'!BC12+Ouray!BC12+'CP-16'!BC12+'CP-17'!BC12+'Grn-Colo-Confl'!BC12+'CP-18'!BC12+'CP-19'!BC19+'Colo-SanJuan-Confl'!BC13+'CP-20'!BC12+'CP-21'!BC12 -> 6266.34783 | BD7: ='CP-1'!BD12+'CP-2'!BD12+Stateline!BD12+'CP-3'!BD12+'CP-4'!BD12+'CP-5'!BD12+'CP-6'!BD12+'CP-7'!BD12+'CP-8'!BD12+'CP-9'!BD12+'CP-10'!BD12+'CP-11'!BD12+'CP-12'!BD12+'CP-13'!BD12+Jensen!BD12+'CP-14'!BD12+'CP-15'!BD12+Ouray!BD12+'CP-16'!BD12+'CP-17'!BD12+'Grn-Colo-Confl'!BD12+'CP-18'!BD12+'CP-19'!BD19+'Colo-SanJuan-Confl'!BD13+'CP-20'!BD12+'CP-21'!BD12 -> 6266.34783
D9: Arizona | F9: san juan-colorado river | G9: =G39+G87+G137+G157+G174+G192+G277 -> 11100 | H9: 12200 | I9: 11400 | J9: 19125 | K9: 23674 | L9: 30507 | M9: 33871 | N9: 32875 | O9: 33913 | P9: 36872 | Q9: 41393 | R9: 39334 | S9: 41203 | T9: 43600 | U9: 45671 | V9: 37141.3 | W9: 38088.1 | X9: 41341.1 | Y9: 39531.76 | Z9: 35880 | AA9: 38930 | AB9: 39950 | AC9: 39600 | AD9: 40742 | AE9: 39813 | AF9: 34273.71769 | AG9: 34312.03999 | AH9: 37123.26081 | AI9: 38529.61286 | AJ9: 40192.53357 | AK9: 38542.12159 | AL9: 38468.08009 | AM9: =AM39+AM87+AM137+AM157+AM174+AM192+AM277 -> 36603.61545 | AN9: 37521.47869 | AO9: 36456.32591 | AP9: 36807.63013 | AQ9: 36709.33908 | AR9: 35709.21659 | AS9: 35937.47426 | AT9: 35149.63463 | AU9: 34877.66881 | AV9: 33557.36278 | AW9: 35036.71087 | AX9: 35629.55051 | AY9: 28915.5754 | AZ9: 29458.40123 | BA9: 29254.14715 | BB9: 0 | BC9: 0 | BD9: 0
D10: Colorado | F10: green river | G10: =G40+G88+G138+G158+G175+G193+G278 -> 170551 | H10: 149097 | I10: 141225 | J10: 160503 | K10: 146303.83 | L10: 136104.9 | M10: 123320 | N10: 160444.68 | O10: 158319.73 | P10: 156796.73 | Q10: 186644.168 | R10: 172183.216 | S10: 165287.262 | T10: 163042.184 | U10: 162317.765 | V10: 154039.0308 | W10: 171463.2023 | X10: 224000.6157 | Y10: 203159.6991 | Z10: 205039.2677 | AA10: 202131.67 | AB10: 224830.2785 | AC10: 171625.3973 | AD10: 188528.6344 | AE10: 141264.8054 | AF10: 223078.4401 | AG10: 161913.8069 | AH10: 200523.9516 | AI10: 185945.1126 | AJ10: 221289.9771 | AK10: 212764.1978 | AL10: 249163.3648 | AM10: =AM40+AM88+AM138+AM158+AM175+AM193+AM278 -> 216919.162 | AN10: 166634.2815 | AO10: 152429.5909 | AP10: 184965.9566 | AQ10: 189495.2995 | AR10: 187370.8962 | AS10: 240065.1833 | AT10: 251027.5868 | AU10: 235065.5627 | AV10: 311600.8557 | AW10: 216996.5912 | AX10: 188020.9961 | AY10: 203483.0204 | AZ10: 208792.9888 | BA10: 201421.7993 | BB10: 0 | BC10: 0 | BD10: 0
F11: upper main stem | G11: =G41+G89+G139+G159+G176+G194+G279 -> 1467034.812 | H11: 1526374.29 | I11: 1306943.22 | J11: 1730874.91 | K11: 1686876.13 | L11: 1606766.11 | M11: 1464203.74 | N11: 1831573.06 | O11: 1630196.265 | P11: 1632543.84 | Q11: 1853545.613 | R11: 1800257.309 | S11: 1648016.072 | T11: 1594152.932 | U11: 1732145 | V11: 1575083.369 | W11: 1559133.529 | X11: 1870051.276 | Y11: 1958496.604 | Z11: 1734935.343 | AA11: 1848759.85 | AB11: 1846873.198 | AC11: 1749962.401 | AD11: 1945938.172 | AE11: 1490089.278 | AF11: 1821197.583 | AG11: 1633510.037 | AH11: 1690508.29 | AI11: 1536847.535 | AJ11: 2014523.793 | AK11: 2048578.189 | AL11: 1700074.927 | AM11: =AM41+AM89+AM139+AM159+AM176+AM194+AM279 -> 1708013.688 | AN11: 1681765.572 | AO11: 1565999.077 | AP11: 1783681.366 | AQ11: 1692789.595 | AR11: 1934168.899 | AS11: 1764955.357 | AT11: 1650140.764 | AU11: 1929003.29 | AV11: 2077245.505 | AW11: 1532819.364 | AX11: 1532253.124 | AY11: 1300657.807 | AZ11: 1843494.355 | BA11: 1969488.023 | BB11: 0 | BC11: 0 | BD11: 0
F12: san juan-colorado river | G12: =G42+G90+G140+G160+G177+G195+G280 -> 212823.7585 | H12: 231815.1128 | I12: 212636.1295 | J12: 108732.6029 | K12: 92090.69971 | L12: 47131.08885 | M12: 83412.76 | N12: 48926.92 | O12: 77372.22 | P12: 60855.86 | Q12: 79526.302 | R12: 84010.565 | S12: 107930.757 | T12: 109925.35 | U12: 96486.558 | V12: 81123.16098 | W12: 165594.4328 | X12: 185198.6241 | Y12: 241104.8081 | Z12: 161656.5454 | AA12: 116106.9934 | AB12: 135188.162 | AC12: 134977.1895 | AD12: 116072.5549 | AE12: 79234.24818 | AF12: 118393.8651 | AG12: 122593.8568 | AH12: 127090.2114 | AI12: 98994.20379 | AJ12: 141832.0395 | AK12: 144456.0456 | AL12: 235192.5333 | AM12: =AM42+AM90+AM140+AM160+AM177+AM195+AM280 -> 174751.557 | AN12: 67789.58753 | AO12: 114281.3389 | AP12: 80670.90956 | AQ12: 143287.2439 | AR12: 170580.9579 | AS12: 187452.0935 | AT12: 167069.6829 | AU12: 103880.0481 | AV12: 242740.95 | AW12: 201787.5036 | AX12: 204463.7578 | AY12: 141120.01 | AZ12: 91705.12548 | BA12: 93877.34121 | BB12: 0 | BC12: 0 | BD12: 0
F13: Total | G13: =SUM(G10:G12) -> 1850409.57 | H13: 1907286.403 | I13: 1660804.35 | J13: 2000110.513 | K13: 1925270.66 | L13: 1790002.099 | M13: 1670936.5 | N13: 2040944.66 | O13: 1865888.215 | P13: 1850196.43 | Q13: 2119716.083 | R13: 2056451.09 | S13: 1921234.091 | T13: 1867120.466 | U13: 1990949.323 | V13: 1810245.561 | W13: 1896191.164 | X13: 2279250.516 | Y13: 2402761.111 | Z13: 2101631.156 | AA13: 2166998.514 | AB13: 2206891.638 | AC13: 2056564.988 | AD13: 2250539.361 | AE13: 1710588.332 | AF13: 2162669.888 | AG13: 1918017.701 | AH13: 2018122.453 | AI13: 1821786.851 | AJ13: 2377645.81 | AK13: =SUM(AK10:AK12) -> 2405798.432 | AL13: 2184430.825 | AM13: 2099684.407 | AN13: 1916189.441 | AO13: 1832710.007 | AP13: 2049318.232 | AQ13: 2025572.139 | AR13: 2292120.753 | AS13: 2192472.634 | AT13: 2068238.034 | AU13: 2267948.9 | AV13: 2631587.311 | AW13: 1951603.459 | AX13: 1924737.878 | AY13: 1645260.837 | AZ13: =SUM(AZ10:AZ12) -> 2143992.469 | BA13: 2264787.163 | BB13: 0 | BC13: 0 | BD13: 0
B14: Total | D14: New Mexico | F14: san juan-colorado river | G14: =G44+G92+G142+G162+G179+G197+G282 -> 192640.3224 | H14: 203737.5378 | I14: 311868.7914 | J14: 205424.8145 | K14: 301591.5843 | L14: 296211.7092 | M14: 221115.119 | N14: 331279.8094 | O14: 423618.2646 | P14: 430198.7108 | Q14: 283070.017 | R14: 415848.0798 | S14: 421977.7467 | T14: 384971.8294 | U14: 391599.23 | V14: 373916.1322 | W14: 335351.2745 | X14: 308319.3554 | Y14: 355350.6957 | Z14: 356042.3426 | AA14: 394254.4539 | AB14: 355336.418 | AC14: 389205.7939 | AD14: 382314.0712 | AE14: 378985.3183 | AF14: 358680.9666 | AG14: 419807.269 | AH14: 385915.7782 | AI14: 369982.1334 | AJ14: 319421.617 | AK14: 402680.745 | AL14: 333857.4295 | AM14: =AM44+AM92+AM142+AM162+AM179+AM197+AM282 -> 383322.396 | AN14: 407673.4752 | AO14: 471219.67 | AP14: 392513.0952 | AQ14: 428934.3457 | AR14: 458410.8725 | AS14: 416291.7834 | AT14: 388547.9594 | AU14: 452401.6121 | AV14: 417479.0292 | AW14: 366627.436 | AX14: 391256.8047 | AY14: 388129.4299 | AZ14: 376403.7667 | BA14: 458478.2883 | BB14: 0 | BC14: 0 | BD14: 0
D15: Utah | F15: green river | G15: =G45+G93+G143+G163+G180+G198+G283 -> 697247.0916 | H15: 720866.9976 | I15: 690152.5203 | J15: 730122.3401 | K15: 606794.0189 | L15: 605511.1254 | M15: 378783.0229 | N15: 635047.5588 | O15: 669470.3866 | P15: 633658.5923 | Q15: 601346.697 | R15: 566826.8877 | S15: 515942.5807 | T15: 553891.0767 | U15: 672870.4253 | V15: 651574.1237 | W15: 697577.329 | X15: 680887.5473 | Y15: 682775.8557 | Z15: 728289.0421 | AA15: 753499.3065 | AB15: 803060.1559 | AC15: 758677.1719 | AD15: 882228.17 | AE15: 713300.6212 | AF15: 700787.7085 | AG15: 700293.8276 | AH15: 776091.6665 | AI15: 794542.3009 | AJ15: 702845.4158 | AK15: 822080.0485 | AL15: 696505.6735 | AM15: =AM45+AM93+AM143+AM163+AM180+AM198+AM283 -> 761863.1652 | AN15: 726695.0171 | AO15: 786970.182 | AP15: 832426.8107 | AQ15: 799494.4877 | AR15: 699678.2722 | AS15: 689710.5485 | AT15: 752358.0908 | AU15: 686357.5747 | AV15: 789196.5703 | AW15: 827987.0229 | AX15: 686781.4332 | AY15: 658674.096 | AZ15: 812293.4043 | BA15: 846807.0733 | BB15: 4726.34783 | BC15: 4726.34783 | BD15: 4726.34783
F16: upper main stem | G16: =G46+G94+G144+G164+G181+G199+G284 -> 13054 | H16: 12067 | I16: 12283 | J16: 13323 | K16: 12077 | L16: 13453 | M16: 6621 | N16: 15870 | O16: 17114 | P16: 16648 | Q16: 12225.96 | R16: 11031.65 | S16: 12573.69 | T16: 13771.38 | U16: 13544.6 | V16: 15052.10855 | W16: 15560.97663 | X16: 14958.80732 | Y16: 14203.65732 | Z16: 15634.75732 | AA16: 18632.60732 | AB16: 18117.98232 | AC16: 17316.09226 | AD16: 17717.83232 | AE16: 13642.81667 | AF16: 17018.13141 | AG16: 24211.40137 | AH16: 23375.85913 | AI16: 21942.46251 | AJ16: 18089.76382 | AK16: 25666.48595 | AL16: 13898.70451 | AM16: =AM46+AM94+AM144+AM164+AM181+AM199+AM284 -> 16478.4299 | AN16: 16214.1709 | AO16: 14216.68506 | AP16: 24297.68575 | AQ16: 18151.1878 | AR16: 21375.36333 | AS16: 18834.74141 | AT16: 29411.24673 | AU16: 22624.02092 | AV16: 22846.64114 | AW16: 25173.38323 | AX16: 24841.61796 | AY16: 12876.34422 | AZ16: 20390.06411 | BA16: 20363.94361 | BB16: 0 | BC16: 0 | BD16: 0
F17: san juan-colorado river | G17: =G47+G95+G145+G165+G182+G200+G285 -> 58170 | H17: 55741 | I17: 65121 | J17: 64104 | K17: 51886 | L17: 45324 | M17: 25525 | N17: 52880 | O17: 64459 | P17: 61633 | Q17: 52848.807 | R17: 56200.913 | S17: 69727.359 | T17: 71001.027 | U17: 74017.481 | V17: 69171.31875 | W17: 62253.36619 | X17: 61418.49703 | Y17: 63905.95703 | Z17: 59089.52203 | AA17: 79231.37203 | AB17: 77225.14703 | AC17: 76868.4306 | AD17: 87230.34703 | AE17: 93999.89203 | AF17: 75815.16814 | AG17: 72497.09144 | AH17: 79431.94957 | AI17: 68410.64686 | AJ17: 89086.36173 | AK17: 83050.53488 | AL17: 62045.84615 | AM17: =AM47+AM95+AM145+AM165+AM182+AM200+AM285 -> 79066.57977 | AN17: 68943.15822 | AO17: 82792.50376 | AP17: 139148.3514 | AQ17: 145487.3638 | AR17: 121806.2915 | AS17: 115039.8279 | AT17: 103763.8092 | AU17: 102658.0904 | AV17: 105319.0677 | AW17: 104755.4483 | AX17: 87794.8548 | AY17: 82308.84809 | AZ17: 95245.08356 | BA17: 98634.26956 | BB17: 0 | BC17: 0 | BD17: 0
F18: Total | G18: =SUM(G15:G17) -> 768471.0916 | H18: 788674.9976 | I18: 767556.5203 | J18: 807549.3401 | K18: 670757.0189 | L18: 664288.1254 | M18: 410929.0229 | N18: 703797.5588 | O18: 751043.3866 | P18: 711939.5923 | Q18: 666421.464 | R18: 634059.4507 | S18: 598243.6297 | T18: 638663.4837 | U18: 760432.5063 | V18: 735797.551 | W18: 775391.6718 | X18: 757264.8517 | Y18: 760885.47 | Z18: 803013.3215 | AA18: 851363.2859 | AB18: 898403.2852 | AC18: 852861.6947 | AD18: 987176.3494 | AE18: 820943.3299 | AF18: 793621.008 | AG18: 797002.3204 | AH18: 878899.4752 | AI18: 884895.4102 | AJ18: 810021.5414 | AK18: =SUM(AK15:AK17) -> 930797.0693 | AL18: 772450.2242 | AM18: 857408.1748 | AN18: 811852.3462 | AO18: 883979.3708 | AP18: 995872.8478 | AQ18: 963133.0393 | AR18: 842859.9271 | AS18: 823585.1178 | AT18: 885533.1468 | AU18: 811639.686 | AV18: 917362.2791 | AW18: 957915.8545 | AX18: 799417.9059 | AY18: 753859.2883 | AZ18: =SUM(AZ15:AZ17) -> 927928.5519 | BA18: 965805.2865 | BB18: 4726.34783 | BC18: 4726.34783 | BD18: 4726.34783
D19: Wyoming | F19: green river | G19: =G49+G97+G147+G167+G184+G202+G287 -> 368538.0484 | H19: 355658.9093 | I19: 348756.0344 | J19: 416388.5554 | K19: 329989.579 | L19: 324639.5478 | M19: 231626.9828 | N19: 357817.155 | O19: 359478.616 | P19: 357677.4754 | Q19: 345347.5013 | R19: 335629.1821 | S19: 351561.084 | T19: 317776.2522 | U19: 349019.796 | V19: 471488.3028 | W19: 475928.4666 | X19: 558450.2693 | Y19: 475743.8014 | Z19: 516779.4128 | AA19: 438887.4578 | AB19: 540769.2168 | AC19: 416442.1623 | AD19: 600754.8305 | AE19: 434690.8127 | AF19: 490927.8014 | AG19: 439295.0721 | AH19: 388052.8167 | AI19: 412582.4275 | AJ19: 417963.9459 | AK19: 444318.8922 | AL19: 448121.4851 | AM19: =AM49+AM97+AM147+AM167+AM184+AM202+AM287 -> 424330.4878 | AN19: 389057.3275 | AO19: 425282.9075 | AP19: 343786.0855 | AQ19: 433098.6091 | AR19: 402954.8406 | AS19: 401896.1325 | AT19: 392479.3445 | AU19: 400934.9123 | AV19: 374974.9435 | AW19: 371935.9836 | AX19: 357648.3467 | AY19: 356935.4256 | AZ19: 419399.9724 | BA19: 462251.7053 | BB19: 1540 | BC19: 1540 | BD19: 1540
F21: Grand Total (excludes CRSP reservoirs) | G21: =G9+G13+G14+G18+G19 -> 3191159.033 | H21: =H9+H13+H14+H18+H19 -> 3267557.848 | I21: 3100385.696 | J21: 3448598.223 | K21: 3251282.842 | L21: 3105648.481 | M21: 2568478.625 | N21: 3466714.183 | O21: 3433941.482 | P21: 3386884.208 | Q21: 3455948.066 | R21: 3481321.803 | S21: 3334219.551 | T21: 3252132.031 | U21: 3537671.855 | V21: 3428588.847 | W21: 3520950.677 | X21: 3944626.092 | Y21: 4034272.838 | Z21: 3813346.233 | AA21: 3890433.712 | AB21: 4041350.558 | AC21: 3754674.639 | AD21: 4261526.612 | AE21: 3385020.793 | AF21: 3840173.382 | AG21: 3608434.402 | AH21: 3708113.784 | AI21: 3527776.435 | AJ21: 3965245.447 | AK21: =AK9+AK13+AK14+AK18+AK19 -> 4222137.26 | AL21: 3777328.043 | AM21: 3801349.081 | AN21: 3562294.068 | AO21: 3649648.281 | AP21: 3818297.891 | AQ21: 3887447.472 | AR21: 4032055.61 | AS21: 3870183.142 | AT21: 3769948.119 | AU21: 3967802.78 | AV21: 4374960.926 | AW21: 3683119.444 | AX21: 3508690.485 | AY21: 3173100.557 | AZ21: =AZ9+AZ13+AZ14+AZ18+AZ19 -> 3897183.161 | BA21: 4180576.59 | BB21: 6266.34783 | BC21: 6266.34783 | BD21: 6266.34783
C23: total from below (excludes CRSP reservoirs) | G23: =G37+G53+G69+G101+G117+G154+G172+G188+G206+G226 -> 3191159.033 | H23: 3267557.848 | I23: 3100385.696 | J23: 3448598.223 | K23: 3251282.842 | L23: 3105648.481 | M23: 2568478.625 | N23: 3466714.183 | O23: 3433941.482 | P23: 3386884.208 | Q23: 3455948.066 | R23: 3481321.803 | S23: 3334219.551 | T23: 3252132.031 | U23: 3537671.855 | V23: 3428588.847 | W23: 3520950.677 | X23: 3944626.092 | Y23: 4034272.838 | Z23: 3813346.233 | AA23: 3890433.712 | AB23: 4041350.558 | AC23: 3754674.639 | AD23: 4261526.612 | AE23: 3385020.793 | AF23: 3840173.382 | AG23: 3608434.402 | AH23: 3708113.784 | AI23: 3527776.435 | AJ23: 3965245.447 | AK23: 4222137.26 | AL23: 3777328.043 | AM23: =AM37+AM53+AM69+AM101+AM117+AM154+AM172+AM188+AM206+AM226 -> 3801349.081 | AN23: 3562294.068 | AO23: 3649648.281 | AP23: 3818297.891 | AQ23: 3887447.472 | AR23: 4032055.61 | AS23: 3870183.142 | AT23: 3769948.119 | AU23: 3967802.78 | AV23: 4374960.926 | AW23: 3683119.444 | AX23: 3508690.485 | AY23: 3173100.557 | AZ23: 3897183.161 | BA23: 4180576.59 | BB23: 6266.34783 | BC23: 6266.34783 | BD23: 6266.34783
C24: CU&L mainstem reservoirs (CRSP reservoirs) | G24: =G152 -> 468318.3829 | H24: =H152 -> 473502.1785 | I24: 535329.266 | J24: 615367.3102 | K24: 642838.4153 | L24: 649790.4118 | M24: 558020.5072 | N24: 544966.2935 | O24: 648778.1084 | P24: 722116.5005 | Q24: 674783.3642 | R24: 700431.9835 | S24: 770999.0568 | T24: 749165.5754 | U24: 736815.8183 | V24: =V152 -> 739607.3344 | W24: =W152 -> 739215.1357 | X24: 720298.2568 | Y24: 658856.3121 | Z24: 569894.6598 | AA24: 533435.6552 | AB24: 513718.3792 | AC24: 606263.4815 | AD24: 612248.0778 | AE24: 685636.3514 | AF24: =AF152 -> 700655.0643 | AG24: =AG152 -> 719313.5647 | AH24: =AH152 -> 731206.0675 | AI24: =AI152 -> 730123.9981 | AJ24: =AJ152 -> 689822.1033 | AK24: =AK152 -> 640771.1788 | AL24: 532402.0931 | AM24: 452037.6344 | AN24: 382542.0498 | AO24: 427521.3381 | AP24: 451849.0769 | AQ24: 453004.3432 | AR24: 494846.1176 | AS24: 533125.8297 | AT24: 531051.5946 | AU24: 569892.9811 | AV24: 517478.0463 | AW24: 423840.3236 | AX24: 442647.6346 | AY24: 460771.4127 | AZ24: =AZ152 -> 468651.3795 | BA24: 512386.9418 | BB24: 0 | BC24: 0 | BD24: 0
D25: Wyoming | E25: 0.14 | G25: =G$24*$E25 -> 65564.57361 | H25: =H$24*$E25 -> 66290.30499 | I25: 74946.09724 | J25: 86151.42342 | K25: 89997.37814 | L25: 90970.65766 | M25: 78122.87101 | N25: 76295.2811 | O25: 90828.93518 | P25: 101096.3101 | Q25: 94469.67099 | R25: 98060.47769 | S25: 107939.868 | T25: 104883.1806 | U25: 103154.2146 | V25: 103545.0268 | W25: 103490.119 | X25: 100841.7559 | Y25: 92239.88369 | Z25: 79785.25237 | AA25: 74680.99172 | AB25: 71920.57309 | AC25: 84876.88741 | AD25: 85714.73089 | AE25: 95989.0892 | AF25: 98091.709 | AG25: 100703.8991 | AH25: 102368.8495 | AI25: 102217.3597 | AJ25: 96575.09446 | AK25: 89707.96503 | AL25: 74536.29303 | AM25: 63285.26882 | AN25: 53555.88697 | AO25: 59852.98734 | AP25: 63258.87076 | AQ25: 63420.60805 | AR25: 69278.45646 | AS25: 74637.61616 | AT25: 74347.22324 | AU25: 79785.01736 | AV25: 72446.92648 | AW25: 59337.6453 | AX25: 61970.66884 | AY25: 64507.99778
D26: Utah | E26: 0.23 | G26: =G$24*$E26 -> 107713.2281 | H26: 108905.5011 | I26: 123125.7312 | J26: 141534.4813 | K26: 147852.8355 | L26: 149451.7947 | M26: 128344.7167 | N26: 125342.2475 | O26: 149218.9649 | P26: 166086.7951 | Q26: 155200.1738 | R26: 161099.3562 | S26: 177329.7831 | T26: 172308.0823 | U26: 169467.6382 | V26: 170109.6869 | W26: 170019.4812 | X26: 165668.5991 | Y26: 151536.9518 | Z26: 131075.7717 | AA26: 122690.2007 | AB26: 118155.2272 | AC26: 139440.6007 | AD26: 140817.0579 | AE26: 157696.3608 | AF26: 161150.6648 | AG26: 165442.1199 | AH26: 168177.3955 | AI26: 167928.5196 | AJ26: 158659.0838 | AK26: 147377.3711 | AL26: 122452.4814 | AM26: 103968.6559 | AN26: 87984.67145 | AO26: 98329.90777 | AP26: 103925.2877 | AQ26: 104190.9989 | AR26: 113814.607 | AS26: 122618.9408 | AT26: 122141.8668 | AU26: 131075.3857 | AV26: 119019.9507 | AW26: 97483.27442 | AX26: 101808.9559 | AY26: 105977.4249
D27: Colorado | E27: 0.5175 | G27: 242354.7632 | H27: 245037.3774 | I27: 277032.8952 | J27: 318452.583 | K27: 332668.8799 | L27: 336266.5381 | M27: 288775.6125 | N27: 282020.0569 | O27: 335742.6711 | P27: 373695.289 | Q27: 349200.391 | R27: 362473.5515 | S27: 398992.0119 | T27: 387693.1853 | U27: 381302.1859 | V27: 382746.7956 | W27: 382543.8327 | X27: 372754.3479 | Y27: 340958.1415 | Z27: 294920.4864 | AA27: 276052.9515 | AB27: 265849.2613 | AC27: 313741.3517 | AD27: 316838.3803 | AE27: 354816.8118 | AF27: 362588.9958 | AG27: 372244.7697 | AH27: 378399.1399 | AI27: 377839.169 | AJ27: 356982.9385 | AK27: 331599.085 | AL27: 275518.0832 | AM27: 233929.4758 | AN27: 197965.5108 | AO27: 221242.2925 | AP27: 233831.8973 | AQ27: 234429.7476 | AR27: 256082.8658 | AS27: 275892.6169 | AT27: 274819.2002 | AU27: 294919.6177 | AV27: 267794.889 | AW27: 219337.3674 | AX27: 229070.1509 | AY27: 238449.2061
D28: New Mexico | E28: 0.1125 | G28: 52685.81808 | H28: 53268.99508 | I28: 60224.54243 | J28: 69228.82239 | K28: 72319.32172 | L28: 73101.42133 | M28: 62777.30706 | N28: 61308.70802 | O28: 72987.53719 | P28: 81238.10631 | Q28: 75913.12847 | R28: 78798.59814 | S28: 86737.39389 | T28: 84281.12723 | U28: 82891.77955 | V28: 83205.82512 | W28: 83161.70277 | X28: 81033.55389 | Y28: 74121.33511 | Z28: 64113.14922 | AA28: 60011.51121 | AB28: 57793.31766 | AC28: 68204.64167 | AD28: 68877.90875 | AE28: 77134.08953 | AF28: 78823.69473 | AG28: 80922.77603 | AH28: 82260.68259 | AI28: 82138.94979 | AJ28: 77604.98662 | AK28: 72086.75761 | AL28: 59895.23547 | AM28: 50854.23387 | AN28: 43035.9806 | AO28: 48096.15054 | AP28: 50833.02115 | AQ28: 50962.98861 | AR28: 55670.18823 | AS28: 59976.65584 | AT28: 59743.30439 | AU28: 64112.96038 | AV28: 58216.28021 | AW28: 47682.0364 | AX28: 49797.85889 | AY28: 51836.78393
C29: subtotal (including CRSP reservoirs) | G29: =G23+G24 -> 3659477.415 | H29: =H23+H24 -> 3741060.026 | I29: 3635714.962 | J29: 4063965.533 | K29: 3894121.257 | L29: 3755438.893 | M29: 3126499.132 | N29: 4011680.477 | O29: 4082719.59 | P29: 4109000.709 | Q29: 4130731.43 | R29: 4181753.786 | S29: 4105218.608 | T29: 4001297.607 | U29: 4274487.673 | V29: 4168196.181 | W29: 4260165.812 | X29: 4664924.349 | Y29: 4693129.15 | Z29: 4383240.893 | AA29: 4423869.367 | AB29: 4555068.937 | AC29: 4360938.12 | AD29: 4873774.69 | AE29: 4070657.144 | AF29: 4540828.446 | AG29: 4327747.967 | AH29: 4439319.851 | AI29: 4257900.433 | AJ29: 4655067.551 | AK29: 4862908.439 | AL29: 4309730.137 | AM29: 4253386.715 | AN29: 3944836.118 | AO29: 4077169.619 | AP29: 4270146.968 | AQ29: 4340451.815 | AR29: 4526901.727 | AS29: 4403308.972 | AT29: 4300999.714 | AU29: 4537695.761 | AV29: 4892438.972 | AW29: 4106959.768 | AX29: 3951338.12 | AY29: 3633871.969 | AZ29: 4365834.541 | BA29: 4692963.532 | BB29: 6266.34783 | BC29: 6266.34783 | BD29: 6266.34783
F30: FINAL BACK CHECK | G30: =G21-G23 -> 0 | H30: =H21-H23 -> 0 | I30: 0 | J30: 0 | K30: 0 | L30: 0 | M30: 0 | N30: 0 | O30: 0 | P30: 0 | Q30: 0 | R30: 0 | S30: 0 | T30: 0 | U30: 0 | V30: 0 | W30: 0 | X30: 0 | Y30: 0 | Z30: 0 | AA30: 0 | AB30: 0 | AC30: 0 | AD30: 0 | AE30: 0 | AF30: 0 | AG30: 0 | AH30: 0 | AI30: 0 | AJ30: 0 | AK30: 0 | AL30: 0 | AM30: 0 | AN30: 0 | AO30: 0 | AP30: 0 | AQ30: 0 | AR30: 0 | AS30: 0 | AT30: 0 | AU30: 0 | AV30: 0 | AW30: 0 | AX30: 0 | AY30: 0 | AZ30: 0 | BA30: 0 | BB30: 0 | BC30: 0 | BD30: 0
A31: Maj Res | C31: =C118 -> Moon Lake | D31: =D118 -> Utah | E31: =E118 -> 14060003 | F31: =F118 -> 0 | V31: =V118 -> 975.9 | W31: 950.9 | X31: 665.6 | Y31: 654.8 | Z31: 820.9 | AA31: 745.9 | AB31: 725.4 | AC31: 902.5 | AD31: 727.5 | AE31: 913.6 | AF31: 0 | AG31: 0 | AH31: 0 | AI31: 0 | AJ31: =AJ118 -> 0 | AK31: =AK118 -> 0 | AL31: 0 | AM31: 0 | AN31: 0 | AO31: 0 | AP31: 0 | AQ31: 0 | AR31: 0 | AS31: 0 | AT31: 0 | AU31: 0 | AV31: 0 | AW31: 0 | AX31: 0 | AY31: 0 | AZ31: =AZ118 -> 0 | BA31: 0 | BB31: 0 | BC31: 0 | BD31: 0
A32: Mineral | C32: =C189 -> closed basin | D32: =D189 -> Wyoming | E32: =E189 -> 14040200 | F32: =F189 -> 0 | V32: =V189 -> 1110 | W32: 930 | X32: 751 | Y32: 572 | Z32: 392 | AA32: 437 | AB32: 482 | AC32: 527 | AD32: 572 | AE32: 617 | AF32: =AF189 -> 0 | AG32: =AG189 -> 0 | AH32: =AH189 -> 0 | AI32: =AI189 -> 0 | AJ32: =AJ189 -> 0 | AK32: =AK189 -> 0 | AL32: 0 | AM32: 0 | AN32: 0 | AO32: 0 | AP32: 0 | AQ32: 0 | AR32: 0 | AS32: 0 | AT32: 0 | AU32: 0 | AV32: 0 | AW32: 0 | AX32: 0 | AY32: 0 | AZ32: =AZ189 -> 0 | BA32: 0 | BB32: 0 | BC32: 0 | BD32: 0
A33: M&I | C33: =C155 -> closed basin | D33: =D155 -> Wyoming | E33: =E155 -> 14040200 | F33: =F155 -> 0 | V33: =V155 -> 113 | W33: 102 | X33: 89 | Y33: 78 | Z33: 67 | AA33: 67 | AB33: 67 | AC33: 56 | AD33: 56 | AE33: 56 | AF33: =AF155 -> 0 | AG33: =AG155 -> 0 | AH33: =AH155 -> 0 | AI33: =AI155 -> 0 | AJ33: =AJ155 -> 0 | AK33: =AK155 -> 0 | AL33: 0 | AM33: 0 | AN33: 0 | AO33: 0 | AP33: 0 | AQ33: 0 | AR33: 0 | AS33: 0 | AT33: 0 | AU33: 0 | AV33: 0 | AW33: 0 | AX33: 0 | AY33: 0 | AZ33: =AZ155 -> 0 | BA33: 0 | BB33: 0 | BC33: 0 | BD33: 0
C35: Total in published report | G35: =G23-G31+G32+G33 -> 3191159.033 | H35: =H23-H31+H32+H33 -> 3267557.848 | I35: 3100385.696 | J35: 3448598.223 | K35: 3251282.842 | L35: 3105648.481 | M35: 2568478.625 | N35: 3466714.183 | O35: 3433941.482 | P35: 3386884.208 | Q35: 3455948.066 | R35: 3481321.803 | S35: 3334219.551 | T35: 3252132.031 | U35: 3537671.855 | V35: 3428835.947 | W35: 3521031.777 | X35: 3944800.492 | Y35: 4034268.038 | Z35: 3812984.333 | AA35: 3890191.812 | AB35: 4041174.158 | AC35: 3754355.139 | AD35: 4261427.112 | AE35: 3384780.193 | AF35: 3840173.382 | AG35: 3608434.402 | AH35: 3708113.784 | AI35: 3527776.435 | AJ35: 3965245.447 | AK35: 4222137.26 | AL35: 3777328.043 | AM35: 3801349.081 | AN35: 3562294.068 | AO35: 3649648.281 | AP35: 3818297.891 | AQ35: 3887447.472 | AR35: 4032055.61 | AS35: 3870183.142 | AT35: 3769948.119 | AU35: 3967802.78 | AV35: 4374960.926 | AW35: 3683119.444 | AX35: 3508690.485 | AY35: 3173100.557 | AZ35: 3897183.161 | BA35: 4180576.59 | BB35: 6266.34783 | BC35: 6266.34783 | BD35: 6266.34783
A37: Irrigated Agriculture | F37: TOTAL | G37: ='CP-1'!G25+'CP-2'!G26+Stateline!G18+'CP-3'!G17+'CP-4'!G25+'CP-5'!G20+'CP-6'!G32+'CP-7'!G30+'CP-8'!G20+'CP-9'!G20+'CP-10'!G21+'CP-11'!G33+'CP-12'!G22+'CP-13'!G25+Jensen!G33+'CP-14'!G22+'CP-15'!G28+Ouray!G27+'CP-16'!G28+'CP-17'!G17+'Grn-Colo-Confl'!G23+'CP-18'!G26+'CP-19'!G62+'Colo-SanJuan-Confl'!G28+'CP-20'!G17+'CP-21'!G18 -> 2312361.532 | H37: ='CP-1'!H25+'CP-2'!H26+Stateline!H18+'CP-3'!H17+'CP-4'!H25+'CP-5'!H20+'CP-6'!H32+'CP-7'!H30+'CP-8'!H20+'CP-9'!H20+'CP-10'!H21+'CP-11'!H33+'CP-12'!H22+'CP-13'!H25+Jensen!H33+'CP-14'!H22+'CP-15'!H28+Ouray!H27+'CP-16'!H28+'CP-17'!H17+'Grn-Colo-Confl'!H23+'CP-18'!H26+'CP-19'!H62+'Colo-SanJuan-Confl'!H28+'CP-20'!H17+'CP-21'!H18 -> 2294485 | I37: ='CP-1'!I25+'CP-2'!I26+Stateline!I18+'CP-3'!I17+'CP-4'!I25+'CP-5'!I20+'CP-6'!I32+'CP-7'!I30+'CP-8'!I20+'CP-9'!I20+'CP-10'!I21+'CP-11'!I33+'CP-12'!I22+'CP-13'!I25+Jensen!I33+'CP-14'!I22+'CP-15'!I28+Ouray!I27+'CP-16'!I28+'CP-17'!I17+'Grn-Colo-Confl'!I23+'CP-18'!I26+'CP-19'!I62+'Colo-SanJuan-Confl'!I28+'CP-20'!I17+'CP-21'!I18 -> 2133277 | J37: ='CP-1'!J25+'CP-2'!J26+Stateline!J18+'CP-3'!J17+'CP-4'!J25+'CP-5'!J20+'CP-6'!J32+'CP-7'!J30+'CP-8'!J20+'CP-9'!J20+'CP-10'!J21+'CP-11'!J33+'CP-12'!J22+'CP-13'!J25+Jensen!J33+'CP-14'!J22+'CP-15'!J28+Ouray!J27+'CP-16'!J28+'CP-17'!J17+'Grn-Colo-Confl'!J23+'CP-18'!J26+'CP-19'!J62+'Colo-SanJuan-Confl'!J28+'CP-20'!J17+'CP-21'!J18 -> 2415734 | K37: ='CP-1'!K25+'CP-2'!K26+Stateline!K18+'CP-3'!K17+'CP-4'!K25+'CP-5'!K20+'CP-6'!K32+'CP-7'!K30+'CP-8'!K20+'CP-9'!K20+'CP-10'!K21+'CP-11'!K33+'CP-12'!K22+'CP-13'!K25+Jensen!K33+'CP-14'!K22+'CP-15'!K28+Ouray!K27+'CP-16'!K28+'CP-17'!K17+'Grn-Colo-Confl'!K23+'CP-18'!K26+'CP-19'!K62+'Colo-SanJuan-Confl'!K28+'CP-20'!K17+'CP-21'!K18 -> 2106605 | L37: ='CP-1'!L25+'CP-2'!L26+Stateline!L18+'CP-3'!L17+'CP-4'!L25+'CP-5'!L20+'CP-6'!L32+'CP-7'!L30+'CP-8'!L20+'CP-9'!L20+'CP-10'!L21+'CP-11'!L33+'CP-12'!L22+'CP-13'!L25+Jensen!L33+'CP-14'!L22+'CP-15'!L28+Ouray!L27+'CP-16'!L28+'CP-17'!L17+'Grn-Colo-Confl'!L23+'CP-18'!L26+'CP-19'!L62+'Colo-SanJuan-Confl'!L28+'CP-20'!L17+'CP-21'!L18 -> 2077240 | M37: ='CP-1'!M25+'CP-2'!M26+Stateline!M18+'CP-3'!M17+'CP-4'!M25+'CP-5'!M20+'CP-6'!M32+'CP-7'!M30+'CP-8'!M20+'CP-9'!M20+'CP-10'!M21+'CP-11'!M33+'CP-12'!M22+'CP-13'!M25+Jensen!M33+'CP-14'!M22+'CP-15'!M28+Ouray!M27+'CP-16'!M28+'CP-17'!M17+'Grn-Colo-Confl'!M23+'CP-18'!M26+'CP-19'!M62+'Colo-SanJuan-Confl'!M28+'CP-20'!M17+'CP-21'!M18 -> 1606601 | N37: ='CP-1'!N25+'CP-2'!N26+Stateline!N18+'CP-3'!N17+'CP-4'!N25+'CP-5'!N20+'CP-6'!N32+'CP-7'!N30+'CP-8'!N20+'CP-9'!N20+'CP-10'!N21+'CP-11'!N33+'CP-12'!N22+'CP-13'!N25+Jensen!N33+'CP-14'!N22+'CP-15'!N28+Ouray!N27+'CP-16'!N28+'CP-17'!N17+'Grn-Colo-Confl'!N23+'CP-18'!N26+'CP-19'!N62+'Colo-SanJuan-Confl'!N28+'CP-20'!N17+'CP-21'!N18 -> 2234387 | O37: ='CP-1'!O25+'CP-2'!O26+Stateline!O18+'CP-3'!O17+'CP-4'!O25+'CP-5'!O20+'CP-6'!O32+'CP-7'!O30+'CP-8'!O20+'CP-9'!O20+'CP-10'!O21+'CP-11'!O33+'CP-12'!O22+'CP-13'!O25+Jensen!O33+'CP-14'!O22+'CP-15'!O28+Ouray!O27+'CP-16'!O28+'CP-17'!O17+'Grn-Colo-Confl'!O23+'CP-18'!O26+'CP-19'!O62+'Colo-SanJuan-Confl'!O28+'CP-20'!O17+'CP-21'!O18 -> 2310179 | P37: ='CP-1'!P25+'CP-2'!P26+Stateline!P18+'CP-3'!P17+'CP-4'!P25+'CP-5'!P20+'CP-6'!P32+'CP-7'!P30+'CP-8'!P20+'CP-9'!P20+'CP-10'!P21+'CP-11'!P33+'CP-12'!P22+'CP-13'!P25+Jensen!P33+'CP-14'!P22+'CP-15'!P28+Ouray!P27+'CP-16'!P28+'CP-17'!P17+'Grn-Colo-Confl'!P23+'CP-18'!P26+'CP-19'!P62+'Colo-SanJuan-Confl'!P28+'CP-20'!P17+'CP-21'!P18 -> 2310383 | Q37: ='CP-1'!Q25+'CP-2'!Q26+Stateline!Q18+'CP-3'!Q17+'CP-4'!Q25+'CP-5'!Q20+'CP-6'!Q32+'CP-7'!Q30+'CP-8'!Q20+'CP-9'!Q20+'CP-10'!Q21+'CP-11'!Q33+'CP-12'!Q22+'CP-13'!Q25+Jensen!Q33+'CP-14'!Q22+'CP-15'!Q28+Ouray!Q27+'CP-16'!Q28+'CP-17'!Q17+'Grn-Colo-Confl'!Q23+'CP-18'!Q26+'CP-19'!Q62+'Colo-SanJuan-Confl'!Q28+'CP-20'!Q17+'CP-21'!Q18 -> 2257850.932 | R37: ='CP-1'!R25+'CP-2'!R26+Stateline!R18+'CP-3'!R17+'CP-4'!R25+'CP-5'!R20+'CP-6'!R32+'CP-7'!R30+'CP-8'!R20+'CP-9'!R20+'CP-10'!R21+'CP-11'!R33+'CP-12'!R22+'CP-13'!R25+Jensen!R33+'CP-14'!R22+'CP-15'!R28+Ouray!R27+'CP-16'!R28+'CP-17'!R17+'Grn-Colo-Confl'!R23+'CP-18'!R26+'CP-19'!R62+'Colo-SanJuan-Confl'!R28+'CP-20'!R17+'CP-21'!R18 -> 2247546.283 | S37: ='CP-1'!S25+'CP-2'!S26+Stateline!S18+'CP-3'!S17+'CP-4'!S25+'CP-5'!S20+'CP-6'!S32+'CP-7'!S30+'CP-8'!S20+'CP-9'!S20+'CP-10'!S21+'CP-11'!S33+'CP-12'!S22+'CP-13'!S25+Jensen!S33+'CP-14'!S22+'CP-15'!S28+Ouray!S27+'CP-16'!S28+'CP-17'!S17+'Grn-Colo-Confl'!S23+'CP-18'!S26+'CP-19'!S62+'Colo-SanJuan-Confl'!S28+'CP-20'!S17+'CP-21'!S18 -> 2294320.476 | T37: ='CP-1'!T25+'CP-2'!T26+Stateline!T18+'CP-3'!T17+'CP-4'!T25+'CP-5'!T20+'CP-6'!T32+'CP-7'!T30+'CP-8'!T20+'CP-9'!T20+'CP-10'!T21+'CP-11'!T33+'CP-12'!T22+'CP-13'!T25+Jensen!T33+'CP-14'!T22+'CP-15'!T28+Ouray!T27+'CP-16'!T28+'CP-17'!T17+'Grn-Colo-Confl'!T23+'CP-18'!T26+'CP-19'!T62+'Colo-SanJuan-Confl'!T28+'CP-20'!T17+'CP-21'!T18 -> 2200974.456 | U37: ='CP-1'!U25+'CP-2'!U26+Stateline!U18+'CP-3'!U17+'CP-4'!U25+'CP-5'!U20+'CP-6'!U32+'CP-7'!U30+'CP-8'!U20+'CP-9'!U20+'CP-10'!U21+'CP-11'!U33+'CP-12'!U22+'CP-13'!U25+Jensen!U33+'CP-14'!U22+'CP-15'!U28+Ouray!U27+'CP-16'!U28+'CP-17'!U17+'Grn-Colo-Confl'!U23+'CP-18'!U26+'CP-19'!U62+'Colo-SanJuan-Confl'!U28+'CP-20'!U17+'CP-21'!U18 -> 2386486.334 | V37: ='CP-1'!V25+'CP-2'!V26+Stateline!V18+'CP-3'!V17+'CP-4'!V25+'CP-5'!V20+'CP-6'!V32+'CP-7'!V30+'CP-8'!V20+'CP-9'!V20+'CP-10'!V21+'CP-11'!V33+'CP-12'!V22+'CP-13'!V25+Jensen!V33+'CP-14'!V22+'CP-15'!V28+Ouray!V27+'CP-16'!V28+'CP-17'!V17+'Grn-Colo-Confl'!V23+'CP-18'!V26+'CP-19'!V62+'Colo-SanJuan-Confl'!V28+'CP-20'!V17+'CP-21'!V18 -> 2279119.025 | W37: ='CP-1'!W25+'CP-2'!W26+Stateline!W18+'CP-3'!W17+'CP-4'!W25+'CP-5'!W20+'CP-6'!W32+'CP-7'!W30+'CP-8'!W20+'CP-9'!W20+'CP-10'!W21+'CP-11'!W33+'CP-12'!W22+'CP-13'!W25+Jensen!W33+'CP-14'!W22+'CP-15'!W28+Ouray!W27+'CP-16'!W28+'CP-17'!W17+'Grn-Colo-Confl'!W23+'CP-18'!W26+'CP-19'!W62+'Colo-SanJuan-Confl'!W28+'CP-20'!W17+'CP-21'!W18 -> 2462356.789 | X37: ='CP-1'!X25+'CP-2'!X26+Stateline!X18+'CP-3'!X17+'CP-4'!X25+'CP-5'!X20+'CP-6'!X32+'CP-7'!X30+'CP-8'!X20+'CP-9'!X20+'CP-10'!X21+'CP-11'!X33+'CP-12'!X22+'CP-13'!X25+Jensen!X33+'CP-14'!X22+'CP-15'!X28+Ouray!X27+'CP-16'!X28+'CP-17'!X17+'Grn-Colo-Confl'!X23+'CP-18'!X26+'CP-19'!X62+'Colo-SanJuan-Confl'!X28+'CP-20'!X17+'CP-21'!X18 -> 2725798.711 | Y37: ='CP-1'!Y25+'CP-2'!Y26+Stateline!Y18+'CP-3'!Y17+'CP-4'!Y25+'CP-5'!Y20+'CP-6'!Y32+'CP-7'!Y30+'CP-8'!Y20+'CP-9'!Y20+'CP-10'!Y21+'CP-11'!Y33+'CP-12'!Y22+'CP-13'!Y25+Jensen!Y33+'CP-14'!Y22+'CP-15'!Y28+Ouray!Y27+'CP-16'!Y28+'CP-17'!Y17+'Grn-Colo-Confl'!Y23+'CP-18'!Y26+'CP-19'!Y62+'Colo-SanJuan-Confl'!Y28+'CP-20'!Y17+'CP-21'!Y18 -> 2757022.563 | Z37: ='CP-1'!Z25+'CP-2'!Z26+Stateline!Z18+'CP-3'!Z17+'CP-4'!Z25+'CP-5'!Z20+'CP-6'!Z32+'CP-7'!Z30+'CP-8'!Z20+'CP-9'!Z20+'CP-10'!Z21+'CP-11'!Z33+'CP-12'!Z22+'CP-13'!Z25+Jensen!Z33+'CP-14'!Z22+'CP-15'!Z28+Ouray!Z27+'CP-16'!Z28+'CP-17'!Z17+'Grn-Colo-Confl'!Z23+'CP-18'!Z26+'CP-19'!Z62+'Colo-SanJuan-Confl'!Z28+'CP-20'!Z17+'CP-21'!Z18 -> 2635141.961 | AA37: ='CP-1'!AA25+'CP-2'!AA26+Stateline!AA18+'CP-3'!AA17+'CP-4'!AA25+'CP-5'!AA20+'CP-6'!AA32+'CP-7'!AA30+'CP-8'!AA20+'CP-9'!AA20+'CP-10'!AA21+'CP-11'!AA33+'CP-12'!AA22+'CP-13'!AA25+Jensen!AA33+'CP-14'!AA22+'CP-15'!AA28+Ouray!AA27+'CP-16'!AA28+'CP-17'!AA17+'Grn-Colo-Confl'!AA23+'CP-18'!AA26+'CP-19'!AA62+'Colo-SanJuan-Confl'!AA28+'CP-20'!AA17+'CP-21'!AA18 -> 2631816.937 | AB37: ='CP-1'!AB25+'CP-2'!AB26+Stateline!AB18+'CP-3'!AB17+'CP-4'!AB25+'CP-5'!AB20+'CP-6'!AB32+'CP-7'!AB30+'CP-8'!AB20+'CP-9'!AB20+'CP-10'!AB21+'CP-11'!AB33+'CP-12'!AB22+'CP-13'!AB25+Jensen!AB33+'CP-14'!AB22+'CP-15'!AB28+Ouray!AB27+'CP-16'!AB28+'CP-17'!AB17+'Grn-Colo-Confl'!AB23+'CP-18'!AB26+'CP-19'!AB62+'Colo-SanJuan-Confl'!AB28+'CP-20'!AB17+'CP-21'!AB18 -> 2784834.692 | AC37: ='CP-1'!AC25+'CP-2'!AC26+Stateline!AC18+'CP-3'!AC17+'CP-4'!AC25+'CP-5'!AC20+'CP-6'!AC32+'CP-7'!AC30+'CP-8'!AC20+'CP-9'!AC20+'CP-10'!AC21+'CP-11'!AC33+'CP-12'!AC22+'CP-13'!AC25+Jensen!AC33+'CP-14'!AC22+'CP-15'!AC28+Ouray!AC27+'CP-16'!AC28+'CP-17'!AC17+'Grn-Colo-Confl'!AC23+'CP-18'!AC26+'CP-19'!AC62+'Colo-SanJuan-Confl'!AC28+'CP-20'!AC17+'CP-21'!AC18 -> 2379563.966 | AD37: ='CP-1'!AD25+'CP-2'!AD26+Stateline!AD18+'CP-3'!AD17+'CP-4'!AD25+'CP-5'!AD20+'CP-6'!AD32+'CP-7'!AD30+'CP-8'!AD20+'CP-9'!AD20+'CP-10'!AD21+'CP-11'!AD33+'CP-12'!AD22+'CP-13'!AD25+Jensen!AD33+'CP-14'!AD22+'CP-15'!AD28+Ouray!AD27+'CP-16'!AD28+'CP-17'!AD17+'Grn-Colo-Confl'!AD23+'CP-18'!AD26+'CP-19'!AD62+'Colo-SanJuan-Confl'!AD28+'CP-20'!AD17+'CP-21'!AD18 -> 2973638.207 | AE37: ='CP-1'!AE25+'CP-2'!AE26+Stateline!AE18+'CP-3'!AE17+'CP-4'!AE25+'CP-5'!AE20+'CP-6'!AE32+'CP-7'!AE30+'CP-8'!AE20+'CP-9'!AE20+'CP-10'!AE21+'CP-11'!AE33+'CP-12'!AE22+'CP-13'!AE25+Jensen!AE33+'CP-14'!AE22+'CP-15'!AE28+Ouray!AE27+'CP-16'!AE28+'CP-17'!AE17+'Grn-Colo-Confl'!AE23+'CP-18'!AE26+'CP-19'!AE62+'Colo-SanJuan-Confl'!AE28+'CP-20'!AE17+'CP-21'!AE18 -> 2242610.615 | AF37: ='CP-1'!AF25+'CP-2'!AF26+Stateline!AF18+'CP-3'!AF17+'CP-4'!AF25+'CP-5'!AF20+'CP-6'!AF32+'CP-7'!AF30+'CP-8'!AF20+'CP-9'!AF20+'CP-10'!AF21+'CP-11'!AF33+'CP-12'!AF22+'CP-13'!AF25+Jensen!AF33+'CP-14'!AF22+'CP-15'!AF28+Ouray!AF27+'CP-16'!AF28+'CP-17'!AF17+'Grn-Colo-Confl'!AF23+'CP-18'!AF26+'CP-19'!AF62+'Colo-SanJuan-Confl'!AF28+'CP-20'!AF17+'CP-21'!AF18 -> 2644284.225 | AG37: ='CP-1'!AG25+'CP-2'!AG26+Stateline!AG18+'CP-3'!AG17+'CP-4'!AG25+'CP-5'!AG20+'CP-6'!AG32+'CP-7'!AG30+'CP-8'!AG20+'CP-9'!AG20+'CP-10'!AG21+'CP-11'!AG33+'CP-12'!AG22+'CP-13'!AG25+Jensen!AG33+'CP-14'!AG22+'CP-15'!AG28+Ouray!AG27+'CP-16'!AG28+'CP-17'!AG17+'Grn-Colo-Confl'!AG23+'CP-18'!AG26+'CP-19'!AG62+'Colo-SanJuan-Confl'!AG28+'CP-20'!AG17+'CP-21'!AG18 -> 2289716.712 | AH37: ='CP-1'!AH25+'CP-2'!AH26+Stateline!AH18+'CP-3'!AH17+'CP-4'!AH25+'CP-5'!AH20+'CP-6'!AH32+'CP-7'!AH30+'CP-8'!AH20+'CP-9'!AH20+'CP-10'!AH21+'CP-11'!AH33+'CP-12'!AH22+'CP-13'!AH25+Jensen!AH33+'CP-14'!AH22+'CP-15'!AH28+Ouray!AH27+'CP-16'!AH28+'CP-17'!AH17+'Grn-Colo-Confl'!AH23+'CP-18'!AH26+'CP-19'!AH62+'Colo-SanJuan-Confl'!AH28+'CP-20'!AH17+'CP-21'!AH18 -> 2528083.553 | AI37: ='CP-1'!AI25+'CP-2'!AI26+Stateline!AI18+'CP-3'!AI17+'CP-4'!AI25+'CP-5'!AI20+'CP-6'!AI32+'CP-7'!AI30+'CP-8'!AI20+'CP-9'!AI20+'CP-10'!AI21+'CP-11'!AI33+'CP-12'!AI22+'CP-13'!AI25+Jensen!AI33+'CP-14'!AI22+'CP-15'!AI28+Ouray!AI27+'CP-16'!AI28+'CP-17'!AI17+'Grn-Colo-Confl'!AI23+'CP-18'!AI26+'CP-19'!AI62+'Colo-SanJuan-Confl'!AI28+'CP-20'!AI17+'CP-21'!AI18 -> 2330155.475 | AJ37: ='CP-1'!AJ25+'CP-2'!AJ26+Stateline!AJ18+'CP-3'!AJ17+'CP-4'!AJ25+'CP-5'!AJ20+'CP-6'!AJ32+'CP-7'!AJ30+'CP-8'!AJ20+'CP-9'!AJ20+'CP-10'!AJ21+'CP-11'!AJ33+'CP-12'!AJ22+'CP-13'!AJ25+Jensen!AJ33+'CP-14'!AJ22+'CP-15'!AJ28+Ouray!AJ27+'CP-16'!AJ28+'CP-17'!AJ17+'Grn-Colo-Confl'!AJ23+'CP-18'!AJ26+'CP-19'!AJ62+'Colo-SanJuan-Confl'!AJ28+'CP-20'!AJ17+'CP-21'!AJ18 -> 2644514.866 | AK37: ='CP-1'!AK25+'CP-2'!AK26+Stateline!AK18+'CP-3'!AK17+'CP-4'!AK25+'CP-5'!AK20+'CP-6'!AK32+'CP-7'!AK30+'CP-8'!AK20+'CP-9'!AK20+'CP-10'!AK21+'CP-11'!AK33+'CP-12'!AK22+'CP-13'!AK25+Jensen!AK33+'CP-14'!AK22+'CP-15'!AK28+Ouray!AK27+'CP-16'!AK28+'CP-17'!AK17+'Grn-Colo-Confl'!AK23+'CP-18'!AK26+'CP-19'!AK62+'Colo-SanJuan-Confl'!AK28+'CP-20'!AK17+'CP-21'!AK18 -> 2776065.291 | AL37: ='CP-1'!AL25+'CP-2'!AL26+Stateline!AL18+'CP-3'!AL17+'CP-4'!AL25+'CP-5'!AL20+'CP-6'!AL32+'CP-7'!AL30+'CP-8'!AL20+'CP-9'!AL20+'CP-10'!AL21+'CP-11'!AL33+'CP-12'!AL22+'CP-13'!AL25+Jensen!AL33+'CP-14'!AL22+'CP-15'!AL28+Ouray!AL27+'CP-16'!AL28+'CP-17'!AL17+'Grn-Colo-Confl'!AL23+'CP-18'!AL26+'CP-19'!AL62+'Colo-SanJuan-Confl'!AL28+'CP-20'!AL17+'CP-21'!AL18 -> 2593899.705 | AM37: ='CP-1'!AM25+'CP-2'!AM26+Stateline!AM18+'CP-3'!AM17+'CP-4'!AM25+'CP-5'!AM20+'CP-6'!AM32+'CP-7'!AM30+'CP-8'!AM20+'CP-9'!AM20+'CP-10'!AM21+'CP-11'!AM33+'CP-12'!AM22+'CP-13'!AM25+Jensen!AM33+'CP-14'!AM22+'CP-15'!AM28+Ouray!AM27+'CP-16'!AM28+'CP-17'!AM17+'Grn-Colo-Confl'!AM23+'CP-18'!AM26+'CP-19'!AM62+'Colo-SanJuan-Confl'!AM28+'CP-20'!AM17+'CP-21'!AM18 -> 2550348.304 | AN37: ='CP-1'!AN25+'CP-2'!AN26+Stateline!AN18+'CP-3'!AN17+'CP-4'!AN25+'CP-5'!AN20+'CP-6'!AN32+'CP-7'!AN30+'CP-8'!AN20+'CP-9'!AN20+'CP-10'!AN21+'CP-11'!AN33+'CP-12'!AN22+'CP-13'!AN25+Jensen!AN33+'CP-14'!AN22+'CP-15'!AN28+Ouray!AN27+'CP-16'!AN28+'CP-17'!AN17+'Grn-Colo-Confl'!AN23+'CP-18'!AN26+'CP-19'!AN62+'Colo-SanJuan-Confl'!AN28+'CP-20'!AN17+'CP-21'!AN18 -> 2301414.609 | AO37: ='CP-1'!AO25+'CP-2'!AO26+Stateline!AO18+'CP-3'!AO17+'CP-4'!AO25+'CP-5'!AO20+'CP-6'!AO32+'CP-7'!AO30+'CP-8'!AO20+'CP-9'!AO20+'CP-10'!AO21+'CP-11'!AO33+'CP-12'!AO22+'CP-13'!AO25+Jensen!AO33+'CP-14'!AO22+'CP-15'!AO28+Ouray!AO27+'CP-16'!AO28+'CP-17'!AO17+'Grn-Colo-Confl'!AO23+'CP-18'!AO26+'CP-19'!AO62+'Colo-SanJuan-Confl'!AO28+'CP-20'!AO17+'CP-21'!AO18 -> 2317001.28 | AP37: ='CP-1'!AP25+'CP-2'!AP26+Stateline!AP18+'CP-3'!AP17+'CP-4'!AP25+'CP-5'!AP20+'CP-6'!AP32+'CP-7'!AP30+'CP-8'!AP20+'CP-9'!AP20+'CP-10'!AP21+'CP-11'!AP33+'CP-12'!AP22+'CP-13'!AP25+Jensen!AP33+'CP-14'!AP22+'CP-15'!AP28+Ouray!AP27+'CP-16'!AP28+'CP-17'!AP17+'Grn-Colo-Confl'!AP23+'CP-18'!AP26+'CP-19'!AP62+'Colo-SanJuan-Confl'!AP28+'CP-20'!AP17+'CP-21'!AP18 -> 2403415.5 | AQ37: ='CP-1'!AQ25+'CP-2'!AQ26+Stateline!AQ18+'CP-3'!AQ17+'CP-4'!AQ25+'CP-5'!AQ20+'CP-6'!AQ32+'CP-7'!AQ30+'CP-8'!AQ20+'CP-9'!AQ20+'CP-10'!AQ21+'CP-11'!AQ33+'CP-12'!AQ22+'CP-13'!AQ25+Jensen!AQ33+'CP-14'!AQ22+'CP-15'!AQ28+Ouray!AQ27+'CP-16'!AQ28+'CP-17'!AQ17+'Grn-Colo-Confl'!AQ23+'CP-18'!AQ26+'CP-19'!AQ62+'Colo-SanJuan-Confl'!AQ28+'CP-20'!AQ17+'CP-21'!AQ18 -> 2577018.513 | AR37: ='CP-1'!AR25+'CP-2'!AR26+Stateline!AR18+'CP-3'!AR17+'CP-4'!AR25+'CP-5'!AR20+'CP-6'!AR32+'CP-7'!AR30+'CP-8'!AR20+'CP-9'!AR20+'CP-10'!AR21+'CP-11'!AR33+'CP-12'!AR22+'CP-13'!AR25+Jensen!AR33+'CP-14'!AR22+'CP-15'!AR28+Ouray!AR27+'CP-16'!AR28+'CP-17'!AR17+'Grn-Colo-Confl'!AR23+'CP-18'!AR26+'CP-19'!AR62+'Colo-SanJuan-Confl'!AR28+'CP-20'!AR17+'CP-21'!AR18 -> 2543175.1 | AS37: ='CP-1'!AS25+'CP-2'!AS26+Stateline!AS18+'CP-3'!AS17+'CP-4'!AS25+'CP-5'!AS20+'CP-6'!AS32+'CP-7'!AS30+'CP-8'!AS20+'CP-9'!AS20+'CP-10'!AS21+'CP-11'!AS33+'CP-12'!AS22+'CP-13'!AS25+Jensen!AS33+'CP-14'!AS22+'CP-15'!AS28+Ouray!AS27+'CP-16'!AS28+'CP-17'!AS17+'Grn-Colo-Confl'!AS23+'CP-18'!AS26+'CP-19'!AS62+'Colo-SanJuan-Confl'!AS28+'CP-20'!AS17+'CP-21'!AS18 -> 2539167.478 | AT37: ='CP-1'!AT25+'CP-2'!AT26+Stateline!AT18+'CP-3'!AT17+'CP-4'!AT25+'CP-5'!AT20+'CP-6'!AT32+'CP-7'!AT30+'CP-8'!AT20+'CP-9'!AT20+'CP-10'!AT21+'CP-11'!AT33+'CP-12'!AT22+'CP-13'!AT25+Jensen!AT33+'CP-14'!AT22+'CP-15'!AT28+Ouray!AT27+'CP-16'!AT28+'CP-17'!AT17+'Grn-Colo-Confl'!AT23+'CP-18'!AT26+'CP-19'!AT62+'Colo-SanJuan-Confl'!AT28+'CP-20'!AT17+'CP-21'!AT18 -> 2576750.263 | AU37: ='CP-1'!AU25+'CP-2'!AU26+Stateline!AU18+'CP-3'!AU17+'CP-4'!AU25+'CP-5'!AU20+'CP-6'!AU32+'CP-7'!AU30+'CP-8'!AU20+'CP-9'!AU20+'CP-10'!AU21+'CP-11'!AU33+'CP-12'!AU22+'CP-13'!AU25+Jensen!AU33+'CP-14'!AU22+'CP-15'!AU28+Ouray!AU27+'CP-16'!AU28+'CP-17'!AU17+'Grn-Colo-Confl'!AU23+'CP-18'!AU26+'CP-19'!AU62+'Colo-SanJuan-Confl'!AU28+'CP-20'!AU17+'CP-21'!AU18 -> 2603546.549 | AV37: ='CP-1'!AV25+'CP-2'!AV26+Stateline!AV18+'CP-3'!AV17+'CP-4'!AV25+'CP-5'!AV20+'CP-6'!AV32+'CP-7'!AV30+'CP-8'!AV20+'CP-9'!AV20+'CP-10'!AV21+'CP-11'!AV33+'CP-12'!AV22+'CP-13'!AV25+Jensen!AV33+'CP-14'!AV22+'CP-15'!AV28+Ouray!AV27+'CP-16'!AV28+'CP-17'!AV17+'Grn-Colo-Confl'!AV23+'CP-18'!AV26+'CP-19'!AV62+'Colo-SanJuan-Confl'!AV28+'CP-20'!AV17+'CP-21'!AV18 -> 3119059.482 | AW37: ='CP-1'!AW25+'CP-2'!AW26+Stateline!AW18+'CP-3'!AW17+'CP-4'!AW25+'CP-5'!AW20+'CP-6'!AW32+'CP-7'!AW30+'CP-8'!AW20+'CP-9'!AW20+'CP-10'!AW21+'CP-11'!AW33+'CP-12'!AW22+'CP-13'!AW25+Jensen!AW33+'CP-14'!AW22+'CP-15'!AW28+Ouray!AW27+'CP-16'!AW28+'CP-17'!AW17+'Grn-Colo-Confl'!AW23+'CP-18'!AW26+'CP-19'!AW62+'Colo-SanJuan-Confl'!AW28+'CP-20'!AW17+'CP-21'!AW18 -> 2522828.227 | AX37: ='CP-1'!AX25+'CP-2'!AX26+Stateline!AX18+'CP-3'!AX17+'CP-4'!AX25+'CP-5'!AX20+'CP-6'!AX32+'CP-7'!AX30+'CP-8'!AX20+'CP-9'!AX20+'CP-10'!AX21+'CP-11'!AX33+'CP-12'!AX22+'CP-13'!AX25+Jensen!AX33+'CP-14'!AX22+'CP-15'!AX28+Ouray!AX27+'CP-16'!AX28+'CP-17'!AX17+'Grn-Colo-Confl'!AX23+'CP-18'!AX26+'CP-19'!AX62+'Colo-SanJuan-Confl'!AX28+'CP-20'!AX17+'CP-21'!AX18 -> 2355531.669 | AY37: ='CP-1'!AY25+'CP-2'!AY26+Stateline!AY18+'CP-3'!AY17+'CP-4'!AY25+'CP-5'!AY20+'CP-6'!AY32+'CP-7'!AY30+'CP-8'!AY20+'CP-9'!AY20+'CP-10'!AY21+'CP-11'!AY33+'CP-12'!AY22+'CP-13'!AY25+Jensen!AY33+'CP-14'!AY22+'CP-15'!AY28+Ouray!AY27+'CP-16'!AY28+'CP-17'!AY17+'Grn-Colo-Confl'!AY23+'CP-18'!AY26+'CP-19'!AY62+'Colo-SanJuan-Confl'!AY28+'CP-20'!AY17+'CP-21'!AY18 -> 2149388.121 | AZ37: ='CP-1'!AZ25+'CP-2'!AZ26+Stateline!AZ18+'CP-3'!AZ17+'CP-4'!AZ25+'CP-5'!AZ20+'CP-6'!AZ32+'CP-7'!AZ30+'CP-8'!AZ20+'CP-9'!AZ20+'CP-10'!AZ21+'CP-11'!AZ33+'CP-12'!AZ22+'CP-13'!AZ25+Jensen!AZ33+'CP-14'!AZ22+'CP-15'!AZ28+Ouray!AZ27+'CP-16'!AZ28+'CP-17'!AZ17+'Grn-Colo-Confl'!AZ23+'CP-18'!AZ26+'CP-19'!AZ62+'Colo-SanJuan-Confl'!AZ28+'CP-20'!AZ17+'CP-21'!AZ18 -> 2691225.512 | BA37: ='CP-1'!BA25+'CP-2'!BA26+Stateline!BA18+'CP-3'!BA17+'CP-4'!BA25+'CP-5'!BA20+'CP-6'!BA32+'CP-7'!BA30+'CP-8'!BA20+'CP-9'!BA20+'CP-10'!BA21+'CP-11'!BA33+'CP-12'!BA22+'CP-13'!BA25+Jensen!BA33+'CP-14'!BA22+'CP-15'!BA28+Ouray!BA27+'CP-16'!BA28+'CP-17'!BA17+'Grn-Colo-Confl'!BA23+'CP-18'!BA26+'CP-19'!BA62+'Colo-SanJuan-Confl'!BA28+'CP-20'!BA17+'CP-21'!BA18 -> 2814573.07 | BB37: ='CP-1'!BB25+'CP-2'!BB26+Stateline!BB18+'CP-3'!BB17+'CP-4'!BB25+'CP-5'!BB20+'CP-6'!BB32+'CP-7'!BB30+'CP-8'!BB20+'CP-9'!BB20+'CP-10'!BB21+'CP-11'!BB33+'CP-12'!BB22+'CP-13'!BB25+Jensen!BB33+'CP-14'!BB22+'CP-15'!BB28+Ouray!BB27+'CP-16'!BB28+'CP-17'!BB17+'Grn-Colo-Confl'!BB23+'CP-18'!BB26+'CP-19'!BB62+'Colo-SanJuan-Confl'!BB28+'CP-20'!BB17+'CP-21'!BB18 -> 0 | BC37: ='CP-1'!BC25+'CP-2'!BC26+Stateline!BC18+'CP-3'!BC17+'CP-4'!BC25+'CP-5'!BC20+'CP-6'!BC32+'CP-7'!BC30+'CP-8'!BC20+'CP-9'!BC20+'CP-10'!BC21+'CP-11'!BC33+'CP-12'!BC22+'CP-13'!BC25+Jensen!BC33+'CP-14'!BC22+'CP-15'!BC28+Ouray!BC27+'CP-16'!BC28+'CP-17'!BC17+'Grn-Colo-Confl'!BC23+'CP-18'!BC26+'CP-19'!BC62+'Colo-SanJuan-Confl'!BC28+'CP-20'!BC17+'CP-21'!BC18 -> 0 | BD37: ='CP-1'!BD25+'CP-2'!BD26+Stateline!BD18+'CP-3'!BD17+'CP-4'!BD25+'CP-5'!BD20+'CP-6'!BD32+'CP-7'!BD30+'CP-8'!BD20+'CP-9'!BD20+'CP-10'!BD21+'CP-11'!BD33+'CP-12'!BD22+'CP-13'!BD25+Jensen!BD33+'CP-14'!BD22+'CP-15'!BD28+Ouray!BD27+'CP-16'!BD28+'CP-17'!BD17+'Grn-Colo-Confl'!BD23+'CP-18'!BD26+'CP-19'!BD62+'Colo-SanJuan-Confl'!BD28+'CP-20'!BD17+'CP-21'!BD18 -> 0
D39: Arizona | F39: san juan-colorado river | G39: ='CP-19'!G28+'CP-19'!G40+'CP-19'!G54+'CP-19'!G55+'CP-19'!G59+'Colo-SanJuan-Confl'!G25+'CP-20'!G14 -> 2500 | H39: ='CP-19'!H28+'CP-19'!H40+'CP-19'!H54+'CP-19'!H55+'CP-19'!H59+'Colo-SanJuan-Confl'!H25+'CP-20'!H14 -> 2900 | I39: ='CP-19'!I28+'CP-19'!I40+'CP-19'!I54+'CP-19'!I55+'CP-19'!I59+'Colo-SanJuan-Confl'!I25+'CP-20'!I14 -> 4000 | J39: ='CP-19'!J28+'CP-19'!J40+'CP-19'!J54+'CP-19'!J55+'CP-19'!J59+'Colo-SanJuan-Confl'!J25+'CP-20'!J14 -> 4250 | K39: ='CP-19'!K28+'CP-19'!K40+'CP-19'!K54+'CP-19'!K55+'CP-19'!K59+'Colo-SanJuan-Confl'!K25+'CP-20'!K14 -> 3540 | L39: ='CP-19'!L28+'CP-19'!L40+'CP-19'!L54+'CP-19'!L55+'CP-19'!L59+'Colo-SanJuan-Confl'!L25+'CP-20'!L14 -> 2690 | M39: ='CP-19'!M28+'CP-19'!M40+'CP-19'!M54+'CP-19'!M55+'CP-19'!M59+'Colo-SanJuan-Confl'!M25+'CP-20'!M14 -> 3810 | N39: ='CP-19'!N28+'CP-19'!N40+'CP-19'!N54+'CP-19'!N55+'CP-19'!N59+'Colo-SanJuan-Confl'!N25+'CP-20'!N14 -> 4300 | O39: ='CP-19'!O28+'CP-19'!O40+'CP-19'!O54+'CP-19'!O55+'CP-19'!O59+'Colo-SanJuan-Confl'!O25+'CP-20'!O14 -> 5320 | P39: ='CP-19'!P28+'CP-19'!P40+'CP-19'!P54+'CP-19'!P55+'CP-19'!P59+'Colo-SanJuan-Confl'!P25+'CP-20'!P14 -> 6290 | Q39: ='CP-19'!Q28+'CP-19'!Q40+'CP-19'!Q54+'CP-19'!Q55+'CP-19'!Q59+'Colo-SanJuan-Confl'!Q25+'CP-20'!Q14 -> 4575 | R39: ='CP-19'!R28+'CP-19'!R40+'CP-19'!R54+'CP-19'!R55+'CP-19'!R59+'Colo-SanJuan-Confl'!R25+'CP-20'!R14 -> 5664 | S39: ='CP-19'!S28+'CP-19'!S40+'CP-19'!S54+'CP-19'!S55+'CP-19'!S59+'Colo-SanJuan-Confl'!S25+'CP-20'!S14 -> 6523 | T39: ='CP-19'!T28+'CP-19'!T40+'CP-19'!T54+'CP-19'!T55+'CP-19'!T59+'Colo-SanJuan-Confl'!T25+'CP-20'!T14 -> 5800 | U39: ='CP-19'!U28+'CP-19'!U40+'CP-19'!U54+'CP-19'!U55+'CP-19'!U59+'Colo-SanJuan-Confl'!U25+'CP-20'!U14 -> 5800 | V39: ='CP-19'!V28+'CP-19'!V40+'CP-19'!V54+'CP-19'!V55+'CP-19'!V59+'Colo-SanJuan-Confl'!V25+'CP-20'!V14 -> 3838.9 | W39: ='CP-19'!W28+'CP-19'!W40+'CP-19'!W54+'CP-19'!W55+'CP-19'!W59+'Colo-SanJuan-Confl'!W25+'CP-20'!W14 -> 3377.1 | X39: ='CP-19'!X28+'CP-19'!X40+'CP-19'!X54+'CP-19'!X55+'CP-19'!X59+'Colo-SanJuan-Confl'!X25+'CP-20'!X14 -> 3275.1 | Y39: ='CP-19'!Y28+'CP-19'!Y40+'CP-19'!Y54+'CP-19'!Y55+'CP-19'!Y59+'Colo-SanJuan-Confl'!Y25+'CP-20'!Y14 -> 3371.76 | Z39: ='CP-19'!Z28+'CP-19'!Z40+'CP-19'!Z54+'CP-19'!Z55+'CP-19'!Z59+'Colo-SanJuan-Confl'!Z25+'CP-20'!Z14 -> 3620 | AA39: ='CP-19'!AA28+'CP-19'!AA40+'CP-19'!AA54+'CP-19'!AA55+'CP-19'!AA59+'Colo-SanJuan-Confl'!AA25+'CP-20'!AA14 -> 4500 | AB39: ='CP-19'!AB28+'CP-19'!AB40+'CP-19'!AB54+'CP-19'!AB55+'CP-19'!AB59+'Colo-SanJuan-Confl'!AB25+'CP-20'!AB14 -> 3790 | AC39: ='CP-19'!AC28+'CP-19'!AC40+'CP-19'!AC54+'CP-19'!AC55+'CP-19'!AC59+'Colo-SanJuan-Confl'!AC25+'CP-20'!AC14 -> 4520 | AD39: ='CP-19'!AD28+'CP-19'!AD40+'CP-19'!AD54+'CP-19'!AD55+'CP-19'!AD59+'Colo-SanJuan-Confl'!AD25+'CP-20'!AD14 -> 4900 | AE39: ='CP-19'!AE28+'CP-19'!AE40+'CP-19'!AE54+'CP-19'!AE55+'CP-19'!AE59+'Colo-SanJuan-Confl'!AE25+'CP-20'!AE14 -> 4300 | AF39: ='CP-19'!AF28+'CP-19'!AF40+'CP-19'!AF54+'CP-19'!AF55+'CP-19'!AF59+'Colo-SanJuan-Confl'!AF25+'CP-20'!AF14 -> 425.9 | AG39: ='CP-19'!AG28+'CP-19'!AG40+'CP-19'!AG54+'CP-19'!AG55+'CP-19'!AG59+'Colo-SanJuan-Confl'!AG25+'CP-20'!AG14 -> 398.8 | AH39: ='CP-19'!AH28+'CP-19'!AH40+'CP-19'!AH54+'CP-19'!AH55+'CP-19'!AH59+'Colo-SanJuan-Confl'!AH25+'CP-20'!AH14 -> 463.3 | AI39: ='CP-19'!AI28+'CP-19'!AI40+'CP-19'!AI54+'CP-19'!AI55+'CP-19'!AI59+'Colo-SanJuan-Confl'!AI25+'CP-20'!AI14 -> 485.8 | AJ39: ='CP-19'!AJ28+'CP-19'!AJ40+'CP-19'!AJ54+'CP-19'!AJ55+'CP-19'!AJ59+'Colo-SanJuan-Confl'!AJ25+'CP-20'!AJ14 -> 649.4 | AK39: ='CP-19'!AK28+'CP-19'!AK40+'CP-19'!AK54+'CP-19'!AK55+'CP-19'!AK59+'Colo-SanJuan-Confl'!AK25+'CP-20'!AK14 -> 515 | AL39: ='CP-19'!AL28+'CP-19'!AL40+'CP-19'!AL54+'CP-19'!AL55+'CP-19'!AL59+'Colo-SanJuan-Confl'!AL25+'CP-20'!AL14 -> 436.3 | AM39: ='CP-19'!AM28+'CP-19'!AM40+'CP-19'!AM54+'CP-19'!AM55+'CP-19'!AM59+'Colo-SanJuan-Confl'!AM25+'CP-20'!AM14 -> 487.9 | AN39: ='CP-19'!AN28+'CP-19'!AN40+'CP-19'!AN54+'CP-19'!AN55+'CP-19'!AN59+'Colo-SanJuan-Confl'!AN25+'CP-20'!AN14 -> 580.4 | AO39: ='CP-19'!AO28+'CP-19'!AO40+'CP-19'!AO54+'CP-19'!AO55+'CP-19'!AO59+'Colo-SanJuan-Confl'!AO25+'CP-20'!AO14 -> 609.4 | AP39: ='CP-19'!AP28+'CP-19'!AP40+'CP-19'!AP54+'CP-19'!AP55+'CP-19'!AP59+'Colo-SanJuan-Confl'!AP25+'CP-20'!AP14 -> 572.3 | AQ39: ='CP-19'!AQ28+'CP-19'!AQ40+'CP-19'!AQ54+'CP-19'!AQ55+'CP-19'!AQ59+'Colo-SanJuan-Confl'!AQ25+'CP-20'!AQ14 -> 958.2128317 | AR39: ='CP-19'!AR28+'CP-19'!AR40+'CP-19'!AR54+'CP-19'!AR55+'CP-19'!AR59+'Colo-SanJuan-Confl'!AR25+'CP-20'!AR14 -> 1081.5 | AS39: ='CP-19'!AS28+'CP-19'!AS40+'CP-19'!AS54+'CP-19'!AS55+'CP-19'!AS59+'Colo-SanJuan-Confl'!AS25+'CP-20'!AS14 -> 729.577558 | AT39: ='CP-19'!AT28+'CP-19'!AT40+'CP-19'!AT54+'CP-19'!AT55+'CP-19'!AT59+'Colo-SanJuan-Confl'!AT25+'CP-20'!AT14 -> 1209.562991 | AU39: ='CP-19'!AU28+'CP-19'!AU40+'CP-19'!AU54+'CP-19'!AU55+'CP-19'!AU59+'Colo-SanJuan-Confl'!AU25+'CP-20'!AU14 -> 1014.431068 | AV39: ='CP-19'!AV28+'CP-19'!AV40+'CP-19'!AV54+'CP-19'!AV55+'CP-19'!AV59+'Colo-SanJuan-Confl'!AV25+'CP-20'!AV14 -> 612.8335684 | AW39: ='CP-19'!AW28+'CP-19'!AW40+'CP-19'!AW54+'CP-19'!AW55+'CP-19'!AW59+'Colo-SanJuan-Confl'!AW25+'CP-20'!AW14 -> 1055.606721 | AX39: ='CP-19'!AX28+'CP-19'!AX40+'CP-19'!AX54+'CP-19'!AX55+'CP-19'!AX59+'Colo-SanJuan-Confl'!AX25+'CP-20'!AX14 -> 968.0912812 | AY39: ='CP-19'!AY28+'CP-19'!AY40+'CP-19'!AY54+'CP-19'!AY55+'CP-19'!AY59+'Colo-SanJuan-Confl'!AY25+'CP-20'!AY14 -> 1178.603636 | AZ39: ='CP-19'!AZ28+'CP-19'!AZ40+'CP-19'!AZ54+'CP-19'!AZ55+'CP-19'!AZ59+'Colo-SanJuan-Confl'!AZ25+'CP-20'!AZ14 -> 1114.712123 | BA39: ='CP-19'!BA28+'CP-19'!BA40+'CP-19'!BA54+'CP-19'!BA55+'CP-19'!BA59+'Colo-SanJuan-Confl'!BA25+'CP-20'!BA14 -> 1106.770291 | BB39: ='CP-19'!BB28+'CP-19'!BB40+'CP-19'!BB54+'CP-19'!BB55+'CP-19'!BB59+'Colo-SanJuan-Confl'!BB25+'CP-20'!BB14 -> 0 | BC39: ='CP-19'!BC28+'CP-19'!BC40+'CP-19'!BC54+'CP-19'!BC55+'CP-19'!BC59+'Colo-SanJuan-Confl'!BC25+'CP-20'!BC14 -> 0 | BD39: ='CP-19'!BD28+'CP-19'!BD40+'CP-19'!BD54+'CP-19'!BD55+'CP-19'!BD59+'Colo-SanJuan-Confl'!BD25+'CP-20'!BD14 -> 0
D40: Colorado | F40: green river | G40: ='CP-11'!G14+'CP-12'!G22+'CP-13'!G17+Jensen!G14+Jensen!G24+Jensen!G28+'CP-15'!G17+'CP-15'!G20+'CP-15'!G21+'CP-15'!G22+'CP-15'!G23+Ouray!G14+Ouray!G15+Ouray!G16+Ouray!G20 -> 147229 | H40: ='CP-11'!H14+'CP-12'!H22+'CP-13'!H17+Jensen!H14+Jensen!H24+Jensen!H28+'CP-15'!H17+'CP-15'!H20+'CP-15'!H21+'CP-15'!H22+'CP-15'!H23+Ouray!H14+Ouray!H15+Ouray!H16+Ouray!H20 -> 128045 | I40: ='CP-11'!I14+'CP-12'!I22+'CP-13'!I17+Jensen!I14+Jensen!I24+Jensen!I28+'CP-15'!I17+'CP-15'!I20+'CP-15'!I21+'CP-15'!I22+'CP-15'!I23+Ouray!I14+Ouray!I15+Ouray!I16+Ouray!I20 -> 120533 | J40: ='CP-11'!J14+'CP-12'!J22+'CP-13'!J17+Jensen!J14+Jensen!J24+Jensen!J28+'CP-15'!J17+'CP-15'!J20+'CP-15'!J21+'CP-15'!J22+'CP-15'!J23+Ouray!J14+Ouray!J15+Ouray!J16+Ouray!J20 -> 140336 | K40: ='CP-11'!K14+'CP-12'!K22+'CP-13'!K17+Jensen!K14+Jensen!K24+Jensen!K28+'CP-15'!K17+'CP-15'!K20+'CP-15'!K21+'CP-15'!K22+'CP-15'!K23+Ouray!K14+Ouray!K15+Ouray!K16+Ouray!K20 -> 124835 | L40: ='CP-11'!L14+'CP-12'!L22+'CP-13'!L17+Jensen!L14+Jensen!L24+Jensen!L28+'CP-15'!L17+'CP-15'!L20+'CP-15'!L21+'CP-15'!L22+'CP-15'!L23+Ouray!L14+Ouray!L15+Ouray!L16+Ouray!L20 -> 117430 | M40: ='CP-11'!M14+'CP-12'!M22+'CP-13'!M17+Jensen!M14+Jensen!M24+Jensen!M28+'CP-15'!M17+'CP-15'!M20+'CP-15'!M21+'CP-15'!M22+'CP-15'!M23+Ouray!M14+Ouray!M15+Ouray!M16+Ouray!M20 -> 101285 | N40: ='CP-11'!N14+'CP-12'!N22+'CP-13'!N17+Jensen!N14+Jensen!N24+Jensen!N28+'CP-15'!N17+'CP-15'!N20+'CP-15'!N21+'CP-15'!N22+'CP-15'!N23+Ouray!N14+Ouray!N15+Ouray!N16+Ouray!N20 -> 135420 | O40: ='CP-11'!O14+'CP-12'!O22+'CP-13'!O17+Jensen!O14+Jensen!O24+Jensen!O28+'CP-15'!O17+'CP-15'!O20+'CP-15'!O21+'CP-15'!O22+'CP-15'!O23+Ouray!O14+Ouray!O15+Ouray!O16+Ouray!O20 -> 134259 | P40: ='CP-11'!P14+'CP-12'!P22+'CP-13'!P17+Jensen!P14+Jensen!P24+Jensen!P28+'CP-15'!P17+'CP-15'!P20+'CP-15'!P21+'CP-15'!P22+'CP-15'!P23+Ouray!P14+Ouray!P15+Ouray!P16+Ouray!P20 -> 129310 | Q40: ='CP-11'!Q14+'CP-12'!Q22+'CP-13'!Q17+Jensen!Q14+Jensen!Q24+Jensen!Q28+'CP-15'!Q17+'CP-15'!Q20+'CP-15'!Q21+'CP-15'!Q22+'CP-15'!Q23+Ouray!Q14+Ouray!Q15+Ouray!Q16+Ouray!Q20 -> 156092.888 | R40: ='CP-11'!R14+'CP-12'!R22+'CP-13'!R17+Jensen!R14+Jensen!R24+Jensen!R28+'CP-15'!R17+'CP-15'!R20+'CP-15'!R21+'CP-15'!R22+'CP-15'!R23+Ouray!R14+Ouray!R15+Ouray!R16+Ouray!R20 -> 142308.266 | S40: ='CP-11'!S14+'CP-12'!S22+'CP-13'!S17+Jensen!S14+Jensen!S24+Jensen!S28+'CP-15'!S17+'CP-15'!S20+'CP-15'!S21+'CP-15'!S22+'CP-15'!S23+Ouray!S14+Ouray!S15+Ouray!S16+Ouray!S20 -> 139679.482 | T40: ='CP-11'!T14+'CP-12'!T22+'CP-13'!T17+Jensen!T14+Jensen!T24+Jensen!T28+'CP-15'!T17+'CP-15'!T20+'CP-15'!T21+'CP-15'!T22+'CP-15'!T23+Ouray!T14+Ouray!T15+Ouray!T16+Ouray!T20 -> 136239.364 | U40: ='CP-11'!U14+'CP-12'!U22+'CP-13'!U17+Jensen!U14+Jensen!U24+Jensen!U28+'CP-15'!U17+'CP-15'!U20+'CP-15'!U21+'CP-15'!U22+'CP-15'!U23+Ouray!U14+Ouray!U15+Ouray!U16+Ouray!U20 -> 131406.655 | V40: ='CP-11'!V14+'CP-12'!V22+'CP-13'!V17+Jensen!V14+Jensen!V24+Jensen!V28+'CP-15'!V17+'CP-15'!V20+'CP-15'!V21+'CP-15'!V22+'CP-15'!V23+Ouray!V14+Ouray!V15+Ouray!V16+Ouray!V20 -> 120153.9 | W40: ='CP-11'!W14+'CP-12'!W22+'CP-13'!W17+Jensen!W14+Jensen!W24+Jensen!W28+'CP-15'!W17+'CP-15'!W20+'CP-15'!W21+'CP-15'!W22+'CP-15'!W23+Ouray!W14+Ouray!W15+Ouray!W16+Ouray!W20 -> 137987.2 | X40: ='CP-11'!X14+'CP-12'!X22+'CP-13'!X17+Jensen!X14+Jensen!X24+Jensen!X28+'CP-15'!X17+'CP-15'!X20+'CP-15'!X21+'CP-15'!X22+'CP-15'!X23+Ouray!X14+Ouray!X15+Ouray!X16+Ouray!X20 -> 185849.9 | Y40: ='CP-11'!Y14+'CP-12'!Y22+'CP-13'!Y17+Jensen!Y14+Jensen!Y24+Jensen!Y28+'CP-15'!Y17+'CP-15'!Y20+'CP-15'!Y21+'CP-15'!Y22+'CP-15'!Y23+Ouray!Y14+Ouray!Y15+Ouray!Y16+Ouray!Y20 -> 167111.6 | Z40: ='CP-11'!Z14+'CP-12'!Z22+'CP-13'!Z17+Jensen!Z14+Jensen!Z24+Jensen!Z28+'CP-15'!Z17+'CP-15'!Z20+'CP-15'!Z21+'CP-15'!Z22+'CP-15'!Z23+Ouray!Z14+Ouray!Z15+Ouray!Z16+Ouray!Z20 -> 169852.1 | AA40: ='CP-11'!AA14+'CP-12'!AA22+'CP-13'!AA17+Jensen!AA14+Jensen!AA24+Jensen!AA28+'CP-15'!AA17+'CP-15'!AA20+'CP-15'!AA21+'CP-15'!AA22+'CP-15'!AA23+Ouray!AA14+Ouray!AA15+Ouray!AA16+Ouray!AA20 -> 168084.7973 | AB40: ='CP-11'!AB14+'CP-12'!AB22+'CP-13'!AB17+Jensen!AB14+Jensen!AB24+Jensen!AB28+'CP-15'!AB17+'CP-15'!AB20+'CP-15'!AB21+'CP-15'!AB22+'CP-15'!AB23+Ouray!AB14+Ouray!AB15+Ouray!AB16+Ouray!AB20 -> 190939.854 | AC40: ='CP-11'!AC14+'CP-12'!AC22+'CP-13'!AC17+Jensen!AC14+Jensen!AC24+Jensen!AC28+'CP-15'!AC17+'CP-15'!AC20+'CP-15'!AC21+'CP-15'!AC22+'CP-15'!AC23+Ouray!AC14+Ouray!AC15+Ouray!AC16+Ouray!AC20 -> 137093.9329 | AD40: ='CP-11'!AD14+'CP-12'!AD22+'CP-13'!AD17+Jensen!AD14+Jensen!AD24+Jensen!AD28+'CP-15'!AD17+'CP-15'!AD20+'CP-15'!AD21+'CP-15'!AD22+'CP-15'!AD23+Ouray!AD14+Ouray!AD15+Ouray!AD16+Ouray!AD20 -> 151759.6553 | AE40: ='CP-11'!AE14+'CP-12'!AE22+'CP-13'!AE17+Jensen!AE14+Jensen!AE24+Jensen!AE28+'CP-15'!AE17+'CP-15'!AE20+'CP-15'!AE21+'CP-15'!AE22+'CP-15'!AE23+Ouray!AE14+Ouray!AE15+Ouray!AE16+Ouray!AE20 -> 107409.5306 | AF40: ='CP-11'!AF14+'CP-12'!AF22+'CP-13'!AF17+Jensen!AF14+Jensen!AF24+Jensen!AF28+'CP-15'!AF17+'CP-15'!AF20+'CP-15'!AF21+'CP-15'!AF22+'CP-15'!AF23+Ouray!AF14+Ouray!AF15+Ouray!AF16+Ouray!AF20 -> 191852.2584 | AG40: ='CP-11'!AG14+'CP-12'!AG22+'CP-13'!AG17+Jensen!AG14+Jensen!AG24+Jensen!AG28+'CP-15'!AG17+'CP-15'!AG20+'CP-15'!AG21+'CP-15'!AG22+'CP-15'!AG23+Ouray!AG14+Ouray!AG15+Ouray!AG16+Ouray!AG20 -> 131402.0834 | AH40: ='CP-11'!AH14+'CP-12'!AH22+'CP-13'!AH17+Jensen!AH14+Jensen!AH24+Jensen!AH28+'CP-15'!AH17+'CP-15'!AH20+'CP-15'!AH21+'CP-15'!AH22+'CP-15'!AH23+Ouray!AH14+Ouray!AH15+Ouray!AH16+Ouray!AH20 -> 162343.0776 | AI40: ='CP-11'!AI14+'CP-12'!AI22+'CP-13'!AI17+Jensen!AI14+Jensen!AI24+Jensen!AI28+'CP-15'!AI17+'CP-15'!AI20+'CP-15'!AI21+'CP-15'!AI22+'CP-15'!AI23+Ouray!AI14+Ouray!AI15+Ouray!AI16+Ouray!AI20 -> 150787.571 | AJ40: ='CP-11'!AJ14+'CP-12'!AJ22+'CP-13'!AJ17+Jensen!AJ14+Jensen!AJ24+Jensen!AJ28+'CP-15'!AJ17+'CP-15'!AJ20+'CP-15'!AJ21+'CP-15'!AJ22+'CP-15'!AJ23+Ouray!AJ14+Ouray!AJ15+Ouray!AJ16+Ouray!AJ20 -> 190485.4724 | AK40: ='CP-11'!AK14+'CP-12'!AK22+'CP-13'!AK17+Jensen!AK14+Jensen!AK24+Jensen!AK28+'CP-15'!AK17+'CP-15'!AK20+'CP-15'!AK21+'CP-15'!AK22+'CP-15'!AK23+Ouray!AK14+Ouray!AK15+Ouray!AK16+Ouray!AK20 -> 177121 | AL40: ='CP-11'!AL14+'CP-12'!AL22+'CP-13'!AL17+Jensen!AL14+Jensen!AL24+Jensen!AL28+'CP-15'!AL17+'CP-15'!AL20+'CP-15'!AL21+'CP-15'!AL22+'CP-15'!AL23+Ouray!AL14+Ouray!AL15+Ouray!AL16+Ouray!AL20 -> 215140 | AM40: ='CP-11'!AM14+'CP-12'!AM22+'CP-13'!AM17+Jensen!AM14+Jensen!AM24+Jensen!AM28+'CP-15'!AM17+'CP-15'!AM20+'CP-15'!AM21+'CP-15'!AM22+'CP-15'!AM23+Ouray!AM14+Ouray!AM15+Ouray!AM16+Ouray!AM20 -> 180779.1 | AN40: ='CP-11'!AN14+'CP-12'!AN22+'CP-13'!AN17+Jensen!AN14+Jensen!AN24+Jensen!AN28+'CP-15'!AN17+'CP-15'!AN20+'CP-15'!AN21+'CP-15'!AN22+'CP-15'!AN23+Ouray!AN14+Ouray!AN15+Ouray!AN16+Ouray!AN20 -> 131425.3 | AO40: ='CP-11'!AO14+'CP-12'!AO22+'CP-13'!AO17+Jensen!AO14+Jensen!AO24+Jensen!AO28+'CP-15'!AO17+'CP-15'!AO20+'CP-15'!AO21+'CP-15'!AO22+'CP-15'!AO23+Ouray!AO14+Ouray!AO15+Ouray!AO16+Ouray!AO20 -> 118595.7 | AP40: ='CP-11'!AP14+'CP-12'!AP22+'CP-13'!AP17+Jensen!AP14+Jensen!AP24+Jensen!AP28+'CP-15'!AP17+'CP-15'!AP20+'CP-15'!AP21+'CP-15'!AP22+'CP-15'!AP23+Ouray!AP14+Ouray!AP15+Ouray!AP16+Ouray!AP20 -> 148442.5 | AQ40: ='CP-11'!AQ14+'CP-12'!AQ22+'CP-13'!AQ17+Jensen!AQ14+Jensen!AQ24+Jensen!AQ28+'CP-15'!AQ17+'CP-15'!AQ20+'CP-15'!AQ21+'CP-15'!AQ22+'CP-15'!AQ23+Ouray!AQ14+Ouray!AQ15+Ouray!AQ16+Ouray!AQ20 -> 155904.6 | AR40: ='CP-11'!AR14+'CP-12'!AR22+'CP-13'!AR17+Jensen!AR14+Jensen!AR24+Jensen!AR28+'CP-15'!AR17+'CP-15'!AR20+'CP-15'!AR21+'CP-15'!AR22+'CP-15'!AR23+Ouray!AR14+Ouray!AR15+Ouray!AR16+Ouray!AR20 -> 151792.8 | AS40: ='CP-11'!AS14+'CP-12'!AS22+'CP-13'!AS17+Jensen!AS14+Jensen!AS24+Jensen!AS28+'CP-15'!AS17+'CP-15'!AS20+'CP-15'!AS21+'CP-15'!AS22+'CP-15'!AS23+Ouray!AS14+Ouray!AS15+Ouray!AS16+Ouray!AS20 -> 204694.9 | AT40: ='CP-11'!AT14+'CP-12'!AT22+'CP-13'!AT17+Jensen!AT14+Jensen!AT24+Jensen!AT28+'CP-15'!AT17+'CP-15'!AT20+'CP-15'!AT21+'CP-15'!AT22+'CP-15'!AT23+Ouray!AT14+Ouray!AT15+Ouray!AT16+Ouray!AT20 -> 216359.6 | AU40: ='CP-11'!AU14+'CP-12'!AU22+'CP-13'!AU17+Jensen!AU14+Jensen!AU24+Jensen!AU28+'CP-15'!AU17+'CP-15'!AU20+'CP-15'!AU21+'CP-15'!AU22+'CP-15'!AU23+Ouray!AU14+Ouray!AU15+Ouray!AU16+Ouray!AU20 -> 198029 | AV40: ='CP-11'!AV14+'CP-12'!AV22+'CP-13'!AV17+Jensen!AV14+Jensen!AV24+Jensen!AV28+'CP-15'!AV17+'CP-15'!AV20+'CP-15'!AV21+'CP-15'!AV22+'CP-15'!AV23+Ouray!AV14+Ouray!AV15+Ouray!AV16+Ouray!AV20 -> 276447.4 | AW40: ='CP-11'!AW14+'CP-12'!AW22+'CP-13'!AW17+Jensen!AW14+Jensen!AW24+Jensen!AW28+'CP-15'!AW17+'CP-15'!AW20+'CP-15'!AW21+'CP-15'!AW22+'CP-15'!AW23+Ouray!AW14+Ouray!AW15+Ouray!AW16+Ouray!AW20 -> 181391 | AX40: ='CP-11'!AX14+'CP-12'!AX22+'CP-13'!AX17+Jensen!AX14+Jensen!AX24+Jensen!AX28+'CP-15'!AX17+'CP-15'!AX20+'CP-15'!AX21+'CP-15'!AX22+'CP-15'!AX23+Ouray!AX14+Ouray!AX15+Ouray!AX16+Ouray!AX20 -> 154112 | AY40: ='CP-11'!AY14+'CP-12'!AY22+'CP-13'!AY17+Jensen!AY14+Jensen!AY24+Jensen!AY28+'CP-15'!AY17+'CP-15'!AY20+'CP-15'!AY21+'CP-15'!AY22+'CP-15'!AY23+Ouray!AY14+Ouray!AY15+Ouray!AY16+Ouray!AY20 -> 169262.5 | AZ40: ='CP-11'!AZ14+'CP-12'!AZ22+'CP-13'!AZ17+Jensen!AZ14+Jensen!AZ24+Jensen!AZ28+'CP-15'!AZ17+'CP-15'!AZ20+'CP-15'!AZ21+'CP-15'!AZ22+'CP-15'!AZ23+Ouray!AZ14+Ouray!AZ15+Ouray!AZ16+Ouray!AZ20 -> 172330.3 | BA40: ='CP-11'!BA14+'CP-12'!BA22+'CP-13'!BA17+Jensen!BA14+Jensen!BA24+Jensen!BA28+'CP-15'!BA17+'CP-15'!BA20+'CP-15'!BA21+'CP-15'!BA22+'CP-15'!BA23+Ouray!BA14+Ouray!BA15+Ouray!BA16+Ouray!BA20 -> 164843.4 | BB40: ='CP-11'!BB14+'CP-12'!BB22+'CP-13'!BB17+Jensen!BB14+Jensen!BB24+Jensen!BB28+'CP-15'!BB17+'CP-15'!BB20+'CP-15'!BB21+'CP-15'!BB22+'CP-15'!BB23+Ouray!BB14+Ouray!BB15+Ouray!BB16+Ouray!BB20 -> 0 | BC40: ='CP-11'!BC14+'CP-12'!BC22+'CP-13'!BC17+Jensen!BC14+Jensen!BC24+Jensen!BC28+'CP-15'!BC17+'CP-15'!BC20+'CP-15'!BC21+'CP-15'!BC22+'CP-15'!BC23+Ouray!BC14+Ouray!BC15+Ouray!BC16+Ouray!BC20 -> 0 | BD40: ='CP-11'!BD14+'CP-12'!BD22+'CP-13'!BD17+Jensen!BD14+Jensen!BD24+Jensen!BD28+'CP-15'!BD17+'CP-15'!BD20+'CP-15'!BD21+'CP-15'!BD22+'CP-15'!BD23+Ouray!BD14+Ouray!BD15+Ouray!BD16+Ouray!BD20 -> 0
F41: upper main stem | G41: ='CP-1'!G25+'CP-2'!G26+Stateline!G18+'CP-3'!G17+'CP-4'!G25+'CP-5'!G20+'CP-6'!G32+'CP-7'!G14+'CP-7'!G15+'CP-7'!G16+'CP-7'!G17+'CP-7'!G23+'CP-7'!G24+'CP-7'!G25+'CP-8'!G16 -> 985970.5317 | H41: ='CP-1'!H25+'CP-2'!H26+Stateline!H18+'CP-3'!H17+'CP-4'!H25+'CP-5'!H20+'CP-6'!H32+'CP-7'!H14+'CP-7'!H15+'CP-7'!H16+'CP-7'!H17+'CP-7'!H23+'CP-7'!H24+'CP-7'!H25+'CP-8'!H16 -> 974215 | I41: ='CP-1'!I25+'CP-2'!I26+Stateline!I18+'CP-3'!I17+'CP-4'!I25+'CP-5'!I20+'CP-6'!I32+'CP-7'!I14+'CP-7'!I15+'CP-7'!I16+'CP-7'!I17+'CP-7'!I23+'CP-7'!I24+'CP-7'!I25+'CP-8'!I16 -> 842480 | J41: ='CP-1'!J25+'CP-2'!J26+Stateline!J18+'CP-3'!J17+'CP-4'!J25+'CP-5'!J20+'CP-6'!J32+'CP-7'!J14+'CP-7'!J15+'CP-7'!J16+'CP-7'!J17+'CP-7'!J23+'CP-7'!J24+'CP-7'!J25+'CP-8'!J16 -> 1013597 | K41: ='CP-1'!K25+'CP-2'!K26+Stateline!K18+'CP-3'!K17+'CP-4'!K25+'CP-5'!K20+'CP-6'!K32+'CP-7'!K14+'CP-7'!K15+'CP-7'!K16+'CP-7'!K17+'CP-7'!K23+'CP-7'!K24+'CP-7'!K25+'CP-8'!K16 -> 921269 | L41: ='CP-1'!L25+'CP-2'!L26+Stateline!L18+'CP-3'!L17+'CP-4'!L25+'CP-5'!L20+'CP-6'!L32+'CP-7'!L14+'CP-7'!L15+'CP-7'!L16+'CP-7'!L17+'CP-7'!L23+'CP-7'!L24+'CP-7'!L25+'CP-8'!L16 -> 904678 | M41: ='CP-1'!M25+'CP-2'!M26+Stateline!M18+'CP-3'!M17+'CP-4'!M25+'CP-5'!M20+'CP-6'!M32+'CP-7'!M14+'CP-7'!M15+'CP-7'!M16+'CP-7'!M17+'CP-7'!M23+'CP-7'!M24+'CP-7'!M25+'CP-8'!M16 -> 822262 | N41: ='CP-1'!N25+'CP-2'!N26+Stateline!N18+'CP-3'!N17+'CP-4'!N25+'CP-5'!N20+'CP-6'!N32+'CP-7'!N14+'CP-7'!N15+'CP-7'!N16+'CP-7'!N17+'CP-7'!N23+'CP-7'!N24+'CP-7'!N25+'CP-8'!N16 -> 986244 | O41: ='CP-1'!O25+'CP-2'!O26+Stateline!O18+'CP-3'!O17+'CP-4'!O25+'CP-5'!O20+'CP-6'!O32+'CP-7'!O14+'CP-7'!O15+'CP-7'!O16+'CP-7'!O17+'CP-7'!O23+'CP-7'!O24+'CP-7'!O25+'CP-8'!O16 -> 984831 | P41: ='CP-1'!P25+'CP-2'!P26+Stateline!P18+'CP-3'!P17+'CP-4'!P25+'CP-5'!P20+'CP-6'!P32+'CP-7'!P14+'CP-7'!P15+'CP-7'!P16+'CP-7'!P17+'CP-7'!P23+'CP-7'!P24+'CP-7'!P25+'CP-8'!P16 -> 1006678 | Q41: ='CP-1'!Q25+'CP-2'!Q26+Stateline!Q18+'CP-3'!Q17+'CP-4'!Q25+'CP-5'!Q20+'CP-6'!Q32+'CP-7'!Q14+'CP-7'!Q15+'CP-7'!Q16+'CP-7'!Q17+'CP-7'!Q23+'CP-7'!Q24+'CP-7'!Q25+'CP-8'!Q16 -> 1059416.541 | R41: ='CP-1'!R25+'CP-2'!R26+Stateline!R18+'CP-3'!R17+'CP-4'!R25+'CP-5'!R20+'CP-6'!R32+'CP-7'!R14+'CP-7'!R15+'CP-7'!R16+'CP-7'!R17+'CP-7'!R23+'CP-7'!R24+'CP-7'!R25+'CP-8'!R16 -> 1016864.749 | S41: ='CP-1'!S25+'CP-2'!S26+Stateline!S18+'CP-3'!S17+'CP-4'!S25+'CP-5'!S20+'CP-6'!S32+'CP-7'!S14+'CP-7'!S15+'CP-7'!S16+'CP-7'!S17+'CP-7'!S23+'CP-7'!S24+'CP-7'!S25+'CP-8'!S16 -> 1009453.272 | T41: ='CP-1'!T25+'CP-2'!T26+Stateline!T18+'CP-3'!T17+'CP-4'!T25+'CP-5'!T20+'CP-6'!T32+'CP-7'!T14+'CP-7'!T15+'CP-7'!T16+'CP-7'!T17+'CP-7'!T23+'CP-7'!T24+'CP-7'!T25+'CP-8'!T16 -> 922455.222 | U41: ='CP-1'!U25+'CP-2'!U26+Stateline!U18+'CP-3'!U17+'CP-4'!U25+'CP-5'!U20+'CP-6'!U32+'CP-7'!U14+'CP-7'!U15+'CP-7'!U16+'CP-7'!U17+'CP-7'!U23+'CP-7'!U24+'CP-7'!U25+'CP-8'!U16 -> 1011258.749 | V41: ='CP-1'!V25+'CP-2'!V26+Stateline!V18+'CP-3'!V17+'CP-4'!V25+'CP-5'!V20+'CP-6'!V32+'CP-7'!V14+'CP-7'!V15+'CP-7'!V16+'CP-7'!V17+'CP-7'!V23+'CP-7'!V24+'CP-7'!V25+'CP-8'!V16 -> 836124.4 | W41: ='CP-1'!W25+'CP-2'!W26+Stateline!W18+'CP-3'!W17+'CP-4'!W25+'CP-5'!W20+'CP-6'!W32+'CP-7'!W14+'CP-7'!W15+'CP-7'!W16+'CP-7'!W17+'CP-7'!W23+'CP-7'!W24+'CP-7'!W25+'CP-8'!W16 -> 964544 | X41: ='CP-1'!X25+'CP-2'!X26+Stateline!X18+'CP-3'!X17+'CP-4'!X25+'CP-5'!X20+'CP-6'!X32+'CP-7'!X14+'CP-7'!X15+'CP-7'!X16+'CP-7'!X17+'CP-7'!X23+'CP-7'!X24+'CP-7'!X25+'CP-8'!X16 -> 1089711.2 | Y41: ='CP-1'!Y25+'CP-2'!Y26+Stateline!Y18+'CP-3'!Y17+'CP-4'!Y25+'CP-5'!Y20+'CP-6'!Y32+'CP-7'!Y14+'CP-7'!Y15+'CP-7'!Y16+'CP-7'!Y17+'CP-7'!Y23+'CP-7'!Y24+'CP-7'!Y25+'CP-8'!Y16 -> 1125820.5 | Z41: ='CP-1'!Z25+'CP-2'!Z26+Stateline!Z18+'CP-3'!Z17+'CP-4'!Z25+'CP-5'!Z20+'CP-6'!Z32+'CP-7'!Z14+'CP-7'!Z15+'CP-7'!Z16+'CP-7'!Z17+'CP-7'!Z23+'CP-7'!Z24+'CP-7'!Z25+'CP-8'!Z16 -> 1033206.6 | AA41: ='CP-1'!AA25+'CP-2'!AA26+Stateline!AA18+'CP-3'!AA17+'CP-4'!AA25+'CP-5'!AA20+'CP-6'!AA32+'CP-7'!AA14+'CP-7'!AA15+'CP-7'!AA16+'CP-7'!AA17+'CP-7'!AA23+'CP-7'!AA24+'CP-7'!AA25+'CP-8'!AA16 -> 1079454.501 | AB41: ='CP-1'!AB25+'CP-2'!AB26+Stateline!AB18+'CP-3'!AB17+'CP-4'!AB25+'CP-5'!AB20+'CP-6'!AB32+'CP-7'!AB14+'CP-7'!AB15+'CP-7'!AB16+'CP-7'!AB17+'CP-7'!AB23+'CP-7'!AB24+'CP-7'!AB25+'CP-8'!AB16 -> 1103990.338 | AC41: ='CP-1'!AC25+'CP-2'!AC26+Stateline!AC18+'CP-3'!AC17+'CP-4'!AC25+'CP-5'!AC20+'CP-6'!AC32+'CP-7'!AC14+'CP-7'!AC15+'CP-7'!AC16+'CP-7'!AC17+'CP-7'!AC23+'CP-7'!AC24+'CP-7'!AC25+'CP-8'!AC16 -> 912638.626 | AD41: ='CP-1'!AD25+'CP-2'!AD26+Stateline!AD18+'CP-3'!AD17+'CP-4'!AD25+'CP-5'!AD20+'CP-6'!AD32+'CP-7'!AD14+'CP-7'!AD15+'CP-7'!AD16+'CP-7'!AD17+'CP-7'!AD23+'CP-7'!AD24+'CP-7'!AD25+'CP-8'!AD16 -> 1111273.33 | AE41: ='CP-1'!AE25+'CP-2'!AE26+Stateline!AE18+'CP-3'!AE17+'CP-4'!AE25+'CP-5'!AE20+'CP-6'!AE32+'CP-7'!AE14+'CP-7'!AE15+'CP-7'!AE16+'CP-7'!AE17+'CP-7'!AE23+'CP-7'!AE24+'CP-7'!AE25+'CP-8'!AE16 -> 762836.0924 | AF41: ='CP-1'!AF25+'CP-2'!AF26+Stateline!AF18+'CP-3'!AF17+'CP-4'!AF25+'CP-5'!AF20+'CP-6'!AF32+'CP-7'!AF14+'CP-7'!AF15+'CP-7'!AF16+'CP-7'!AF17+'CP-7'!AF23+'CP-7'!AF24+'CP-7'!AF25+'CP-8'!AF16 -> 1013847.488 | AG41: ='CP-1'!AG25+'CP-2'!AG26+Stateline!AG18+'CP-3'!AG17+'CP-4'!AG25+'CP-5'!AG20+'CP-6'!AG32+'CP-7'!AG14+'CP-7'!AG15+'CP-7'!AG16+'CP-7'!AG17+'CP-7'!AG23+'CP-7'!AG24+'CP-7'!AG25+'CP-8'!AG16 -> 835403.0995 | AH41: ='CP-1'!AH25+'CP-2'!AH26+Stateline!AH18+'CP-3'!AH17+'CP-4'!AH25+'CP-5'!AH20+'CP-6'!AH32+'CP-7'!AH14+'CP-7'!AH15+'CP-7'!AH16+'CP-7'!AH17+'CP-7'!AH23+'CP-7'!AH24+'CP-7'!AH25+'CP-8'!AH16 -> 964411.368 | AI41: ='CP-1'!AI25+'CP-2'!AI26+Stateline!AI18+'CP-3'!AI17+'CP-4'!AI25+'CP-5'!AI20+'CP-6'!AI32+'CP-7'!AI14+'CP-7'!AI15+'CP-7'!AI16+'CP-7'!AI17+'CP-7'!AI23+'CP-7'!AI24+'CP-7'!AI25+'CP-8'!AI16 -> 850087.7871 | AJ41: ='CP-1'!AJ25+'CP-2'!AJ26+Stateline!AJ18+'CP-3'!AJ17+'CP-4'!AJ25+'CP-5'!AJ20+'CP-6'!AJ32+'CP-7'!AJ14+'CP-7'!AJ15+'CP-7'!AJ16+'CP-7'!AJ17+'CP-7'!AJ23+'CP-7'!AJ24+'CP-7'!AJ25+'CP-8'!AJ16 -> 1080423.051 | AK41: ='CP-1'!AK25+'CP-2'!AK26+Stateline!AK18+'CP-3'!AK17+'CP-4'!AK25+'CP-5'!AK20+'CP-6'!AK32+'CP-7'!AK14+'CP-7'!AK15+'CP-7'!AK16+'CP-7'!AK17+'CP-7'!AK23+'CP-7'!AK24+'CP-7'!AK25+'CP-8'!AK16 -> 1077097.5 | AL41: ='CP-1'!AL25+'CP-2'!AL26+Stateline!AL18+'CP-3'!AL17+'CP-4'!AL25+'CP-5'!AL20+'CP-6'!AL32+'CP-7'!AL14+'CP-7'!AL15+'CP-7'!AL16+'CP-7'!AL17+'CP-7'!AL23+'CP-7'!AL24+'CP-7'!AL25+'CP-8'!AL16 -> 1006916.2 | AM41: ='CP-1'!AM25+'CP-2'!AM26+Stateline!AM18+'CP-3'!AM17+'CP-4'!AM25+'CP-5'!AM20+'CP-6'!AM32+'CP-7'!AM14+'CP-7'!AM15+'CP-7'!AM16+'CP-7'!AM17+'CP-7'!AM23+'CP-7'!AM24+'CP-7'!AM25+'CP-8'!AM16 -> 947432 | AN41: ='CP-1'!AN25+'CP-2'!AN26+Stateline!AN18+'CP-3'!AN17+'CP-4'!AN25+'CP-5'!AN20+'CP-6'!AN32+'CP-7'!AN14+'CP-7'!AN15+'CP-7'!AN16+'CP-7'!AN17+'CP-7'!AN23+'CP-7'!AN24+'CP-7'!AN25+'CP-8'!AN16 -> 874501.4 | AO41: ='CP-1'!AO25+'CP-2'!AO26+Stateline!AO18+'CP-3'!AO17+'CP-4'!AO25+'CP-5'!AO20+'CP-6'!AO32+'CP-7'!AO14+'CP-7'!AO15+'CP-7'!AO16+'CP-7'!AO17+'CP-7'!AO23+'CP-7'!AO24+'CP-7'!AO25+'CP-8'!AO16 -> 807957.1 | AP41: ='CP-1'!AP25+'CP-2'!AP26+Stateline!AP18+'CP-3'!AP17+'CP-4'!AP25+'CP-5'!AP20+'CP-6'!AP32+'CP-7'!AP14+'CP-7'!AP15+'CP-7'!AP16+'CP-7'!AP17+'CP-7'!AP23+'CP-7'!AP24+'CP-7'!AP25+'CP-8'!AP16 -> 795027.2 | AQ41: ='CP-1'!AQ25+'CP-2'!AQ26+Stateline!AQ18+'CP-3'!AQ17+'CP-4'!AQ25+'CP-5'!AQ20+'CP-6'!AQ32+'CP-7'!AQ14+'CP-7'!AQ15+'CP-7'!AQ16+'CP-7'!AQ17+'CP-7'!AQ23+'CP-7'!AQ24+'CP-7'!AQ25+'CP-8'!AQ16 -> 836905.4 | AR41: ='CP-1'!AR25+'CP-2'!AR26+Stateline!AR18+'CP-3'!AR17+'CP-4'!AR25+'CP-5'!AR20+'CP-6'!AR32+'CP-7'!AR14+'CP-7'!AR15+'CP-7'!AR16+'CP-7'!AR17+'CP-7'!AR23+'CP-7'!AR24+'CP-7'!AR25+'CP-8'!AR16 -> 906965.4 | AS41: ='CP-1'!AS25+'CP-2'!AS26+Stateline!AS18+'CP-3'!AS17+'CP-4'!AS25+'CP-5'!AS20+'CP-6'!AS32+'CP-7'!AS14+'CP-7'!AS15+'CP-7'!AS16+'CP-7'!AS17+'CP-7'!AS23+'CP-7'!AS24+'CP-7'!AS25+'CP-8'!AS16 -> 885541 | AT41: ='CP-1'!AT25+'CP-2'!AT26+Stateline!AT18+'CP-3'!AT17+'CP-4'!AT25+'CP-5'!AT20+'CP-6'!AT32+'CP-7'!AT14+'CP-7'!AT15+'CP-7'!AT16+'CP-7'!AT17+'CP-7'!AT23+'CP-7'!AT24+'CP-7'!AT25+'CP-8'!AT16 -> 883359.4 | AU41: ='CP-1'!AU25+'CP-2'!AU26+Stateline!AU18+'CP-3'!AU17+'CP-4'!AU25+'CP-5'!AU20+'CP-6'!AU32+'CP-7'!AU14+'CP-7'!AU15+'CP-7'!AU16+'CP-7'!AU17+'CP-7'!AU23+'CP-7'!AU24+'CP-7'!AU25+'CP-8'!AU16 -> 889468.2 | AV41: ='CP-1'!AV25+'CP-2'!AV26+Stateline!AV18+'CP-3'!AV17+'CP-4'!AV25+'CP-5'!AV20+'CP-6'!AV32+'CP-7'!AV14+'CP-7'!AV15+'CP-7'!AV16+'CP-7'!AV17+'CP-7'!AV23+'CP-7'!AV24+'CP-7'!AV25+'CP-8'!AV16 -> 1116339.8 | AW41: ='CP-1'!AW25+'CP-2'!AW26+Stateline!AW18+'CP-3'!AW17+'CP-4'!AW25+'CP-5'!AW20+'CP-6'!AW32+'CP-7'!AW14+'CP-7'!AW15+'CP-7'!AW16+'CP-7'!AW17+'CP-7'!AW23+'CP-7'!AW24+'CP-7'!AW25+'CP-8'!AW16 -> 802324.7 | AX41: ='CP-1'!AX25+'CP-2'!AX26+Stateline!AX18+'CP-3'!AX17+'CP-4'!AX25+'CP-5'!AX20+'CP-6'!AX32+'CP-7'!AX14+'CP-7'!AX15+'CP-7'!AX16+'CP-7'!AX17+'CP-7'!AX23+'CP-7'!AX24+'CP-7'!AX25+'CP-8'!AX16 -> 715887.5 | AY41: ='CP-1'!AY25+'CP-2'!AY26+Stateline!AY18+'CP-3'!AY17+'CP-4'!AY25+'CP-5'!AY20+'CP-6'!AY32+'CP-7'!AY14+'CP-7'!AY15+'CP-7'!AY16+'CP-7'!AY17+'CP-7'!AY23+'CP-7'!AY24+'CP-7'!AY25+'CP-8'!AY16 -> 665396.3 | AZ41: ='CP-1'!AZ25+'CP-2'!AZ26+Stateline!AZ18+'CP-3'!AZ17+'CP-4'!AZ25+'CP-5'!AZ20+'CP-6'!AZ32+'CP-7'!AZ14+'CP-7'!AZ15+'CP-7'!AZ16+'CP-7'!AZ17+'CP-7'!AZ23+'CP-7'!AZ24+'CP-7'!AZ25+'CP-8'!AZ16 -> 1014549.4 | BA41: ='CP-1'!BA25+'CP-2'!BA26+Stateline!BA18+'CP-3'!BA17+'CP-4'!BA25+'CP-5'!BA20+'CP-6'!BA32+'CP-7'!BA14+'CP-7'!BA15+'CP-7'!BA16+'CP-7'!BA17+'CP-7'!BA23+'CP-7'!BA24+'CP-7'!BA25+'CP-8'!BA16 -> 1036783.4 | BB41: ='CP-1'!BB25+'CP-2'!BB26+Stateline!BB18+'CP-3'!BB17+'CP-4'!BB25+'CP-5'!BB20+'CP-6'!BB32+'CP-7'!BB14+'CP-7'!BB15+'CP-7'!BB16+'CP-7'!BB17+'CP-7'!BB23+'CP-7'!BB24+'CP-7'!BB25+'CP-8'!BB16 -> 0 | BC41: ='CP-1'!BC25+'CP-2'!BC26+Stateline!BC18+'CP-3'!BC17+'CP-4'!BC25+'CP-5'!BC20+'CP-6'!BC32+'CP-7'!BC14+'CP-7'!BC15+'CP-7'!BC16+'CP-7'!BC17+'CP-7'!BC23+'CP-7'!BC24+'CP-7'!BC25+'CP-8'!BC16 -> 0 | BD41: ='CP-1'!BD25+'CP-2'!BD26+Stateline!BD18+'CP-3'!BD17+'CP-4'!BD25+'CP-5'!BD20+'CP-6'!BD32+'CP-7'!BD14+'CP-7'!BD15+'CP-7'!BD16+'CP-7'!BD17+'CP-7'!BD23+'CP-7'!BD24+'CP-7'!BD25+'CP-8'!BD16 -> 0
F42: san juan-colorado river | G42: ='CP-18'!G18+'CP-18'!G24+'CP-19'!G23+'CP-19'!G30+'CP-19'!G38+'CP-19'!G44+'CP-19'!G48+'CP-19'!G49+'CP-19'!G50 -> 191556 | H42: ='CP-18'!H18+'CP-18'!H24+'CP-19'!H23+'CP-19'!H30+'CP-19'!H38+'CP-19'!H44+'CP-19'!H48+'CP-19'!H49+'CP-19'!H50 -> 210840 | I42: ='CP-18'!I18+'CP-18'!I24+'CP-19'!I23+'CP-19'!I30+'CP-19'!I38+'CP-19'!I44+'CP-19'!I48+'CP-19'!I49+'CP-19'!I50 -> 194865 | J42: ='CP-18'!J18+'CP-18'!J24+'CP-19'!J23+'CP-19'!J30+'CP-19'!J38+'CP-19'!J44+'CP-19'!J48+'CP-19'!J49+'CP-19'!J50 -> 206454 | K42: ='CP-18'!K18+'CP-18'!K24+'CP-19'!K23+'CP-19'!K30+'CP-19'!K38+'CP-19'!K44+'CP-19'!K48+'CP-19'!K49+'CP-19'!K50 -> 210639 | L42: ='CP-18'!L18+'CP-18'!L24+'CP-19'!L23+'CP-19'!L30+'CP-19'!L38+'CP-19'!L44+'CP-19'!L48+'CP-19'!L49+'CP-19'!L50 -> 167710 | M42: ='CP-18'!M18+'CP-18'!M24+'CP-19'!M23+'CP-19'!M30+'CP-19'!M38+'CP-19'!M44+'CP-19'!M48+'CP-19'!M49+'CP-19'!M50 -> 129778 | N42: ='CP-18'!N18+'CP-18'!N24+'CP-19'!N23+'CP-19'!N30+'CP-19'!N38+'CP-19'!N44+'CP-19'!N48+'CP-19'!N49+'CP-19'!N50 -> 153212 | O42: ='CP-18'!O18+'CP-18'!O24+'CP-19'!O23+'CP-19'!O30+'CP-19'!O38+'CP-19'!O44+'CP-19'!O48+'CP-19'!O49+'CP-19'!O50 -> 186034 | P42: ='CP-18'!P18+'CP-18'!P24+'CP-19'!P23+'CP-19'!P30+'CP-19'!P38+'CP-19'!P44+'CP-19'!P48+'CP-19'!P49+'CP-19'!P50 -> 173000 | Q42: ='CP-18'!Q18+'CP-18'!Q24+'CP-19'!Q23+'CP-19'!Q30+'CP-19'!Q38+'CP-19'!Q44+'CP-19'!Q48+'CP-19'!Q49+'CP-19'!Q50 -> 187290.252 | R42: ='CP-18'!R18+'CP-18'!R24+'CP-19'!R23+'CP-19'!R30+'CP-19'!R38+'CP-19'!R44+'CP-19'!R48+'CP-19'!R49+'CP-19'!R50 -> 204140.235 | S42: ='CP-18'!S18+'CP-18'!S24+'CP-19'!S23+'CP-19'!S30+'CP-19'!S38+'CP-19'!S44+'CP-19'!S48+'CP-19'!S49+'CP-19'!S50 -> 209338.966 | T42: ='CP-18'!T18+'CP-18'!T24+'CP-19'!T23+'CP-19'!T30+'CP-19'!T38+'CP-19'!T44+'CP-19'!T48+'CP-19'!T49+'CP-19'!T50 -> 224098.42 | U42: ='CP-18'!U18+'CP-18'!U24+'CP-19'!U23+'CP-19'!U30+'CP-19'!U38+'CP-19'!U44+'CP-19'!U48+'CP-19'!U49+'CP-19'!U50 -> 202003.088 | V42: ='CP-18'!V18+'CP-18'!V24+'CP-19'!V23+'CP-19'!V30+'CP-19'!V38+'CP-19'!V44+'CP-19'!V48+'CP-19'!V49+'CP-19'!V50 -> 196248.8 | W42: ='CP-18'!W18+'CP-18'!W24+'CP-19'!W23+'CP-19'!W30+'CP-19'!W38+'CP-19'!W44+'CP-19'!W48+'CP-19'!W49+'CP-19'!W50 -> 285136.6 | X42: ='CP-18'!X18+'CP-18'!X24+'CP-19'!X23+'CP-19'!X30+'CP-19'!X38+'CP-19'!X44+'CP-19'!X48+'CP-19'!X49+'CP-19'!X50 -> 317972.6 | Y42: ='CP-18'!Y18+'CP-18'!Y24+'CP-19'!Y23+'CP-19'!Y30+'CP-19'!Y38+'CP-19'!Y44+'CP-19'!Y48+'CP-19'!Y49+'CP-19'!Y50 -> 393340.5 | Z42: ='CP-18'!Z18+'CP-18'!Z24+'CP-19'!Z23+'CP-19'!Z30+'CP-19'!Z38+'CP-19'!Z44+'CP-19'!Z48+'CP-19'!Z49+'CP-19'!Z50 -> 309889.7 | AA42: ='CP-18'!AA18+'CP-18'!AA24+'CP-19'!AA23+'CP-19'!AA30+'CP-19'!AA38+'CP-19'!AA44+'CP-19'!AA48+'CP-19'!AA49+'CP-19'!AA50 -> 269596.5883 | AB42: ='CP-18'!AB18+'CP-18'!AB24+'CP-19'!AB23+'CP-19'!AB30+'CP-19'!AB38+'CP-19'!AB44+'CP-19'!AB48+'CP-19'!AB49+'CP-19'!AB50 -> 273118.2501 | AC42: ='CP-18'!AC18+'CP-18'!AC24+'CP-19'!AC23+'CP-19'!AC30+'CP-19'!AC38+'CP-19'!AC44+'CP-19'!AC48+'CP-19'!AC49+'CP-19'!AC50 -> 273617.4569 | AD42: ='CP-18'!AD18+'CP-18'!AD24+'CP-19'!AD23+'CP-19'!AD30+'CP-19'!AD38+'CP-19'!AD44+'CP-19'!AD48+'CP-19'!AD49+'CP-19'!AD50 -> 288097.7721 | AE42: ='CP-18'!AE18+'CP-18'!AE24+'CP-19'!AE23+'CP-19'!AE30+'CP-19'!AE38+'CP-19'!AE44+'CP-19'!AE48+'CP-19'!AE49+'CP-19'!AE50 -> 244812.4421 | AF42: ='CP-18'!AF18+'CP-18'!AF24+'CP-19'!AF23+'CP-19'!AF30+'CP-19'!AF38+'CP-19'!AF44+'CP-19'!AF48+'CP-19'!AF49+'CP-19'!AF50 -> 321564.8781 | AG42: ='CP-18'!AG18+'CP-18'!AG24+'CP-19'!AG23+'CP-19'!AG30+'CP-19'!AG38+'CP-19'!AG44+'CP-19'!AG48+'CP-19'!AG49+'CP-19'!AG50 -> 277115.2426 | AH42: ='CP-18'!AH18+'CP-18'!AH24+'CP-19'!AH23+'CP-19'!AH30+'CP-19'!AH38+'CP-19'!AH44+'CP-19'!AH48+'CP-19'!AH49+'CP-19'!AH50 -> 322061.2438 | AI42: ='CP-18'!AI18+'CP-18'!AI24+'CP-19'!AI23+'CP-19'!AI30+'CP-19'!AI38+'CP-19'!AI44+'CP-19'!AI48+'CP-19'!AI49+'CP-19'!AI50 -> 263398.4265 | AJ42: ='CP-18'!AJ18+'CP-18'!AJ24+'CP-19'!AJ23+'CP-19'!AJ30+'CP-19'!AJ38+'CP-19'!AJ44+'CP-19'!AJ48+'CP-19'!AJ49+'CP-19'!AJ50 -> 359454.1187 | AK42: ='CP-18'!AK18+'CP-18'!AK24+'CP-19'!AK23+'CP-19'!AK30+'CP-19'!AK38+'CP-19'!AK44+'CP-19'!AK48+'CP-19'!AK49+'CP-19'!AK50 -> 353111.6 | AL42: ='CP-18'!AL18+'CP-18'!AL24+'CP-19'!AL23+'CP-19'!AL30+'CP-19'!AL38+'CP-19'!AL44+'CP-19'!AL48+'CP-19'!AL49+'CP-19'!AL50 -> 317226.8 | AM42: ='CP-18'!AM18+'CP-18'!AM24+'CP-19'!AM23+'CP-19'!AM30+'CP-19'!AM38+'CP-19'!AM44+'CP-19'!AM48+'CP-19'!AM49+'CP-19'!AM50 -> 322197 | AN42: ='CP-18'!AN18+'CP-18'!AN24+'CP-19'!AN23+'CP-19'!AN30+'CP-19'!AN38+'CP-19'!AN44+'CP-19'!AN48+'CP-19'!AN49+'CP-19'!AN50 -> 262647.4 | AO42: ='CP-18'!AO18+'CP-18'!AO24+'CP-19'!AO23+'CP-19'!AO30+'CP-19'!AO38+'CP-19'!AO44+'CP-19'!AO48+'CP-19'!AO49+'CP-19'!AO50 -> 292934.3 | AP42: ='CP-18'!AP18+'CP-18'!AP24+'CP-19'!AP23+'CP-19'!AP30+'CP-19'!AP38+'CP-19'!AP44+'CP-19'!AP48+'CP-19'!AP49+'CP-19'!AP50 -> 274291.3 | AQ42: ='CP-18'!AQ18+'CP-18'!AQ24+'CP-19'!AQ23+'CP-19'!AQ30+'CP-19'!AQ38+'CP-19'!AQ44+'CP-19'!AQ48+'CP-19'!AQ49+'CP-19'!AQ50 -> 340303.7 | AR42: ='CP-18'!AR18+'CP-18'!AR24+'CP-19'!AR23+'CP-19'!AR30+'CP-19'!AR38+'CP-19'!AR44+'CP-19'!AR48+'CP-19'!AR49+'CP-19'!AR50 -> 385107.7 | AS42: ='CP-18'!AS18+'CP-18'!AS24+'CP-19'!AS23+'CP-19'!AS30+'CP-19'!AS38+'CP-19'!AS44+'CP-19'!AS48+'CP-19'!AS49+'CP-19'!AS50 -> 371977.6 | AT42: ='CP-18'!AT18+'CP-18'!AT24+'CP-19'!AT23+'CP-19'!AT30+'CP-19'!AT38+'CP-19'!AT44+'CP-19'!AT48+'CP-19'!AT49+'CP-19'!AT50 -> 363660.5 | AU42: ='CP-18'!AU18+'CP-18'!AU24+'CP-19'!AU23+'CP-19'!AU30+'CP-19'!AU38+'CP-19'!AU44+'CP-19'!AU48+'CP-19'!AU49+'CP-19'!AU50 -> 367433.2 | AV42: ='CP-18'!AV18+'CP-18'!AV24+'CP-19'!AV23+'CP-19'!AV30+'CP-19'!AV38+'CP-19'!AV44+'CP-19'!AV48+'CP-19'!AV49+'CP-19'!AV50 -> 506886.1 | AW42: ='CP-18'!AW18+'CP-18'!AW24+'CP-19'!AW23+'CP-19'!AW30+'CP-19'!AW38+'CP-19'!AW44+'CP-19'!AW48+'CP-19'!AW49+'CP-19'!AW50 -> 344319 | AX42: ='CP-18'!AX18+'CP-18'!AX24+'CP-19'!AX23+'CP-19'!AX30+'CP-19'!AX38+'CP-19'!AX44+'CP-19'!AX48+'CP-19'!AX49+'CP-19'!AX50 -> 433175.4 | AY42: ='CP-18'!AY18+'CP-18'!AY24+'CP-19'!AY23+'CP-19'!AY30+'CP-19'!AY38+'CP-19'!AY44+'CP-19'!AY48+'CP-19'!AY49+'CP-19'!AY50 -> 345931.4 | AZ42: ='CP-18'!AZ18+'CP-18'!AZ24+'CP-19'!AZ23+'CP-19'!AZ30+'CP-19'!AZ38+'CP-19'!AZ44+'CP-19'!AZ48+'CP-19'!AZ49+'CP-19'!AZ50 -> 316728.8 | BA42: ='CP-18'!BA18+'CP-18'!BA24+'CP-19'!BA23+'CP-19'!BA30+'CP-19'!BA38+'CP-19'!BA44+'CP-19'!BA48+'CP-19'!BA49+'CP-19'!BA50 -> 335184.3 | BB42: ='CP-18'!BB18+'CP-18'!BB24+'CP-19'!BB23+'CP-19'!BB30+'CP-19'!BB38+'CP-19'!BB44+'CP-19'!BB48+'CP-19'!BB49+'CP-19'!BB50 -> 0 | BC42: ='CP-18'!BC18+'CP-18'!BC24+'CP-19'!BC23+'CP-19'!BC30+'CP-19'!BC38+'CP-19'!BC44+'CP-19'!BC48+'CP-19'!BC49+'CP-19'!BC50 -> 0 | BD42: ='CP-18'!BD18+'CP-18'!BD24+'CP-19'!BD23+'CP-19'!BD30+'CP-19'!BD38+'CP-19'!BD44+'CP-19'!BD48+'CP-19'!BD49+'CP-19'!BD50 -> 0
F43: Total | G43: =SUM(G40:G42) -> 1324755.532 | H43: 1313100 | I43: 1157878 | J43: 1360387 | K43: 1256743 | L43: 1189818 | M43: 1053325 | N43: 1274876 | O43: 1305124 | P43: 1308988 | Q43: 1402799.681 | R43: 1363313.25 | S43: 1358471.72 | T43: 1282793.006 | U43: 1344668.492 | V43: =SUM(V40:V42) -> 1152527.1 | W43: =SUM(W40:W42) -> 1387667.8 | X43: 1593533.7 | Y43: 1686272.6 | Z43: 1512948.4 | AA43: 1517135.887 | AB43: 1568048.442 | AC43: 1323350.016 | AD43: 1551130.757 | AE43: 1115058.065 | AF43: =SUM(AF40:AF42) -> 1527264.625 | AG43: =SUM(AG40:AG42) -> 1243920.425 | AH43: =SUM(AH40:AH42) -> 1448815.689 | AI43: =SUM(AI40:AI42) -> 1264273.785 | AJ43: =SUM(AJ40:AJ42) -> 1630362.642 | AK43: =SUM(AK40:AK42) -> 1607330.1 | AL43: 1539283 | AM43: 1450408.1 | AN43: 1268574.1 | AO43: 1219487.1 | AP43: 1217761 | AQ43: 1333113.7 | AR43: 1443865.9 | AS43: 1462213.5 | AT43: 1463379.5 | AU43: 1454930.4 | AV43: 1899673.3 | AW43: 1328034.7 | AX43: 1303174.9 | AY43: 1180590.2 | AZ43: =SUM(AZ40:AZ42) -> 1503608.5 | BA43: 1536811.1 | BB43: 0 | BC43: 0 | BD43: 0
B44: Irr. Ag. | D44: New Mexico | F44: san juan-colorado river | G44: ='CP-18'!G19+'CP-19'!G21+'CP-19'!G27+'CP-19'!G32+'CP-19'!G34+'CP-19'!G36+'CP-19'!G57 -> 86627 | H44: ='CP-18'!H19+'CP-19'!H21+'CP-19'!H27+'CP-19'!H32+'CP-19'!H34+'CP-19'!H36+'CP-19'!H57 -> 98019 | I44: ='CP-18'!I19+'CP-19'!I21+'CP-19'!I27+'CP-19'!I32+'CP-19'!I34+'CP-19'!I36+'CP-19'!I57 -> 94264 | J44: ='CP-18'!J19+'CP-19'!J21+'CP-19'!J27+'CP-19'!J32+'CP-19'!J34+'CP-19'!J36+'CP-19'!J57 -> 102050 | K44: ='CP-18'!K19+'CP-19'!K21+'CP-19'!K27+'CP-19'!K32+'CP-19'!K34+'CP-19'!K36+'CP-19'!K57 -> 94115 | L44: ='CP-18'!L19+'CP-19'!L21+'CP-19'!L27+'CP-19'!L32+'CP-19'!L34+'CP-19'!L36+'CP-19'!L57 -> 146628 | M44: ='CP-18'!M19+'CP-19'!M21+'CP-19'!M27+'CP-19'!M32+'CP-19'!M34+'CP-19'!M36+'CP-19'!M57 -> 138355 | N44: ='CP-18'!N19+'CP-19'!N21+'CP-19'!N27+'CP-19'!N32+'CP-19'!N34+'CP-19'!N36+'CP-19'!N57 -> 163526 | O44: ='CP-18'!O19+'CP-19'!O21+'CP-19'!O27+'CP-19'!O32+'CP-19'!O34+'CP-19'!O36+'CP-19'!O57 -> 186494 | P44: ='CP-18'!P19+'CP-19'!P21+'CP-19'!P27+'CP-19'!P32+'CP-19'!P34+'CP-19'!P36+'CP-19'!P57 -> 210479 | Q44: ='CP-18'!Q19+'CP-19'!Q21+'CP-19'!Q27+'CP-19'!Q32+'CP-19'!Q34+'CP-19'!Q36+'CP-19'!Q57 -> 152189.202 | R44: ='CP-18'!R19+'CP-19'!R21+'CP-19'!R27+'CP-19'!R32+'CP-19'!R34+'CP-19'!R36+'CP-19'!R57 -> 196250.099 | S44: ='CP-18'!S19+'CP-19'!S21+'CP-19'!S27+'CP-19'!S32+'CP-19'!S34+'CP-19'!S36+'CP-19'!S57 -> 200958.407 | T44: ='CP-18'!T19+'CP-19'!T21+'CP-19'!T27+'CP-19'!T32+'CP-19'!T34+'CP-19'!T36+'CP-19'!T57 -> 178053.206 | U44: ='CP-18'!U19+'CP-19'!U21+'CP-19'!U27+'CP-19'!U32+'CP-19'!U34+'CP-19'!U36+'CP-19'!U57 -> 206323.735 | V44: ='CP-18'!V19+'CP-19'!V21+'CP-19'!V27+'CP-19'!V32+'CP-19'!V34+'CP-19'!V36+'CP-19'!V57 -> 199099.1444 | W44: ='CP-18'!W19+'CP-19'!W21+'CP-19'!W27+'CP-19'!W32+'CP-19'!W34+'CP-19'!W36+'CP-19'!W57 -> 167203.1614 | X44: ='CP-18'!X19+'CP-19'!X21+'CP-19'!X27+'CP-19'!X32+'CP-19'!X34+'CP-19'!X36+'CP-19'!X57 -> 161646.1468 | Y44: ='CP-18'!Y19+'CP-19'!Y21+'CP-19'!Y27+'CP-19'!Y32+'CP-19'!Y34+'CP-19'!Y36+'CP-19'!Y57 -> 213667.4734 | Z44: ='CP-18'!Z19+'CP-19'!Z21+'CP-19'!Z27+'CP-19'!Z32+'CP-19'!Z34+'CP-19'!Z36+'CP-19'!Z57 -> 194547.0865 | AA44: ='CP-18'!AA19+'CP-19'!AA21+'CP-19'!AA27+'CP-19'!AA32+'CP-19'!AA34+'CP-19'!AA36+'CP-19'!AA57 -> 192802.55 | AB44: ='CP-18'!AB19+'CP-19'!AB21+'CP-19'!AB27+'CP-19'!AB32+'CP-19'!AB34+'CP-19'!AB36+'CP-19'!AB57 -> 179319.05 | AC44: ='CP-18'!AC19+'CP-19'!AC21+'CP-19'!AC27+'CP-19'!AC32+'CP-19'!AC34+'CP-19'!AC36+'CP-19'!AC57 -> 192965.35 | AD44: ='CP-18'!AD19+'CP-19'!AD21+'CP-19'!AD27+'CP-19'!AD32+'CP-19'!AD34+'CP-19'!AD36+'CP-19'!AD57 -> 203485.65 | AE44: ='CP-18'!AE19+'CP-19'!AE21+'CP-19'!AE27+'CP-19'!AE32+'CP-19'!AE34+'CP-19'!AE36+'CP-19'!AE57 -> 197811.85 | AF44: ='CP-18'!AF19+'CP-19'!AF21+'CP-19'!AF27+'CP-19'!AF32+'CP-19'!AF34+'CP-19'!AF36+'CP-19'!AF57 -> 208194.7595 | AG44: ='CP-18'!AG19+'CP-19'!AG21+'CP-19'!AG27+'CP-19'!AG32+'CP-19'!AG34+'CP-19'!AG36+'CP-19'!AG57 -> 183488.2638 | AH44: ='CP-18'!AH19+'CP-19'!AH21+'CP-19'!AH27+'CP-19'!AH32+'CP-19'!AH34+'CP-19'!AH36+'CP-19'!AH57 -> 194095.9553 | AI44: ='CP-18'!AI19+'CP-19'!AI21+'CP-19'!AI27+'CP-19'!AI32+'CP-19'!AI34+'CP-19'!AI36+'CP-19'!AI57 -> 155602.1441 | AJ44: ='CP-18'!AJ19+'CP-19'!AJ21+'CP-19'!AJ27+'CP-19'!AJ32+'CP-19'!AJ34+'CP-19'!AJ36+'CP-19'!AJ57 -> 181088.7337 | AK44: ='CP-18'!AK19+'CP-19'!AK21+'CP-19'!AK27+'CP-19'!AK32+'CP-19'!AK34+'CP-19'!AK36+'CP-19'!AK57 -> 195513.9908 | AL44: ='CP-18'!AL19+'CP-19'!AL21+'CP-19'!AL27+'CP-19'!AL32+'CP-19'!AL34+'CP-19'!AL36+'CP-19'!AL57 -> 238510.7048 | AM44: ='CP-18'!AM19+'CP-19'!AM21+'CP-19'!AM27+'CP-19'!AM32+'CP-19'!AM34+'CP-19'!AM36+'CP-19'!AM57 -> 231165.6042 | AN44: ='CP-18'!AN19+'CP-19'!AN21+'CP-19'!AN27+'CP-19'!AN32+'CP-19'!AN34+'CP-19'!AN36+'CP-19'!AN57 -> 229132.6093 | AO44: ='CP-18'!AO19+'CP-19'!AO21+'CP-19'!AO27+'CP-19'!AO32+'CP-19'!AO34+'CP-19'!AO36+'CP-19'!AO57 -> 210117.4803 | AP44: ='CP-18'!AP19+'CP-19'!AP21+'CP-19'!AP27+'CP-19'!AP32+'CP-19'!AP34+'CP-19'!AP36+'CP-19'!AP57 -> 211269 | AQ44: ='CP-18'!AQ19+'CP-19'!AQ21+'CP-19'!AQ27+'CP-19'!AQ32+'CP-19'!AQ34+'CP-19'!AQ36+'CP-19'!AQ57 -> 224143 | AR44: ='CP-18'!AR19+'CP-19'!AR21+'CP-19'!AR27+'CP-19'!AR32+'CP-19'!AR34+'CP-19'!AR36+'CP-19'!AR57 -> 221658 | AS44: ='CP-18'!AS19+'CP-19'!AS21+'CP-19'!AS27+'CP-19'!AS32+'CP-19'!AS34+'CP-19'!AS36+'CP-19'!AS57 -> 213484 | AT44: ='CP-18'!AT19+'CP-19'!AT21+'CP-19'!AT27+'CP-19'!AT32+'CP-19'!AT34+'CP-19'!AT36+'CP-19'!AT57 -> 208142 | AU44: ='CP-18'!AU19+'CP-19'!AU21+'CP-19'!AU27+'CP-19'!AU32+'CP-19'!AU34+'CP-19'!AU36+'CP-19'!AU57 -> 260039.618 | AV44: ='CP-18'!AV19+'CP-19'!AV21+'CP-19'!AV27+'CP-19'!AV32+'CP-19'!AV34+'CP-19'!AV36+'CP-19'!AV57 -> 279357.4482 | AW44: ='CP-18'!AW19+'CP-19'!AW21+'CP-19'!AW27+'CP-19'!AW32+'CP-19'!AW34+'CP-19'!AW36+'CP-19'!AW57 -> 238484.0198 | AX44: ='CP-18'!AX19+'CP-19'!AX21+'CP-19'!AX27+'CP-19'!AX32+'CP-19'!AX34+'CP-19'!AX36+'CP-19'!AX57 -> 250871.2775 | AY44: ='CP-18'!AY19+'CP-19'!AY21+'CP-19'!AY27+'CP-19'!AY32+'CP-19'!AY34+'CP-19'!AY36+'CP-19'!AY57 -> 212904.9169 | AZ44: ='CP-18'!AZ19+'CP-19'!AZ21+'CP-19'!AZ27+'CP-19'!AZ32+'CP-19'!AZ34+'CP-19'!AZ36+'CP-19'!AZ57 -> 201299 | BA44: ='CP-18'!BA19+'CP-19'!BA21+'CP-19'!BA27+'CP-19'!BA32+'CP-19'!BA34+'CP-19'!BA36+'CP-19'!BA57 -> 212167 | BB44: ='CP-18'!BB19+'CP-19'!BB21+'CP-19'!BB27+'CP-19'!BB32+'CP-19'!BB34+'CP-19'!BB36+'CP-19'!BB57 -> 0 | BC44: ='CP-18'!BC19+'CP-19'!BC21+'CP-19'!BC27+'CP-19'!BC32+'CP-19'!BC34+'CP-19'!BC36+'CP-19'!BC57 -> 0 | BD44: ='CP-18'!BD19+'CP-19'!BD21+'CP-19'!BD27+'CP-19'!BD32+'CP-19'!BD34+'CP-19'!BD36+'CP-19'!BD57 -> 0
D45: Utah | F45: green river | G45: ='CP-11'!G20+Jensen!G16+Jensen!G17+Jensen!G18+Jensen!G30+'CP-14'!G22+'CP-15'!G25+Ouray!G18+Ouray!G22+Ouray!G24+'CP-16'!G28+'CP-17'!G17+'Grn-Colo-Confl'!G17+'Grn-Colo-Confl'!G18+'Grn-Colo-Confl'!G20 -> 535487 | H45: ='CP-11'!H20+Jensen!H16+Jensen!H17+Jensen!H18+Jensen!H30+'CP-14'!H22+'CP-15'!H25+Ouray!H18+Ouray!H22+Ouray!H24+'CP-16'!H28+'CP-17'!H17+'Grn-Colo-Confl'!H17+'Grn-Colo-Confl'!H18+'Grn-Colo-Confl'!H20 -> 541662 | I45: ='CP-11'!I20+Jensen!I16+Jensen!I17+Jensen!I18+Jensen!I30+'CP-14'!I22+'CP-15'!I25+Ouray!I18+Ouray!I22+Ouray!I24+'CP-16'!I28+'CP-17'!I17+'Grn-Colo-Confl'!I17+'Grn-Colo-Confl'!I18+'Grn-Colo-Confl'!I20 -> 534935 | J45: ='CP-11'!J20+Jensen!J16+Jensen!J17+Jensen!J18+Jensen!J30+'CP-14'!J22+'CP-15'!J25+Ouray!J18+Ouray!J22+Ouray!J24+'CP-16'!J28+'CP-17'!J17+'Grn-Colo-Confl'!J17+'Grn-Colo-Confl'!J18+'Grn-Colo-Confl'!J20 -> 550710 | K45: ='CP-11'!K20+Jensen!K16+Jensen!K17+Jensen!K18+Jensen!K30+'CP-14'!K22+'CP-15'!K25+Ouray!K18+Ouray!K22+Ouray!K24+'CP-16'!K28+'CP-17'!K17+'Grn-Colo-Confl'!K17+'Grn-Colo-Confl'!K18+'Grn-Colo-Confl'!K20 -> 443487 | L45: ='CP-11'!L20+Jensen!L16+Jensen!L17+Jensen!L18+Jensen!L30+'CP-14'!L22+'CP-15'!L25+Ouray!L18+Ouray!L22+Ouray!L24+'CP-16'!L28+'CP-17'!L17+'Grn-Colo-Confl'!L17+'Grn-Colo-Confl'!L18+'Grn-Colo-Confl'!L20 -> 441003 | M45: ='CP-11'!M20+Jensen!M16+Jensen!M17+Jensen!M18+Jensen!M30+'CP-14'!M22+'CP-15'!M25+Ouray!M18+Ouray!M22+Ouray!M24+'CP-16'!M28+'CP-17'!M17+'Grn-Colo-Confl'!M17+'Grn-Colo-Confl'!M18+'Grn-Colo-Confl'!M20 -> 242681 | N45: ='CP-11'!N20+Jensen!N16+Jensen!N17+Jensen!N18+Jensen!N30+'CP-14'!N22+'CP-15'!N25+Ouray!N18+Ouray!N22+Ouray!N24+'CP-16'!N28+'CP-17'!N17+'Grn-Colo-Confl'!N17+'Grn-Colo-Confl'!N18+'Grn-Colo-Confl'!N20 -> 460846 | O45: ='CP-11'!O20+Jensen!O16+Jensen!O17+Jensen!O18+Jensen!O30+'CP-14'!O22+'CP-15'!O25+Ouray!O18+Ouray!O22+Ouray!O24+'CP-16'!O28+'CP-17'!O17+'Grn-Colo-Confl'!O17+'Grn-Colo-Confl'!O18+'Grn-Colo-Confl'!O20 -> 472082 | P45: ='CP-11'!P20+Jensen!P16+Jensen!P17+Jensen!P18+Jensen!P30+'CP-14'!P22+'CP-15'!P25+Ouray!P18+Ouray!P22+Ouray!P24+'CP-16'!P28+'CP-17'!P17+'Grn-Colo-Confl'!P17+'Grn-Colo-Confl'!P18+'Grn-Colo-Confl'!P20 -> 453413 | Q45: ='CP-11'!Q20+Jensen!Q16+Jensen!Q17+Jensen!Q18+Jensen!Q30+'CP-14'!Q22+'CP-15'!Q25+Ouray!Q18+Ouray!Q22+Ouray!Q24+'CP-16'!Q28+'CP-17'!Q17+'Grn-Colo-Confl'!Q17+'Grn-Colo-Confl'!Q18+'Grn-Colo-Confl'!Q20 -> 409150.678 | R45: ='CP-11'!R20+Jensen!R16+Jensen!R17+Jensen!R18+Jensen!R30+'CP-14'!R22+'CP-15'!R25+Ouray!R18+Ouray!R22+Ouray!R24+'CP-16'!R28+'CP-17'!R17+'Grn-Colo-Confl'!R17+'Grn-Colo-Confl'!R18+'Grn-Colo-Confl'!R20 -> 403547.27 | S45: ='CP-11'!S20+Jensen!S16+Jensen!S17+Jensen!S18+Jensen!S30+'CP-14'!S22+'CP-15'!S25+Ouray!S18+Ouray!S22+Ouray!S24+'CP-16'!S28+'CP-17'!S17+'Grn-Colo-Confl'!S17+'Grn-Colo-Confl'!S18+'Grn-Colo-Confl'!S20 -> 407310.288 | T45: ='CP-11'!T20+Jensen!T16+Jensen!T17+Jensen!T18+Jensen!T30+'CP-14'!T22+'CP-15'!T25+Ouray!T18+Ouray!T22+Ouray!T24+'CP-16'!T28+'CP-17'!T17+'Grn-Colo-Confl'!T17+'Grn-Colo-Confl'!T18+'Grn-Colo-Confl'!T20 -> 438749.188 | U45: ='CP-11'!U20+Jensen!U16+Jensen!U17+Jensen!U18+Jensen!U30+'CP-14'!U22+'CP-15'!U25+Ouray!U18+Ouray!U22+Ouray!U24+'CP-16'!U28+'CP-17'!U17+'Grn-Colo-Confl'!U17+'Grn-Colo-Confl'!U18+'Grn-Colo-Confl'!U20 -> 510744.684 | V45: ='CP-11'!V20+Jensen!V16+Jensen!V17+Jensen!V18+Jensen!V30+'CP-14'!V22+'CP-15'!V25+Ouray!V18+Ouray!V22+Ouray!V24+'CP-16'!V28+'CP-17'!V17+'Grn-Colo-Confl'!V17+'Grn-Colo-Confl'!V18+'Grn-Colo-Confl'!V20 -> 473064.3806 | W45: ='CP-11'!W20+Jensen!W16+Jensen!W17+Jensen!W18+Jensen!W30+'CP-14'!W22+'CP-15'!W25+Ouray!W18+Ouray!W22+Ouray!W24+'CP-16'!W28+'CP-17'!W17+'Grn-Colo-Confl'!W17+'Grn-Colo-Confl'!W18+'Grn-Colo-Confl'!W20 -> 461311.5274 | X45: ='CP-11'!X20+Jensen!X16+Jensen!X17+Jensen!X18+Jensen!X30+'CP-14'!X22+'CP-15'!X25+Ouray!X18+Ouray!X22+Ouray!X24+'CP-16'!X28+'CP-17'!X17+'Grn-Colo-Confl'!X17+'Grn-Colo-Confl'!X18+'Grn-Colo-Confl'!X20 -> 440391.5642 | Y45: ='CP-11'!Y20+Jensen!Y16+Jensen!Y17+Jensen!Y18+Jensen!Y30+'CP-14'!Y22+'CP-15'!Y25+Ouray!Y18+Ouray!Y22+Ouray!Y24+'CP-16'!Y28+'CP-17'!Y17+'Grn-Colo-Confl'!Y17+'Grn-Colo-Confl'!Y18+'Grn-Colo-Confl'!Y20 -> 421774.9296 | Z45: ='CP-11'!Z20+Jensen!Z16+Jensen!Z17+Jensen!Z18+Jensen!Z30+'CP-14'!Z22+'CP-15'!Z25+Ouray!Z18+Ouray!Z22+Ouray!Z24+'CP-16'!Z28+'CP-17'!Z17+'Grn-Colo-Confl'!Z17+'Grn-Colo-Confl'!Z18+'Grn-Colo-Confl'!Z20 -> 463353.1748 | AA45: ='CP-11'!AA20+Jensen!AA16+Jensen!AA17+Jensen!AA18+Jensen!AA30+'CP-14'!AA22+'CP-15'!AA25+Ouray!AA18+Ouray!AA22+Ouray!AA24+'CP-16'!AA28+'CP-17'!AA17+'Grn-Colo-Confl'!AA17+'Grn-Colo-Confl'!AA18+'Grn-Colo-Confl'!AA20 -> 509182.5 | AB45: ='CP-11'!AB20+Jensen!AB16+Jensen!AB17+Jensen!AB18+Jensen!AB30+'CP-14'!AB22+'CP-15'!AB25+Ouray!AB18+Ouray!AB22+Ouray!AB24+'CP-16'!AB28+'CP-17'!AB17+'Grn-Colo-Confl'!AB17+'Grn-Colo-Confl'!AB18+'Grn-Colo-Confl'!AB20 -> 520363.5 | AC45: ='CP-11'!AC20+Jensen!AC16+Jensen!AC17+Jensen!AC18+Jensen!AC30+'CP-14'!AC22+'CP-15'!AC25+Ouray!AC18+Ouray!AC22+Ouray!AC24+'CP-16'!AC28+'CP-17'!AC17+'Grn-Colo-Confl'!AC17+'Grn-Colo-Confl'!AC18+'Grn-Colo-Confl'!AC20 -> 481311.2 | AD45: ='CP-11'!AD20+Jensen!AD16+Jensen!AD17+Jensen!AD18+Jensen!AD30+'CP-14'!AD22+'CP-15'!AD25+Ouray!AD18+Ouray!AD22+Ouray!AD24+'CP-16'!AD28+'CP-17'!AD17+'Grn-Colo-Confl'!AD17+'Grn-Colo-Confl'!AD18+'Grn-Colo-Confl'!AD20 -> 633905.7 | AE45: ='CP-11'!AE20+Jensen!AE16+Jensen!AE17+Jensen!AE18+Jensen!AE30+'CP-14'!AE22+'CP-15'!AE25+Ouray!AE18+Ouray!AE22+Ouray!AE24+'CP-16'!AE28+'CP-17'!AE17+'Grn-Colo-Confl'!AE17+'Grn-Colo-Confl'!AE18+'Grn-Colo-Confl'!AE20 -> 487527.5 | AF45: ='CP-11'!AF20+Jensen!AF16+Jensen!AF17+Jensen!AF18+Jensen!AF30+'CP-14'!AF22+'CP-15'!AF25+Ouray!AF18+Ouray!AF22+Ouray!AF24+'CP-16'!AF28+'CP-17'!AF17+'Grn-Colo-Confl'!AF17+'Grn-Colo-Confl'!AF18+'Grn-Colo-Confl'!AF20 -> 443729.3842 | AG45: ='CP-11'!AG20+Jensen!AG16+Jensen!AG17+Jensen!AG18+Jensen!AG30+'CP-14'!AG22+'CP-15'!AG25+Ouray!AG18+Ouray!AG22+Ouray!AG24+'CP-16'!AG28+'CP-17'!AG17+'Grn-Colo-Confl'!AG17+'Grn-Colo-Confl'!AG18+'Grn-Colo-Confl'!AG20 -> 442659.4362 | AH45: ='CP-11'!AH20+Jensen!AH16+Jensen!AH17+Jensen!AH18+Jensen!AH30+'CP-14'!AH22+'CP-15'!AH25+Ouray!AH18+Ouray!AH22+Ouray!AH24+'CP-16'!AH28+'CP-17'!AH17+'Grn-Colo-Confl'!AH17+'Grn-Colo-Confl'!AH18+'Grn-Colo-Confl'!AH20 -> 516025.1658 | AI45: ='CP-11'!AI20+Jensen!AI16+Jensen!AI17+Jensen!AI18+Jensen!AI30+'CP-14'!AI22+'CP-15'!AI25+Ouray!AI18+Ouray!AI22+Ouray!AI24+'CP-16'!AI28+'CP-17'!AI17+'Grn-Colo-Confl'!AI17+'Grn-Colo-Confl'!AI18+'Grn-Colo-Confl'!AI20 -> 523540.9112 | AJ45: ='CP-11'!AJ20+Jensen!AJ16+Jensen!AJ17+Jensen!AJ18+Jensen!AJ30+'CP-14'!AJ22+'CP-15'!AJ25+Ouray!AJ18+Ouray!AJ22+Ouray!AJ24+'CP-16'!AJ28+'CP-17'!AJ17+'Grn-Colo-Confl'!AJ17+'Grn-Colo-Confl'!AJ18+'Grn-Colo-Confl'!AJ20 -> 429041.0858 | AK45: ='CP-11'!AK20+Jensen!AK16+Jensen!AK17+Jensen!AK18+Jensen!AK30+'CP-14'!AK22+'CP-15'!AK25+Ouray!AK18+Ouray!AK22+Ouray!AK24+'CP-16'!AK28+'CP-17'!AK17+'Grn-Colo-Confl'!AK17+'Grn-Colo-Confl'!AK18+'Grn-Colo-Confl'!AK20 -> 535687.3 | AL45: ='CP-11'!AL20+Jensen!AL16+Jensen!AL17+Jensen!AL18+Jensen!AL30+'CP-14'!AL22+'CP-15'!AL25+Ouray!AL18+Ouray!AL22+Ouray!AL24+'CP-16'!AL28+'CP-17'!AL17+'Grn-Colo-Confl'!AL17+'Grn-Colo-Confl'!AL18+'Grn-Colo-Confl'!AL20 -> 403786.5 | AM45: ='CP-11'!AM20+Jensen!AM16+Jensen!AM17+Jensen!AM18+Jensen!AM30+'CP-14'!AM22+'CP-15'!AM25+Ouray!AM18+Ouray!AM22+Ouray!AM24+'CP-16'!AM28+'CP-17'!AM17+'Grn-Colo-Confl'!AM17+'Grn-Colo-Confl'!AM18+'Grn-Colo-Confl'!AM20 -> 478127 | AN45: ='CP-11'!AN20+Jensen!AN16+Jensen!AN17+Jensen!AN18+Jensen!AN30+'CP-14'!AN22+'CP-15'!AN25+Ouray!AN18+Ouray!AN22+Ouray!AN24+'CP-16'!AN28+'CP-17'!AN17+'Grn-Colo-Confl'!AN17+'Grn-Colo-Confl'!AN18+'Grn-Colo-Confl'!AN20 -> 455040.2 | AO45: ='CP-11'!AO20+Jensen!AO16+Jensen!AO17+Jensen!AO18+Jensen!AO30+'CP-14'!AO22+'CP-15'!AO25+Ouray!AO18+Ouray!AO22+Ouray!AO24+'CP-16'!AO28+'CP-17'!AO17+'Grn-Colo-Confl'!AO17+'Grn-Colo-Confl'!AO18+'Grn-Colo-Confl'!AO20 -> 490291.6 | AP45: ='CP-11'!AP20+Jensen!AP16+Jensen!AP17+Jensen!AP18+Jensen!AP30+'CP-14'!AP22+'CP-15'!AP25+Ouray!AP18+Ouray!AP22+Ouray!AP24+'CP-16'!AP28+'CP-17'!AP17+'Grn-Colo-Confl'!AP17+'Grn-Colo-Confl'!AP18+'Grn-Colo-Confl'!AP20 -> 591393.5 | AQ45: ='CP-11'!AQ20+Jensen!AQ16+Jensen!AQ17+Jensen!AQ18+Jensen!AQ30+'CP-14'!AQ22+'CP-15'!AQ25+Ouray!AQ18+Ouray!AQ22+Ouray!AQ24+'CP-16'!AQ28+'CP-17'!AQ17+'Grn-Colo-Confl'!AQ17+'Grn-Colo-Confl'!AQ18+'Grn-Colo-Confl'!AQ20 -> 537817.1 | AR45: ='CP-11'!AR20+Jensen!AR16+Jensen!AR17+Jensen!AR18+Jensen!AR30+'CP-14'!AR22+'CP-15'!AR25+Ouray!AR18+Ouray!AR22+Ouray!AR24+'CP-16'!AR28+'CP-17'!AR17+'Grn-Colo-Confl'!AR17+'Grn-Colo-Confl'!AR18+'Grn-Colo-Confl'!AR20 -> 454640.8 | AS45: ='CP-11'!AS20+Jensen!AS16+Jensen!AS17+Jensen!AS18+Jensen!AS30+'CP-14'!AS22+'CP-15'!AS25+Ouray!AS18+Ouray!AS22+Ouray!AS24+'CP-16'!AS28+'CP-17'!AS17+'Grn-Colo-Confl'!AS17+'Grn-Colo-Confl'!AS18+'Grn-Colo-Confl'!AS20 -> 443932.4 | AT45: ='CP-11'!AT20+Jensen!AT16+Jensen!AT17+Jensen!AT18+Jensen!AT30+'CP-14'!AT22+'CP-15'!AT25+Ouray!AT18+Ouray!AT22+Ouray!AT24+'CP-16'!AT28+'CP-17'!AT17+'Grn-Colo-Confl'!AT17+'Grn-Colo-Confl'!AT18+'Grn-Colo-Confl'!AT20 -> 492766 | AU45: ='CP-11'!AU20+Jensen!AU16+Jensen!AU17+Jensen!AU18+Jensen!AU30+'CP-14'!AU22+'CP-15'!AU25+Ouray!AU18+Ouray!AU22+Ouray!AU24+'CP-16'!AU28+'CP-17'!AU17+'Grn-Colo-Confl'!AU17+'Grn-Colo-Confl'!AU18+'Grn-Colo-Confl'!AU20 -> 472458.9 | AV45: ='CP-11'!AV20+Jensen!AV16+Jensen!AV17+Jensen!AV18+Jensen!AV30+'CP-14'!AV22+'CP-15'!AV25+Ouray!AV18+Ouray!AV22+Ouray!AV24+'CP-16'!AV28+'CP-17'!AV17+'Grn-Colo-Confl'!AV17+'Grn-Colo-Confl'!AV18+'Grn-Colo-Confl'!AV20 -> 549168 | AW45: ='CP-11'!AW20+Jensen!AW16+Jensen!AW17+Jensen!AW18+Jensen!AW30+'CP-14'!AW22+'CP-15'!AW25+Ouray!AW18+Ouray!AW22+Ouray!AW24+'CP-16'!AW28+'CP-17'!AW17+'Grn-Colo-Confl'!AW17+'Grn-Colo-Confl'!AW18+'Grn-Colo-Confl'!AW20 -> 570438 | AX45: ='CP-11'!AX20+Jensen!AX16+Jensen!AX17+Jensen!AX18+Jensen!AX30+'CP-14'!AX22+'CP-15'!AX25+Ouray!AX18+Ouray!AX22+Ouray!AX24+'CP-16'!AX28+'CP-17'!AX17+'Grn-Colo-Confl'!AX17+'Grn-Colo-Confl'!AX18+'Grn-Colo-Confl'!AX20 -> 442186.6 | AY45: ='CP-11'!AY20+Jensen!AY16+Jensen!AY17+Jensen!AY18+Jensen!AY30+'CP-14'!AY22+'CP-15'!AY25+Ouray!AY18+Ouray!AY22+Ouray!AY24+'CP-16'!AY28+'CP-17'!AY17+'Grn-Colo-Confl'!AY17+'Grn-Colo-Confl'!AY18+'Grn-Colo-Confl'!AY20 -> 417978.6 | AZ45: ='CP-11'!AZ20+Jensen!AZ16+Jensen!AZ17+Jensen!AZ18+Jensen!AZ30+'CP-14'!AZ22+'CP-15'!AZ25+Ouray!AZ18+Ouray!AZ22+Ouray!AZ24+'CP-16'!AZ28+'CP-17'!AZ17+'Grn-Colo-Confl'!AZ17+'Grn-Colo-Confl'!AZ18+'Grn-Colo-Confl'!AZ20 -> 564548.8 | BA45: ='CP-11'!BA20+Jensen!BA16+Jensen!BA17+Jensen!BA18+Jensen!BA30+'CP-14'!BA22+'CP-15'!BA25+Ouray!BA18+Ouray!BA22+Ouray!BA24+'CP-16'!BA28+'CP-17'!BA17+'Grn-Colo-Confl'!BA17+'Grn-Colo-Confl'!BA18+'Grn-Colo-Confl'!BA20 -> 597857.1 | BB45: ='CP-11'!BB20+Jensen!BB16+Jensen!BB17+Jensen!BB18+Jensen!BB30+'CP-14'!BB22+'CP-15'!BB25+Ouray!BB18+Ouray!BB22+Ouray!BB24+'CP-16'!BB28+'CP-17'!BB17+'Grn-Colo-Confl'!BB17+'Grn-Colo-Confl'!BB18+'Grn-Colo-Confl'!BB20 -> 0 | BC45: ='CP-11'!BC20+Jensen!BC16+Jensen!BC17+Jensen!BC18+Jensen!BC30+'CP-14'!BC22+'CP-15'!BC25+Ouray!BC18+Ouray!BC22+Ouray!BC24+'CP-16'!BC28+'CP-17'!BC17+'Grn-Colo-Confl'!BC17+'Grn-Colo-Confl'!BC18+'Grn-Colo-Confl'!BC20 -> 0 | BD45: ='CP-11'!BD20+Jensen!BD16+Jensen!BD17+Jensen!BD18+Jensen!BD30+'CP-14'!BD22+'CP-15'!BD25+Ouray!BD18+Ouray!BD22+Ouray!BD24+'CP-16'!BD28+'CP-17'!BD17+'Grn-Colo-Confl'!BD17+'Grn-Colo-Confl'!BD18+'Grn-Colo-Confl'!BD20 -> 0
F46: upper main stem | G46: ='CP-7'!G19+'CP-7'!G27+'CP-8'!G17+'Grn-Colo-Confl'!G16 -> 10274 | H46: ='CP-7'!H19+'CP-7'!H27+'CP-8'!H17+'Grn-Colo-Confl'!H16 -> 9377 | I46: ='CP-7'!I19+'CP-7'!I27+'CP-8'!I17+'Grn-Colo-Confl'!I16 -> 9473 | J46: ='CP-7'!J19+'CP-7'!J27+'CP-8'!J17+'Grn-Colo-Confl'!J16 -> 10403 | K46: ='CP-7'!K19+'CP-7'!K27+'CP-8'!K17+'Grn-Colo-Confl'!K16 -> 9247 | L46: ='CP-7'!L19+'CP-7'!L27+'CP-8'!L17+'Grn-Colo-Confl'!L16 -> 10982 | M46: ='CP-7'!M19+'CP-7'!M27+'CP-8'!M17+'Grn-Colo-Confl'!M16 -> 3983 | N46: ='CP-7'!N19+'CP-7'!N27+'CP-8'!N17+'Grn-Colo-Confl'!N16 -> 13193 | O46: ='CP-7'!O19+'CP-7'!O27+'CP-8'!O17+'Grn-Colo-Confl'!O16 -> 14501 | P46: ='CP-7'!P19+'CP-7'!P27+'CP-8'!P17+'Grn-Colo-Confl'!P16 -> 13968 | Q46: ='CP-7'!Q19+'CP-7'!Q27+'CP-8'!Q17+'Grn-Colo-Confl'!Q16 -> 9072.03 | R46: ='CP-7'!R19+'CP-7'!R27+'CP-8'!R17+'Grn-Colo-Confl'!R16 -> 7721.16 | S46: ='CP-7'!S19+'CP-7'!S27+'CP-8'!S17+'Grn-Colo-Confl'!S16 -> 9102 | T46: ='CP-7'!T19+'CP-7'!T27+'CP-8'!T17+'Grn-Colo-Confl'!T16 -> 10061.04 | U46: ='CP-7'!U19+'CP-7'!U27+'CP-8'!U17+'Grn-Colo-Confl'!U16 -> 9640.35 | V46: ='CP-7'!V19+'CP-7'!V27+'CP-8'!V17+'Grn-Colo-Confl'!V16 -> 9563.8 | W46: ='CP-7'!W19+'CP-7'!W27+'CP-8'!W17+'Grn-Colo-Confl'!W16 -> 10233.8 | X46: ='CP-7'!X19+'CP-7'!X27+'CP-8'!X17+'Grn-Colo-Confl'!X16 -> 9711.5 | Y46: ='CP-7'!Y19+'CP-7'!Y27+'CP-8'!Y17+'Grn-Colo-Confl'!Y16 -> 9070.7 | Z46: ='CP-7'!Z19+'CP-7'!Z27+'CP-8'!Z17+'Grn-Colo-Confl'!Z16 -> 10636.1 | AA46: ='CP-7'!AA19+'CP-7'!AA27+'CP-8'!AA17+'Grn-Colo-Confl'!AA16 -> 13830.4 | AB46: ='CP-7'!AB19+'CP-7'!AB27+'CP-8'!AB17+'Grn-Colo-Confl'!AB16 -> 13517.9 | AC46: ='CP-7'!AC19+'CP-7'!AC27+'CP-8'!AC17+'Grn-Colo-Confl'!AC16 -> 12910.1 | AD46: ='CP-7'!AD19+'CP-7'!AD27+'CP-8'!AD17+'Grn-Colo-Confl'!AD16 -> 13461.2 | AE46: ='CP-7'!AE19+'CP-7'!AE27+'CP-8'!AE17+'Grn-Colo-Confl'!AE16 -> 9570 | AF46: ='CP-7'!AF19+'CP-7'!AF27+'CP-8'!AF17+'Grn-Colo-Confl'!AF16 -> 12932.013 | AG46: ='CP-7'!AG19+'CP-7'!AG27+'CP-8'!AG17+'Grn-Colo-Confl'!AG16 -> 20173.0518 | AH46: ='CP-7'!AH19+'CP-7'!AH27+'CP-8'!AH17+'Grn-Colo-Confl'!AH16 -> 19279.4742 | AI46: ='CP-7'!AI19+'CP-7'!AI27+'CP-8'!AI17+'Grn-Colo-Confl'!AI16 -> 17887.0206 | AJ46: ='CP-7'!AJ19+'CP-7'!AJ27+'CP-8'!AJ17+'Grn-Colo-Confl'!AJ16 -> 14051.3844 | AK46: ='CP-7'!AK19+'CP-7'!AK27+'CP-8'!AK17+'Grn-Colo-Confl'!AK16 -> 21647.8 | AL46: ='CP-7'!AL19+'CP-7'!AL27+'CP-8'!AL17+'Grn-Colo-Confl'!AL16 -> 9884.9 | AM46: ='CP-7'!AM19+'CP-7'!AM27+'CP-8'!AM17+'Grn-Colo-Confl'!AM16 -> 12475.9 | AN46: ='CP-7'!AN19+'CP-7'!AN27+'CP-8'!AN17+'Grn-Colo-Confl'!AN16 -> 12206.6 | AO46: ='CP-7'!AO19+'CP-7'!AO27+'CP-8'!AO17+'Grn-Colo-Confl'!AO16 -> 10212.8 | AP46: ='CP-7'!AP19+'CP-7'!AP27+'CP-8'!AP17+'Grn-Colo-Confl'!AP16 -> 20455.9 | AQ46: ='CP-7'!AQ19+'CP-7'!AQ27+'CP-8'!AQ17+'Grn-Colo-Confl'!AQ16 -> 14310.8 | AR46: ='CP-7'!AR19+'CP-7'!AR27+'CP-8'!AR17+'Grn-Colo-Confl'!AR16 -> 17576.9 | AS46: ='CP-7'!AS19+'CP-7'!AS27+'CP-8'!AS17+'Grn-Colo-Confl'!AS16 -> 15058.8 | AT46: ='CP-7'!AT19+'CP-7'!AT27+'CP-8'!AT17+'Grn-Colo-Confl'!AT16 -> 25699.8 | AU46: ='CP-7'!AU19+'CP-7'!AU27+'CP-8'!AU17+'Grn-Colo-Confl'!AU16 -> 18862.6 | AV46: ='CP-7'!AV19+'CP-7'!AV27+'CP-8'!AV17+'Grn-Colo-Confl'!AV16 -> 19070.1 | AW46: ='CP-7'!AW19+'CP-7'!AW27+'CP-8'!AW17+'Grn-Colo-Confl'!AW16 -> 21372.2 | AX46: ='CP-7'!AX19+'CP-7'!AX27+'CP-8'!AX17+'Grn-Colo-Confl'!AX16 -> 21032 | AY46: ='CP-7'!AY19+'CP-7'!AY27+'CP-8'!AY17+'Grn-Colo-Confl'!AY16 -> 9082.8 | AZ46: ='CP-7'!AZ19+'CP-7'!AZ27+'CP-8'!AZ17+'Grn-Colo-Confl'!AZ16 -> 16540.4 | BA46: ='CP-7'!BA19+'CP-7'!BA27+'CP-8'!BA17+'Grn-Colo-Confl'!BA16 -> 16501.8 | BB46: ='CP-7'!BB19+'CP-7'!BB27+'CP-8'!BB17+'Grn-Colo-Confl'!BB16 -> 0 | BC46: ='CP-7'!BC19+'CP-7'!BC27+'CP-8'!BC17+'Grn-Colo-Confl'!BC16 -> 0 | BD46: ='CP-7'!BD19+'CP-7'!BD27+'CP-8'!BD17+'Grn-Colo-Confl'!BD16 -> 0
F47: san juan-colorado river | G47: ='CP-19'!G42+ 'CP-19'!G46+'CP-19'!G52+'Colo-SanJuan-Confl'!G17+'Colo-SanJuan-Confl'!G20+'Colo-SanJuan-Confl'!G22+'Colo-SanJuan-Confl'!G24+'CP-21'!G16 -> 42802 | H47: ='CP-19'!H42+ 'CP-19'!H46+'CP-19'!H52+'Colo-SanJuan-Confl'!H17+'Colo-SanJuan-Confl'!H20+'Colo-SanJuan-Confl'!H22+'Colo-SanJuan-Confl'!H24+'CP-21'!H16 -> 37668 | I47: ='CP-19'!I42+ 'CP-19'!I46+'CP-19'!I52+'Colo-SanJuan-Confl'!I17+'Colo-SanJuan-Confl'!I20+'Colo-SanJuan-Confl'!I22+'Colo-SanJuan-Confl'!I24+'CP-21'!I16 -> 51907 | J47: ='CP-19'!J42+ 'CP-19'!J46+'CP-19'!J52+'Colo-SanJuan-Confl'!J17+'Colo-SanJuan-Confl'!J20+'Colo-SanJuan-Confl'!J22+'Colo-SanJuan-Confl'!J24+'CP-21'!J16 -> 43378 | K47: ='CP-19'!K42+ 'CP-19'!K46+'CP-19'!K52+'Colo-SanJuan-Confl'!K17+'Colo-SanJuan-Confl'!K20+'Colo-SanJuan-Confl'!K22+'Colo-SanJuan-Confl'!K24+'CP-21'!K16 -> 40104 | L47: ='CP-19'!L42+ 'CP-19'!L46+'CP-19'!L52+'Colo-SanJuan-Confl'!L17+'Colo-SanJuan-Confl'!L20+'Colo-SanJuan-Confl'!L22+'Colo-SanJuan-Confl'!L24+'CP-21'!L16 -> 40765 | M47: ='CP-19'!M42+ 'CP-19'!M46+'CP-19'!M52+'Colo-SanJuan-Confl'!M17+'Colo-SanJuan-Confl'!M20+'Colo-SanJuan-Confl'!M22+'Colo-SanJuan-Confl'!M24+'CP-21'!M16 -> 16822 | N47: ='CP-19'!N42+ 'CP-19'!N46+'CP-19'!N52+'Colo-SanJuan-Confl'!N17+'Colo-SanJuan-Confl'!N20+'Colo-SanJuan-Confl'!N22+'Colo-SanJuan-Confl'!N24+'CP-21'!N16 -> 46661 | O47: ='CP-19'!O42+ 'CP-19'!O46+'CP-19'!O52+'Colo-SanJuan-Confl'!O17+'Colo-SanJuan-Confl'!O20+'Colo-SanJuan-Confl'!O22+'Colo-SanJuan-Confl'!O24+'CP-21'!O16 -> 59099 | P47: ='CP-19'!P42+ 'CP-19'!P46+'CP-19'!P52+'Colo-SanJuan-Confl'!P17+'Colo-SanJuan-Confl'!P20+'Colo-SanJuan-Confl'!P22+'Colo-SanJuan-Confl'!P24+'CP-21'!P16 -> 56369 | Q47: ='CP-19'!Q42+ 'CP-19'!Q46+'CP-19'!Q52+'Colo-SanJuan-Confl'!Q17+'Colo-SanJuan-Confl'!Q20+'Colo-SanJuan-Confl'!Q22+'Colo-SanJuan-Confl'!Q24+'CP-21'!Q16 -> 42918.807 | R47: ='CP-19'!R42+ 'CP-19'!R46+'CP-19'!R52+'Colo-SanJuan-Confl'!R17+'Colo-SanJuan-Confl'!R20+'Colo-SanJuan-Confl'!R22+'Colo-SanJuan-Confl'!R24+'CP-21'!R16 -> 46758.903 | S47: ='CP-19'!S42+ 'CP-19'!S46+'CP-19'!S52+'Colo-SanJuan-Confl'!S17+'Colo-SanJuan-Confl'!S20+'Colo-SanJuan-Confl'!S22+'Colo-SanJuan-Confl'!S24+'CP-21'!S16 -> 58777.509 | T47: ='CP-19'!T42+ 'CP-19'!T46+'CP-19'!T52+'Colo-SanJuan-Confl'!T17+'Colo-SanJuan-Confl'!T20+'Colo-SanJuan-Confl'!T22+'Colo-SanJuan-Confl'!T24+'CP-21'!T16 -> 60293.877 | U47: ='CP-19'!U42+ 'CP-19'!U46+'CP-19'!U52+'Colo-SanJuan-Confl'!U17+'Colo-SanJuan-Confl'!U20+'Colo-SanJuan-Confl'!U22+'Colo-SanJuan-Confl'!U24+'CP-21'!U16 -> 63449.961 | V47: ='CP-19'!V42+ 'CP-19'!V46+'CP-19'!V52+'Colo-SanJuan-Confl'!V17+'Colo-SanJuan-Confl'!V20+'Colo-SanJuan-Confl'!V22+'Colo-SanJuan-Confl'!V24+'CP-21'!V16 -> 60333.1 | W47: ='CP-19'!W42+ 'CP-19'!W46+'CP-19'!W52+'Colo-SanJuan-Confl'!W17+'Colo-SanJuan-Confl'!W20+'Colo-SanJuan-Confl'!W22+'Colo-SanJuan-Confl'!W24+'CP-21'!W16 -> 54198.8 | X47: ='CP-19'!X42+ 'CP-19'!X46+'CP-19'!X52+'Colo-SanJuan-Confl'!X17+'Colo-SanJuan-Confl'!X20+'Colo-SanJuan-Confl'!X22+'Colo-SanJuan-Confl'!X24+'CP-21'!X16 -> 53529.6 | Y47: ='CP-19'!Y42+ 'CP-19'!Y46+'CP-19'!Y52+'Colo-SanJuan-Confl'!Y17+'Colo-SanJuan-Confl'!Y20+'Colo-SanJuan-Confl'!Y22+'Colo-SanJuan-Confl'!Y24+'CP-21'!Y16 -> 53809.7 | Z47: ='CP-19'!Z42+ 'CP-19'!Z46+'CP-19'!Z52+'Colo-SanJuan-Confl'!Z17+'Colo-SanJuan-Confl'!Z20+'Colo-SanJuan-Confl'!Z22+'Colo-SanJuan-Confl'!Z24+'CP-21'!Z16 -> 48936.4 | AA47: ='CP-19'!AA42+ 'CP-19'!AA46+'CP-19'!AA52+'Colo-SanJuan-Confl'!AA17+'Colo-SanJuan-Confl'!AA20+'Colo-SanJuan-Confl'!AA22+'Colo-SanJuan-Confl'!AA24+'CP-21'!AA16 -> 68947.8 | AB47: ='CP-19'!AB42+ 'CP-19'!AB46+'CP-19'!AB52+'Colo-SanJuan-Confl'!AB17+'Colo-SanJuan-Confl'!AB20+'Colo-SanJuan-Confl'!AB22+'Colo-SanJuan-Confl'!AB24+'CP-21'!AB16 -> 68240.5 | AC47: ='CP-19'!AC42+ 'CP-19'!AC46+'CP-19'!AC52+'Colo-SanJuan-Confl'!AC17+'Colo-SanJuan-Confl'!AC20+'Colo-SanJuan-Confl'!AC22+'Colo-SanJuan-Confl'!AC24+'CP-21'!AC16 -> 68600.7 | AD47: ='CP-19'!AD42+ 'CP-19'!AD46+'CP-19'!AD52+'Colo-SanJuan-Confl'!AD17+'Colo-SanJuan-Confl'!AD20+'Colo-SanJuan-Confl'!AD22+'Colo-SanJuan-Confl'!AD24+'CP-21'!AD16 -> 76868 | AE47: ='CP-19'!AE42+ 'CP-19'!AE46+'CP-19'!AE52+'Colo-SanJuan-Confl'!AE17+'Colo-SanJuan-Confl'!AE20+'Colo-SanJuan-Confl'!AE22+'Colo-SanJuan-Confl'!AE24+'CP-21'!AE16 -> 85409.8 | AF47: ='CP-19'!AF42+ 'CP-19'!AF46+'CP-19'!AF52+'Colo-SanJuan-Confl'!AF17+'Colo-SanJuan-Confl'!AF20+'Colo-SanJuan-Confl'!AF22+'Colo-SanJuan-Confl'!AF24+'CP-21'!AF16 -> 64419.6568 | AG47: ='CP-19'!AG42+ 'CP-19'!AG46+'CP-19'!AG52+'Colo-SanJuan-Confl'!AG17+'Colo-SanJuan-Confl'!AG20+'Colo-SanJuan-Confl'!AG22+'Colo-SanJuan-Confl'!AG24+'CP-21'!AG16 -> 62183.5074 | AH47: ='CP-19'!AH42+ 'CP-19'!AH46+'CP-19'!AH52+'Colo-SanJuan-Confl'!AH17+'Colo-SanJuan-Confl'!AH20+'Colo-SanJuan-Confl'!AH22+'Colo-SanJuan-Confl'!AH24+'CP-21'!AH16 -> 70312.8426 | AI47: ='CP-19'!AI42+ 'CP-19'!AI46+'CP-19'!AI52+'Colo-SanJuan-Confl'!AI17+'Colo-SanJuan-Confl'!AI20+'Colo-SanJuan-Confl'!AI22+'Colo-SanJuan-Confl'!AI24+'CP-21'!AI16 -> 59016.1301 | AJ47: ='CP-19'!AJ42+ 'CP-19'!AJ46+'CP-19'!AJ52+'Colo-SanJuan-Confl'!AJ17+'Colo-SanJuan-Confl'!AJ20+'Colo-SanJuan-Confl'!AJ22+'Colo-SanJuan-Confl'!AJ24+'CP-21'!AJ16 -> 69526.6057 | AK47: ='CP-19'!AK42+ 'CP-19'!AK46+'CP-19'!AK52+'Colo-SanJuan-Confl'!AK17+'Colo-SanJuan-Confl'!AK20+'Colo-SanJuan-Confl'!AK22+'Colo-SanJuan-Confl'!AK24+'CP-21'!AK16 -> 72638.7 | AL47: ='CP-19'!AL42+ 'CP-19'!AL46+'CP-19'!AL52+'Colo-SanJuan-Confl'!AL17+'Colo-SanJuan-Confl'!AL20+'Colo-SanJuan-Confl'!AL22+'Colo-SanJuan-Confl'!AL24+'CP-21'!AL16 -> 51936.6 | AM47: ='CP-19'!AM42+ 'CP-19'!AM46+'CP-19'!AM52+'Colo-SanJuan-Confl'!AM17+'Colo-SanJuan-Confl'!AM20+'Colo-SanJuan-Confl'!AM22+'Colo-SanJuan-Confl'!AM24+'CP-21'!AM16 -> 60089.9 | AN47: ='CP-19'!AN42+ 'CP-19'!AN46+'CP-19'!AN52+'Colo-SanJuan-Confl'!AN17+'Colo-SanJuan-Confl'!AN20+'Colo-SanJuan-Confl'!AN22+'Colo-SanJuan-Confl'!AN24+'CP-21'!AN16 -> 50149.3 | AO47: ='CP-19'!AO42+ 'CP-19'!AO46+'CP-19'!AO52+'Colo-SanJuan-Confl'!AO17+'Colo-SanJuan-Confl'!AO20+'Colo-SanJuan-Confl'!AO22+'Colo-SanJuan-Confl'!AO24+'CP-21'!AO16 -> 71685.4 | AP47: ='CP-19'!AP42+ 'CP-19'!AP46+'CP-19'!AP52+'Colo-SanJuan-Confl'!AP17+'Colo-SanJuan-Confl'!AP20+'Colo-SanJuan-Confl'!AP22+'Colo-SanJuan-Confl'!AP24+'CP-21'!AP16 -> 127823.5 | AQ47: ='CP-19'!AQ42+ 'CP-19'!AQ46+'CP-19'!AQ52+'Colo-SanJuan-Confl'!AQ17+'Colo-SanJuan-Confl'!AQ20+'Colo-SanJuan-Confl'!AQ22+'Colo-SanJuan-Confl'!AQ24+'CP-21'!AQ16 -> 133393.9 | AR47: ='CP-19'!AR42+ 'CP-19'!AR46+'CP-19'!AR52+'Colo-SanJuan-Confl'!AR17+'Colo-SanJuan-Confl'!AR20+'Colo-SanJuan-Confl'!AR22+'Colo-SanJuan-Confl'!AR24+'CP-21'!AR16 -> 110538.5 | AS47: ='CP-19'!AS42+ 'CP-19'!AS46+'CP-19'!AS52+'Colo-SanJuan-Confl'!AS17+'Colo-SanJuan-Confl'!AS20+'Colo-SanJuan-Confl'!AS22+'Colo-SanJuan-Confl'!AS24+'CP-21'!AS16 -> 102639.7 | AT47: ='CP-19'!AT42+ 'CP-19'!AT46+'CP-19'!AT52+'Colo-SanJuan-Confl'!AT17+'Colo-SanJuan-Confl'!AT20+'Colo-SanJuan-Confl'!AT22+'Colo-SanJuan-Confl'!AT24+'CP-21'!AT16 -> 92563.4 | AU47: ='CP-19'!AU42+ 'CP-19'!AU46+'CP-19'!AU52+'Colo-SanJuan-Confl'!AU17+'Colo-SanJuan-Confl'!AU20+'Colo-SanJuan-Confl'!AU22+'Colo-SanJuan-Confl'!AU24+'CP-21'!AU16 -> 90610.8 | AV47: ='CP-19'!AV42+ 'CP-19'!AV46+'CP-19'!AV52+'Colo-SanJuan-Confl'!AV17+'Colo-SanJuan-Confl'!AV20+'Colo-SanJuan-Confl'!AV22+'Colo-SanJuan-Confl'!AV24+'CP-21'!AV16 -> 93684 | AW47: ='CP-19'!AW42+ 'CP-19'!AW46+'CP-19'!AW52+'Colo-SanJuan-Confl'!AW17+'Colo-SanJuan-Confl'!AW20+'Colo-SanJuan-Confl'!AW22+'Colo-SanJuan-Confl'!AW24+'CP-21'!AW16 -> 93662.8 | AX47: ='CP-19'!AX42+ 'CP-19'!AX46+'CP-19'!AX52+'Colo-SanJuan-Confl'!AX17+'Colo-SanJuan-Confl'!AX20+'Colo-SanJuan-Confl'!AX22+'Colo-SanJuan-Confl'!AX24+'CP-21'!AX16 -> 74185.1 | AY47: ='CP-19'!AY42+ 'CP-19'!AY46+'CP-19'!AY52+'Colo-SanJuan-Confl'!AY17+'Colo-SanJuan-Confl'!AY20+'Colo-SanJuan-Confl'!AY22+'Colo-SanJuan-Confl'!AY24+'CP-21'!AY16 -> 69307.8 | AZ47: ='CP-19'!AZ42+ 'CP-19'!AZ46+'CP-19'!AZ52+'Colo-SanJuan-Confl'!AZ17+'Colo-SanJuan-Confl'!AZ20+'Colo-SanJuan-Confl'!AZ22+'Colo-SanJuan-Confl'!AZ24+'CP-21'!AZ16 -> 81590.6 | BA47: ='CP-19'!BA42+ 'CP-19'!BA46+'CP-19'!BA52+'Colo-SanJuan-Confl'!BA17+'Colo-SanJuan-Confl'!BA20+'Colo-SanJuan-Confl'!BA22+'Colo-SanJuan-Confl'!BA24+'CP-21'!BA16 -> 84966.7 | BB47: ='CP-19'!BB42+ 'CP-19'!BB46+'CP-19'!BB52+'Colo-SanJuan-Confl'!BB17+'Colo-SanJuan-Confl'!BB20+'Colo-SanJuan-Confl'!BB22+'Colo-SanJuan-Confl'!BB24+'CP-21'!BB16 -> 0 | BC47: ='CP-19'!BC42+ 'CP-19'!BC46+'CP-19'!BC52+'Colo-SanJuan-Confl'!BC17+'Colo-SanJuan-Confl'!BC20+'Colo-SanJuan-Confl'!BC22+'Colo-SanJuan-Confl'!BC24+'CP-21'!BC16 -> 0 | BD47: ='CP-19'!BD42+ 'CP-19'!BD46+'CP-19'!BD52+'Colo-SanJuan-Confl'!BD17+'Colo-SanJuan-Confl'!BD20+'Colo-SanJuan-Confl'!BD22+'Colo-SanJuan-Confl'!BD24+'CP-21'!BD16 -> 0
F48: Total | G48: =SUM(G45:G47) -> 588563 | H48: 588707 | I48: 596315 | J48: 604491 | K48: 492838 | L48: 492750 | M48: 263486 | N48: 520700 | O48: 545682 | P48: 523750 | Q48: 461141.515 | R48: 458027.333 | S48: 475189.797 | T48: 509104.105 | U48: 583834.995 | V48: =SUM(V45:V47) -> 542961.2806 | W48: =SUM(W45:W47) -> 525744.1274 | X48: 503632.6642 | Y48: 484655.3296 | Z48: 522925.6748 | AA48: 591960.7 | AB48: 602121.9 | AC48: 562822 | AD48: 724234.9 | AE48: 582507.3 | AF48: =SUM(AF45:AF47) -> 521081.054 | AG48: =SUM(AG45:AG47) -> 525015.9954 | AH48: =SUM(AH45:AH47) -> 605617.4826 | AI48: =SUM(AI45:AI47) -> 600444.0619 | AJ48: =SUM(AJ45:AJ47) -> 512619.0759 | AK48: =SUM(AK45:AK47) -> 629973.8 | AL48: 465608 | AM48: 550692.8 | AN48: 517396.1 | AO48: 572189.8 | AP48: 739672.9 | AQ48: 685521.8 | AR48: 582756.2 | AS48: 561630.9 | AT48: 611029.2 | AU48: 581932.3 | AV48: 661922.1 | AW48: 685473 | AX48: 537403.7 | AY48: 496369.2 | AZ48: =SUM(AZ45:AZ47) -> 662679.8 | BA48: 699325.6 | BB48: 0 | BC48: 0 | BD48: 0
D49: Wyoming | F49: green river | G49: ='CP-9'!G20+'CP-10'!G21+'CP-11'!G24+'CP-11'!G28+'CP-11'!G31+'CP-13'!G21+'CP-13'!G22+Jensen!G21+Jensen!G22+Jensen!G26 -> 309916 | H49: ='CP-9'!H20+'CP-10'!H21+'CP-11'!H24+'CP-11'!H28+'CP-11'!H31+'CP-13'!H21+'CP-13'!H22+Jensen!H21+Jensen!H22+Jensen!H26 -> 291759 | I49: ='CP-9'!I20+'CP-10'!I21+'CP-11'!I24+'CP-11'!I28+'CP-11'!I31+'CP-13'!I21+'CP-13'!I22+Jensen!I21+Jensen!I22+Jensen!I26 -> 280820 | J49: ='CP-9'!J20+'CP-10'!J21+'CP-11'!J24+'CP-11'!J28+'CP-11'!J31+'CP-13'!J21+'CP-13'!J22+Jensen!J21+Jensen!J22+Jensen!J26 -> 344556 | K49: ='CP-9'!K20+'CP-10'!K21+'CP-11'!K24+'CP-11'!K28+'CP-11'!K31+'CP-13'!K21+'CP-13'!K22+Jensen!K21+Jensen!K22+Jensen!K26 -> 259369 | L49: ='CP-9'!L20+'CP-10'!L21+'CP-11'!L24+'CP-11'!L28+'CP-11'!L31+'CP-13'!L21+'CP-13'!L22+Jensen!L21+Jensen!L22+Jensen!L26 -> 245354 | M49: ='CP-9'!M20+'CP-10'!M21+'CP-11'!M24+'CP-11'!M28+'CP-11'!M31+'CP-13'!M21+'CP-13'!M22+Jensen!M21+Jensen!M22+Jensen!M26 -> 147625 | N49: ='CP-9'!N20+'CP-10'!N21+'CP-11'!N24+'CP-11'!N28+'CP-11'!N31+'CP-13'!N21+'CP-13'!N22+Jensen!N21+Jensen!N22+Jensen!N26 -> 270985 | O49: ='CP-9'!O20+'CP-10'!O21+'CP-11'!O24+'CP-11'!O28+'CP-11'!O31+'CP-13'!O21+'CP-13'!O22+Jensen!O21+Jensen!O22+Jensen!O26 -> 267559 | P49: ='CP-9'!P20+'CP-10'!P21+'CP-11'!P24+'CP-11'!P28+'CP-11'!P31+'CP-13'!P21+'CP-13'!P22+Jensen!P21+Jensen!P22+Jensen!P26 -> 260876 | Q49: ='CP-9'!Q20+'CP-10'!Q21+'CP-11'!Q24+'CP-11'!Q28+'CP-11'!Q31+'CP-13'!Q21+'CP-13'!Q22+Jensen!Q21+Jensen!Q22+Jensen!Q26 -> 237145.534 | R49: ='CP-9'!R20+'CP-10'!R21+'CP-11'!R24+'CP-11'!R28+'CP-11'!R31+'CP-13'!R21+'CP-13'!R22+Jensen!R21+Jensen!R22+Jensen!R26 -> 224291.601 | S49: ='CP-9'!S20+'CP-10'!S21+'CP-11'!S24+'CP-11'!S28+'CP-11'!S31+'CP-13'!S21+'CP-13'!S22+Jensen!S21+Jensen!S22+Jensen!S26 -> 253177.552 | T49: ='CP-9'!T20+'CP-10'!T21+'CP-11'!T24+'CP-11'!T28+'CP-11'!T31+'CP-13'!T21+'CP-13'!T22+Jensen!T21+Jensen!T22+Jensen!T26 -> 225224.139 | U49: ='CP-9'!U20+'CP-10'!U21+'CP-11'!U24+'CP-11'!U28+'CP-11'!U31+'CP-13'!U21+'CP-13'!U22+Jensen!U21+Jensen!U22+Jensen!U26 -> 245859.112 | V49: ='CP-9'!V20+'CP-10'!V21+'CP-11'!V24+'CP-11'!V28+'CP-11'!V31+'CP-13'!V21+'CP-13'!V22+Jensen!V21+Jensen!V22+Jensen!V26 -> 380692.6 | W49: ='CP-9'!W20+'CP-10'!W21+'CP-11'!W24+'CP-11'!W28+'CP-11'!W31+'CP-13'!W21+'CP-13'!W22+Jensen!W21+Jensen!W22+Jensen!W26 -> 378364.6 | X49: ='CP-9'!X20+'CP-10'!X21+'CP-11'!X24+'CP-11'!X28+'CP-11'!X31+'CP-13'!X21+'CP-13'!X22+Jensen!X21+Jensen!X22+Jensen!X26 -> 463711.1 | Y49: ='CP-9'!Y20+'CP-10'!Y21+'CP-11'!Y24+'CP-11'!Y28+'CP-11'!Y31+'CP-13'!Y21+'CP-13'!Y22+Jensen!Y21+Jensen!Y22+Jensen!Y26 -> 369055.4 | Z49: ='CP-9'!Z20+'CP-10'!Z21+'CP-11'!Z24+'CP-11'!Z28+'CP-11'!Z31+'CP-13'!Z21+'CP-13'!Z22+Jensen!Z21+Jensen!Z22+Jensen!Z26 -> 401100.8 | AA49: ='CP-9'!AA20+'CP-10'!AA21+'CP-11'!AA24+'CP-11'!AA28+'CP-11'!AA31+'CP-13'!AA21+'CP-13'!AA22+Jensen!AA21+Jensen!AA22+Jensen!AA26 -> 325417.8 | AB49: ='CP-9'!AB20+'CP-10'!AB21+'CP-11'!AB24+'CP-11'!AB28+'CP-11'!AB31+'CP-13'!AB21+'CP-13'!AB22+Jensen!AB21+Jensen!AB22+Jensen!AB26 -> 431555.3 | AC49: ='CP-9'!AC20+'CP-10'!AC21+'CP-11'!AC24+'CP-11'!AC28+'CP-11'!AC31+'CP-13'!AC21+'CP-13'!AC22+Jensen!AC21+Jensen!AC22+Jensen!AC26 -> 295906.6 | AD49: ='CP-9'!AD20+'CP-10'!AD21+'CP-11'!AD24+'CP-11'!AD28+'CP-11'!AD31+'CP-13'!AD21+'CP-13'!AD22+Jensen!AD21+Jensen!AD22+Jensen!AD26 -> 489886.9 | AE49: ='CP-9'!AE20+'CP-10'!AE21+'CP-11'!AE24+'CP-11'!AE28+'CP-11'!AE31+'CP-13'!AE21+'CP-13'!AE22+Jensen!AE21+Jensen!AE22+Jensen!AE26 -> 342933.4 | AF49: ='CP-9'!AF20+'CP-10'!AF21+'CP-11'!AF24+'CP-11'!AF28+'CP-11'!AF31+'CP-13'!AF21+'CP-13'!AF22+Jensen!AF21+Jensen!AF22+Jensen!AF26 -> 387317.8869 | AG49: ='CP-9'!AG20+'CP-10'!AG21+'CP-11'!AG24+'CP-11'!AG28+'CP-11'!AG31+'CP-13'!AG21+'CP-13'!AG22+Jensen!AG21+Jensen!AG22+Jensen!AG26 -> 336893.2275 | AH49: ='CP-9'!AH20+'CP-10'!AH21+'CP-11'!AH24+'CP-11'!AH28+'CP-11'!AH31+'CP-13'!AH21+'CP-13'!AH22+Jensen!AH21+Jensen!AH22+Jensen!AH26 -> 279091.1254 | AI49: ='CP-9'!AI20+'CP-10'!AI21+'CP-11'!AI24+'CP-11'!AI28+'CP-11'!AI31+'CP-13'!AI21+'CP-13'!AI22+Jensen!AI21+Jensen!AI22+Jensen!AI26 -> 309349.684 | AJ49: ='CP-9'!AJ20+'CP-10'!AJ21+'CP-11'!AJ24+'CP-11'!AJ28+'CP-11'!AJ31+'CP-13'!AJ21+'CP-13'!AJ22+Jensen!AJ21+Jensen!AJ22+Jensen!AJ26 -> 319795.0143 | AK49: ='CP-9'!AK20+'CP-10'!AK21+'CP-11'!AK24+'CP-11'!AK28+'CP-11'!AK31+'CP-13'!AK21+'CP-13'!AK22+Jensen!AK21+Jensen!AK22+Jensen!AK26 -> 342732.4 | AL49: ='CP-9'!AL20+'CP-10'!AL21+'CP-11'!AL24+'CP-11'!AL28+'CP-11'!AL31+'CP-13'!AL21+'CP-13'!AL22+Jensen!AL21+Jensen!AL22+Jensen!AL26 -> 350061.7 | AM49: ='CP-9'!AM20+'CP-10'!AM21+'CP-11'!AM24+'CP-11'!AM28+'CP-11'!AM31+'CP-13'!AM21+'CP-13'!AM22+Jensen!AM21+Jensen!AM22+Jensen!AM26 -> 317593.9 | AN49: ='CP-9'!AN20+'CP-10'!AN21+'CP-11'!AN24+'CP-11'!AN28+'CP-11'!AN31+'CP-13'!AN21+'CP-13'!AN22+Jensen!AN21+Jensen!AN22+Jensen!AN26 -> 285731.4 | AO49: ='CP-9'!AO20+'CP-10'!AO21+'CP-11'!AO24+'CP-11'!AO28+'CP-11'!AO31+'CP-13'!AO21+'CP-13'!AO22+Jensen!AO21+Jensen!AO22+Jensen!AO26 -> 314597.5 | AP49: ='CP-9'!AP20+'CP-10'!AP21+'CP-11'!AP24+'CP-11'!AP28+'CP-11'!AP31+'CP-13'!AP21+'CP-13'!AP22+Jensen!AP21+Jensen!AP22+Jensen!AP26 -> 234140.3 | AQ49: ='CP-9'!AQ20+'CP-10'!AQ21+'CP-11'!AQ24+'CP-11'!AQ28+'CP-11'!AQ31+'CP-13'!AQ21+'CP-13'!AQ22+Jensen!AQ21+Jensen!AQ22+Jensen!AQ26 -> 333281.8 | AR49: ='CP-9'!AR20+'CP-10'!AR21+'CP-11'!AR24+'CP-11'!AR28+'CP-11'!AR31+'CP-13'!AR21+'CP-13'!AR22+Jensen!AR21+Jensen!AR22+Jensen!AR26 -> 293813.5 | AS49: ='CP-9'!AS20+'CP-10'!AS21+'CP-11'!AS24+'CP-11'!AS28+'CP-11'!AS31+'CP-13'!AS21+'CP-13'!AS22+Jensen!AS21+Jensen!AS22+Jensen!AS26 -> 301109.5 | AT49: ='CP-9'!AT20+'CP-10'!AT21+'CP-11'!AT24+'CP-11'!AT28+'CP-11'!AT31+'CP-13'!AT21+'CP-13'!AT22+Jensen!AT21+Jensen!AT22+Jensen!AT26 -> 292990 | AU49: ='CP-9'!AU20+'CP-10'!AU21+'CP-11'!AU24+'CP-11'!AU28+'CP-11'!AU31+'CP-13'!AU21+'CP-13'!AU22+Jensen!AU21+Jensen!AU22+Jensen!AU26 -> 305629.8 | AV49: ='CP-9'!AV20+'CP-10'!AV21+'CP-11'!AV24+'CP-11'!AV28+'CP-11'!AV31+'CP-13'!AV21+'CP-13'!AV22+Jensen!AV21+Jensen!AV22+Jensen!AV26 -> 277493.8 | AW49: ='CP-9'!AW20+'CP-10'!AW21+'CP-11'!AW24+'CP-11'!AW28+'CP-11'!AW31+'CP-13'!AW21+'CP-13'!AW22+Jensen!AW21+Jensen!AW22+Jensen!AW26 -> 269780.9 | AX49: ='CP-9'!AX20+'CP-10'!AX21+'CP-11'!AX24+'CP-11'!AX28+'CP-11'!AX31+'CP-13'!AX21+'CP-13'!AX22+Jensen!AX21+Jensen!AX22+Jensen!AX26 -> 263113.7 | AY49: ='CP-9'!AY20+'CP-10'!AY21+'CP-11'!AY24+'CP-11'!AY28+'CP-11'!AY31+'CP-13'!AY21+'CP-13'!AY22+Jensen!AY21+Jensen!AY22+Jensen!AY26 -> 258345.2 | AZ49: ='CP-9'!AZ20+'CP-10'!AZ21+'CP-11'!AZ24+'CP-11'!AZ28+'CP-11'!AZ31+'CP-13'!AZ21+'CP-13'!AZ22+Jensen!AZ21+Jensen!AZ22+Jensen!AZ26 -> 322523.5 | BA49: ='CP-9'!BA20+'CP-10'!BA21+'CP-11'!BA24+'CP-11'!BA28+'CP-11'!BA31+'CP-13'!BA21+'CP-13'!BA22+Jensen!BA21+Jensen!BA22+Jensen!BA26 -> 365162.6 | BB49: ='CP-9'!BB20+'CP-10'!BB21+'CP-11'!BB24+'CP-11'!BB28+'CP-11'!BB31+'CP-13'!BB21+'CP-13'!BB22+Jensen!BB21+Jensen!BB22+Jensen!BB26 -> 0 | BC49: ='CP-9'!BC20+'CP-10'!BC21+'CP-11'!BC24+'CP-11'!BC28+'CP-11'!BC31+'CP-13'!BC21+'CP-13'!BC22+Jensen!BC21+Jensen!BC22+Jensen!BC26 -> 0 | BD49: ='CP-9'!BD20+'CP-10'!BD21+'CP-11'!BD24+'CP-11'!BD28+'CP-11'!BD31+'CP-13'!BD21+'CP-13'!BD22+Jensen!BD21+Jensen!BD22+Jensen!BD26 -> 0
F51: Grand Total | G51: =G39+G43+G44+G48+G49 -> 2312361.532 | H51: 2294485 | I51: 2133277 | J51: 2415734 | K51: 2106605 | L51: 2077240 | M51: 1606601 | N51: 2234387 | O51: 2310179 | P51: 2310383 | Q51: 2257850.932 | R51: 2247546.283 | S51: 2294320.476 | T51: 2200974.456 | U51: 2386486.334 | V51: =V39+V43+V44+V48+V49 -> 2279119.025 | W51: =W39+W43+W44+W48+W49 -> 2462356.789 | X51: 2725798.711 | Y51: 2757022.563 | Z51: 2635141.961 | AA51: 2631816.937 | AB51: 2784834.692 | AC51: 2379563.966 | AD51: 2973638.207 | AE51: 2242610.615 | AF51: =AF39+AF43+AF44+AF48+AF49 -> 2644284.225 | AG51: =AG39+AG43+AG44+AG48+AG49 -> 2289716.712 | AH51: =AH39+AH43+AH44+AH48+AH49 -> 2528083.553 | AI51: =AI39+AI43+AI44+AI48+AI49 -> 2330155.475 | AJ51: =AJ39+AJ43+AJ44+AJ48+AJ49 -> 2644514.866 | AK51: =AK39+AK43+AK44+AK48+AK49 -> 2776065.291 | AL51: 2593899.705 | AM51: 2550348.304 | AN51: 2301414.609 | AO51: 2317001.28 | AP51: 2403415.5 | AQ51: 2577018.513 | AR51: 2543175.1 | AS51: 2539167.478 | AT51: 2576750.263 | AU51: 2603546.549 | AV51: 3119059.482 | AW51: 2522828.227 | AX51: 2355531.669 | AY51: 2149388.121 | AZ51: =AZ39+AZ43+AZ44+AZ48+AZ49 -> 2691225.512 | BA51: 2814573.07 | BB51: 0 | BC51: 0 | BD51: 0
A53: Livestock | F53: TOTAL | G53: ='CP-1'!G37+'CP-2'!G40+Stateline!G24+'CP-3'!G22+'CP-4'!G38+'CP-5'!G28+'CP-6'!G52+'CP-7'!G46+'CP-8'!G27+'CP-9'!G28+'CP-10'!G29+'CP-11'!G52+'CP-12'!G32+'CP-13'!G35+Jensen!G51+'CP-14'!G31+'CP-15'!G40+Ouray!G41+'CP-16'!G43+'CP-17'!G22+'Grn-Colo-Confl'!G33+'CP-18'!G39+'CP-19'!G99+'Colo-SanJuan-Confl'!G43+'CP-20'!G22+'CP-21'!G24 -> 15899.67385 | H53: ='CP-1'!H37+'CP-2'!H40+Stateline!H24+'CP-3'!H22+'CP-4'!H38+'CP-5'!H28+'CP-6'!H52+'CP-7'!H46+'CP-8'!H27+'CP-9'!H28+'CP-10'!H29+'CP-11'!H52+'CP-12'!H32+'CP-13'!H35+Jensen!H51+'CP-14'!H31+'CP-15'!H40+Ouray!H41+'CP-16'!H43+'CP-17'!H22+'Grn-Colo-Confl'!H33+'CP-18'!H39+'CP-19'!H99+'Colo-SanJuan-Confl'!H43+'CP-20'!H22+'CP-21'!H24 -> 16019.89708 | I53: ='CP-1'!I37+'CP-2'!I40+Stateline!I24+'CP-3'!I22+'CP-4'!I38+'CP-5'!I28+'CP-6'!I52+'CP-7'!I46+'CP-8'!I27+'CP-9'!I28+'CP-10'!I29+'CP-11'!I52+'CP-12'!I32+'CP-13'!I35+Jensen!I51+'CP-14'!I31+'CP-15'!I40+Ouray!I41+'CP-16'!I43+'CP-17'!I22+'Grn-Colo-Confl'!I33+'CP-18'!I39+'CP-19'!I99+'Colo-SanJuan-Confl'!I43+'CP-20'!I22+'CP-21'!I24 -> 15155.39518 | J53: ='CP-1'!J37+'CP-2'!J40+Stateline!J24+'CP-3'!J22+'CP-4'!J38+'CP-5'!J28+'CP-6'!J52+'CP-7'!J46+'CP-8'!J27+'CP-9'!J28+'CP-10'!J29+'CP-11'!J52+'CP-12'!J32+'CP-13'!J35+Jensen!J51+'CP-14'!J31+'CP-15'!J40+Ouray!J41+'CP-16'!J43+'CP-17'!J22+'Grn-Colo-Confl'!J33+'CP-18'!J39+'CP-19'!J99+'Colo-SanJuan-Confl'!J43+'CP-20'!J22+'CP-21'!J24 -> 17003.9683 | K53: ='CP-1'!K37+'CP-2'!K40+Stateline!K24+'CP-3'!K22+'CP-4'!K38+'CP-5'!K28+'CP-6'!K52+'CP-7'!K46+'CP-8'!K27+'CP-9'!K28+'CP-10'!K29+'CP-11'!K52+'CP-12'!K32+'CP-13'!K35+Jensen!K51+'CP-14'!K31+'CP-15'!K40+Ouray!K41+'CP-16'!K43+'CP-17'!K22+'Grn-Colo-Confl'!K33+'CP-18'!K39+'CP-19'!K99+'Colo-SanJuan-Confl'!K43+'CP-20'!K22+'CP-21'!K24 -> 14759.18834 | L53: ='CP-1'!L37+'CP-2'!L40+Stateline!L24+'CP-3'!L22+'CP-4'!L38+'CP-5'!L28+'CP-6'!L52+'CP-7'!L46+'CP-8'!L27+'CP-9'!L28+'CP-10'!L29+'CP-11'!L52+'CP-12'!L32+'CP-13'!L35+Jensen!L51+'CP-14'!L31+'CP-15'!L40+Ouray!L41+'CP-16'!L43+'CP-17'!L22+'Grn-Colo-Confl'!L33+'CP-18'!L39+'CP-19'!L99+'Colo-SanJuan-Confl'!L43+'CP-20'!L22+'CP-21'!L24 -> 13700 | M53: ='CP-1'!M37+'CP-2'!M40+Stateline!M24+'CP-3'!M22+'CP-4'!M38+'CP-5'!M28+'CP-6'!M52+'CP-7'!M46+'CP-8'!M27+'CP-9'!M28+'CP-10'!M29+'CP-11'!M52+'CP-12'!M32+'CP-13'!M35+Jensen!M51+'CP-14'!M31+'CP-15'!M40+Ouray!M41+'CP-16'!M43+'CP-17'!M22+'Grn-Colo-Confl'!M33+'CP-18'!M39+'CP-19'!M99+'Colo-SanJuan-Confl'!M43+'CP-20'!M22+'CP-21'!M24 -> 12700 | N53: ='CP-1'!N37+'CP-2'!N40+Stateline!N24+'CP-3'!N22+'CP-4'!N38+'CP-5'!N28+'CP-6'!N52+'CP-7'!N46+'CP-8'!N27+'CP-9'!N28+'CP-10'!N29+'CP-11'!N52+'CP-12'!N32+'CP-13'!N35+Jensen!N51+'CP-14'!N31+'CP-15'!N40+Ouray!N41+'CP-16'!N43+'CP-17'!N22+'Grn-Colo-Confl'!N33+'CP-18'!N39+'CP-19'!N99+'Colo-SanJuan-Confl'!N43+'CP-20'!N22+'CP-21'!N24 -> 11600 | O53: ='CP-1'!O37+'CP-2'!O40+Stateline!O24+'CP-3'!O22+'CP-4'!O38+'CP-5'!O28+'CP-6'!O52+'CP-7'!O46+'CP-8'!O27+'CP-9'!O28+'CP-10'!O29+'CP-11'!O52+'CP-12'!O32+'CP-13'!O35+Jensen!O51+'CP-14'!O31+'CP-15'!O40+Ouray!O41+'CP-16'!O43+'CP-17'!O22+'Grn-Colo-Confl'!O33+'CP-18'!O39+'CP-19'!O99+'Colo-SanJuan-Confl'!O43+'CP-20'!O22+'CP-21'!O24 -> 12200 | P53: ='CP-1'!P37+'CP-2'!P40+Stateline!P24+'CP-3'!P22+'CP-4'!P38+'CP-5'!P28+'CP-6'!P52+'CP-7'!P46+'CP-8'!P27+'CP-9'!P28+'CP-10'!P29+'CP-11'!P52+'CP-12'!P32+'CP-13'!P35+Jensen!P51+'CP-14'!P31+'CP-15'!P40+Ouray!P41+'CP-16'!P43+'CP-17'!P22+'Grn-Colo-Confl'!P33+'CP-18'!P39+'CP-19'!P99+'Colo-SanJuan-Confl'!P43+'CP-20'!P22+'CP-21'!P24 -> 12000 | Q53: ='CP-1'!Q37+'CP-2'!Q40+Stateline!Q24+'CP-3'!Q22+'CP-4'!Q38+'CP-5'!Q28+'CP-6'!Q52+'CP-7'!Q46+'CP-8'!Q27+'CP-9'!Q28+'CP-10'!Q29+'CP-11'!Q52+'CP-12'!Q32+'CP-13'!Q35+Jensen!Q51+'CP-14'!Q31+'CP-15'!Q40+Ouray!Q41+'CP-16'!Q43+'CP-17'!Q22+'Grn-Colo-Confl'!Q33+'CP-18'!Q39+'CP-19'!Q99+'Colo-SanJuan-Confl'!Q43+'CP-20'!Q22+'CP-21'!Q24 -> 17016.43465 | R53: ='CP-1'!R37+'CP-2'!R40+Stateline!R24+'CP-3'!R22+'CP-4'!R38+'CP-5'!R28+'CP-6'!R52+'CP-7'!R46+'CP-8'!R27+'CP-9'!R28+'CP-10'!R29+'CP-11'!R52+'CP-12'!R32+'CP-13'!R35+Jensen!R51+'CP-14'!R31+'CP-15'!R40+Ouray!R41+'CP-16'!R43+'CP-17'!R22+'Grn-Colo-Confl'!R33+'CP-18'!R39+'CP-19'!R99+'Colo-SanJuan-Confl'!R43+'CP-20'!R22+'CP-21'!R24 -> 16844.54836 | S53: ='CP-1'!S37+'CP-2'!S40+Stateline!S24+'CP-3'!S22+'CP-4'!S38+'CP-5'!S28+'CP-6'!S52+'CP-7'!S46+'CP-8'!S27+'CP-9'!S28+'CP-10'!S29+'CP-11'!S52+'CP-12'!S32+'CP-13'!S35+Jensen!S51+'CP-14'!S31+'CP-15'!S40+Ouray!S41+'CP-16'!S43+'CP-17'!S22+'Grn-Colo-Confl'!S33+'CP-18'!S39+'CP-19'!S99+'Colo-SanJuan-Confl'!S43+'CP-20'!S22+'CP-21'!S24 -> 16814.54836 | T53: ='CP-1'!T37+'CP-2'!T40+Stateline!T24+'CP-3'!T22+'CP-4'!T38+'CP-5'!T28+'CP-6'!T52+'CP-7'!T46+'CP-8'!T27+'CP-9'!T28+'CP-10'!T29+'CP-11'!T52+'CP-12'!T32+'CP-13'!T35+Jensen!T51+'CP-14'!T31+'CP-15'!T40+Ouray!T41+'CP-16'!T43+'CP-17'!T22+'Grn-Colo-Confl'!T33+'CP-18'!T39+'CP-19'!T99+'Colo-SanJuan-Confl'!T43+'CP-20'!T22+'CP-21'!T24 -> 16524.54836 | U53: ='CP-1'!U37+'CP-2'!U40+Stateline!U24+'CP-3'!U22+'CP-4'!U38+'CP-5'!U28+'CP-6'!U52+'CP-7'!U46+'CP-8'!U27+'CP-9'!U28+'CP-10'!U29+'CP-11'!U52+'CP-12'!U32+'CP-13'!U35+Jensen!U51+'CP-14'!U31+'CP-15'!U40+Ouray!U41+'CP-16'!U43+'CP-17'!U22+'Grn-Colo-Confl'!U33+'CP-18'!U39+'CP-19'!U99+'Colo-SanJuan-Confl'!U43+'CP-20'!U22+'CP-21'!U24 -> 15774.54836 | V53: ='CP-1'!V37+'CP-2'!V40+Stateline!V24+'CP-3'!V22+'CP-4'!V38+'CP-5'!V28+'CP-6'!V52+'CP-7'!V46+'CP-8'!V27+'CP-9'!V28+'CP-10'!V29+'CP-11'!V52+'CP-12'!V32+'CP-13'!V35+Jensen!V51+'CP-14'!V31+'CP-15'!V40+Ouray!V41+'CP-16'!V43+'CP-17'!V22+'Grn-Colo-Confl'!V33+'CP-18'!V39+'CP-19'!V99+'Colo-SanJuan-Confl'!V43+'CP-20'!V22+'CP-21'!V24 -> 13857.2 | W53: ='CP-1'!W37+'CP-2'!W40+Stateline!W24+'CP-3'!W22+'CP-4'!W38+'CP-5'!W28+'CP-6'!W52+'CP-7'!W46+'CP-8'!W27+'CP-9'!W28+'CP-10'!W29+'CP-11'!W52+'CP-12'!W32+'CP-13'!W35+Jensen!W51+'CP-14'!W31+'CP-15'!W40+Ouray!W41+'CP-16'!W43+'CP-17'!W22+'Grn-Colo-Confl'!W33+'CP-18'!W39+'CP-19'!W99+'Colo-SanJuan-Confl'!W43+'CP-20'!W22+'CP-21'!W24 -> 13474.2 | X53: ='CP-1'!X37+'CP-2'!X40+Stateline!X24+'CP-3'!X22+'CP-4'!X38+'CP-5'!X28+'CP-6'!X52+'CP-7'!X46+'CP-8'!X27+'CP-9'!X28+'CP-10'!X29+'CP-11'!X52+'CP-12'!X32+'CP-13'!X35+Jensen!X51+'CP-14'!X31+'CP-15'!X40+Ouray!X41+'CP-16'!X43+'CP-17'!X22+'Grn-Colo-Confl'!X33+'CP-18'!X39+'CP-19'!X99+'Colo-SanJuan-Confl'!X43+'CP-20'!X22+'CP-21'!X24 -> 13599.2 | Y53: ='CP-1'!Y37+'CP-2'!Y40+Stateline!Y24+'CP-3'!Y22+'CP-4'!Y38+'CP-5'!Y28+'CP-6'!Y52+'CP-7'!Y46+'CP-8'!Y27+'CP-9'!Y28+'CP-10'!Y29+'CP-11'!Y52+'CP-12'!Y32+'CP-13'!Y35+Jensen!Y51+'CP-14'!Y31+'CP-15'!Y40+Ouray!Y41+'CP-16'!Y43+'CP-17'!Y22+'Grn-Colo-Confl'!Y33+'CP-18'!Y39+'CP-19'!Y99+'Colo-SanJuan-Confl'!Y43+'CP-20'!Y22+'CP-21'!Y24 -> 13881.4 | Z53: ='CP-1'!Z37+'CP-2'!Z40+Stateline!Z24+'CP-3'!Z22+'CP-4'!Z38+'CP-5'!Z28+'CP-6'!Z52+'CP-7'!Z46+'CP-8'!Z27+'CP-9'!Z28+'CP-10'!Z29+'CP-11'!Z52+'CP-12'!Z32+'CP-13'!Z35+Jensen!Z51+'CP-14'!Z31+'CP-15'!Z40+Ouray!Z41+'CP-16'!Z43+'CP-17'!Z22+'Grn-Colo-Confl'!Z33+'CP-18'!Z39+'CP-19'!Z99+'Colo-SanJuan-Confl'!Z43+'CP-20'!Z22+'CP-21'!Z24 -> 13387 | AA53: ='CP-1'!AA37+'CP-2'!AA40+Stateline!AA24+'CP-3'!AA22+'CP-4'!AA38+'CP-5'!AA28+'CP-6'!AA52+'CP-7'!AA46+'CP-8'!AA27+'CP-9'!AA28+'CP-10'!AA29+'CP-11'!AA52+'CP-12'!AA32+'CP-13'!AA35+Jensen!AA51+'CP-14'!AA31+'CP-15'!AA40+Ouray!AA41+'CP-16'!AA43+'CP-17'!AA22+'Grn-Colo-Confl'!AA33+'CP-18'!AA39+'CP-19'!AA99+'Colo-SanJuan-Confl'!AA43+'CP-20'!AA22+'CP-21'!AA24 -> 13126.6 | AB53: ='CP-1'!AB37+'CP-2'!AB40+Stateline!AB24+'CP-3'!AB22+'CP-4'!AB38+'CP-5'!AB28+'CP-6'!AB52+'CP-7'!AB46+'CP-8'!AB27+'CP-9'!AB28+'CP-10'!AB29+'CP-11'!AB52+'CP-12'!AB32+'CP-13'!AB35+Jensen!AB51+'CP-14'!AB31+'CP-15'!AB40+Ouray!AB41+'CP-16'!AB43+'CP-17'!AB22+'Grn-Colo-Confl'!AB33+'CP-18'!AB39+'CP-19'!AB99+'Colo-SanJuan-Confl'!AB43+'CP-20'!AB22+'CP-21'!AB24 -> 13041.6 | AC53: ='CP-1'!AC37+'CP-2'!AC40+Stateline!AC24+'CP-3'!AC22+'CP-4'!AC38+'CP-5'!AC28+'CP-6'!AC52+'CP-7'!AC46+'CP-8'!AC27+'CP-9'!AC28+'CP-10'!AC29+'CP-11'!AC52+'CP-12'!AC32+'CP-13'!AC35+Jensen!AC51+'CP-14'!AC31+'CP-15'!AC40+Ouray!AC41+'CP-16'!AC43+'CP-17'!AC22+'Grn-Colo-Confl'!AC33+'CP-18'!AC39+'CP-19'!AC99+'Colo-SanJuan-Confl'!AC43+'CP-20'!AC22+'CP-21'!AC24 -> 13476.7 | AD53: ='CP-1'!AD37+'CP-2'!AD40+Stateline!AD24+'CP-3'!AD22+'CP-4'!AD38+'CP-5'!AD28+'CP-6'!AD52+'CP-7'!AD46+'CP-8'!AD27+'CP-9'!AD28+'CP-10'!AD29+'CP-11'!AD52+'CP-12'!AD32+'CP-13'!AD35+Jensen!AD51+'CP-14'!AD31+'CP-15'!AD40+Ouray!AD41+'CP-16'!AD43+'CP-17'!AD22+'Grn-Colo-Confl'!AD33+'CP-18'!AD39+'CP-19'!AD99+'Colo-SanJuan-Confl'!AD43+'CP-20'!AD22+'CP-21'!AD24 -> 13877.2 | AE53: ='CP-1'!AE37+'CP-2'!AE40+Stateline!AE24+'CP-3'!AE22+'CP-4'!AE38+'CP-5'!AE28+'CP-6'!AE52+'CP-7'!AE46+'CP-8'!AE27+'CP-9'!AE28+'CP-10'!AE29+'CP-11'!AE52+'CP-12'!AE32+'CP-13'!AE35+Jensen!AE51+'CP-14'!AE31+'CP-15'!AE40+Ouray!AE41+'CP-16'!AE43+'CP-17'!AE22+'Grn-Colo-Confl'!AE33+'CP-18'!AE39+'CP-19'!AE99+'Colo-SanJuan-Confl'!AE43+'CP-20'!AE22+'CP-21'!AE24 -> 15269.1 | AF53: ='CP-1'!AF37+'CP-2'!AF40+Stateline!AF24+'CP-3'!AF22+'CP-4'!AF38+'CP-5'!AF28+'CP-6'!AF52+'CP-7'!AF46+'CP-8'!AF27+'CP-9'!AF28+'CP-10'!AF29+'CP-11'!AF52+'CP-12'!AF32+'CP-13'!AF35+Jensen!AF51+'CP-14'!AF31+'CP-15'!AF40+Ouray!AF41+'CP-16'!AF43+'CP-17'!AF22+'Grn-Colo-Confl'!AF33+'CP-18'!AF39+'CP-19'!AF99+'Colo-SanJuan-Confl'!AF43+'CP-20'!AF22+'CP-21'!AF24 -> 12692.29616 | AG53: ='CP-1'!AG37+'CP-2'!AG40+Stateline!AG24+'CP-3'!AG22+'CP-4'!AG38+'CP-5'!AG28+'CP-6'!AG52+'CP-7'!AG46+'CP-8'!AG27+'CP-9'!AG28+'CP-10'!AG29+'CP-11'!AG52+'CP-12'!AG32+'CP-13'!AG35+Jensen!AG51+'CP-14'!AG31+'CP-15'!AG40+Ouray!AG41+'CP-16'!AG43+'CP-17'!AG22+'Grn-Colo-Confl'!AG33+'CP-18'!AG39+'CP-19'!AG99+'Colo-SanJuan-Confl'!AG43+'CP-20'!AG22+'CP-21'!AG24 -> 12897.58962 | AH53: ='CP-1'!AH37+'CP-2'!AH40+Stateline!AH24+'CP-3'!AH22+'CP-4'!AH38+'CP-5'!AH28+'CP-6'!AH52+'CP-7'!AH46+'CP-8'!AH27+'CP-9'!AH28+'CP-10'!AH29+'CP-11'!AH52+'CP-12'!AH32+'CP-13'!AH35+Jensen!AH51+'CP-14'!AH31+'CP-15'!AH40+Ouray!AH41+'CP-16'!AH43+'CP-17'!AH22+'Grn-Colo-Confl'!AH33+'CP-18'!AH39+'CP-19'!AH99+'Colo-SanJuan-Confl'!AH43+'CP-20'!AH22+'CP-21'!AH24 -> 12326.48058 | AI53: ='CP-1'!AI37+'CP-2'!AI40+Stateline!AI24+'CP-3'!AI22+'CP-4'!AI38+'CP-5'!AI28+'CP-6'!AI52+'CP-7'!AI46+'CP-8'!AI27+'CP-9'!AI28+'CP-10'!AI29+'CP-11'!AI52+'CP-12'!AI32+'CP-13'!AI35+Jensen!AI51+'CP-14'!AI31+'CP-15'!AI40+Ouray!AI41+'CP-16'!AI43+'CP-17'!AI22+'Grn-Colo-Confl'!AI33+'CP-18'!AI39+'CP-19'!AI99+'Colo-SanJuan-Confl'!AI43+'CP-20'!AI22+'CP-21'!AI24 -> 11882.62635 | AJ53: ='CP-1'!AJ37+'CP-2'!AJ40+Stateline!AJ24+'CP-3'!AJ22+'CP-4'!AJ38+'CP-5'!AJ28+'CP-6'!AJ52+'CP-7'!AJ46+'CP-8'!AJ27+'CP-9'!AJ28+'CP-10'!AJ29+'CP-11'!AJ52+'CP-12'!AJ32+'CP-13'!AJ35+Jensen!AJ51+'CP-14'!AJ31+'CP-15'!AJ40+Ouray!AJ41+'CP-16'!AJ43+'CP-17'!AJ22+'Grn-Colo-Confl'!AJ33+'CP-18'!AJ39+'CP-19'!AJ99+'Colo-SanJuan-Confl'!AJ43+'CP-20'!AJ22+'CP-21'!AJ24 -> 11433.57718 | AK53: ='CP-1'!AK37+'CP-2'!AK40+Stateline!AK24+'CP-3'!AK22+'CP-4'!AK38+'CP-5'!AK28+'CP-6'!AK52+'CP-7'!AK46+'CP-8'!AK27+'CP-9'!AK28+'CP-10'!AK29+'CP-11'!AK52+'CP-12'!AK32+'CP-13'!AK35+Jensen!AK51+'CP-14'!AK31+'CP-15'!AK40+Ouray!AK41+'CP-16'!AK43+'CP-17'!AK22+'Grn-Colo-Confl'!AK33+'CP-18'!AK39+'CP-19'!AK99+'Colo-SanJuan-Confl'!AK43+'CP-20'!AK22+'CP-21'!AK24 -> 11573.5956 | AL53: ='CP-1'!AL37+'CP-2'!AL40+Stateline!AL24+'CP-3'!AL22+'CP-4'!AL38+'CP-5'!AL28+'CP-6'!AL52+'CP-7'!AL46+'CP-8'!AL27+'CP-9'!AL28+'CP-10'!AL29+'CP-11'!AL52+'CP-12'!AL32+'CP-13'!AL35+Jensen!AL51+'CP-14'!AL31+'CP-15'!AL40+Ouray!AL41+'CP-16'!AL43+'CP-17'!AL22+'Grn-Colo-Confl'!AL33+'CP-18'!AL39+'CP-19'!AL99+'Colo-SanJuan-Confl'!AL43+'CP-20'!AL22+'CP-21'!AL24 -> 9894.295796 | AM53: ='CP-1'!AM37+'CP-2'!AM40+Stateline!AM24+'CP-3'!AM22+'CP-4'!AM38+'CP-5'!AM28+'CP-6'!AM52+'CP-7'!AM46+'CP-8'!AM27+'CP-9'!AM28+'CP-10'!AM29+'CP-11'!AM52+'CP-12'!AM32+'CP-13'!AM35+Jensen!AM51+'CP-14'!AM31+'CP-15'!AM40+Ouray!AM41+'CP-16'!AM43+'CP-17'!AM22+'Grn-Colo-Confl'!AM33+'CP-18'!AM39+'CP-19'!AM99+'Colo-SanJuan-Confl'!AM43+'CP-20'!AM22+'CP-21'!AM24 -> 9496.480344 | AN53: ='CP-1'!AN37+'CP-2'!AN40+Stateline!AN24+'CP-3'!AN22+'CP-4'!AN38+'CP-5'!AN28+'CP-6'!AN52+'CP-7'!AN46+'CP-8'!AN27+'CP-9'!AN28+'CP-10'!AN29+'CP-11'!AN52+'CP-12'!AN32+'CP-13'!AN35+Jensen!AN51+'CP-14'!AN31+'CP-15'!AN40+Ouray!AN41+'CP-16'!AN43+'CP-17'!AN22+'Grn-Colo-Confl'!AN33+'CP-18'!AN39+'CP-19'!AN99+'Colo-SanJuan-Confl'!AN43+'CP-20'!AN22+'CP-21'!AN24 -> 9109.646109 | AO53: ='CP-1'!AO37+'CP-2'!AO40+Stateline!AO24+'CP-3'!AO22+'CP-4'!AO38+'CP-5'!AO28+'CP-6'!AO52+'CP-7'!AO46+'CP-8'!AO27+'CP-9'!AO28+'CP-10'!AO29+'CP-11'!AO52+'CP-12'!AO32+'CP-13'!AO35+Jensen!AO51+'CP-14'!AO31+'CP-15'!AO40+Ouray!AO41+'CP-16'!AO43+'CP-17'!AO22+'Grn-Colo-Confl'!AO33+'CP-18'!AO39+'CP-19'!AO99+'Colo-SanJuan-Confl'!AO43+'CP-20'!AO22+'CP-21'!AO24 -> 9397.165472 | AP53: ='CP-1'!AP37+'CP-2'!AP40+Stateline!AP24+'CP-3'!AP22+'CP-4'!AP38+'CP-5'!AP28+'CP-6'!AP52+'CP-7'!AP46+'CP-8'!AP27+'CP-9'!AP28+'CP-10'!AP29+'CP-11'!AP52+'CP-12'!AP32+'CP-13'!AP35+Jensen!AP51+'CP-14'!AP31+'CP-15'!AP40+Ouray!AP41+'CP-16'!AP43+'CP-17'!AP22+'Grn-Colo-Confl'!AP33+'CP-18'!AP39+'CP-19'!AP99+'Colo-SanJuan-Confl'!AP43+'CP-20'!AP22+'CP-21'!AP24 -> 9680.42493 | AQ53: ='CP-1'!AQ37+'CP-2'!AQ40+Stateline!AQ24+'CP-3'!AQ22+'CP-4'!AQ38+'CP-5'!AQ28+'CP-6'!AQ52+'CP-7'!AQ46+'CP-8'!AQ27+'CP-9'!AQ28+'CP-10'!AQ29+'CP-11'!AQ52+'CP-12'!AQ32+'CP-13'!AQ35+Jensen!AQ51+'CP-14'!AQ31+'CP-15'!AQ40+Ouray!AQ41+'CP-16'!AQ43+'CP-17'!AQ22+'Grn-Colo-Confl'!AQ33+'CP-18'!AQ39+'CP-19'!AQ99+'Colo-SanJuan-Confl'!AQ43+'CP-20'!AQ22+'CP-21'!AQ24 -> 9660.636896 | AR53: ='CP-1'!AR37+'CP-2'!AR40+Stateline!AR24+'CP-3'!AR22+'CP-4'!AR38+'CP-5'!AR28+'CP-6'!AR52+'CP-7'!AR46+'CP-8'!AR27+'CP-9'!AR28+'CP-10'!AR29+'CP-11'!AR52+'CP-12'!AR32+'CP-13'!AR35+Jensen!AR51+'CP-14'!AR31+'CP-15'!AR40+Ouray!AR41+'CP-16'!AR43+'CP-17'!AR22+'Grn-Colo-Confl'!AR33+'CP-18'!AR39+'CP-19'!AR99+'Colo-SanJuan-Confl'!AR43+'CP-20'!AR22+'CP-21'!AR24 -> 9743.653061 | AS53: ='CP-1'!AS37+'CP-2'!AS40+Stateline!AS24+'CP-3'!AS22+'CP-4'!AS38+'CP-5'!AS28+'CP-6'!AS52+'CP-7'!AS46+'CP-8'!AS27+'CP-9'!AS28+'CP-10'!AS29+'CP-11'!AS52+'CP-12'!AS32+'CP-13'!AS35+Jensen!AS51+'CP-14'!AS31+'CP-15'!AS40+Ouray!AS41+'CP-16'!AS43+'CP-17'!AS22+'Grn-Colo-Confl'!AS33+'CP-18'!AS39+'CP-19'!AS99+'Colo-SanJuan-Confl'!AS43+'CP-20'!AS22+'CP-21'!AS24 -> 9839.507027 | AT53: ='CP-1'!AT37+'CP-2'!AT40+Stateline!AT24+'CP-3'!AT22+'CP-4'!AT38+'CP-5'!AT28+'CP-6'!AT52+'CP-7'!AT46+'CP-8'!AT27+'CP-9'!AT28+'CP-10'!AT29+'CP-11'!AT52+'CP-12'!AT32+'CP-13'!AT35+Jensen!AT51+'CP-14'!AT31+'CP-15'!AT40+Ouray!AT41+'CP-16'!AT43+'CP-17'!AT22+'Grn-Colo-Confl'!AT33+'CP-18'!AT39+'CP-19'!AT99+'Colo-SanJuan-Confl'!AT43+'CP-20'!AT22+'CP-21'!AT24 -> 9810.957612 | AU53: ='CP-1'!AU37+'CP-2'!AU40+Stateline!AU24+'CP-3'!AU22+'CP-4'!AU38+'CP-5'!AU28+'CP-6'!AU52+'CP-7'!AU46+'CP-8'!AU27+'CP-9'!AU28+'CP-10'!AU29+'CP-11'!AU52+'CP-12'!AU32+'CP-13'!AU35+Jensen!AU51+'CP-14'!AU31+'CP-15'!AU40+Ouray!AU41+'CP-16'!AU43+'CP-17'!AU22+'Grn-Colo-Confl'!AU33+'CP-18'!AU39+'CP-19'!AU99+'Colo-SanJuan-Confl'!AU43+'CP-20'!AU22+'CP-21'!AU24 -> 9971.759299 | AV53: ='CP-1'!AV37+'CP-2'!AV40+Stateline!AV24+'CP-3'!AV22+'CP-4'!AV38+'CP-5'!AV28+'CP-6'!AV52+'CP-7'!AV46+'CP-8'!AV27+'CP-9'!AV28+'CP-10'!AV29+'CP-11'!AV52+'CP-12'!AV32+'CP-13'!AV35+Jensen!AV51+'CP-14'!AV31+'CP-15'!AV40+Ouray!AV41+'CP-16'!AV43+'CP-17'!AV22+'Grn-Colo-Confl'!AV33+'CP-18'!AV39+'CP-19'!AV99+'Colo-SanJuan-Confl'!AV43+'CP-20'!AV22+'CP-21'!AV24 -> 9799.622789 | AW53: ='CP-1'!AW37+'CP-2'!AW40+Stateline!AW24+'CP-3'!AW22+'CP-4'!AW38+'CP-5'!AW28+'CP-6'!AW52+'CP-7'!AW46+'CP-8'!AW27+'CP-9'!AW28+'CP-10'!AW29+'CP-11'!AW52+'CP-12'!AW32+'CP-13'!AW35+Jensen!AW51+'CP-14'!AW31+'CP-15'!AW40+Ouray!AW41+'CP-16'!AW43+'CP-17'!AW22+'Grn-Colo-Confl'!AW33+'CP-18'!AW39+'CP-19'!AW99+'Colo-SanJuan-Confl'!AW43+'CP-20'!AW22+'CP-21'!AW24 -> 10322.25472 | AX53: ='CP-1'!AX37+'CP-2'!AX40+Stateline!AX24+'CP-3'!AX22+'CP-4'!AX38+'CP-5'!AX28+'CP-6'!AX52+'CP-7'!AX46+'CP-8'!AX27+'CP-9'!AX28+'CP-10'!AX29+'CP-11'!AX52+'CP-12'!AX32+'CP-13'!AX35+Jensen!AX51+'CP-14'!AX31+'CP-15'!AX40+Ouray!AX41+'CP-16'!AX43+'CP-17'!AX22+'Grn-Colo-Confl'!AX33+'CP-18'!AX39+'CP-19'!AX99+'Colo-SanJuan-Confl'!AX43+'CP-20'!AX22+'CP-21'!AX24 -> 10240.43342 | AY53: ='CP-1'!AY37+'CP-2'!AY40+Stateline!AY24+'CP-3'!AY22+'CP-4'!AY38+'CP-5'!AY28+'CP-6'!AY52+'CP-7'!AY46+'CP-8'!AY27+'CP-9'!AY28+'CP-10'!AY29+'CP-11'!AY52+'CP-12'!AY32+'CP-13'!AY35+Jensen!AY51+'CP-14'!AY31+'CP-15'!AY40+Ouray!AY41+'CP-16'!AY43+'CP-17'!AY22+'Grn-Colo-Confl'!AY33+'CP-18'!AY39+'CP-19'!AY99+'Colo-SanJuan-Confl'!AY43+'CP-20'!AY22+'CP-21'!AY24 -> 10251.45186 | AZ53: ='CP-1'!AZ37+'CP-2'!AZ40+Stateline!AZ24+'CP-3'!AZ22+'CP-4'!AZ38+'CP-5'!AZ28+'CP-6'!AZ52+'CP-7'!AZ46+'CP-8'!AZ27+'CP-9'!AZ28+'CP-10'!AZ29+'CP-11'!AZ52+'CP-12'!AZ32+'CP-13'!AZ35+Jensen!AZ51+'CP-14'!AZ31+'CP-15'!AZ40+Ouray!AZ41+'CP-16'!AZ43+'CP-17'!AZ22+'Grn-Colo-Confl'!AZ33+'CP-18'!AZ39+'CP-19'!AZ99+'Colo-SanJuan-Confl'!AZ43+'CP-20'!AZ22+'CP-21'!AZ24 -> 10603.53082 | BA53: ='CP-1'!BA37+'CP-2'!BA40+Stateline!BA24+'CP-3'!BA22+'CP-4'!BA38+'CP-5'!BA28+'CP-6'!BA52+'CP-7'!BA46+'CP-8'!BA27+'CP-9'!BA28+'CP-10'!BA29+'CP-11'!BA52+'CP-12'!BA32+'CP-13'!BA35+Jensen!BA51+'CP-14'!BA31+'CP-15'!BA40+Ouray!BA41+'CP-16'!BA43+'CP-17'!BA22+'Grn-Colo-Confl'!BA33+'CP-18'!BA39+'CP-19'!BA99+'Colo-SanJuan-Confl'!BA43+'CP-20'!BA22+'CP-21'!BA24 -> 10855.69623 | BB53: ='CP-1'!BB37+'CP-2'!BB40+Stateline!BB24+'CP-3'!BB22+'CP-4'!BB38+'CP-5'!BB28+'CP-6'!BB52+'CP-7'!BB46+'CP-8'!BB27+'CP-9'!BB28+'CP-10'!BB29+'CP-11'!BB52+'CP-12'!BB32+'CP-13'!BB35+Jensen!BB51+'CP-14'!BB31+'CP-15'!BB40+Ouray!BB41+'CP-16'!BB43+'CP-17'!BB22+'Grn-Colo-Confl'!BB33+'CP-18'!BB39+'CP-19'!BB99+'Colo-SanJuan-Confl'!BB43+'CP-20'!BB22+'CP-21'!BB24 -> 0 | BC53: ='CP-1'!BC37+'CP-2'!BC40+Stateline!BC24+'CP-3'!BC22+'CP-4'!BC38+'CP-5'!BC28+'CP-6'!BC52+'CP-7'!BC46+'CP-8'!BC27+'CP-9'!BC28+'CP-10'!BC29+'CP-11'!BC52+'CP-12'!BC32+'CP-13'!BC35+Jensen!BC51+'CP-14'!BC31+'CP-15'!BC40+Ouray!BC41+'CP-16'!BC43+'CP-17'!BC22+'Grn-Colo-Confl'!BC33+'CP-18'!BC39+'CP-19'!BC99+'Colo-SanJuan-Confl'!BC43+'CP-20'!BC22+'CP-21'!BC24 -> 0 | BD53: ='CP-1'!BD37+'CP-2'!BD40+Stateline!BD24+'CP-3'!BD22+'CP-4'!BD38+'CP-5'!BD28+'CP-6'!BD52+'CP-7'!BD46+'CP-8'!BD27+'CP-9'!BD28+'CP-10'!BD29+'CP-11'!BD52+'CP-12'!BD32+'CP-13'!BD35+Jensen!BD51+'CP-14'!BD31+'CP-15'!BD40+Ouray!BD41+'CP-16'!BD43+'CP-17'!BD22+'Grn-Colo-Confl'!BD33+'CP-18'!BD39+'CP-19'!BD99+'Colo-SanJuan-Confl'!BD43+'CP-20'!BD22+'CP-21'!BD24 -> 0
D55: Arizona | F55: san juan-colorado river | G55: ='CP-19'!G70+'CP-19'!G80+'CP-19'!G91+'CP-19'!G92+'CP-19'!G96+'Colo-SanJuan-Confl'!G40+'CP-20'!G19 -> 0 | H55: ='CP-19'!H70+'CP-19'!H80+'CP-19'!H91+'CP-19'!H92+'CP-19'!H96+'Colo-SanJuan-Confl'!H40+'CP-20'!H19 -> 0 | I55: ='CP-19'!I70+'CP-19'!I80+'CP-19'!I91+'CP-19'!I92+'CP-19'!I96+'Colo-SanJuan-Confl'!I40+'CP-20'!I19 -> 0 | J55: ='CP-19'!J70+'CP-19'!J80+'CP-19'!J91+'CP-19'!J92+'CP-19'!J96+'Colo-SanJuan-Confl'!J40+'CP-20'!J19 -> 0 | K55: ='CP-19'!K70+'CP-19'!K80+'CP-19'!K91+'CP-19'!K92+'CP-19'!K96+'Colo-SanJuan-Confl'!K40+'CP-20'!K19 -> 0 | L55: ='CP-19'!L70+'CP-19'!L80+'CP-19'!L91+'CP-19'!L92+'CP-19'!L96+'Colo-SanJuan-Confl'!L40+'CP-20'!L19 -> 0 | M55: ='CP-19'!M70+'CP-19'!M80+'CP-19'!M91+'CP-19'!M92+'CP-19'!M96+'Colo-SanJuan-Confl'!M40+'CP-20'!M19 -> 0 | N55: ='CP-19'!N70+'CP-19'!N80+'CP-19'!N91+'CP-19'!N92+'CP-19'!N96+'Colo-SanJuan-Confl'!N40+'CP-20'!N19 -> 0 | O55: ='CP-19'!O70+'CP-19'!O80+'CP-19'!O91+'CP-19'!O92+'CP-19'!O96+'Colo-SanJuan-Confl'!O40+'CP-20'!O19 -> 0 | P55: ='CP-19'!P70+'CP-19'!P80+'CP-19'!P91+'CP-19'!P92+'CP-19'!P96+'Colo-SanJuan-Confl'!P40+'CP-20'!P19 -> 0 | Q55: ='CP-19'!Q70+'CP-19'!Q80+'CP-19'!Q91+'CP-19'!Q92+'CP-19'!Q96+'Colo-SanJuan-Confl'!Q40+'CP-20'!Q19 -> 2400 | R55: ='CP-19'!R70+'CP-19'!R80+'CP-19'!R91+'CP-19'!R92+'CP-19'!R96+'Colo-SanJuan-Confl'!R40+'CP-20'!R19 -> 2400 | S55: ='CP-19'!S70+'CP-19'!S80+'CP-19'!S91+'CP-19'!S92+'CP-19'!S96+'Colo-SanJuan-Confl'!S40+'CP-20'!S19 -> 2400 | T55: ='CP-19'!T70+'CP-19'!T80+'CP-19'!T91+'CP-19'!T92+'CP-19'!T96+'Colo-SanJuan-Confl'!T40+'CP-20'!T19 -> 2400 | U55: ='CP-19'!U70+'CP-19'!U80+'CP-19'!U91+'CP-19'!U92+'CP-19'!U96+'Colo-SanJuan-Confl'!U40+'CP-20'!U19 -> 2400 | V55: ='CP-19'!V70+'CP-19'!V80+'CP-19'!V91+'CP-19'!V92+'CP-19'!V96+'Colo-SanJuan-Confl'!V40+'CP-20'!V19 -> 1500 | W55: ='CP-19'!W70+'CP-19'!W80+'CP-19'!W91+'CP-19'!W92+'CP-19'!W96+'Colo-SanJuan-Confl'!W40+'CP-20'!W19 -> 1500 | X55: ='CP-19'!X70+'CP-19'!X80+'CP-19'!X91+'CP-19'!X92+'CP-19'!X96+'Colo-SanJuan-Confl'!X40+'CP-20'!X19 -> 1500 | Y55: ='CP-19'!Y70+'CP-19'!Y80+'CP-19'!Y91+'CP-19'!Y92+'CP-19'!Y96+'Colo-SanJuan-Confl'!Y40+'CP-20'!Y19 -> 1500 | Z55: ='CP-19'!Z70+'CP-19'!Z80+'CP-19'!Z91+'CP-19'!Z92+'CP-19'!Z96+'Colo-SanJuan-Confl'!Z40+'CP-20'!Z19 -> 1500 | AA55: ='CP-19'!AA70+'CP-19'!AA80+'CP-19'!AA91+'CP-19'!AA92+'CP-19'!AA96+'Colo-SanJuan-Confl'!AA40+'CP-20'!AA19 -> 1500 | AB55: ='CP-19'!AB70+'CP-19'!AB80+'CP-19'!AB91+'CP-19'!AB92+'CP-19'!AB96+'Colo-SanJuan-Confl'!AB40+'CP-20'!AB19 -> 1500 | AC55: ='CP-19'!AC70+'CP-19'!AC80+'CP-19'!AC91+'CP-19'!AC92+'CP-19'!AC96+'Colo-SanJuan-Confl'!AC40+'CP-20'!AC19 -> 1500 | AD55: ='CP-19'!AD70+'CP-19'!AD80+'CP-19'!AD91+'CP-19'!AD92+'CP-19'!AD96+'Colo-SanJuan-Confl'!AD40+'CP-20'!AD19 -> 1470 | AE55: ='CP-19'!AE70+'CP-19'!AE80+'CP-19'!AE91+'CP-19'!AE92+'CP-19'!AE96+'Colo-SanJuan-Confl'!AE40+'CP-20'!AE19 -> 2590 | AF55: ='CP-19'!AF70+'CP-19'!AF80+'CP-19'!AF91+'CP-19'!AF92+'CP-19'!AF96+'Colo-SanJuan-Confl'!AF40+'CP-20'!AF19 -> 243.2797686 | AG55: ='CP-19'!AG70+'CP-19'!AG80+'CP-19'!AG91+'CP-19'!AG92+'CP-19'!AG96+'Colo-SanJuan-Confl'!AG40+'CP-20'!AG19 -> 243.2797686 | AH55: ='CP-19'!AH70+'CP-19'!AH80+'CP-19'!AH91+'CP-19'!AH92+'CP-19'!AH96+'Colo-SanJuan-Confl'!AH40+'CP-20'!AH19 -> 243.2797686 | AI55: ='CP-19'!AI70+'CP-19'!AI80+'CP-19'!AI91+'CP-19'!AI92+'CP-19'!AI96+'Colo-SanJuan-Confl'!AI40+'CP-20'!AI19 -> 247.5782892 | AJ55: ='CP-19'!AJ70+'CP-19'!AJ80+'CP-19'!AJ91+'CP-19'!AJ92+'CP-19'!AJ96+'Colo-SanJuan-Confl'!AJ40+'CP-20'!AJ19 -> 250.0052274 | AK55: ='CP-19'!AK70+'CP-19'!AK80+'CP-19'!AK91+'CP-19'!AK92+'CP-19'!AK96+'Colo-SanJuan-Confl'!AK40+'CP-20'!AK19 -> 218.1970716 | AL55: ='CP-19'!AL70+'CP-19'!AL80+'CP-19'!AL91+'CP-19'!AL92+'CP-19'!AL96+'Colo-SanJuan-Confl'!AL40+'CP-20'!AL19 -> 218.1970716 | AM55: ='CP-19'!AM70+'CP-19'!AM80+'CP-19'!AM91+'CP-19'!AM92+'CP-19'!AM96+'Colo-SanJuan-Confl'!AM40+'CP-20'!AM19 -> 218.1970716 | AN55: ='CP-19'!AN70+'CP-19'!AN80+'CP-19'!AN91+'CP-19'!AN92+'CP-19'!AN96+'Colo-SanJuan-Confl'!AN40+'CP-20'!AN19 -> 218.1970716 | AO55: ='CP-19'!AO70+'CP-19'!AO80+'CP-19'!AO91+'CP-19'!AO92+'CP-19'!AO96+'Colo-SanJuan-Confl'!AO40+'CP-20'!AO19 -> 218.1970716 | AP55: ='CP-19'!AP70+'CP-19'!AP80+'CP-19'!AP91+'CP-19'!AP92+'CP-19'!AP96+'Colo-SanJuan-Confl'!AP40+'CP-20'!AP19 -> 218.1970716 | AQ55: ='CP-19'!AQ70+'CP-19'!AQ80+'CP-19'!AQ91+'CP-19'!AQ92+'CP-19'!AQ96+'Colo-SanJuan-Confl'!AQ40+'CP-20'!AQ19 -> 245.3928501 | AR55: ='CP-19'!AR70+'CP-19'!AR80+'CP-19'!AR91+'CP-19'!AR92+'CP-19'!AR96+'Colo-SanJuan-Confl'!AR40+'CP-20'!AR19 -> 278.3 | AS55: ='CP-19'!AS70+'CP-19'!AS80+'CP-19'!AS91+'CP-19'!AS92+'CP-19'!AS96+'Colo-SanJuan-Confl'!AS40+'CP-20'!AS19 -> 461.337323 | AT55: ='CP-19'!AT70+'CP-19'!AT80+'CP-19'!AT91+'CP-19'!AT92+'CP-19'!AT96+'Colo-SanJuan-Confl'!AT40+'CP-20'!AT19 -> 533.318814 | AU55: ='CP-19'!AU70+'CP-19'!AU80+'CP-19'!AU91+'CP-19'!AU92+'CP-19'!AU96+'Colo-SanJuan-Confl'!AU40+'CP-20'!AU19 -> 638.4983517 | AV55: ='CP-19'!AV70+'CP-19'!AV80+'CP-19'!AV91+'CP-19'!AV92+'CP-19'!AV96+'Colo-SanJuan-Confl'!AV40+'CP-20'!AV19 -> 397.1769248 | AW55: ='CP-19'!AW70+'CP-19'!AW80+'CP-19'!AW91+'CP-19'!AW92+'CP-19'!AW96+'Colo-SanJuan-Confl'!AW40+'CP-20'!AW19 -> 425.5102668 | AX55: ='CP-19'!AX70+'CP-19'!AX80+'CP-19'!AX91+'CP-19'!AX92+'CP-19'!AX96+'Colo-SanJuan-Confl'!AX40+'CP-20'!AX19 -> 457.1234075 | AY55: ='CP-19'!AY70+'CP-19'!AY80+'CP-19'!AY91+'CP-19'!AY92+'CP-19'!AY96+'Colo-SanJuan-Confl'!AY40+'CP-20'!AY19 -> 489.4758528 | AZ55: ='CP-19'!AZ70+'CP-19'!AZ80+'CP-19'!AZ91+'CP-19'!AZ92+'CP-19'!AZ96+'Colo-SanJuan-Confl'!AZ40+'CP-20'!AZ19 -> 521.8686238 | BA55: ='CP-19'!BA70+'CP-19'!BA80+'CP-19'!BA91+'CP-19'!BA92+'CP-19'!BA96+'Colo-SanJuan-Confl'!BA40+'CP-20'!BA19 -> 554.2613949 | BB55: ='CP-19'!BB70+'CP-19'!BB80+'CP-19'!BB91+'CP-19'!BB92+'CP-19'!BB96+'Colo-SanJuan-Confl'!BB40+'CP-20'!BB19 -> 0 | BC55: ='CP-19'!BC70+'CP-19'!BC80+'CP-19'!BC91+'CP-19'!BC92+'CP-19'!BC96+'Colo-SanJuan-Confl'!BC40+'CP-20'!BC19 -> 0 | BD55: ='CP-19'!BD70+'CP-19'!BD80+'CP-19'!BD91+'CP-19'!BD92+'CP-19'!BD96+'Colo-SanJuan-Confl'!BD40+'CP-20'!BD19 -> 0
D56: Colorado | F56: green river | G56: ='CP-11'!G35+'CP-12'!G32+'CP-13'!G27+'CP-13'!G28+Jensen!G35+Jensen!G44+Jensen!G46+'CP-15'!G31+'CP-15'!G33+'CP-15'!G34+'CP-15'!G35+Ouray!G29+Ouray!G30+Ouray!G34 -> 2776.955903 | H56: ='CP-11'!H35+'CP-12'!H32+'CP-13'!H27+'CP-13'!H28+Jensen!H35+Jensen!H44+Jensen!H46+'CP-15'!H31+'CP-15'!H33+'CP-15'!H34+'CP-15'!H35+Ouray!H29+Ouray!H30+Ouray!H34 -> 2321.71723 | I56: ='CP-11'!I35+'CP-12'!I32+'CP-13'!I27+'CP-13'!I28+Jensen!I35+Jensen!I44+Jensen!I46+'CP-15'!I31+'CP-15'!I33+'CP-15'!I34+'CP-15'!I35+Ouray!I29+Ouray!I30+Ouray!I34 -> 2230.669496 | J56: ='CP-11'!J35+'CP-12'!J32+'CP-13'!J27+'CP-13'!J28+Jensen!J35+Jensen!J44+Jensen!J46+'CP-15'!J31+'CP-15'!J33+'CP-15'!J34+'CP-15'!J35+Ouray!J29+Ouray!J30+Ouray!J34 -> 2549.336567 | K56: ='CP-11'!K35+'CP-12'!K32+'CP-13'!K27+'CP-13'!K28+Jensen!K35+Jensen!K44+Jensen!K46+'CP-15'!K31+'CP-15'!K33+'CP-15'!K34+'CP-15'!K35+Ouray!K29+Ouray!K30+Ouray!K34 -> 2367.241098 | L56: ='CP-11'!L35+'CP-12'!L32+'CP-13'!L27+'CP-13'!L28+Jensen!L35+Jensen!L44+Jensen!L46+'CP-15'!L31+'CP-15'!L33+'CP-15'!L34+'CP-15'!L35+Ouray!L29+Ouray!L30+Ouray!L34 -> 1800 | M56: ='CP-11'!M35+'CP-12'!M32+'CP-13'!M27+'CP-13'!M28+Jensen!M35+Jensen!M44+Jensen!M46+'CP-15'!M31+'CP-15'!M33+'CP-15'!M34+'CP-15'!M35+Ouray!M29+Ouray!M30+Ouray!M34 -> 1700 | N56: ='CP-11'!N35+'CP-12'!N32+'CP-13'!N27+'CP-13'!N28+Jensen!N35+Jensen!N44+Jensen!N46+'CP-15'!N31+'CP-15'!N33+'CP-15'!N34+'CP-15'!N35+Ouray!N29+Ouray!N30+Ouray!N34 -> 1500 | O56: ='CP-11'!O35+'CP-12'!O32+'CP-13'!O27+'CP-13'!O28+Jensen!O35+Jensen!O44+Jensen!O46+'CP-15'!O31+'CP-15'!O33+'CP-15'!O34+'CP-15'!O35+Ouray!O29+Ouray!O30+Ouray!O34 -> 1700 | P56: ='CP-11'!P35+'CP-12'!P32+'CP-13'!P27+'CP-13'!P28+Jensen!P35+Jensen!P44+Jensen!P46+'CP-15'!P31+'CP-15'!P33+'CP-15'!P34+'CP-15'!P35+Ouray!P29+Ouray!P30+Ouray!P34 -> 1600 | Q56: ='CP-11'!Q35+'CP-12'!Q32+'CP-13'!Q27+'CP-13'!Q28+Jensen!Q35+Jensen!Q44+Jensen!Q46+'CP-15'!Q31+'CP-15'!Q33+'CP-15'!Q34+'CP-15'!Q35+Ouray!Q29+Ouray!Q30+Ouray!Q34 -> 1830 | R56: ='CP-11'!R35+'CP-12'!R32+'CP-13'!R27+'CP-13'!R28+Jensen!R35+Jensen!R44+Jensen!R46+'CP-15'!R31+'CP-15'!R33+'CP-15'!R34+'CP-15'!R35+Ouray!R29+Ouray!R30+Ouray!R34 -> 1730 | S56: ='CP-11'!S35+'CP-12'!S32+'CP-13'!S27+'CP-13'!S28+Jensen!S35+Jensen!S44+Jensen!S46+'CP-15'!S31+'CP-15'!S33+'CP-15'!S34+'CP-15'!S35+Ouray!S29+Ouray!S30+Ouray!S34 -> 1710 | T56: ='CP-11'!T35+'CP-12'!T32+'CP-13'!T27+'CP-13'!T28+Jensen!T35+Jensen!T44+Jensen!T46+'CP-15'!T31+'CP-15'!T33+'CP-15'!T34+'CP-15'!T35+Ouray!T29+Ouray!T30+Ouray!T34 -> 1740 | U56: ='CP-11'!U35+'CP-12'!U32+'CP-13'!U27+'CP-13'!U28+Jensen!U35+Jensen!U44+Jensen!U46+'CP-15'!U31+'CP-15'!U33+'CP-15'!U34+'CP-15'!U35+Ouray!U29+Ouray!U30+Ouray!U34 -> 1650 | V56: ='CP-11'!V35+'CP-12'!V32+'CP-13'!V27+'CP-13'!V28+Jensen!V35+Jensen!V44+Jensen!V46+'CP-15'!V31+'CP-15'!V33+'CP-15'!V34+'CP-15'!V35+Ouray!V29+Ouray!V30+Ouray!V34 -> 1606.6 | W56: ='CP-11'!W35+'CP-12'!W32+'CP-13'!W27+'CP-13'!W28+Jensen!W35+Jensen!W44+Jensen!W46+'CP-15'!W31+'CP-15'!W33+'CP-15'!W34+'CP-15'!W35+Ouray!W29+Ouray!W30+Ouray!W34 -> 1600.8 | X56: ='CP-11'!X35+'CP-12'!X32+'CP-13'!X27+'CP-13'!X28+Jensen!X35+Jensen!X44+Jensen!X46+'CP-15'!X31+'CP-15'!X33+'CP-15'!X34+'CP-15'!X35+Ouray!X29+Ouray!X30+Ouray!X34 -> 1507.6 | Y56: ='CP-11'!Y35+'CP-12'!Y32+'CP-13'!Y27+'CP-13'!Y28+Jensen!Y35+Jensen!Y44+Jensen!Y46+'CP-15'!Y31+'CP-15'!Y33+'CP-15'!Y34+'CP-15'!Y35+Ouray!Y29+Ouray!Y30+Ouray!Y34 -> 1517.2 | Z56: ='CP-11'!Z35+'CP-12'!Z32+'CP-13'!Z27+'CP-13'!Z28+Jensen!Z35+Jensen!Z44+Jensen!Z46+'CP-15'!Z31+'CP-15'!Z33+'CP-15'!Z34+'CP-15'!Z35+Ouray!Z29+Ouray!Z30+Ouray!Z34 -> 1486.6 | AA56: ='CP-11'!AA35+'CP-12'!AA32+'CP-13'!AA27+'CP-13'!AA28+Jensen!AA35+Jensen!AA44+Jensen!AA46+'CP-15'!AA31+'CP-15'!AA33+'CP-15'!AA34+'CP-15'!AA35+Ouray!AA29+Ouray!AA30+Ouray!AA34 -> 1454.9 | AB56: ='CP-11'!AB35+'CP-12'!AB32+'CP-13'!AB27+'CP-13'!AB28+Jensen!AB35+Jensen!AB44+Jensen!AB46+'CP-15'!AB31+'CP-15'!AB33+'CP-15'!AB34+'CP-15'!AB35+Ouray!AB29+Ouray!AB30+Ouray!AB34 -> 1471.4 | AC56: ='CP-11'!AC35+'CP-12'!AC32+'CP-13'!AC27+'CP-13'!AC28+Jensen!AC35+Jensen!AC44+Jensen!AC46+'CP-15'!AC31+'CP-15'!AC33+'CP-15'!AC34+'CP-15'!AC35+Ouray!AC29+Ouray!AC30+Ouray!AC34 -> 1521.6 | AD56: ='CP-11'!AD35+'CP-12'!AD32+'CP-13'!AD27+'CP-13'!AD28+Jensen!AD35+Jensen!AD44+Jensen!AD46+'CP-15'!AD31+'CP-15'!AD33+'CP-15'!AD34+'CP-15'!AD35+Ouray!AD29+Ouray!AD30+Ouray!AD34 -> 1571.7 | AE56: ='CP-11'!AE35+'CP-12'!AE32+'CP-13'!AE27+'CP-13'!AE28+Jensen!AE35+Jensen!AE44+Jensen!AE46+'CP-15'!AE31+'CP-15'!AE33+'CP-15'!AE34+'CP-15'!AE35+Ouray!AE29+Ouray!AE30+Ouray!AE34 -> 1621.6 | AF56: ='CP-11'!AF35+'CP-12'!AF32+'CP-13'!AF27+'CP-13'!AF28+Jensen!AF35+Jensen!AF44+Jensen!AF46+'CP-15'!AF31+'CP-15'!AF33+'CP-15'!AF34+'CP-15'!AF35+Ouray!AF29+Ouray!AF30+Ouray!AF34 -> 1429.195961 | AG56: ='CP-11'!AG35+'CP-12'!AG32+'CP-13'!AG27+'CP-13'!AG28+Jensen!AG35+Jensen!AG44+Jensen!AG46+'CP-15'!AG31+'CP-15'!AG33+'CP-15'!AG34+'CP-15'!AG35+Ouray!AG29+Ouray!AG30+Ouray!AG34 -> 1482.494806 | AH56: ='CP-11'!AH35+'CP-12'!AH32+'CP-13'!AH27+'CP-13'!AH28+Jensen!AH35+Jensen!AH44+Jensen!AH46+'CP-15'!AH31+'CP-15'!AH33+'CP-15'!AH34+'CP-15'!AH35+Ouray!AH29+Ouray!AH30+Ouray!AH34 -> 1452.282467 | AI56: ='CP-11'!AI35+'CP-12'!AI32+'CP-13'!AI27+'CP-13'!AI28+Jensen!AI35+Jensen!AI44+Jensen!AI46+'CP-15'!AI31+'CP-15'!AI33+'CP-15'!AI34+'CP-15'!AI35+Ouray!AI29+Ouray!AI30+Ouray!AI34 -> 1422.148544 | AJ56: ='CP-11'!AJ35+'CP-12'!AJ32+'CP-13'!AJ27+'CP-13'!AJ28+Jensen!AJ35+Jensen!AJ44+Jensen!AJ46+'CP-15'!AJ31+'CP-15'!AJ33+'CP-15'!AJ34+'CP-15'!AJ35+Ouray!AJ29+Ouray!AJ30+Ouray!AJ34 -> 1392.014621 | AK56: ='CP-11'!AK35+'CP-12'!AK32+'CP-13'!AK27+'CP-13'!AK28+Jensen!AK35+Jensen!AK44+Jensen!AK46+'CP-15'!AK31+'CP-15'!AK33+'CP-15'!AK34+'CP-15'!AK35+Ouray!AK29+Ouray!AK30+Ouray!AK34 -> 1556.198685 | AL56: ='CP-11'!AL35+'CP-12'!AL32+'CP-13'!AL27+'CP-13'!AL28+Jensen!AL35+Jensen!AL44+Jensen!AL46+'CP-15'!AL31+'CP-15'!AL33+'CP-15'!AL34+'CP-15'!AL35+Ouray!AL29+Ouray!AL30+Ouray!AL34 -> 1135.395614 | AM56: ='CP-11'!AM35+'CP-12'!AM32+'CP-13'!AM27+'CP-13'!AM28+Jensen!AM35+Jensen!AM44+Jensen!AM46+'CP-15'!AM31+'CP-15'!AM33+'CP-15'!AM34+'CP-15'!AM35+Ouray!AM29+Ouray!AM30+Ouray!AM34 -> 1293.692842 | AN56: ='CP-11'!AN35+'CP-12'!AN32+'CP-13'!AN27+'CP-13'!AN28+Jensen!AN35+Jensen!AN44+Jensen!AN46+'CP-15'!AN31+'CP-15'!AN33+'CP-15'!AN34+'CP-15'!AN35+Ouray!AN29+Ouray!AN30+Ouray!AN34 -> 1156.242379 | AO56: ='CP-11'!AO35+'CP-12'!AO32+'CP-13'!AO27+'CP-13'!AO28+Jensen!AO35+Jensen!AO44+Jensen!AO46+'CP-15'!AO31+'CP-15'!AO33+'CP-15'!AO34+'CP-15'!AO35+Ouray!AO29+Ouray!AO30+Ouray!AO34 -> 1232.651267 | AP56: ='CP-11'!AP35+'CP-12'!AP32+'CP-13'!AP27+'CP-13'!AP28+Jensen!AP35+Jensen!AP44+Jensen!AP46+'CP-15'!AP31+'CP-15'!AP33+'CP-15'!AP34+'CP-15'!AP35+Ouray!AP29+Ouray!AP30+Ouray!AP34 -> 991.0494035 | AQ56: ='CP-11'!AQ35+'CP-12'!AQ32+'CP-13'!AQ27+'CP-13'!AQ28+Jensen!AQ35+Jensen!AQ44+Jensen!AQ46+'CP-15'!AQ31+'CP-15'!AQ33+'CP-15'!AQ34+'CP-15'!AQ35+Ouray!AQ29+Ouray!AQ30+Ouray!AQ34 -> 931.2420679 | AR56: ='CP-11'!AR35+'CP-12'!AR32+'CP-13'!AR27+'CP-13'!AR28+Jensen!AR35+Jensen!AR44+Jensen!AR46+'CP-15'!AR31+'CP-15'!AR33+'CP-15'!AR34+'CP-15'!AR35+Ouray!AR29+Ouray!AR30+Ouray!AR34 -> 930.9157254 | AS56: ='CP-11'!AS35+'CP-12'!AS32+'CP-13'!AS27+'CP-13'!AS28+Jensen!AS35+Jensen!AS44+Jensen!AS46+'CP-15'!AS31+'CP-15'!AS33+'CP-15'!AS34+'CP-15'!AS35+Ouray!AS29+Ouray!AS30+Ouray!AS34 -> 886.3294832 | AT56: ='CP-11'!AT35+'CP-12'!AT32+'CP-13'!AT27+'CP-13'!AT28+Jensen!AT35+Jensen!AT44+Jensen!AT46+'CP-15'!AT31+'CP-15'!AT33+'CP-15'!AT34+'CP-15'!AT35+Ouray!AT29+Ouray!AT30+Ouray!AT34 -> 891.9305841 | AU56: ='CP-11'!AU35+'CP-12'!AU32+'CP-13'!AU27+'CP-13'!AU28+Jensen!AU35+Jensen!AU44+Jensen!AU46+'CP-15'!AU31+'CP-15'!AU33+'CP-15'!AU34+'CP-15'!AU35+Ouray!AU29+Ouray!AU30+Ouray!AU34 -> 903.132786 | AV56: ='CP-11'!AV35+'CP-12'!AV32+'CP-13'!AV27+'CP-13'!AV28+Jensen!AV35+Jensen!AV44+Jensen!AV46+'CP-15'!AV31+'CP-15'!AV33+'CP-15'!AV34+'CP-15'!AV35+Ouray!AV29+Ouray!AV30+Ouray!AV34 -> 931.1382907 | AW56: ='CP-11'!AW35+'CP-12'!AW32+'CP-13'!AW27+'CP-13'!AW28+Jensen!AW35+Jensen!AW44+Jensen!AW46+'CP-15'!AW31+'CP-15'!AW33+'CP-15'!AW34+'CP-15'!AW35+Ouray!AW29+Ouray!AW30+Ouray!AW34 -> 1132.777925 | AX56: ='CP-11'!AX35+'CP-12'!AX32+'CP-13'!AX27+'CP-13'!AX28+Jensen!AX35+Jensen!AX44+Jensen!AX46+'CP-15'!AX31+'CP-15'!AX33+'CP-15'!AX34+'CP-15'!AX35+Ouray!AX29+Ouray!AX30+Ouray!AX34 -> 1082.368016 | AY56: ='CP-11'!AY35+'CP-12'!AY32+'CP-13'!AY27+'CP-13'!AY28+Jensen!AY35+Jensen!AY44+Jensen!AY46+'CP-15'!AY31+'CP-15'!AY33+'CP-15'!AY34+'CP-15'!AY35+Ouray!AY29+Ouray!AY30+Ouray!AY34 -> 1093.570218 | AZ56: ='CP-11'!AZ35+'CP-12'!AZ32+'CP-13'!AZ27+'CP-13'!AZ28+Jensen!AZ35+Jensen!AZ44+Jensen!AZ46+'CP-15'!AZ31+'CP-15'!AZ33+'CP-15'!AZ34+'CP-15'!AZ35+Ouray!AZ29+Ouray!AZ30+Ouray!AZ34 -> 1132.777925 | BA56: ='CP-11'!BA35+'CP-12'!BA32+'CP-13'!BA27+'CP-13'!BA28+Jensen!BA35+Jensen!BA44+Jensen!BA46+'CP-15'!BA31+'CP-15'!BA33+'CP-15'!BA34+'CP-15'!BA35+Ouray!BA29+Ouray!BA30+Ouray!BA34 -> 1205.592237 | BB56: ='CP-11'!BB35+'CP-12'!BB32+'CP-13'!BB27+'CP-13'!BB28+Jensen!BB35+Jensen!BB44+Jensen!BB46+'CP-15'!BB31+'CP-15'!BB33+'CP-15'!BB34+'CP-15'!BB35+Ouray!BB29+Ouray!BB30+Ouray!BB34 -> 0 | BC56: ='CP-11'!BC35+'CP-12'!BC32+'CP-13'!BC27+'CP-13'!BC28+Jensen!BC35+Jensen!BC44+Jensen!BC46+'CP-15'!BC31+'CP-15'!BC33+'CP-15'!BC34+'CP-15'!BC35+Ouray!BC29+Ouray!BC30+Ouray!BC34 -> 0 | BD56: ='CP-11'!BD35+'CP-12'!BD32+'CP-13'!BD27+'CP-13'!BD28+Jensen!BD35+Jensen!BD44+Jensen!BD46+'CP-15'!BD31+'CP-15'!BD33+'CP-15'!BD34+'CP-15'!BD35+Ouray!BD29+Ouray!BD30+Ouray!BD34 -> 0
F57: upper main stem | G57: ='CP-1'!G37+'CP-2'!G40+Stateline!G24+'CP-3'!G22+'CP-4'!G38+'CP-5'!G28+'CP-6'!G52+'CP-7'!G32+'CP-7'!G33+'CP-7'!G37+'CP-7'!G38+'CP-7'!G40+'CP-7'!G41+'CP-8'!G22 -> 6467.080395 | H57: ='CP-1'!H37+'CP-2'!H40+Stateline!H24+'CP-3'!H22+'CP-4'!H38+'CP-5'!H28+'CP-6'!H52+'CP-7'!H32+'CP-7'!H33+'CP-7'!H37+'CP-7'!H38+'CP-7'!H40+'CP-7'!H41+'CP-8'!H22 -> 6991.438265 | I57: ='CP-1'!I37+'CP-2'!I40+Stateline!I24+'CP-3'!I22+'CP-4'!I38+'CP-5'!I28+'CP-6'!I52+'CP-7'!I32+'CP-7'!I33+'CP-7'!I37+'CP-7'!I38+'CP-7'!I40+'CP-7'!I41+'CP-8'!I22 -> 7282.748192 | J57: ='CP-1'!J37+'CP-2'!J40+Stateline!J24+'CP-3'!J22+'CP-4'!J38+'CP-5'!J28+'CP-6'!J52+'CP-7'!J32+'CP-7'!J33+'CP-7'!J37+'CP-7'!J38+'CP-7'!J40+'CP-7'!J41+'CP-8'!J22 -> 7515.796135 | K57: ='CP-1'!K37+'CP-2'!K40+Stateline!K24+'CP-3'!K22+'CP-4'!K38+'CP-5'!K28+'CP-6'!K52+'CP-7'!K32+'CP-7'!K33+'CP-7'!K37+'CP-7'!K38+'CP-7'!K40+'CP-7'!K41+'CP-8'!K22 -> 6234.032453 | L57: ='CP-1'!L37+'CP-2'!L40+Stateline!L24+'CP-3'!L22+'CP-4'!L38+'CP-5'!L28+'CP-6'!L52+'CP-7'!L32+'CP-7'!L33+'CP-7'!L37+'CP-7'!L38+'CP-7'!L40+'CP-7'!L41+'CP-8'!L22 -> 5300 | M57: ='CP-1'!M37+'CP-2'!M40+Stateline!M24+'CP-3'!M22+'CP-4'!M38+'CP-5'!M28+'CP-6'!M52+'CP-7'!M32+'CP-7'!M33+'CP-7'!M37+'CP-7'!M38+'CP-7'!M40+'CP-7'!M41+'CP-8'!M22 -> 4900 | N57: ='CP-1'!N37+'CP-2'!N40+Stateline!N24+'CP-3'!N22+'CP-4'!N38+'CP-5'!N28+'CP-6'!N52+'CP-7'!N32+'CP-7'!N33+'CP-7'!N37+'CP-7'!N38+'CP-7'!N40+'CP-7'!N41+'CP-8'!N22 -> 4400 | O57: ='CP-1'!O37+'CP-2'!O40+Stateline!O24+'CP-3'!O22+'CP-4'!O38+'CP-5'!O28+'CP-6'!O52+'CP-7'!O32+'CP-7'!O33+'CP-7'!O37+'CP-7'!O38+'CP-7'!O40+'CP-7'!O41+'CP-8'!O22 -> 4800 | P57: ='CP-1'!P37+'CP-2'!P40+Stateline!P24+'CP-3'!P22+'CP-4'!P38+'CP-5'!P28+'CP-6'!P52+'CP-7'!P32+'CP-7'!P33+'CP-7'!P37+'CP-7'!P38+'CP-7'!P40+'CP-7'!P41+'CP-8'!P22 -> 4900 | Q57: ='CP-1'!Q37+'CP-2'!Q40+Stateline!Q24+'CP-3'!Q22+'CP-4'!Q38+'CP-5'!Q28+'CP-6'!Q52+'CP-7'!Q32+'CP-7'!Q33+'CP-7'!Q37+'CP-7'!Q38+'CP-7'!Q40+'CP-7'!Q41+'CP-8'!Q22 -> 4060 | R57: ='CP-1'!R37+'CP-2'!R40+Stateline!R24+'CP-3'!R22+'CP-4'!R38+'CP-5'!R28+'CP-6'!R52+'CP-7'!R32+'CP-7'!R33+'CP-7'!R37+'CP-7'!R38+'CP-7'!R40+'CP-7'!R41+'CP-8'!R22 -> 3840 | S57: ='CP-1'!S37+'CP-2'!S40+Stateline!S24+'CP-3'!S22+'CP-4'!S38+'CP-5'!S28+'CP-6'!S52+'CP-7'!S32+'CP-7'!S33+'CP-7'!S37+'CP-7'!S38+'CP-7'!S40+'CP-7'!S41+'CP-8'!S22 -> 3800 | T57: ='CP-1'!T37+'CP-2'!T40+Stateline!T24+'CP-3'!T22+'CP-4'!T38+'CP-5'!T28+'CP-6'!T52+'CP-7'!T32+'CP-7'!T33+'CP-7'!T37+'CP-7'!T38+'CP-7'!T40+'CP-7'!T41+'CP-8'!T22 -> 3870 | U57: ='CP-1'!U37+'CP-2'!U40+Stateline!U24+'CP-3'!U22+'CP-4'!U38+'CP-5'!U28+'CP-6'!U52+'CP-7'!U32+'CP-7'!U33+'CP-7'!U37+'CP-7'!U38+'CP-7'!U40+'CP-7'!U41+'CP-8'!U22 -> 3670 | V57: ='CP-1'!V37+'CP-2'!V40+Stateline!V24+'CP-3'!V22+'CP-4'!V38+'CP-5'!V28+'CP-6'!V52+'CP-7'!V32+'CP-7'!V33+'CP-7'!V37+'CP-7'!V38+'CP-7'!V40+'CP-7'!V41+'CP-8'!V22 -> 4292.855 | W57: ='CP-1'!W37+'CP-2'!W40+Stateline!W24+'CP-3'!W22+'CP-4'!W38+'CP-5'!W28+'CP-6'!W52+'CP-7'!W32+'CP-7'!W33+'CP-7'!W37+'CP-7'!W38+'CP-7'!W40+'CP-7'!W41+'CP-8'!W22 -> 4030.84 | X57: ='CP-1'!X37+'CP-2'!X40+Stateline!X24+'CP-3'!X22+'CP-4'!X38+'CP-5'!X28+'CP-6'!X52+'CP-7'!X32+'CP-7'!X33+'CP-7'!X37+'CP-7'!X38+'CP-7'!X40+'CP-7'!X41+'CP-8'!X22 -> 4017.215 | Y57: ='CP-1'!Y37+'CP-2'!Y40+Stateline!Y24+'CP-3'!Y22+'CP-4'!Y38+'CP-5'!Y28+'CP-6'!Y52+'CP-7'!Y32+'CP-7'!Y33+'CP-7'!Y37+'CP-7'!Y38+'CP-7'!Y40+'CP-7'!Y41+'CP-8'!Y22 -> 4047.255 | Z57: ='CP-1'!Z37+'CP-2'!Z40+Stateline!Z24+'CP-3'!Z22+'CP-4'!Z38+'CP-5'!Z28+'CP-6'!Z52+'CP-7'!Z32+'CP-7'!Z33+'CP-7'!Z37+'CP-7'!Z38+'CP-7'!Z40+'CP-7'!Z41+'CP-8'!Z22 -> 3934.155 | AA57: ='CP-1'!AA37+'CP-2'!AA40+Stateline!AA24+'CP-3'!AA22+'CP-4'!AA38+'CP-5'!AA28+'CP-6'!AA52+'CP-7'!AA32+'CP-7'!AA33+'CP-7'!AA37+'CP-7'!AA38+'CP-7'!AA40+'CP-7'!AA41+'CP-8'!AA22 -> 3915.52 | AB57: ='CP-1'!AB37+'CP-2'!AB40+Stateline!AB24+'CP-3'!AB22+'CP-4'!AB38+'CP-5'!AB28+'CP-6'!AB52+'CP-7'!AB32+'CP-7'!AB33+'CP-7'!AB37+'CP-7'!AB38+'CP-7'!AB40+'CP-7'!AB41+'CP-8'!AB22 -> 3917.865 | AC57: ='CP-1'!AC37+'CP-2'!AC40+Stateline!AC24+'CP-3'!AC22+'CP-4'!AC38+'CP-5'!AC28+'CP-6'!AC52+'CP-7'!AC32+'CP-7'!AC33+'CP-7'!AC37+'CP-7'!AC38+'CP-7'!AC40+'CP-7'!AC41+'CP-8'!AC22 -> 4102.66 | AD57: ='CP-1'!AD37+'CP-2'!AD40+Stateline!AD24+'CP-3'!AD22+'CP-4'!AD38+'CP-5'!AD28+'CP-6'!AD52+'CP-7'!AD32+'CP-7'!AD33+'CP-7'!AD37+'CP-7'!AD38+'CP-7'!AD40+'CP-7'!AD41+'CP-8'!AD22 -> 4287.49 | AE57: ='CP-1'!AE37+'CP-2'!AE40+Stateline!AE24+'CP-3'!AE22+'CP-4'!AE38+'CP-5'!AE28+'CP-6'!AE52+'CP-7'!AE32+'CP-7'!AE33+'CP-7'!AE37+'CP-7'!AE38+'CP-7'!AE40+'CP-7'!AE41+'CP-8'!AE22 -> 4472.615 | AF57: ='CP-1'!AF37+'CP-2'!AF40+Stateline!AF24+'CP-3'!AF22+'CP-4'!AF38+'CP-5'!AF28+'CP-6'!AF52+'CP-7'!AF32+'CP-7'!AF33+'CP-7'!AF37+'CP-7'!AF38+'CP-7'!AF40+'CP-7'!AF41+'CP-8'!AF22 -> 4469.83673 | AG57: ='CP-1'!AG37+'CP-2'!AG40+Stateline!AG24+'CP-3'!AG22+'CP-4'!AG38+'CP-5'!AG28+'CP-6'!AG52+'CP-7'!AG32+'CP-7'!AG33+'CP-7'!AG37+'CP-7'!AG38+'CP-7'!AG40+'CP-7'!AG41+'CP-8'!AG22 -> 4670.990603 | AH57: ='CP-1'!AH37+'CP-2'!AH40+Stateline!AH24+'CP-3'!AH22+'CP-4'!AH38+'CP-5'!AH28+'CP-6'!AH52+'CP-7'!AH32+'CP-7'!AH33+'CP-7'!AH37+'CP-7'!AH38+'CP-7'!AH40+'CP-7'!AH41+'CP-8'!AH22 -> 4389.153286 | AI57: ='CP-1'!AI37+'CP-2'!AI40+Stateline!AI24+'CP-3'!AI22+'CP-4'!AI38+'CP-5'!AI28+'CP-6'!AI52+'CP-7'!AI32+'CP-7'!AI33+'CP-7'!AI37+'CP-7'!AI38+'CP-7'!AI40+'CP-7'!AI41+'CP-8'!AI22 -> 4107.233072 | AJ57: ='CP-1'!AJ37+'CP-2'!AJ40+Stateline!AJ24+'CP-3'!AJ22+'CP-4'!AJ38+'CP-5'!AJ28+'CP-6'!AJ52+'CP-7'!AJ32+'CP-7'!AJ33+'CP-7'!AJ37+'CP-7'!AJ38+'CP-7'!AJ40+'CP-7'!AJ41+'CP-8'!AJ22 -> 3825.312858 | AK57: ='CP-1'!AK37+'CP-2'!AK40+Stateline!AK24+'CP-3'!AK22+'CP-4'!AK38+'CP-5'!AK28+'CP-6'!AK52+'CP-7'!AK32+'CP-7'!AK33+'CP-7'!AK37+'CP-7'!AK38+'CP-7'!AK40+'CP-7'!AK41+'CP-8'!AK22 -> 3381.111308 | AL57: ='CP-1'!AL37+'CP-2'!AL40+Stateline!AL24+'CP-3'!AL22+'CP-4'!AL38+'CP-5'!AL28+'CP-6'!AL52+'CP-7'!AL32+'CP-7'!AL33+'CP-7'!AL37+'CP-7'!AL38+'CP-7'!AL40+'CP-7'!AL41+'CP-8'!AL22 -> 2704.211227 | AM57: ='CP-1'!AM37+'CP-2'!AM40+Stateline!AM24+'CP-3'!AM22+'CP-4'!AM38+'CP-5'!AM28+'CP-6'!AM52+'CP-7'!AM32+'CP-7'!AM33+'CP-7'!AM37+'CP-7'!AM38+'CP-7'!AM40+'CP-7'!AM41+'CP-8'!AM22 -> 2605.259137 | AN57: ='CP-1'!AN37+'CP-2'!AN40+Stateline!AN24+'CP-3'!AN22+'CP-4'!AN38+'CP-5'!AN28+'CP-6'!AN52+'CP-7'!AN32+'CP-7'!AN33+'CP-7'!AN37+'CP-7'!AN38+'CP-7'!AN40+'CP-7'!AN41+'CP-8'!AN22 -> 2212.621365 | AO57: ='CP-1'!AO37+'CP-2'!AO40+Stateline!AO24+'CP-3'!AO22+'CP-4'!AO38+'CP-5'!AO28+'CP-6'!AO52+'CP-7'!AO32+'CP-7'!AO33+'CP-7'!AO37+'CP-7'!AO38+'CP-7'!AO40+'CP-7'!AO41+'CP-8'!AO22 -> 2410.184462 | AP57: ='CP-1'!AP37+'CP-2'!AP40+Stateline!AP24+'CP-3'!AP22+'CP-4'!AP38+'CP-5'!AP28+'CP-6'!AP52+'CP-7'!AP32+'CP-7'!AP33+'CP-7'!AP37+'CP-7'!AP38+'CP-7'!AP40+'CP-7'!AP41+'CP-8'!AP22 -> 2560.611241 | AQ57: ='CP-1'!AQ37+'CP-2'!AQ40+Stateline!AQ24+'CP-3'!AQ22+'CP-4'!AQ38+'CP-5'!AQ28+'CP-6'!AQ52+'CP-7'!AQ32+'CP-7'!AQ33+'CP-7'!AQ37+'CP-7'!AQ38+'CP-7'!AQ40+'CP-7'!AQ41+'CP-8'!AQ22 -> 2387.569087 | AR57: ='CP-1'!AR37+'CP-2'!AR40+Stateline!AR24+'CP-3'!AR22+'CP-4'!AR38+'CP-5'!AR28+'CP-6'!AR52+'CP-7'!AR32+'CP-7'!AR33+'CP-7'!AR37+'CP-7'!AR38+'CP-7'!AR40+'CP-7'!AR41+'CP-8'!AR22 -> 2429.637671 | AS57: ='CP-1'!AS37+'CP-2'!AS40+Stateline!AS24+'CP-3'!AS22+'CP-4'!AS38+'CP-5'!AS28+'CP-6'!AS52+'CP-7'!AS32+'CP-7'!AS33+'CP-7'!AS37+'CP-7'!AS38+'CP-7'!AS40+'CP-7'!AS41+'CP-8'!AS22 -> 2292.577916 | AT57: ='CP-1'!AT37+'CP-2'!AT40+Stateline!AT24+'CP-3'!AT22+'CP-4'!AT38+'CP-5'!AT28+'CP-6'!AT52+'CP-7'!AT32+'CP-7'!AT33+'CP-7'!AT37+'CP-7'!AT38+'CP-7'!AT40+'CP-7'!AT41+'CP-8'!AT22 -> 2216.374938 | AU57: ='CP-1'!AU37+'CP-2'!AU40+Stateline!AU24+'CP-3'!AU22+'CP-4'!AU38+'CP-5'!AU28+'CP-6'!AU52+'CP-7'!AU32+'CP-7'!AU33+'CP-7'!AU37+'CP-7'!AU38+'CP-7'!AU40+'CP-7'!AU41+'CP-8'!AU22 -> 2324.756241 | AV57: ='CP-1'!AV37+'CP-2'!AV40+Stateline!AV24+'CP-3'!AV22+'CP-4'!AV38+'CP-5'!AV28+'CP-6'!AV52+'CP-7'!AV32+'CP-7'!AV33+'CP-7'!AV37+'CP-7'!AV38+'CP-7'!AV40+'CP-7'!AV41+'CP-8'!AV22 -> 2402.219467 | AW57: ='CP-1'!AW37+'CP-2'!AW40+Stateline!AW24+'CP-3'!AW22+'CP-4'!AW38+'CP-5'!AW28+'CP-6'!AW52+'CP-7'!AW32+'CP-7'!AW33+'CP-7'!AW37+'CP-7'!AW38+'CP-7'!AW40+'CP-7'!AW41+'CP-8'!AW22 -> 2594.981356 | AX57: ='CP-1'!AX37+'CP-2'!AX40+Stateline!AX24+'CP-3'!AX22+'CP-4'!AX38+'CP-5'!AX28+'CP-6'!AX52+'CP-7'!AX32+'CP-7'!AX33+'CP-7'!AX37+'CP-7'!AX38+'CP-7'!AX40+'CP-7'!AX41+'CP-8'!AX22 -> 2496.121925 | AY57: ='CP-1'!AY37+'CP-2'!AY40+Stateline!AY24+'CP-3'!AY22+'CP-4'!AY38+'CP-5'!AY28+'CP-6'!AY52+'CP-7'!AY32+'CP-7'!AY33+'CP-7'!AY37+'CP-7'!AY38+'CP-7'!AY40+'CP-7'!AY41+'CP-8'!AY22 -> 2518.526329 | AZ57: ='CP-1'!AZ37+'CP-2'!AZ40+Stateline!AZ24+'CP-3'!AZ22+'CP-4'!AZ38+'CP-5'!AZ28+'CP-6'!AZ52+'CP-7'!AZ32+'CP-7'!AZ33+'CP-7'!AZ37+'CP-7'!AZ38+'CP-7'!AZ40+'CP-7'!AZ41+'CP-8'!AZ22 -> 2631.948623 | BA57: ='CP-1'!BA37+'CP-2'!BA40+Stateline!BA24+'CP-3'!BA22+'CP-4'!BA38+'CP-5'!BA28+'CP-6'!BA52+'CP-7'!BA32+'CP-7'!BA33+'CP-7'!BA37+'CP-7'!BA38+'CP-7'!BA40+'CP-7'!BA41+'CP-8'!BA22 -> 2768.643491 | BB57: ='CP-1'!BB37+'CP-2'!BB40+Stateline!BB24+'CP-3'!BB22+'CP-4'!BB38+'CP-5'!BB28+'CP-6'!BB52+'CP-7'!BB32+'CP-7'!BB33+'CP-7'!BB37+'CP-7'!BB38+'CP-7'!BB40+'CP-7'!BB41+'CP-8'!BB22 -> 0 | BC57: ='CP-1'!BC37+'CP-2'!BC40+Stateline!BC24+'CP-3'!BC22+'CP-4'!BC38+'CP-5'!BC28+'CP-6'!BC52+'CP-7'!BC32+'CP-7'!BC33+'CP-7'!BC37+'CP-7'!BC38+'CP-7'!BC40+'CP-7'!BC41+'CP-8'!BC22 -> 0 | BD57: ='CP-1'!BD37+'CP-2'!BD40+Stateline!BD24+'CP-3'!BD22+'CP-4'!BD38+'CP-5'!BD28+'CP-6'!BD52+'CP-7'!BD32+'CP-7'!BD33+'CP-7'!BD37+'CP-7'!BD38+'CP-7'!BD40+'CP-7'!BD41+'CP-8'!BD22 -> 0
F58: san juan-colorado river | G58: ='CP-18'!G28+'CP-18'!G29+'CP-18'!G30+'CP-18'!G37+'CP-19'!G66+'CP-19'!G72+'CP-19'!G78+'CP-19'!G84+'CP-19'!G86+'CP-19'!G87 -> 1406.514221 | H58: ='CP-18'!H28+'CP-18'!H29+'CP-18'!H30+'CP-18'!H37+'CP-19'!H66+'CP-19'!H72+'CP-19'!H78+'CP-19'!H84+'CP-19'!H86+'CP-19'!H87 -> 1486.128233 | I58: ='CP-18'!I28+'CP-18'!I29+'CP-18'!I30+'CP-18'!I37+'CP-19'!I66+'CP-19'!I72+'CP-19'!I78+'CP-19'!I84+'CP-19'!I86+'CP-19'!I87 -> 981.9061542 | J58: ='CP-18'!J28+'CP-18'!J29+'CP-18'!J30+'CP-18'!J37+'CP-19'!J66+'CP-19'!J72+'CP-19'!J78+'CP-19'!J84+'CP-19'!J86+'CP-19'!J87 -> 1300.362204 | K58: ='CP-18'!K28+'CP-18'!K29+'CP-18'!K30+'CP-18'!K37+'CP-19'!K66+'CP-19'!K72+'CP-19'!K78+'CP-19'!K84+'CP-19'!K86+'CP-19'!K87 -> 1008.444158 | L58: ='CP-18'!L28+'CP-18'!L29+'CP-18'!L30+'CP-18'!L37+'CP-19'!L66+'CP-19'!L72+'CP-19'!L78+'CP-19'!L84+'CP-19'!L86+'CP-19'!L87 -> 1300 | M58: ='CP-18'!M28+'CP-18'!M29+'CP-18'!M30+'CP-18'!M37+'CP-19'!M66+'CP-19'!M72+'CP-19'!M78+'CP-19'!M84+'CP-19'!M86+'CP-19'!M87 -> 1200 | N58: ='CP-18'!N28+'CP-18'!N29+'CP-18'!N30+'CP-18'!N37+'CP-19'!N66+'CP-19'!N72+'CP-19'!N78+'CP-19'!N84+'CP-19'!N86+'CP-19'!N87 -> 1100 | O58: ='CP-18'!O28+'CP-18'!O29+'CP-18'!O30+'CP-18'!O37+'CP-19'!O66+'CP-19'!O72+'CP-19'!O78+'CP-19'!O84+'CP-19'!O86+'CP-19'!O87 -> 1200 | P58: ='CP-18'!P28+'CP-18'!P29+'CP-18'!P30+'CP-18'!P37+'CP-19'!P66+'CP-19'!P72+'CP-19'!P78+'CP-19'!P84+'CP-19'!P86+'CP-19'!P87 -> 1100 | Q58: ='CP-18'!Q28+'CP-18'!Q29+'CP-18'!Q30+'CP-18'!Q37+'CP-19'!Q66+'CP-19'!Q72+'CP-19'!Q78+'CP-19'!Q84+'CP-19'!Q86+'CP-19'!Q87 -> 2230 | R58: ='CP-18'!R28+'CP-18'!R29+'CP-18'!R30+'CP-18'!R37+'CP-19'!R66+'CP-19'!R72+'CP-19'!R78+'CP-19'!R84+'CP-19'!R86+'CP-19'!R87 -> 2110 | S58: ='CP-18'!S28+'CP-18'!S29+'CP-18'!S30+'CP-18'!S37+'CP-19'!S66+'CP-19'!S72+'CP-19'!S78+'CP-19'!S84+'CP-19'!S86+'CP-19'!S87 -> 2090 | T58: ='CP-18'!T28+'CP-18'!T29+'CP-18'!T30+'CP-18'!T37+'CP-19'!T66+'CP-19'!T72+'CP-19'!T78+'CP-19'!T84+'CP-19'!T86+'CP-19'!T87 -> 2130 | U58: ='CP-18'!U28+'CP-18'!U29+'CP-18'!U30+'CP-18'!U37+'CP-19'!U66+'CP-19'!U72+'CP-19'!U78+'CP-19'!U84+'CP-19'!U86+'CP-19'!U87 -> 2020 | V58: ='CP-18'!V28+'CP-18'!V29+'CP-18'!V30+'CP-18'!V37+'CP-19'!V66+'CP-19'!V72+'CP-19'!V78+'CP-19'!V84+'CP-19'!V86+'CP-19'!V87 -> 1055.345 | W58: ='CP-18'!W28+'CP-18'!W29+'CP-18'!W30+'CP-18'!W37+'CP-19'!W66+'CP-19'!W72+'CP-19'!W78+'CP-19'!W84+'CP-19'!W86+'CP-19'!W87 -> 977.76 | X58: ='CP-18'!X28+'CP-18'!X29+'CP-18'!X30+'CP-18'!X37+'CP-19'!X66+'CP-19'!X72+'CP-19'!X78+'CP-19'!X84+'CP-19'!X86+'CP-19'!X87 -> 1011.185 | Y58: ='CP-18'!Y28+'CP-18'!Y29+'CP-18'!Y30+'CP-18'!Y37+'CP-19'!Y66+'CP-19'!Y72+'CP-19'!Y78+'CP-19'!Y84+'CP-19'!Y86+'CP-19'!Y87 -> 1046.045 | Z58: ='CP-18'!Z28+'CP-18'!Z29+'CP-18'!Z30+'CP-18'!Z37+'CP-19'!Z66+'CP-19'!Z72+'CP-19'!Z78+'CP-19'!Z84+'CP-19'!Z86+'CP-19'!Z87 -> 1016.045 | AA58: ='CP-18'!AA28+'CP-18'!AA29+'CP-18'!AA30+'CP-18'!AA37+'CP-19'!AA66+'CP-19'!AA72+'CP-19'!AA78+'CP-19'!AA84+'CP-19'!AA86+'CP-19'!AA87 -> 986.18 | AB58: ='CP-18'!AB28+'CP-18'!AB29+'CP-18'!AB30+'CP-18'!AB37+'CP-19'!AB66+'CP-19'!AB72+'CP-19'!AB78+'CP-19'!AB84+'CP-19'!AB86+'CP-19'!AB87 -> 971.135 | AC58: ='CP-18'!AC28+'CP-18'!AC29+'CP-18'!AC30+'CP-18'!AC37+'CP-19'!AC66+'CP-19'!AC72+'CP-19'!AC78+'CP-19'!AC84+'CP-19'!AC86+'CP-19'!AC87 -> 998.64 | AD58: ='CP-18'!AD28+'CP-18'!AD29+'CP-18'!AD30+'CP-18'!AD37+'CP-19'!AD66+'CP-19'!AD72+'CP-19'!AD78+'CP-19'!AD84+'CP-19'!AD86+'CP-19'!AD87 -> 1025.91 | AE58: ='CP-18'!AE28+'CP-18'!AE29+'CP-18'!AE30+'CP-18'!AE37+'CP-19'!AE66+'CP-19'!AE72+'CP-19'!AE78+'CP-19'!AE84+'CP-19'!AE86+'CP-19'!AE87 -> 1053.385 | AF58: ='CP-18'!AF28+'CP-18'!AF29+'CP-18'!AF30+'CP-18'!AF37+'CP-19'!AF66+'CP-19'!AF72+'CP-19'!AF78+'CP-19'!AF84+'CP-19'!AF86+'CP-19'!AF87 -> 1059.773108 | AG58: ='CP-18'!AG28+'CP-18'!AG29+'CP-18'!AG30+'CP-18'!AG37+'CP-19'!AG66+'CP-19'!AG72+'CP-19'!AG78+'CP-19'!AG84+'CP-19'!AG86+'CP-19'!AG87 -> 1088.034807 | AH58: ='CP-18'!AH28+'CP-18'!AH29+'CP-18'!AH30+'CP-18'!AH37+'CP-19'!AH66+'CP-19'!AH72+'CP-19'!AH78+'CP-19'!AH84+'CP-19'!AH86+'CP-19'!AH87 -> 1006.49566 | AI58: ='CP-18'!AI28+'CP-18'!AI29+'CP-18'!AI30+'CP-18'!AI37+'CP-19'!AI66+'CP-19'!AI72+'CP-19'!AI78+'CP-19'!AI84+'CP-19'!AI86+'CP-19'!AI87 -> 924.8596134 | AJ58: ='CP-18'!AJ28+'CP-18'!AJ29+'CP-18'!AJ30+'CP-18'!AJ37+'CP-19'!AJ66+'CP-19'!AJ72+'CP-19'!AJ78+'CP-19'!AJ84+'CP-19'!AJ86+'CP-19'!AJ87 -> 843.2235671 | AK58: ='CP-18'!AK28+'CP-18'!AK29+'CP-18'!AK30+'CP-18'!AK37+'CP-19'!AK66+'CP-19'!AK72+'CP-19'!AK78+'CP-19'!AK84+'CP-19'!AK86+'CP-19'!AK87 -> 942.3404254 | AL58: ='CP-18'!AL28+'CP-18'!AL29+'CP-18'!AL30+'CP-18'!AL37+'CP-19'!AL66+'CP-19'!AL72+'CP-19'!AL78+'CP-19'!AL84+'CP-19'!AL86+'CP-19'!AL87 -> 712.3054285 | AM58: ='CP-18'!AM28+'CP-18'!AM29+'CP-18'!AM30+'CP-18'!AM37+'CP-19'!AM66+'CP-19'!AM72+'CP-19'!AM78+'CP-19'!AM84+'CP-19'!AM86+'CP-19'!AM87 -> 691.612842 | AN58: ='CP-18'!AN28+'CP-18'!AN29+'CP-18'!AN30+'CP-18'!AN37+'CP-19'!AN66+'CP-19'!AN72+'CP-19'!AN78+'CP-19'!AN84+'CP-19'!AN86+'CP-19'!AN87 -> 600.7480767 | AO58: ='CP-18'!AO28+'CP-18'!AO29+'CP-18'!AO30+'CP-18'!AO37+'CP-19'!AO66+'CP-19'!AO72+'CP-19'!AO78+'CP-19'!AO84+'CP-19'!AO86+'CP-19'!AO87 -> 606.6876135 | AP58: ='CP-18'!AP28+'CP-18'!AP29+'CP-18'!AP30+'CP-18'!AP37+'CP-19'!AP66+'CP-19'!AP72+'CP-19'!AP78+'CP-19'!AP84+'CP-19'!AP86+'CP-19'!AP87 -> 653.3063406 | AQ58: ='CP-18'!AQ28+'CP-18'!AQ29+'CP-18'!AQ30+'CP-18'!AQ37+'CP-19'!AQ66+'CP-19'!AQ72+'CP-19'!AQ78+'CP-19'!AQ84+'CP-19'!AQ86+'CP-19'!AQ87 -> 730.7577169 | AR58: ='CP-18'!AR28+'CP-18'!AR29+'CP-18'!AR30+'CP-18'!AR37+'CP-19'!AR66+'CP-19'!AR72+'CP-19'!AR78+'CP-19'!AR84+'CP-19'!AR86+'CP-19'!AR87 -> 755.536461 | AS58: ='CP-18'!AS28+'CP-18'!AS29+'CP-18'!AS30+'CP-18'!AS37+'CP-19'!AS66+'CP-19'!AS72+'CP-19'!AS78+'CP-19'!AS84+'CP-19'!AS86+'CP-19'!AS87 -> 709.0668486 | AT58: ='CP-18'!AT28+'CP-18'!AT29+'CP-18'!AT30+'CP-18'!AT37+'CP-19'!AT66+'CP-19'!AT72+'CP-19'!AT78+'CP-19'!AT84+'CP-19'!AT86+'CP-19'!AT87 -> 714.6679495 | AU58: ='CP-18'!AU28+'CP-18'!AU29+'CP-18'!AU30+'CP-18'!AU37+'CP-19'!AU66+'CP-19'!AU72+'CP-19'!AU78+'CP-19'!AU84+'CP-19'!AU86+'CP-19'!AU87 -> 721.7813478 | AV58: ='CP-18'!AV28+'CP-18'!AV29+'CP-18'!AV30+'CP-18'!AV37+'CP-19'!AV66+'CP-19'!AV72+'CP-19'!AV78+'CP-19'!AV84+'CP-19'!AV86+'CP-19'!AV87 -> 741.9453112 | AW58: ='CP-18'!AW28+'CP-18'!AW29+'CP-18'!AW30+'CP-18'!AW37+'CP-19'!AW66+'CP-19'!AW72+'CP-19'!AW78+'CP-19'!AW84+'CP-19'!AW86+'CP-19'!AW87 -> 828.5383318 | AX58: ='CP-18'!AX28+'CP-18'!AX29+'CP-18'!AX30+'CP-18'!AX37+'CP-19'!AX66+'CP-19'!AX72+'CP-19'!AX78+'CP-19'!AX84+'CP-19'!AX86+'CP-19'!AX87 -> 799.4126069 | AY58: ='CP-18'!AY28+'CP-18'!AY29+'CP-18'!AY30+'CP-18'!AY37+'CP-19'!AY66+'CP-19'!AY72+'CP-19'!AY78+'CP-19'!AY84+'CP-19'!AY86+'CP-19'!AY87 -> 811.7350289 | AZ58: ='CP-18'!AZ28+'CP-18'!AZ29+'CP-18'!AZ30+'CP-18'!AZ37+'CP-19'!AZ66+'CP-19'!AZ72+'CP-19'!AZ78+'CP-19'!AZ84+'CP-19'!AZ86+'CP-19'!AZ87 -> 843.1011942 | BA58: ='CP-18'!BA28+'CP-18'!BA29+'CP-18'!BA30+'CP-18'!BA37+'CP-19'!BA66+'CP-19'!BA72+'CP-19'!BA78+'CP-19'!BA84+'CP-19'!BA86+'CP-19'!BA87 -> 879.3403174 | BB58: ='CP-18'!BB28+'CP-18'!BB29+'CP-18'!BB30+'CP-18'!BB37+'CP-19'!BB66+'CP-19'!BB72+'CP-19'!BB78+'CP-19'!BB84+'CP-19'!BB86+'CP-19'!BB87 -> 0 | BC58: ='CP-18'!BC28+'CP-18'!BC29+'CP-18'!BC30+'CP-18'!BC37+'CP-19'!BC66+'CP-19'!BC72+'CP-19'!BC78+'CP-19'!BC84+'CP-19'!BC86+'CP-19'!BC87 -> 0 | BD58: ='CP-18'!BD28+'CP-18'!BD29+'CP-18'!BD30+'CP-18'!BD37+'CP-19'!BD66+'CP-19'!BD72+'CP-19'!BD78+'CP-19'!BD84+'CP-19'!BD86+'CP-19'!BD87 -> 0
F59: Total | G59: =SUM(G56:G58) -> 10650.55052 | H59: 10799.28373 | I59: 10495.32384 | J59: 11365.49491 | K59: 9609.717709 | L59: 8400 | M59: 7800 | N59: 7000 | O59: 7700 | P59: 7600 | Q59: 8120 | R59: 7680 | S59: 7600 | T59: 7740 | U59: 7340 | V59: =SUM(V56:V58) -> 6954.8 | W59: =SUM(W56:W58) -> 6609.4 | X59: 6536 | Y59: 6610.5 | Z59: 6436.8 | AA59: 6356.6 | AB59: 6360.4 | AC59: 6622.9 | AD59: 6885.1 | AE59: 7147.6 | AF59: =SUM(AF56:AF58) -> 6958.805799 | AG59: =SUM(AG56:AG58) -> 7241.520216 | AH59: =SUM(AH56:AH58) -> 6847.931412 | AI59: =SUM(AI56:AI58) -> 6454.241229 | AJ59: =SUM(AJ56:AJ58) -> 6060.551046 | AK59: =SUM(AK56:AK58) -> 5879.650418 | AL59: 4551.91227 | AM59: 4590.564821 | AN59: 3969.611821 | AO59: 4249.523343 | AP59: 4204.966985 | AQ59: 4049.568872 | AR59: 4116.089858 | AS59: 3887.974248 | AT59: 3822.973472 | AU59: 3949.670375 | AV59: 4075.303069 | AW59: 4556.297613 | AX59: 4377.902548 | AY59: 4423.831576 | AZ59: =SUM(AZ56:AZ58) -> 4607.827742 | BA59: 4853.576046 | BB59: 0 | BC59: 0 | BD59: 0
B60: Livestk. | D60: New Mexico | F60: san juan-colorado river | G60: ='CP-18'!G32+'CP-19'!G64+'CP-19'!G68+'CP-19'!G74+'CP-19'!G76+'CP-19'!G94 -> 507.1838525 | H60: ='CP-18'!H32+'CP-19'!H64+'CP-19'!H68+'CP-19'!H74+'CP-19'!H76+'CP-19'!H94 -> 525.2975615 | I60: ='CP-18'!I32+'CP-19'!I64+'CP-19'!I68+'CP-19'!I74+'CP-19'!I76+'CP-19'!I94 -> 416.6153074 | J60: ='CP-18'!J32+'CP-19'!J64+'CP-19'!J68+'CP-19'!J74+'CP-19'!J76+'CP-19'!J94 -> 543.4112706 | K60: ='CP-18'!K32+'CP-19'!K64+'CP-19'!K68+'CP-19'!K74+'CP-19'!K76+'CP-19'!K94 -> 434.7290164 | L60: ='CP-18'!L32+'CP-19'!L64+'CP-19'!L68+'CP-19'!L74+'CP-19'!L76+'CP-19'!L94 -> 500 | M60: ='CP-18'!M32+'CP-19'!M64+'CP-19'!M68+'CP-19'!M74+'CP-19'!M76+'CP-19'!M94 -> 400 | N60: ='CP-18'!N32+'CP-19'!N64+'CP-19'!N68+'CP-19'!N74+'CP-19'!N76+'CP-19'!N94 -> 400 | O60: ='CP-18'!O32+'CP-19'!O64+'CP-19'!O68+'CP-19'!O74+'CP-19'!O76+'CP-19'!O94 -> 400 | P60: ='CP-18'!P32+'CP-19'!P64+'CP-19'!P68+'CP-19'!P74+'CP-19'!P76+'CP-19'!P94 -> 400 | Q60: ='CP-18'!Q32+'CP-19'!Q64+'CP-19'!Q68+'CP-19'!Q74+'CP-19'!Q76+'CP-19'!Q94 -> 1606.434652 | R60: ='CP-18'!R32+'CP-19'!R64+'CP-19'!R68+'CP-19'!R74+'CP-19'!R76+'CP-19'!R94 -> 1624.548361 | S60: ='CP-18'!S32+'CP-19'!S64+'CP-19'!S68+'CP-19'!S74+'CP-19'!S76+'CP-19'!S94 -> 1624.548361 | T60: ='CP-18'!T32+'CP-19'!T64+'CP-19'!T68+'CP-19'!T74+'CP-19'!T76+'CP-19'!T94 -> 1624.548361 | U60: ='CP-18'!U32+'CP-19'!U64+'CP-19'!U68+'CP-19'!U74+'CP-19'!U76+'CP-19'!U94 -> 1624.548361 | V60: ='CP-18'!V32+'CP-19'!V64+'CP-19'!V68+'CP-19'!V74+'CP-19'!V76+'CP-19'!V94 -> 821 | W60: ='CP-18'!W32+'CP-19'!W64+'CP-19'!W68+'CP-19'!W74+'CP-19'!W76+'CP-19'!W94 -> 828 | X60: ='CP-18'!X32+'CP-19'!X64+'CP-19'!X68+'CP-19'!X74+'CP-19'!X76+'CP-19'!X94 -> 848 | Y60: ='CP-18'!Y32+'CP-19'!Y64+'CP-19'!Y68+'CP-19'!Y74+'CP-19'!Y76+'CP-19'!Y94 -> 862 | Z60: ='CP-18'!Z32+'CP-19'!Z64+'CP-19'!Z68+'CP-19'!Z74+'CP-19'!Z76+'CP-19'!Z94 -> 828 | AA60: ='CP-18'!AA32+'CP-19'!AA64+'CP-19'!AA68+'CP-19'!AA74+'CP-19'!AA76+'CP-19'!AA94 -> 842 | AB60: ='CP-18'!AB32+'CP-19'!AB64+'CP-19'!AB68+'CP-19'!AB74+'CP-19'!AB76+'CP-19'!AB94 -> 817 | AC60: ='CP-18'!AC32+'CP-19'!AC64+'CP-19'!AC68+'CP-19'!AC74+'CP-19'!AC76+'CP-19'!AC94 -> 769 | AD60: ='CP-18'!AD32+'CP-19'!AD64+'CP-19'!AD68+'CP-19'!AD74+'CP-19'!AD76+'CP-19'!AD94 -> 758 | AE60: ='CP-18'!AE32+'CP-19'!AE64+'CP-19'!AE68+'CP-19'!AE74+'CP-19'!AE76+'CP-19'!AE94 -> 770 | AF60: ='CP-18'!AF32+'CP-19'!AF64+'CP-19'!AF68+'CP-19'!AF74+'CP-19'!AF76+'CP-19'!AF94 -> 711.6220926 | AG60: ='CP-18'!AG32+'CP-19'!AG64+'CP-19'!AG68+'CP-19'!AG74+'CP-19'!AG76+'CP-19'!AG94 -> 719.0415899 | AH60: ='CP-18'!AH32+'CP-19'!AH64+'CP-19'!AH68+'CP-19'!AH74+'CP-19'!AH76+'CP-19'!AH94 -> 781.349291 | AI60: ='CP-18'!AI32+'CP-19'!AI64+'CP-19'!AI68+'CP-19'!AI74+'CP-19'!AI76+'CP-19'!AI94 -> 805.6158038 | AJ60: ='CP-18'!AJ32+'CP-19'!AJ64+'CP-19'!AJ68+'CP-19'!AJ74+'CP-19'!AJ76+'CP-19'!AJ94 -> 782.0794926 | AK60: ='CP-18'!AK32+'CP-19'!AK64+'CP-19'!AK68+'CP-19'!AK74+'CP-19'!AK76+'CP-19'!AK94 -> 693.7475724 | AL60: ='CP-18'!AL32+'CP-19'!AL64+'CP-19'!AL68+'CP-19'!AL74+'CP-19'!AL76+'CP-19'!AL94 -> 558.932064 | AM60: ='CP-18'!AM32+'CP-19'!AM64+'CP-19'!AM68+'CP-19'!AM74+'CP-19'!AM76+'CP-19'!AM94 -> 452.4383602 | AN60: ='CP-18'!AN32+'CP-19'!AN64+'CP-19'!AN68+'CP-19'!AN74+'CP-19'!AN76+'CP-19'!AN94 -> 446.8604747 | AO60: ='CP-18'!AO32+'CP-19'!AO64+'CP-19'!AO68+'CP-19'!AO74+'CP-19'!AO76+'CP-19'!AO94 -> 457.5309979 | AP60: ='CP-18'!AP32+'CP-19'!AP64+'CP-19'!AP68+'CP-19'!AP74+'CP-19'!AP76+'CP-19'!AP94 -> 559 | AQ60: ='CP-18'!AQ32+'CP-19'!AQ64+'CP-19'!AQ68+'CP-19'!AQ74+'CP-19'!AQ76+'CP-19'!AQ94 -> 600 | AR60: ='CP-18'!AR32+'CP-19'!AR64+'CP-19'!AR68+'CP-19'!AR74+'CP-19'!AR76+'CP-19'!AR94 -> 636 | AS60: ='CP-18'!AS32+'CP-19'!AS64+'CP-19'!AS68+'CP-19'!AS74+'CP-19'!AS76+'CP-19'!AS94 -> 645 | AT60: ='CP-18'!AT32+'CP-19'!AT64+'CP-19'!AT68+'CP-19'!AT74+'CP-19'!AT76+'CP-19'!AT94 -> 661 | AU60: ='CP-18'!AU32+'CP-19'!AU64+'CP-19'!AU68+'CP-19'!AU74+'CP-19'!AU76+'CP-19'!AU94 -> 673.8230166 | AV60: ='CP-18'!AV32+'CP-19'!AV64+'CP-19'!AV68+'CP-19'!AV74+'CP-19'!AV76+'CP-19'!AV94 -> 652.7335776 | AW60: ='CP-18'!AW32+'CP-19'!AW64+'CP-19'!AW68+'CP-19'!AW74+'CP-19'!AW76+'CP-19'!AW94 -> 630.0926225 | AX60: ='CP-18'!AX32+'CP-19'!AX64+'CP-19'!AX68+'CP-19'!AX74+'CP-19'!AX76+'CP-19'!AX94 -> 621.5411939 | AY60: ='CP-18'!AY32+'CP-19'!AY64+'CP-19'!AY68+'CP-19'!AY74+'CP-19'!AY76+'CP-19'!AY94 -> 625.9632891 | AZ60: ='CP-18'!AZ32+'CP-19'!AZ64+'CP-19'!AZ68+'CP-19'!AZ74+'CP-19'!AZ76+'CP-19'!AZ94 -> 625.9632891 | BA60: ='CP-18'!BA32+'CP-19'!BA64+'CP-19'!BA68+'CP-19'!BA74+'CP-19'!BA76+'CP-19'!BA94 -> 625.9632891 | BB60: ='CP-18'!BB32+'CP-19'!BB64+'CP-19'!BB68+'CP-19'!BB74+'CP-19'!BB76+'CP-19'!BB94 -> 0 | BC60: ='CP-18'!BC32+'CP-19'!BC64+'CP-19'!BC68+'CP-19'!BC74+'CP-19'!BC76+'CP-19'!BC94 -> 0 | BD60: ='CP-18'!BD32+'CP-19'!BD64+'CP-19'!BD68+'CP-19'!BD74+'CP-19'!BD76+'CP-19'!BD94 -> 0
D61: Utah | F61: green river | G61: ='CP-11'!G37+'CP-11'!G38+'CP-11'!G39+Jensen!G37+Jensen!G38+Jensen!G39+Jensen!G48+'CP-14'!G31+'CP-15'!G37+Ouray!G32+Ouray!G36+Ouray!G38+'CP-16'!G43+'CP-17'!G22+'Grn-Colo-Confl'!G28+'Grn-Colo-Confl'!G30 -> 1654.28125 | H61: ='CP-11'!H37+'CP-11'!H38+'CP-11'!H39+Jensen!H37+Jensen!H38+Jensen!H39+Jensen!H48+'CP-14'!H31+'CP-15'!H37+Ouray!H32+Ouray!H36+Ouray!H38+'CP-16'!H43+'CP-17'!H22+'Grn-Colo-Confl'!H28+'Grn-Colo-Confl'!H30 -> 1693.668898 | I61: ='CP-11'!I37+'CP-11'!I38+'CP-11'!I39+Jensen!I37+Jensen!I38+Jensen!I39+Jensen!I48+'CP-14'!I31+'CP-15'!I37+Ouray!I32+Ouray!I36+Ouray!I38+'CP-16'!I43+'CP-17'!I22+'Grn-Colo-Confl'!I28+'Grn-Colo-Confl'!I30 -> 1417.955357 | J61: ='CP-11'!J37+'CP-11'!J38+'CP-11'!J39+Jensen!J37+Jensen!J38+Jensen!J39+Jensen!J48+'CP-14'!J31+'CP-15'!J37+Ouray!J32+Ouray!J36+Ouray!J38+'CP-16'!J43+'CP-17'!J22+'Grn-Colo-Confl'!J28+'Grn-Colo-Confl'!J30 -> 1890.607142 | K61: ='CP-11'!K37+'CP-11'!K38+'CP-11'!K39+Jensen!K37+Jensen!K38+Jensen!K39+Jensen!K48+'CP-14'!K31+'CP-15'!K37+Ouray!K32+Ouray!K36+Ouray!K38+'CP-16'!K43+'CP-17'!K22+'Grn-Colo-Confl'!K28+'Grn-Colo-Confl'!K30 -> 1772.444196 | L61: ='CP-11'!L37+'CP-11'!L38+'CP-11'!L39+Jensen!L37+Jensen!L38+Jensen!L39+Jensen!L48+'CP-14'!L31+'CP-15'!L37+Ouray!L32+Ouray!L36+Ouray!L38+'CP-16'!L43+'CP-17'!L22+'Grn-Colo-Confl'!L28+'Grn-Colo-Confl'!L30 -> 1700 | M61: ='CP-11'!M37+'CP-11'!M38+'CP-11'!M39+Jensen!M37+Jensen!M38+Jensen!M39+Jensen!M48+'CP-14'!M31+'CP-15'!M37+Ouray!M32+Ouray!M36+Ouray!M38+'CP-16'!M43+'CP-17'!M22+'Grn-Colo-Confl'!M28+'Grn-Colo-Confl'!M30 -> 1500 | N61: ='CP-11'!N37+'CP-11'!N38+'CP-11'!N39+Jensen!N37+Jensen!N38+Jensen!N39+Jensen!N48+'CP-14'!N31+'CP-15'!N37+Ouray!N32+Ouray!N36+Ouray!N38+'CP-16'!N43+'CP-17'!N22+'Grn-Colo-Confl'!N28+'Grn-Colo-Confl'!N30 -> 1500 | O61: ='CP-11'!O37+'CP-11'!O38+'CP-11'!O39+Jensen!O37+Jensen!O38+Jensen!O39+Jensen!O48+'CP-14'!O31+'CP-15'!O37+Ouray!O32+Ouray!O36+Ouray!O38+'CP-16'!O43+'CP-17'!O22+'Grn-Colo-Confl'!O28+'Grn-Colo-Confl'!O30 -> 1400 | P61: ='CP-11'!P37+'CP-11'!P38+'CP-11'!P39+Jensen!P37+Jensen!P38+Jensen!P39+Jensen!P48+'CP-14'!P31+'CP-15'!P37+Ouray!P32+Ouray!P36+Ouray!P38+'CP-16'!P43+'CP-17'!P22+'Grn-Colo-Confl'!P28+'Grn-Colo-Confl'!P30 -> 1500 | Q61: ='CP-11'!Q37+'CP-11'!Q38+'CP-11'!Q39+Jensen!Q37+Jensen!Q38+Jensen!Q39+Jensen!Q48+'CP-14'!Q31+'CP-15'!Q37+Ouray!Q32+Ouray!Q36+Ouray!Q38+'CP-16'!Q43+'CP-17'!Q22+'Grn-Colo-Confl'!Q28+'Grn-Colo-Confl'!Q30 -> 1550 | R61: ='CP-11'!R37+'CP-11'!R38+'CP-11'!R39+Jensen!R37+Jensen!R38+Jensen!R39+Jensen!R48+'CP-14'!R31+'CP-15'!R37+Ouray!R32+Ouray!R36+Ouray!R38+'CP-16'!R43+'CP-17'!R22+'Grn-Colo-Confl'!R28+'Grn-Colo-Confl'!R30 -> 1600 | S61: ='CP-11'!S37+'CP-11'!S38+'CP-11'!S39+Jensen!S37+Jensen!S38+Jensen!S39+Jensen!S48+'CP-14'!S31+'CP-15'!S37+Ouray!S32+Ouray!S36+Ouray!S38+'CP-16'!S43+'CP-17'!S22+'Grn-Colo-Confl'!S28+'Grn-Colo-Confl'!S30 -> 1590 | T61: ='CP-11'!T37+'CP-11'!T38+'CP-11'!T39+Jensen!T37+Jensen!T38+Jensen!T39+Jensen!T48+'CP-14'!T31+'CP-15'!T37+Ouray!T32+Ouray!T36+Ouray!T38+'CP-16'!T43+'CP-17'!T22+'Grn-Colo-Confl'!T28+'Grn-Colo-Confl'!T30 -> 1470 | U61: ='CP-11'!U37+'CP-11'!U38+'CP-11'!U39+Jensen!U37+Jensen!U38+Jensen!U39+Jensen!U48+'CP-14'!U31+'CP-15'!U37+Ouray!U32+Ouray!U36+Ouray!U38+'CP-16'!U43+'CP-17'!U22+'Grn-Colo-Confl'!U28+'Grn-Colo-Confl'!U30 -> 1350 | V61: ='CP-11'!V37+'CP-11'!V38+'CP-11'!V39+Jensen!V37+Jensen!V38+Jensen!V39+Jensen!V48+'CP-14'!V31+'CP-15'!V37+Ouray!V32+Ouray!V36+Ouray!V38+'CP-16'!V43+'CP-17'!V22+'Grn-Colo-Confl'!V28+'Grn-Colo-Confl'!V30 -> 1594.59 | W61: ='CP-11'!W37+'CP-11'!W38+'CP-11'!W39+Jensen!W37+Jensen!W38+Jensen!W39+Jensen!W48+'CP-14'!W31+'CP-15'!W37+Ouray!W32+Ouray!W36+Ouray!W38+'CP-16'!W43+'CP-17'!W22+'Grn-Colo-Confl'!W28+'Grn-Colo-Confl'!W30 -> 1545.005 | X61: ='CP-11'!X37+'CP-11'!X38+'CP-11'!X39+Jensen!X37+Jensen!X38+Jensen!X39+Jensen!X48+'CP-14'!X31+'CP-15'!X37+Ouray!X32+Ouray!X36+Ouray!X38+'CP-16'!X43+'CP-17'!X22+'Grn-Colo-Confl'!X28+'Grn-Colo-Confl'!X30 -> 1578.525 | Y61: ='CP-11'!Y37+'CP-11'!Y38+'CP-11'!Y39+Jensen!Y37+Jensen!Y38+Jensen!Y39+Jensen!Y48+'CP-14'!Y31+'CP-15'!Y37+Ouray!Y32+Ouray!Y36+Ouray!Y38+'CP-16'!Y43+'CP-17'!Y22+'Grn-Colo-Confl'!Y28+'Grn-Colo-Confl'!Y30 -> 1720.115 | Z61: ='CP-11'!Z37+'CP-11'!Z38+'CP-11'!Z39+Jensen!Z37+Jensen!Z38+Jensen!Z39+Jensen!Z48+'CP-14'!Z31+'CP-15'!Z37+Ouray!Z32+Ouray!Z36+Ouray!Z38+'CP-16'!Z43+'CP-17'!Z22+'Grn-Colo-Confl'!Z28+'Grn-Colo-Confl'!Z30 -> 1665.05 | AA61: ='CP-11'!AA37+'CP-11'!AA38+'CP-11'!AA39+Jensen!AA37+Jensen!AA38+Jensen!AA39+Jensen!AA48+'CP-14'!AA31+'CP-15'!AA37+Ouray!AA32+Ouray!AA36+Ouray!AA38+'CP-16'!AA43+'CP-17'!AA22+'Grn-Colo-Confl'!AA28+'Grn-Colo-Confl'!AA30 -> 1668.15 | AB61: ='CP-11'!AB37+'CP-11'!AB38+'CP-11'!AB39+Jensen!AB37+Jensen!AB38+Jensen!AB39+Jensen!AB48+'CP-14'!AB31+'CP-15'!AB37+Ouray!AB32+Ouray!AB36+Ouray!AB38+'CP-16'!AB43+'CP-17'!AB22+'Grn-Colo-Confl'!AB28+'Grn-Colo-Confl'!AB30 -> 1665.3 | AC61: ='CP-11'!AC37+'CP-11'!AC38+'CP-11'!AC39+Jensen!AC37+Jensen!AC38+Jensen!AC39+Jensen!AC48+'CP-14'!AC31+'CP-15'!AC37+Ouray!AC32+Ouray!AC36+Ouray!AC38+'CP-16'!AC43+'CP-17'!AC22+'Grn-Colo-Confl'!AC28+'Grn-Colo-Confl'!AC30 -> 1728.095 | AD61: ='CP-11'!AD37+'CP-11'!AD38+'CP-11'!AD39+Jensen!AD37+Jensen!AD38+Jensen!AD39+Jensen!AD48+'CP-14'!AD31+'CP-15'!AD37+Ouray!AD32+Ouray!AD36+Ouray!AD38+'CP-16'!AD43+'CP-17'!AD22+'Grn-Colo-Confl'!AD28+'Grn-Colo-Confl'!AD30 -> 1842.55 | AE61: ='CP-11'!AE37+'CP-11'!AE38+'CP-11'!AE39+Jensen!AE37+Jensen!AE38+Jensen!AE39+Jensen!AE48+'CP-14'!AE31+'CP-15'!AE37+Ouray!AE32+Ouray!AE36+Ouray!AE38+'CP-16'!AE43+'CP-17'!AE22+'Grn-Colo-Confl'!AE28+'Grn-Colo-Confl'!AE30 -> 1860.955 | AF61: ='CP-11'!AF37+'CP-11'!AF38+'CP-11'!AF39+Jensen!AF37+Jensen!AF38+Jensen!AF39+Jensen!AF48+'CP-14'!AF31+'CP-15'!AF37+Ouray!AF32+Ouray!AF36+Ouray!AF38+'CP-16'!AF43+'CP-17'!AF22+'Grn-Colo-Confl'!AF28+'Grn-Colo-Confl'!AF30 -> 2255.324587 | AG61: ='CP-11'!AG37+'CP-11'!AG38+'CP-11'!AG39+Jensen!AG37+Jensen!AG38+Jensen!AG39+Jensen!AG48+'CP-14'!AG31+'CP-15'!AG37+Ouray!AG32+Ouray!AG36+Ouray!AG38+'CP-16'!AG43+'CP-17'!AG22+'Grn-Colo-Confl'!AG28+'Grn-Colo-Confl'!AG30 -> 2095.175915 | AH61: ='CP-11'!AH37+'CP-11'!AH38+'CP-11'!AH39+Jensen!AH37+Jensen!AH38+Jensen!AH39+Jensen!AH48+'CP-14'!AH31+'CP-15'!AH37+Ouray!AH32+Ouray!AH36+Ouray!AH38+'CP-16'!AH43+'CP-17'!AH22+'Grn-Colo-Confl'!AH28+'Grn-Colo-Confl'!AH30 -> 2067.640903 | AI61: ='CP-11'!AI37+'CP-11'!AI38+'CP-11'!AI39+Jensen!AI37+Jensen!AI38+Jensen!AI39+Jensen!AI48+'CP-14'!AI31+'CP-15'!AI37+Ouray!AI32+Ouray!AI36+Ouray!AI38+'CP-16'!AI43+'CP-17'!AI22+'Grn-Colo-Confl'!AI28+'Grn-Colo-Confl'!AI30 -> 1965.051138 | AJ61: ='CP-11'!AJ37+'CP-11'!AJ38+'CP-11'!AJ39+Jensen!AJ37+Jensen!AJ38+Jensen!AJ39+Jensen!AJ48+'CP-14'!AJ31+'CP-15'!AJ37+Ouray!AJ32+Ouray!AJ36+Ouray!AJ38+'CP-16'!AJ43+'CP-17'!AJ22+'Grn-Colo-Confl'!AJ28+'Grn-Colo-Confl'!AJ30 -> 1994.262 | AK61: ='CP-11'!AK37+'CP-11'!AK38+'CP-11'!AK39+Jensen!AK37+Jensen!AK38+Jensen!AK39+Jensen!AK48+'CP-14'!AK31+'CP-15'!AK37+Ouray!AK32+Ouray!AK36+Ouray!AK38+'CP-16'!AK43+'CP-17'!AK22+'Grn-Colo-Confl'!AK28+'Grn-Colo-Confl'!AK30 -> 1883.609719 | AL61: ='CP-11'!AL37+'CP-11'!AL38+'CP-11'!AL39+Jensen!AL37+Jensen!AL38+Jensen!AL39+Jensen!AL48+'CP-14'!AL31+'CP-15'!AL37+Ouray!AL32+Ouray!AL36+Ouray!AL38+'CP-16'!AL43+'CP-17'!AL22+'Grn-Colo-Confl'!AL28+'Grn-Colo-Confl'!AL30 -> 1922.511455 | AM61: ='CP-11'!AM37+'CP-11'!AM38+'CP-11'!AM39+Jensen!AM37+Jensen!AM38+Jensen!AM39+Jensen!AM48+'CP-14'!AM31+'CP-15'!AM37+Ouray!AM32+Ouray!AM36+Ouray!AM38+'CP-16'!AM43+'CP-17'!AM22+'Grn-Colo-Confl'!AM28+'Grn-Colo-Confl'!AM30 -> 1673.619141 | AN61: ='CP-11'!AN37+'CP-11'!AN38+'CP-11'!AN39+Jensen!AN37+Jensen!AN38+Jensen!AN39+Jensen!AN48+'CP-14'!AN31+'CP-15'!AN37+Ouray!AN32+Ouray!AN36+Ouray!AN38+'CP-16'!AN43+'CP-17'!AN22+'Grn-Colo-Confl'!AN28+'Grn-Colo-Confl'!AN30 -> 1752.299822 | AO61: ='CP-11'!AO37+'CP-11'!AO38+'CP-11'!AO39+Jensen!AO37+Jensen!AO38+Jensen!AO39+Jensen!AO48+'CP-14'!AO31+'CP-15'!AO37+Ouray!AO32+Ouray!AO36+Ouray!AO38+'CP-16'!AO43+'CP-17'!AO22+'Grn-Colo-Confl'!AO28+'Grn-Colo-Confl'!AO30 -> 1781.067077 | AP61: ='CP-11'!AP37+'CP-11'!AP38+'CP-11'!AP39+Jensen!AP37+Jensen!AP38+Jensen!AP39+Jensen!AP48+'CP-14'!AP31+'CP-15'!AP37+Ouray!AP32+Ouray!AP36+Ouray!AP38+'CP-16'!AP43+'CP-17'!AP22+'Grn-Colo-Confl'!AP28+'Grn-Colo-Confl'!AP30 -> 1883.796258 | AQ61: ='CP-11'!AQ37+'CP-11'!AQ38+'CP-11'!AQ39+Jensen!AQ37+Jensen!AQ38+Jensen!AQ39+Jensen!AQ48+'CP-14'!AQ31+'CP-15'!AQ37+Ouray!AQ32+Ouray!AQ36+Ouray!AQ38+'CP-16'!AQ43+'CP-17'!AQ22+'Grn-Colo-Confl'!AQ28+'Grn-Colo-Confl'!AQ30 -> 1925.699371 | AR61: ='CP-11'!AR37+'CP-11'!AR38+'CP-11'!AR39+Jensen!AR37+Jensen!AR38+Jensen!AR39+Jensen!AR48+'CP-14'!AR31+'CP-15'!AR37+Ouray!AR32+Ouray!AR36+Ouray!AR38+'CP-16'!AR43+'CP-17'!AR22+'Grn-Colo-Confl'!AR28+'Grn-Colo-Confl'!AR30 -> 1883.819213 | AS61: ='CP-11'!AS37+'CP-11'!AS38+'CP-11'!AS39+Jensen!AS37+Jensen!AS38+Jensen!AS39+Jensen!AS48+'CP-14'!AS31+'CP-15'!AS37+Ouray!AS32+Ouray!AS36+Ouray!AS38+'CP-16'!AS43+'CP-17'!AS22+'Grn-Colo-Confl'!AS28+'Grn-Colo-Confl'!AS30 -> 1888.737957 | AT61: ='CP-11'!AT37+'CP-11'!AT38+'CP-11'!AT39+Jensen!AT37+Jensen!AT38+Jensen!AT39+Jensen!AT48+'CP-14'!AT31+'CP-15'!AT37+Ouray!AT32+Ouray!AT36+Ouray!AT38+'CP-16'!AT43+'CP-17'!AT22+'Grn-Colo-Confl'!AT28+'Grn-Colo-Confl'!AT30 -> 1888.737957 | AU61: ='CP-11'!AU37+'CP-11'!AU38+'CP-11'!AU39+Jensen!AU37+Jensen!AU38+Jensen!AU39+Jensen!AU48+'CP-14'!AU31+'CP-15'!AU37+Ouray!AU32+Ouray!AU36+Ouray!AU38+'CP-16'!AU43+'CP-17'!AU22+'Grn-Colo-Confl'!AU28+'Grn-Colo-Confl'!AU30 -> 1857.450207 | AV61: ='CP-11'!AV37+'CP-11'!AV38+'CP-11'!AV39+Jensen!AV37+Jensen!AV38+Jensen!AV39+Jensen!AV48+'CP-14'!AV31+'CP-15'!AV37+Ouray!AV32+Ouray!AV36+Ouray!AV38+'CP-16'!AV43+'CP-17'!AV22+'Grn-Colo-Confl'!AV28+'Grn-Colo-Confl'!AV30 -> 1871.932413 | AW61: ='CP-11'!AW37+'CP-11'!AW38+'CP-11'!AW39+Jensen!AW37+Jensen!AW38+Jensen!AW39+Jensen!AW48+'CP-14'!AW31+'CP-15'!AW37+Ouray!AW32+Ouray!AW36+Ouray!AW38+'CP-16'!AW43+'CP-17'!AW22+'Grn-Colo-Confl'!AW28+'Grn-Colo-Confl'!AW30 -> 1884.304125 | AX61: ='CP-11'!AX37+'CP-11'!AX38+'CP-11'!AX39+Jensen!AX37+Jensen!AX38+Jensen!AX39+Jensen!AX48+'CP-14'!AX31+'CP-15'!AX37+Ouray!AX32+Ouray!AX36+Ouray!AX38+'CP-16'!AX43+'CP-17'!AX22+'Grn-Colo-Confl'!AX28+'Grn-Colo-Confl'!AX30 -> 1877.107831 | AY61: ='CP-11'!AY37+'CP-11'!AY38+'CP-11'!AY39+Jensen!AY37+Jensen!AY38+Jensen!AY39+Jensen!AY48+'CP-14'!AY31+'CP-15'!AY37+Ouray!AY32+Ouray!AY36+Ouray!AY38+'CP-16'!AY43+'CP-17'!AY22+'Grn-Colo-Confl'!AY28+'Grn-Colo-Confl'!AY30 -> 1832.966674 | AZ61: ='CP-11'!AZ37+'CP-11'!AZ38+'CP-11'!AZ39+Jensen!AZ37+Jensen!AZ38+Jensen!AZ39+Jensen!AZ48+'CP-14'!AZ31+'CP-15'!AZ37+Ouray!AZ32+Ouray!AZ36+Ouray!AZ38+'CP-16'!AZ43+'CP-17'!AZ22+'Grn-Colo-Confl'!AZ28+'Grn-Colo-Confl'!AZ30 -> 1926.782875 | BA61: ='CP-11'!BA37+'CP-11'!BA38+'CP-11'!BA39+Jensen!BA37+Jensen!BA38+Jensen!BA39+Jensen!BA48+'CP-14'!BA31+'CP-15'!BA37+Ouray!BA32+Ouray!BA36+Ouray!BA38+'CP-16'!BA43+'CP-17'!BA22+'Grn-Colo-Confl'!BA28+'Grn-Colo-Confl'!BA30 -> 1891.19796 | BB61: ='CP-11'!BB37+'CP-11'!BB38+'CP-11'!BB39+Jensen!BB37+Jensen!BB38+Jensen!BB39+Jensen!BB48+'CP-14'!BB31+'CP-15'!BB37+Ouray!BB32+Ouray!BB36+Ouray!BB38+'CP-16'!BB43+'CP-17'!BB22+'Grn-Colo-Confl'!BB28+'Grn-Colo-Confl'!BB30 -> 0 | BC61: ='CP-11'!BC37+'CP-11'!BC38+'CP-11'!BC39+Jensen!BC37+Jensen!BC38+Jensen!BC39+Jensen!BC48+'CP-14'!BC31+'CP-15'!BC37+Ouray!BC32+Ouray!BC36+Ouray!BC38+'CP-16'!BC43+'CP-17'!BC22+'Grn-Colo-Confl'!BC28+'Grn-Colo-Confl'!BC30 -> 0 | BD61: ='CP-11'!BD37+'CP-11'!BD38+'CP-11'!BD39+Jensen!BD37+Jensen!BD38+Jensen!BD39+Jensen!BD48+'CP-14'!BD31+'CP-15'!BD37+Ouray!BD32+Ouray!BD36+Ouray!BD38+'CP-16'!BD43+'CP-17'!BD22+'Grn-Colo-Confl'!BD28+'Grn-Colo-Confl'!BD30 -> 0
F62: upper main stem | G62: ='CP-7'!G35+'CP-7'!G43+'CP-8'!G24+'Grn-Colo-Confl'!G27 -> 286.4384927 | H62: ='CP-7'!H35+'CP-7'!H43+'CP-8'!H24+'Grn-Colo-Confl'!H27 -> 229.1507942 | I62: ='CP-7'!I35+'CP-7'!I43+'CP-8'!I24+'Grn-Colo-Confl'!I27 -> 229.1507942 | J62: ='CP-7'!J35+'CP-7'!J43+'CP-8'!J24+'Grn-Colo-Confl'!J27 -> 286.4384927 | K62: ='CP-7'!K35+'CP-7'!K43+'CP-8'!K24+'Grn-Colo-Confl'!K27 -> 229.1507942 | L62: ='CP-7'!L35+'CP-7'!L43+'CP-8'!L24+'Grn-Colo-Confl'!L27 -> 100 | M62: ='CP-7'!M35+'CP-7'!M43+'CP-8'!M24+'Grn-Colo-Confl'!M27 -> 100 | N62: ='CP-7'!N35+'CP-7'!N43+'CP-8'!N24+'Grn-Colo-Confl'!N27 -> 100 | O62: ='CP-7'!O35+'CP-7'!O43+'CP-8'!O24+'Grn-Colo-Confl'!O27 -> 100 | P62: ='CP-7'!P35+'CP-7'!P43+'CP-8'!P24+'Grn-Colo-Confl'!P27 -> 100 | Q62: ='CP-7'!Q35+'CP-7'!Q43+'CP-8'!Q24+'Grn-Colo-Confl'!Q27 -> 50 | R62: ='CP-7'!R35+'CP-7'!R43+'CP-8'!R24+'Grn-Colo-Confl'!R27 -> 50 | S62: ='CP-7'!S35+'CP-7'!S43+'CP-8'!S24+'Grn-Colo-Confl'!S27 -> 50 | T62: ='CP-7'!T35+'CP-7'!T43+'CP-8'!T24+'Grn-Colo-Confl'!T27 -> 50 | U62: ='CP-7'!U35+'CP-7'!U43+'CP-8'!U24+'Grn-Colo-Confl'!U27 -> 40 | V62: ='CP-7'!V35+'CP-7'!V43+'CP-8'!V24+'Grn-Colo-Confl'!V27 -> 156.6 | W62: ='CP-7'!W35+'CP-7'!W43+'CP-8'!W24+'Grn-Colo-Confl'!W27 -> 153.575 | X62: ='CP-7'!X35+'CP-7'!X43+'CP-8'!X24+'Grn-Colo-Confl'!X27 -> 144.5 | Y62: ='CP-7'!Y35+'CP-7'!Y43+'CP-8'!Y24+'Grn-Colo-Confl'!Y27 -> 138.15 | Z62: ='CP-7'!Z35+'CP-7'!Z43+'CP-8'!Z24+'Grn-Colo-Confl'!Z27 -> 121.85 | AA62: ='CP-7'!AA35+'CP-7'!AA43+'CP-8'!AA24+'Grn-Colo-Confl'!AA27 -> 105.4 | AB62: ='CP-7'!AB35+'CP-7'!AB43+'CP-8'!AB24+'Grn-Colo-Confl'!AB27 -> 106.275 | AC62: ='CP-7'!AC35+'CP-7'!AC43+'CP-8'!AC24+'Grn-Colo-Confl'!AC27 -> 96.175 | AD62: ='CP-7'!AD35+'CP-7'!AD43+'CP-8'!AD24+'Grn-Colo-Confl'!AD27 -> 108.825 | AE62: ='CP-7'!AE35+'CP-7'!AE43+'CP-8'!AE24+'Grn-Colo-Confl'!AE27 -> 112.775 | AF62: ='CP-7'!AF35+'CP-7'!AF43+'CP-8'!AF24+'Grn-Colo-Confl'!AF27 -> 109.3110861 | AG62: ='CP-7'!AG35+'CP-7'!AG43+'CP-8'!AG24+'Grn-Colo-Confl'!AG27 -> 156.9792557 | AH62: ='CP-7'!AH35+'CP-7'!AH43+'CP-8'!AH24+'Grn-Colo-Confl'!AH27 -> 148.5776043 | AI62: ='CP-7'!AI35+'CP-7'!AI43+'CP-8'!AI24+'Grn-Colo-Confl'!AI27 -> 134.5748519 | AJ62: ='CP-7'!AJ35+'CP-7'!AJ43+'CP-8'!AJ24+'Grn-Colo-Confl'!AJ27 -> 120.5720995 | AK62: ='CP-7'!AK35+'CP-7'!AK43+'CP-8'!AK24+'Grn-Colo-Confl'!AK27 -> 100.8786286 | AL62: ='CP-7'!AL35+'CP-7'!AL43+'CP-8'!AL24+'Grn-Colo-Confl'!AL27 -> 94.99719254 | AM62: ='CP-7'!AM35+'CP-7'!AM43+'CP-8'!AM24+'Grn-Colo-Confl'!AM27 -> 81.7225833 | AN62: ='CP-7'!AN35+'CP-7'!AN43+'CP-8'!AN24+'Grn-Colo-Confl'!AN27 -> 86.76357415 | AO62: ='CP-7'!AO35+'CP-7'!AO43+'CP-8'!AO24+'Grn-Colo-Confl'!AO27 -> 100.7663265 | AP62: ='CP-7'!AP35+'CP-7'!AP43+'CP-8'!AP24+'Grn-Colo-Confl'!AP27 -> 88.56180761 | AQ62: ='CP-7'!AQ35+'CP-7'!AQ43+'CP-8'!AQ24+'Grn-Colo-Confl'!AQ27 -> 108.5804785 | AR62: ='CP-7'!AR35+'CP-7'!AR43+'CP-8'!AR24+'Grn-Colo-Confl'!AR27 -> 93.65600892 | AS62: ='CP-7'!AS35+'CP-7'!AS43+'CP-8'!AS24+'Grn-Colo-Confl'!AS27 -> 98.13408913 | AT62: ='CP-7'!AT35+'CP-7'!AT43+'CP-8'!AT24+'Grn-Colo-Confl'!AT27 -> 98.13408913 | AU62: ='CP-7'!AU35+'CP-7'!AU43+'CP-8'!AU24+'Grn-Colo-Confl'!AU27 -> 95.6135937 | AV62: ='CP-7'!AV35+'CP-7'!AV43+'CP-8'!AV24+'Grn-Colo-Confl'!AV27 -> 96.73381389 | AW62: ='CP-7'!AW35+'CP-7'!AW43+'CP-8'!AW24+'Grn-Colo-Confl'!AW27 -> 107.3759057 | AX62: ='CP-7'!AX35+'CP-7'!AX43+'CP-8'!AX24+'Grn-Colo-Confl'!AX27 -> 108.4961259 | AY62: ='CP-7'!AY35+'CP-7'!AY43+'CP-8'!AY24+'Grn-Colo-Confl'!AY27 -> 105.1354653 | AZ62: ='CP-7'!AZ35+'CP-7'!AZ43+'CP-8'!AZ24+'Grn-Colo-Confl'!AZ27 -> 111.8567864 | BA62: ='CP-7'!BA35+'CP-7'!BA43+'CP-8'!BA24+'Grn-Colo-Confl'!BA27 -> 109.336291 | BB62: ='CP-7'!BB35+'CP-7'!BB43+'CP-8'!BB24+'Grn-Colo-Confl'!BB27 -> 0 | BC62: ='CP-7'!BC35+'CP-7'!BC43+'CP-8'!BC24+'Grn-Colo-Confl'!BC27 -> 0 | BD62: ='CP-7'!BD35+'CP-7'!BD43+'CP-8'!BD24+'Grn-Colo-Confl'!BD27 -> 0
F63: san juan-colorado river | G63: ='CP-19'!G82+'CP-19'!G89+'Colo-SanJuan-Confl'!G32+'Colo-SanJuan-Confl'!G35+'Colo-SanJuan-Confl'!G37+'Colo-SanJuan-Confl'!G39+'CP-21'!G24 -> 375.8799897 | H63: ='CP-19'!H82+'CP-19'!H89+'Colo-SanJuan-Confl'!H32+'Colo-SanJuan-Confl'!H35+'Colo-SanJuan-Confl'!H37+'Colo-SanJuan-Confl'!H39+'CP-21'!H24 -> 395.6631471 | I63: ='CP-19'!I82+'CP-19'!I89+'Colo-SanJuan-Confl'!I32+'Colo-SanJuan-Confl'!I35+'Colo-SanJuan-Confl'!I37+'Colo-SanJuan-Confl'!I39+'CP-21'!I24 -> 316.5305177 | J63: ='CP-19'!J82+'CP-19'!J89+'Colo-SanJuan-Confl'!J32+'Colo-SanJuan-Confl'!J35+'Colo-SanJuan-Confl'!J37+'Colo-SanJuan-Confl'!J39+'CP-21'!J24 -> 395.6631471 | K63: ='CP-19'!K82+'CP-19'!K89+'Colo-SanJuan-Confl'!K32+'Colo-SanJuan-Confl'!K35+'Colo-SanJuan-Confl'!K37+'Colo-SanJuan-Confl'!K39+'CP-21'!K24 -> 336.313675 | L63: ='CP-19'!L82+'CP-19'!L89+'Colo-SanJuan-Confl'!L32+'Colo-SanJuan-Confl'!L35+'Colo-SanJuan-Confl'!L37+'Colo-SanJuan-Confl'!L39+'CP-21'!L24 -> 500 | M63: ='CP-19'!M82+'CP-19'!M89+'Colo-SanJuan-Confl'!M32+'Colo-SanJuan-Confl'!M35+'Colo-SanJuan-Confl'!M37+'Colo-SanJuan-Confl'!M39+'CP-21'!M24 -> 500 | N63: ='CP-19'!N82+'CP-19'!N89+'Colo-SanJuan-Confl'!N32+'Colo-SanJuan-Confl'!N35+'Colo-SanJuan-Confl'!N37+'Colo-SanJuan-Confl'!N39+'CP-21'!N24 -> 500 | O63: ='CP-19'!O82+'CP-19'!O89+'Colo-SanJuan-Confl'!O32+'Colo-SanJuan-Confl'!O35+'Colo-SanJuan-Confl'!O37+'Colo-SanJuan-Confl'!O39+'CP-21'!O24 -> 500 | P63: ='CP-19'!P82+'CP-19'!P89+'Colo-SanJuan-Confl'!P32+'Colo-SanJuan-Confl'!P35+'Colo-SanJuan-Confl'!P37+'Colo-SanJuan-Confl'!P39+'CP-21'!P24 -> 500 | Q63: ='CP-19'!Q82+'CP-19'!Q89+'Colo-SanJuan-Confl'!Q32+'Colo-SanJuan-Confl'!Q35+'Colo-SanJuan-Confl'!Q37+'Colo-SanJuan-Confl'!Q39+'CP-21'!Q24 -> 1220 | R63: ='CP-19'!R82+'CP-19'!R89+'Colo-SanJuan-Confl'!R32+'Colo-SanJuan-Confl'!R35+'Colo-SanJuan-Confl'!R37+'Colo-SanJuan-Confl'!R39+'CP-21'!R24 -> 1260 | S63: ='CP-19'!S82+'CP-19'!S89+'Colo-SanJuan-Confl'!S32+'Colo-SanJuan-Confl'!S35+'Colo-SanJuan-Confl'!S37+'Colo-SanJuan-Confl'!S39+'CP-21'!S24 -> 1250 | T63: ='CP-19'!T82+'CP-19'!T89+'Colo-SanJuan-Confl'!T32+'Colo-SanJuan-Confl'!T35+'Colo-SanJuan-Confl'!T37+'Colo-SanJuan-Confl'!T39+'CP-21'!T24 -> 1160 | U63: ='CP-19'!U82+'CP-19'!U89+'Colo-SanJuan-Confl'!U32+'Colo-SanJuan-Confl'!U35+'Colo-SanJuan-Confl'!U37+'Colo-SanJuan-Confl'!U39+'CP-21'!U24 -> 1070 | V63: ='CP-19'!V82+'CP-19'!V89+'Colo-SanJuan-Confl'!V32+'Colo-SanJuan-Confl'!V35+'Colo-SanJuan-Confl'!V37+'Colo-SanJuan-Confl'!V39+'CP-21'!V24 -> 561.31 | W63: ='CP-19'!W82+'CP-19'!W89+'Colo-SanJuan-Confl'!W32+'Colo-SanJuan-Confl'!W35+'Colo-SanJuan-Confl'!W37+'Colo-SanJuan-Confl'!W39+'CP-21'!W24 -> 553.62 | X63: ='CP-19'!X82+'CP-19'!X89+'Colo-SanJuan-Confl'!X32+'Colo-SanJuan-Confl'!X35+'Colo-SanJuan-Confl'!X37+'Colo-SanJuan-Confl'!X39+'CP-21'!X24 -> 544.075 | Y63: ='CP-19'!Y82+'CP-19'!Y89+'Colo-SanJuan-Confl'!Y32+'Colo-SanJuan-Confl'!Y35+'Colo-SanJuan-Confl'!Y37+'Colo-SanJuan-Confl'!Y39+'CP-21'!Y24 -> 602.435 | Z63: ='CP-19'!Z82+'CP-19'!Z89+'Colo-SanJuan-Confl'!Z32+'Colo-SanJuan-Confl'!Z35+'Colo-SanJuan-Confl'!Z37+'Colo-SanJuan-Confl'!Z39+'CP-21'!Z24 -> 584.3 | AA63: ='CP-19'!AA82+'CP-19'!AA89+'Colo-SanJuan-Confl'!AA32+'Colo-SanJuan-Confl'!AA35+'Colo-SanJuan-Confl'!AA37+'Colo-SanJuan-Confl'!AA39+'CP-21'!AA24 -> 574.75 | AB63: ='CP-19'!AB82+'CP-19'!AB89+'Colo-SanJuan-Confl'!AB32+'Colo-SanJuan-Confl'!AB35+'Colo-SanJuan-Confl'!AB37+'Colo-SanJuan-Confl'!AB39+'CP-21'!AB24 -> 584.825 | AC63: ='CP-19'!AC82+'CP-19'!AC89+'Colo-SanJuan-Confl'!AC32+'Colo-SanJuan-Confl'!AC35+'Colo-SanJuan-Confl'!AC37+'Colo-SanJuan-Confl'!AC39+'CP-21'!AC24 -> 597.73 | AD63: ='CP-19'!AD82+'CP-19'!AD89+'Colo-SanJuan-Confl'!AD32+'Colo-SanJuan-Confl'!AD35+'Colo-SanJuan-Confl'!AD37+'Colo-SanJuan-Confl'!AD39+'CP-21'!AD24 -> 573.525 | AE63: ='CP-19'!AE82+'CP-19'!AE89+'Colo-SanJuan-Confl'!AE32+'Colo-SanJuan-Confl'!AE35+'Colo-SanJuan-Confl'!AE37+'Colo-SanJuan-Confl'!AE39+'CP-21'!AE24 -> 604.27 | AF63: ='CP-19'!AF82+'CP-19'!AF89+'Colo-SanJuan-Confl'!AF32+'Colo-SanJuan-Confl'!AF35+'Colo-SanJuan-Confl'!AF37+'Colo-SanJuan-Confl'!AF39+'CP-21'!AF24 -> 804.6893144 | AG63: ='CP-19'!AG82+'CP-19'!AG89+'Colo-SanJuan-Confl'!AG32+'Colo-SanJuan-Confl'!AG35+'Colo-SanJuan-Confl'!AG37+'Colo-SanJuan-Confl'!AG39+'CP-21'!AG24 -> 753.4983436 | AH63: ='CP-19'!AH82+'CP-19'!AH89+'Colo-SanJuan-Confl'!AH32+'Colo-SanJuan-Confl'!AH35+'Colo-SanJuan-Confl'!AH37+'Colo-SanJuan-Confl'!AH39+'CP-21'!AH24 -> 742.2849395 | AI63: ='CP-19'!AI82+'CP-19'!AI89+'Colo-SanJuan-Confl'!AI32+'Colo-SanJuan-Confl'!AI35+'Colo-SanJuan-Confl'!AI37+'Colo-SanJuan-Confl'!AI39+'CP-21'!AI24 -> 710.6947302 | AJ63: ='CP-19'!AJ82+'CP-19'!AJ89+'Colo-SanJuan-Confl'!AJ32+'Colo-SanJuan-Confl'!AJ35+'Colo-SanJuan-Confl'!AJ37+'Colo-SanJuan-Confl'!AJ39+'CP-21'!AJ24 -> 683.6414126 | AK63: ='CP-19'!AK82+'CP-19'!AK89+'Colo-SanJuan-Confl'!AK32+'Colo-SanJuan-Confl'!AK35+'Colo-SanJuan-Confl'!AK37+'Colo-SanJuan-Confl'!AK39+'CP-21'!AK24 -> 599.0128549 | AL63: ='CP-19'!AL82+'CP-19'!AL89+'Colo-SanJuan-Confl'!AL32+'Colo-SanJuan-Confl'!AL35+'Colo-SanJuan-Confl'!AL37+'Colo-SanJuan-Confl'!AL39+'CP-21'!AL24 -> 618.4241177 | AM63: ='CP-19'!AM82+'CP-19'!AM89+'Colo-SanJuan-Confl'!AM32+'Colo-SanJuan-Confl'!AM35+'Colo-SanJuan-Confl'!AM37+'Colo-SanJuan-Confl'!AM39+'CP-21'!AM24 -> 530.4527782 | AN63: ='CP-19'!AN82+'CP-19'!AN89+'Colo-SanJuan-Confl'!AN32+'Colo-SanJuan-Confl'!AN35+'Colo-SanJuan-Confl'!AN37+'Colo-SanJuan-Confl'!AN39+'CP-21'!AN24 -> 552.0013337 | AO63: ='CP-19'!AO82+'CP-19'!AO89+'Colo-SanJuan-Confl'!AO32+'Colo-SanJuan-Confl'!AO35+'Colo-SanJuan-Confl'!AO37+'Colo-SanJuan-Confl'!AO39+'CP-21'!AO24 -> 554.3381131 | AP63: ='CP-19'!AP82+'CP-19'!AP89+'Colo-SanJuan-Confl'!AP32+'Colo-SanJuan-Confl'!AP35+'Colo-SanJuan-Confl'!AP37+'Colo-SanJuan-Confl'!AP39+'CP-21'!AP24 -> 585.9797875 | AQ63: ='CP-19'!AQ82+'CP-19'!AQ89+'Colo-SanJuan-Confl'!AQ32+'Colo-SanJuan-Confl'!AQ35+'Colo-SanJuan-Confl'!AQ37+'Colo-SanJuan-Confl'!AQ39+'CP-21'!AQ24 -> 724.4021118 | AR63: ='CP-19'!AR82+'CP-19'!AR89+'Colo-SanJuan-Confl'!AR32+'Colo-SanJuan-Confl'!AR35+'Colo-SanJuan-Confl'!AR37+'Colo-SanJuan-Confl'!AR39+'CP-21'!AR24 -> 694.6389189 | AS63: ='CP-19'!AS82+'CP-19'!AS89+'Colo-SanJuan-Confl'!AS32+'Colo-SanJuan-Confl'!AS35+'Colo-SanJuan-Confl'!AS37+'Colo-SanJuan-Confl'!AS39+'CP-21'!AS24 -> 711.8182662 | AT63: ='CP-19'!AT82+'CP-19'!AT89+'Colo-SanJuan-Confl'!AT32+'Colo-SanJuan-Confl'!AT35+'Colo-SanJuan-Confl'!AT37+'Colo-SanJuan-Confl'!AT39+'CP-21'!AT24 -> 711.8182662 | AU63: ='CP-19'!AU82+'CP-19'!AU89+'Colo-SanJuan-Confl'!AU32+'Colo-SanJuan-Confl'!AU35+'Colo-SanJuan-Confl'!AU37+'Colo-SanJuan-Confl'!AU39+'CP-21'!AU24 -> 697.5757867 | AV63: ='CP-19'!AV82+'CP-19'!AV89+'Colo-SanJuan-Confl'!AV32+'Colo-SanJuan-Confl'!AV35+'Colo-SanJuan-Confl'!AV37+'Colo-SanJuan-Confl'!AV39+'CP-21'!AV24 -> 698.7497775 | AW63: ='CP-19'!AW82+'CP-19'!AW89+'Colo-SanJuan-Confl'!AW32+'Colo-SanJuan-Confl'!AW35+'Colo-SanJuan-Confl'!AW37+'Colo-SanJuan-Confl'!AW39+'CP-21'!AW24 -> 679.8180563 | AX63: ='CP-19'!AX82+'CP-19'!AX89+'Colo-SanJuan-Confl'!AX32+'Colo-SanJuan-Confl'!AX35+'Colo-SanJuan-Confl'!AX37+'Colo-SanJuan-Confl'!AX39+'CP-21'!AX24 -> 652.9327718 | AY63: ='CP-19'!AY82+'CP-19'!AY89+'Colo-SanJuan-Confl'!AY32+'Colo-SanJuan-Confl'!AY35+'Colo-SanJuan-Confl'!AY37+'Colo-SanJuan-Confl'!AY39+'CP-21'!AY24 -> 626.5090179 | AZ63: ='CP-19'!AZ82+'CP-19'!AZ89+'Colo-SanJuan-Confl'!AZ32+'Colo-SanJuan-Confl'!AZ35+'Colo-SanJuan-Confl'!AZ37+'Colo-SanJuan-Confl'!AZ39+'CP-21'!AZ24 -> 661.6615275 | BA63: ='CP-19'!BA82+'CP-19'!BA89+'Colo-SanJuan-Confl'!BA32+'Colo-SanJuan-Confl'!BA35+'Colo-SanJuan-Confl'!BA37+'Colo-SanJuan-Confl'!BA39+'CP-21'!BA24 -> 654.7475285 | BB63: ='CP-19'!BB82+'CP-19'!BB89+'Colo-SanJuan-Confl'!BB32+'Colo-SanJuan-Confl'!BB35+'Colo-SanJuan-Confl'!BB37+'Colo-SanJuan-Confl'!BB39+'CP-21'!BB24 -> 0 | BC63: ='CP-19'!BC82+'CP-19'!BC89+'Colo-SanJuan-Confl'!BC32+'Colo-SanJuan-Confl'!BC35+'Colo-SanJuan-Confl'!BC37+'Colo-SanJuan-Confl'!BC39+'CP-21'!BC24 -> 0 | BD63: ='CP-19'!BD82+'CP-19'!BD89+'Colo-SanJuan-Confl'!BD32+'Colo-SanJuan-Confl'!BD35+'Colo-SanJuan-Confl'!BD37+'Colo-SanJuan-Confl'!BD39+'CP-21'!BD24 -> 0
F64: Total | G64: =SUM(G61:G63) -> 2316.599732 | H64: 2318.48284 | I64: 1963.636669 | J64: 2572.708782 | K64: 2337.908665 | L64: 2300 | M64: 2100 | N64: 2100 | O64: 2000 | P64: 2100 | Q64: 2820 | R64: 2910 | S64: 2890 | T64: 2680 | U64: 2460 | V64: =SUM(V61:V63) -> 2312.5 | W64: =SUM(W61:W63) -> 2252.2 | X64: 2267.1 | Y64: 2460.7 | Z64: 2371.2 | AA64: 2348.3 | AB64: 2356.4 | AC64: 2422 | AD64: 2524.9 | AE64: 2578 | AF64: =SUM(AF61:AF63) -> 3169.324988 | AG64: =SUM(AG61:AG63) -> 3005.653514 | AH64: =SUM(AH61:AH63) -> 2958.503447 | AI64: =SUM(AI61:AI63) -> 2810.32072 | AJ64: =SUM(AJ61:AJ63) -> 2798.475512 | AK64: =SUM(AK61:AK63) -> 2583.501202 | AL64: 2635.932765 | AM64: 2285.794503 | AN64: 2391.06473 | AO64: 2436.171516 | AP64: 2558.337853 | AQ64: 2758.681961 | AR64: 2672.114141 | AS64: 2698.690312 | AT64: 2698.690312 | AU64: 2650.639587 | AV64: 2667.416005 | AW64: 2671.498087 | AX64: 2638.536728 | AY64: 2564.611158 | AZ64: =SUM(AZ61:AZ63) -> 2700.301189 | BA64: 2655.28178 | BB64: 0 | BC64: 0 | BD64: 0
D65: Wyoming | F65: green river | G65: ='CP-9'!G28+'CP-10'!G29+'CP-11'!G41+'CP-11'!G42+'CP-11'!G47+'CP-11'!G50+'CP-13'!G32+'CP-13'!G30+Jensen!G41+Jensen!G42 -> 2425.339749 | H65: ='CP-9'!H28+'CP-10'!H29+'CP-11'!H41+'CP-11'!H42+'CP-11'!H47+'CP-11'!H50+'CP-13'!H32+'CP-13'!H30+Jensen!H41+Jensen!H42 -> 2376.832954 | I65: ='CP-9'!I28+'CP-10'!I29+'CP-11'!I41+'CP-11'!I42+'CP-11'!I47+'CP-11'!I50+'CP-13'!I32+'CP-13'!I30+Jensen!I41+Jensen!I42 -> 2279.819364 | J65: ='CP-9'!J28+'CP-10'!J29+'CP-11'!J41+'CP-11'!J42+'CP-11'!J47+'CP-11'!J50+'CP-13'!J32+'CP-13'!J30+Jensen!J41+Jensen!J42 -> 2522.353339 | K65: ='CP-9'!K28+'CP-10'!K29+'CP-11'!K41+'CP-11'!K42+'CP-11'!K47+'CP-11'!K50+'CP-13'!K32+'CP-13'!K30+Jensen!K41+Jensen!K42 -> 2376.832954 | L65: ='CP-9'!L28+'CP-10'!L29+'CP-11'!L41+'CP-11'!L42+'CP-11'!L47+'CP-11'!L50+'CP-13'!L32+'CP-13'!L30+Jensen!L41+Jensen!L42 -> 2500 | M65: ='CP-9'!M28+'CP-10'!M29+'CP-11'!M41+'CP-11'!M42+'CP-11'!M47+'CP-11'!M50+'CP-13'!M32+'CP-13'!M30+Jensen!M41+Jensen!M42 -> 2400 | N65: ='CP-9'!N28+'CP-10'!N29+'CP-11'!N41+'CP-11'!N42+'CP-11'!N47+'CP-11'!N50+'CP-13'!N32+'CP-13'!N30+Jensen!N41+Jensen!N42 -> 2100 | O65: ='CP-9'!O28+'CP-10'!O29+'CP-11'!O41+'CP-11'!O42+'CP-11'!O47+'CP-11'!O50+'CP-13'!O32+'CP-13'!O30+Jensen!O41+Jensen!O42 -> 2100 | P65: ='CP-9'!P28+'CP-10'!P29+'CP-11'!P41+'CP-11'!P42+'CP-11'!P47+'CP-11'!P50+'CP-13'!P32+'CP-13'!P30+Jensen!P41+Jensen!P42 -> 1900 | Q65: ='CP-9'!Q28+'CP-10'!Q29+'CP-11'!Q41+'CP-11'!Q42+'CP-11'!Q47+'CP-11'!Q50+'CP-13'!Q32+'CP-13'!Q30+Jensen!Q41+Jensen!Q42 -> 2070 | R65: ='CP-9'!R28+'CP-10'!R29+'CP-11'!R41+'CP-11'!R42+'CP-11'!R47+'CP-11'!R50+'CP-13'!R32+'CP-13'!R30+Jensen!R41+Jensen!R42 -> 2230 | S65: ='CP-9'!S28+'CP-10'!S29+'CP-11'!S41+'CP-11'!S42+'CP-11'!S47+'CP-11'!S50+'CP-13'!S32+'CP-13'!S30+Jensen!S41+Jensen!S42 -> 2300 | T65: ='CP-9'!T28+'CP-10'!T29+'CP-11'!T41+'CP-11'!T42+'CP-11'!T47+'CP-11'!T50+'CP-13'!T32+'CP-13'!T30+Jensen!T41+Jensen!T42 -> 2080 | U65: ='CP-9'!U28+'CP-10'!U29+'CP-11'!U41+'CP-11'!U42+'CP-11'!U47+'CP-11'!U50+'CP-13'!U32+'CP-13'!U30+Jensen!U41+Jensen!U42 -> 1950 | V65: ='CP-9'!V28+'CP-10'!V29+'CP-11'!V41+'CP-11'!V42+'CP-11'!V47+'CP-11'!V50+'CP-13'!V32+'CP-13'!V30+Jensen!V41+Jensen!V42 -> 2268.9 | W65: ='CP-9'!W28+'CP-10'!W29+'CP-11'!W41+'CP-11'!W42+'CP-11'!W47+'CP-11'!W50+'CP-13'!W32+'CP-13'!W30+Jensen!W41+Jensen!W42 -> 2284.6 | X65: ='CP-9'!X28+'CP-10'!X29+'CP-11'!X41+'CP-11'!X42+'CP-11'!X47+'CP-11'!X50+'CP-13'!X32+'CP-13'!X30+Jensen!X41+Jensen!X42 -> 2448.1 | Y65: ='CP-9'!Y28+'CP-10'!Y29+'CP-11'!Y41+'CP-11'!Y42+'CP-11'!Y47+'CP-11'!Y50+'CP-13'!Y32+'CP-13'!Y30+Jensen!Y41+Jensen!Y42 -> 2448.2 | Z65: ='CP-9'!Z28+'CP-10'!Z29+'CP-11'!Z41+'CP-11'!Z42+'CP-11'!Z47+'CP-11'!Z50+'CP-13'!Z32+'CP-13'!Z30+Jensen!Z41+Jensen!Z42 -> 2251 | AA65: ='CP-9'!AA28+'CP-10'!AA29+'CP-11'!AA41+'CP-11'!AA42+'CP-11'!AA47+'CP-11'!AA50+'CP-13'!AA32+'CP-13'!AA30+Jensen!AA41+Jensen!AA42 -> 2079.7 | AB65: ='CP-9'!AB28+'CP-10'!AB29+'CP-11'!AB41+'CP-11'!AB42+'CP-11'!AB47+'CP-11'!AB50+'CP-13'!AB32+'CP-13'!AB30+Jensen!AB41+Jensen!AB42 -> 2007.8 | AC65: ='CP-9'!AC28+'CP-10'!AC29+'CP-11'!AC41+'CP-11'!AC42+'CP-11'!AC47+'CP-11'!AC50+'CP-13'!AC32+'CP-13'!AC30+Jensen!AC41+Jensen!AC42 -> 2162.8 | AD65: ='CP-9'!AD28+'CP-10'!AD29+'CP-11'!AD41+'CP-11'!AD42+'CP-11'!AD47+'CP-11'!AD50+'CP-13'!AD32+'CP-13'!AD30+Jensen!AD41+Jensen!AD42 -> 2239.2 | AE65: ='CP-9'!AE28+'CP-10'!AE29+'CP-11'!AE41+'CP-11'!AE42+'CP-11'!AE47+'CP-11'!AE50+'CP-13'!AE32+'CP-13'!AE30+Jensen!AE41+Jensen!AE42 -> 2183.5 | AF65: ='CP-9'!AF28+'CP-10'!AF29+'CP-11'!AF41+'CP-11'!AF42+'CP-11'!AF47+'CP-11'!AF50+'CP-13'!AF32+'CP-13'!AF30+Jensen!AF41+Jensen!AF42 -> 1609.263515 | AG65: ='CP-9'!AG28+'CP-10'!AG29+'CP-11'!AG41+'CP-11'!AG42+'CP-11'!AG47+'CP-11'!AG50+'CP-13'!AG32+'CP-13'!AG30+Jensen!AG41+Jensen!AG42 -> 1688.09453 | AH65: ='CP-9'!AH28+'CP-10'!AH29+'CP-11'!AH41+'CP-11'!AH42+'CP-11'!AH47+'CP-11'!AH50+'CP-13'!AH32+'CP-13'!AH30+Jensen!AH41+Jensen!AH42 -> 1495.416657 | AI65: ='CP-9'!AI28+'CP-10'!AI29+'CP-11'!AI41+'CP-11'!AI42+'CP-11'!AI47+'CP-11'!AI50+'CP-13'!AI32+'CP-13'!AI30+Jensen!AI41+Jensen!AI42 -> 1564.870309 | AJ65: ='CP-9'!AJ28+'CP-10'!AJ29+'CP-11'!AJ41+'CP-11'!AJ42+'CP-11'!AJ47+'CP-11'!AJ50+'CP-13'!AJ32+'CP-13'!AJ30+Jensen!AJ41+Jensen!AJ42 -> 1542.465905 | AK65: ='CP-9'!AK28+'CP-10'!AK29+'CP-11'!AK41+'CP-11'!AK42+'CP-11'!AK47+'CP-11'!AK50+'CP-13'!AK32+'CP-13'!AK30+Jensen!AK41+Jensen!AK42 -> 2198.499335 | AL65: ='CP-9'!AL28+'CP-10'!AL29+'CP-11'!AL41+'CP-11'!AL42+'CP-11'!AL47+'CP-11'!AL50+'CP-13'!AL32+'CP-13'!AL30+Jensen!AL41+Jensen!AL42 -> 1929.321625 | AM65: ='CP-9'!AM28+'CP-10'!AM29+'CP-11'!AM41+'CP-11'!AM42+'CP-11'!AM47+'CP-11'!AM50+'CP-13'!AM32+'CP-13'!AM30+Jensen!AM41+Jensen!AM42 -> 1949.485589 | AN65: ='CP-9'!AN28+'CP-10'!AN29+'CP-11'!AN41+'CP-11'!AN42+'CP-11'!AN47+'CP-11'!AN50+'CP-13'!AN32+'CP-13'!AN30+Jensen!AN41+Jensen!AN42 -> 2083.912011 | AO65: ='CP-9'!AO28+'CP-10'!AO29+'CP-11'!AO41+'CP-11'!AO42+'CP-11'!AO47+'CP-11'!AO50+'CP-13'!AO32+'CP-13'!AO30+Jensen!AO41+Jensen!AO42 -> 2035.742543 | AP65: ='CP-9'!AP28+'CP-10'!AP29+'CP-11'!AP41+'CP-11'!AP42+'CP-11'!AP47+'CP-11'!AP50+'CP-13'!AP32+'CP-13'!AP30+Jensen!AP41+Jensen!AP42 -> 2139.923021 | AQ65: ='CP-9'!AQ28+'CP-10'!AQ29+'CP-11'!AQ41+'CP-11'!AQ42+'CP-11'!AQ47+'CP-11'!AQ50+'CP-13'!AQ32+'CP-13'!AQ30+Jensen!AQ41+Jensen!AQ42 -> 2006.993212 | AR65: ='CP-9'!AR28+'CP-10'!AR29+'CP-11'!AR41+'CP-11'!AR42+'CP-11'!AR47+'CP-11'!AR50+'CP-13'!AR32+'CP-13'!AR30+Jensen!AR41+Jensen!AR42 -> 2041.149062 | AS65: ='CP-9'!AS28+'CP-10'!AS29+'CP-11'!AS41+'CP-11'!AS42+'CP-11'!AS47+'CP-11'!AS50+'CP-13'!AS32+'CP-13'!AS30+Jensen!AS41+Jensen!AS42 -> 2146.505143 | AT65: ='CP-9'!AT28+'CP-10'!AT29+'CP-11'!AT41+'CP-11'!AT42+'CP-11'!AT47+'CP-11'!AT50+'CP-13'!AT32+'CP-13'!AT30+Jensen!AT41+Jensen!AT42 -> 2094.975015 | AU65: ='CP-9'!AU28+'CP-10'!AU29+'CP-11'!AU41+'CP-11'!AU42+'CP-11'!AU47+'CP-11'!AU50+'CP-13'!AU32+'CP-13'!AU30+Jensen!AU41+Jensen!AU42 -> 2059.127969 | AV65: ='CP-9'!AV28+'CP-10'!AV29+'CP-11'!AV41+'CP-11'!AV42+'CP-11'!AV47+'CP-11'!AV50+'CP-13'!AV32+'CP-13'!AV30+Jensen!AV41+Jensen!AV42 -> 2006.993212 | AW65: ='CP-9'!AW28+'CP-10'!AW29+'CP-11'!AW41+'CP-11'!AW42+'CP-11'!AW47+'CP-11'!AW50+'CP-13'!AW32+'CP-13'!AW30+Jensen!AW41+Jensen!AW42 -> 2038.856128 | AX65: ='CP-9'!AX28+'CP-10'!AX29+'CP-11'!AX41+'CP-11'!AX42+'CP-11'!AX47+'CP-11'!AX50+'CP-13'!AX32+'CP-13'!AX30+Jensen!AX41+Jensen!AX42 -> 2145.32954 | AY65: ='CP-9'!AY28+'CP-10'!AY29+'CP-11'!AY41+'CP-11'!AY42+'CP-11'!AY47+'CP-11'!AY50+'CP-13'!AY32+'CP-13'!AY30+Jensen!AY41+Jensen!AY42 -> 2147.56998 | AZ65: ='CP-9'!AZ28+'CP-10'!AZ29+'CP-11'!AZ41+'CP-11'!AZ42+'CP-11'!AZ47+'CP-11'!AZ50+'CP-13'!AZ32+'CP-13'!AZ30+Jensen!AZ41+Jensen!AZ42 -> 2147.56998 | BA65: ='CP-9'!BA28+'CP-10'!BA29+'CP-11'!BA41+'CP-11'!BA42+'CP-11'!BA47+'CP-11'!BA50+'CP-13'!BA32+'CP-13'!BA30+Jensen!BA41+Jensen!BA42 -> 2166.613723 | BB65: ='CP-9'!BB28+'CP-10'!BB29+'CP-11'!BB41+'CP-11'!BB42+'CP-11'!BB47+'CP-11'!BB50+'CP-13'!BB32+'CP-13'!BB30+Jensen!BB41+Jensen!BB42 -> 0 | BC65: ='CP-9'!BC28+'CP-10'!BC29+'CP-11'!BC41+'CP-11'!BC42+'CP-11'!BC47+'CP-11'!BC50+'CP-13'!BC32+'CP-13'!BC30+Jensen!BC41+Jensen!BC42 -> 0 | BD65: ='CP-9'!BD28+'CP-10'!BD29+'CP-11'!BD41+'CP-11'!BD42+'CP-11'!BD47+'CP-11'!BD50+'CP-13'!BD32+'CP-13'!BD30+Jensen!BD41+Jensen!BD42 -> 0
F67: Grand Total | G67: =G55+G59+G60+G64+G65 -> 15899.67385 | H67: 16019.89708 | I67: 15155.39518 | J67: 17003.9683 | K67: 14759.18834 | L67: 13700 | M67: 12700 | N67: 11600 | O67: 12200 | P67: 12000 | Q67: 17016.43465 | R67: 16844.54836 | S67: 16814.54836 | T67: 16524.54836 | U67: 15774.54836 | V67: =V55+V59+V60+V64+V65 -> 13857.2 | W67: 13474.2 | X67: 13599.2 | Y67: 13881.4 | Z67: 13387 | AA67: 13126.6 | AB67: 13041.6 | AC67: 13476.7 | AD67: 13877.2 | AE67: 15269.1 | AF67: =AF55+AF59+AF60+AF64+AF65 -> 12692.29616 | AG67: =AG55+AG59+AG60+AG64+AG65 -> 12897.58962 | AH67: =AH55+AH59+AH60+AH64+AH65 -> 12326.48058 | AI67: =AI55+AI59+AI60+AI64+AI65 -> 11882.62635 | AJ67: =AJ55+AJ59+AJ60+AJ64+AJ65 -> 11433.57718 | AK67: =AK55+AK59+AK60+AK64+AK65 -> 11573.5956 | AL67: 9894.295796 | AM67: 9496.480344 | AN67: 9109.646109 | AO67: 9397.165472 | AP67: 9680.42493 | AQ67: 9660.636896 | AR67: 9743.653061 | AS67: 9839.507027 | AT67: 9810.957612 | AU67: 9971.759299 | AV67: 9799.622789 | AW67: 10322.25472 | AX67: 10240.43342 | AY67: 10251.45186 | AZ67: =AZ55+AZ59+AZ60+AZ64+AZ65 -> 10603.53082 | BA67: 10855.69623 | BB67: 0 | BC67: 0 | BD67: 0
A69: Stockpond | F69: TOTAL | G69: ='CP-1'!G49+'CP-2'!G54+Stateline!G30+'CP-3'!G27+'CP-4'!G51+'CP-5'!G36+'CP-6'!G72+'CP-7'!G62+'CP-8'!G34+'CP-9'!G36+'CP-10'!G37+'CP-11'!G71+'CP-12'!G42+'CP-13'!G45+Jensen!G69+'CP-14'!G40+'CP-15'!G52+Ouray!G55+'CP-16'!G58+'CP-17'!G27+'Grn-Colo-Confl'!G43+'CP-18'!G52+'CP-19'!G136+'Colo-SanJuan-Confl'!G58+'CP-20'!G27+'CP-21'!G30 -> 22100.32615 | H69: ='CP-1'!H49+'CP-2'!H54+Stateline!H30+'CP-3'!H27+'CP-4'!H51+'CP-5'!H36+'CP-6'!H72+'CP-7'!H62+'CP-8'!H34+'CP-9'!H36+'CP-10'!H37+'CP-11'!H71+'CP-12'!H42+'CP-13'!H45+Jensen!H69+'CP-14'!H40+'CP-15'!H52+Ouray!H55+'CP-16'!H58+'CP-17'!H27+'Grn-Colo-Confl'!H43+'CP-18'!H52+'CP-19'!H136+'Colo-SanJuan-Confl'!H58+'CP-20'!H27+'CP-21'!H30 -> 22280.10292 | I69: ='CP-1'!I49+'CP-2'!I54+Stateline!I30+'CP-3'!I27+'CP-4'!I51+'CP-5'!I36+'CP-6'!I72+'CP-7'!I62+'CP-8'!I34+'CP-9'!I36+'CP-10'!I37+'CP-11'!I71+'CP-12'!I42+'CP-13'!I45+Jensen!I69+'CP-14'!I40+'CP-15'!I52+Ouray!I55+'CP-16'!I58+'CP-17'!I27+'Grn-Colo-Confl'!I43+'CP-18'!I52+'CP-19'!I136+'Colo-SanJuan-Confl'!I58+'CP-20'!I27+'CP-21'!I30 -> 19444.60482 | J69: ='CP-1'!J49+'CP-2'!J54+Stateline!J30+'CP-3'!J27+'CP-4'!J51+'CP-5'!J36+'CP-6'!J72+'CP-7'!J62+'CP-8'!J34+'CP-9'!J36+'CP-10'!J37+'CP-11'!J71+'CP-12'!J42+'CP-13'!J45+Jensen!J69+'CP-14'!J40+'CP-15'!J52+Ouray!J55+'CP-16'!J58+'CP-17'!J27+'Grn-Colo-Confl'!J43+'CP-18'!J52+'CP-19'!J136+'Colo-SanJuan-Confl'!J58+'CP-20'!J27+'CP-21'!J30 -> 23060.0317 | K69: ='CP-1'!K49+'CP-2'!K54+Stateline!K30+'CP-3'!K27+'CP-4'!K51+'CP-5'!K36+'CP-6'!K72+'CP-7'!K62+'CP-8'!K34+'CP-9'!K36+'CP-10'!K37+'CP-11'!K71+'CP-12'!K42+'CP-13'!K45+Jensen!K69+'CP-14'!K40+'CP-15'!K52+Ouray!K55+'CP-16'!K58+'CP-17'!K27+'Grn-Colo-Confl'!K43+'CP-18'!K52+'CP-19'!K136+'Colo-SanJuan-Confl'!K58+'CP-20'!K27+'CP-21'!K30 -> 19760.81166 | L69: ='CP-1'!L49+'CP-2'!L54+Stateline!L30+'CP-3'!L27+'CP-4'!L51+'CP-5'!L36+'CP-6'!L72+'CP-7'!L62+'CP-8'!L34+'CP-9'!L36+'CP-10'!L37+'CP-11'!L71+'CP-12'!L42+'CP-13'!L45+Jensen!L69+'CP-14'!L40+'CP-15'!L52+Ouray!L55+'CP-16'!L58+'CP-17'!L27+'Grn-Colo-Confl'!L43+'CP-18'!L52+'CP-19'!L136+'Colo-SanJuan-Confl'!L58+'CP-20'!L27+'CP-21'!L30 -> 12265 | M69: ='CP-1'!M49+'CP-2'!M54+Stateline!M30+'CP-3'!M27+'CP-4'!M51+'CP-5'!M36+'CP-6'!M72+'CP-7'!M62+'CP-8'!M34+'CP-9'!M36+'CP-10'!M37+'CP-11'!M71+'CP-12'!M42+'CP-13'!M45+Jensen!M69+'CP-14'!M40+'CP-15'!M52+Ouray!M55+'CP-16'!M58+'CP-17'!M27+'Grn-Colo-Confl'!M43+'CP-18'!M52+'CP-19'!M136+'Colo-SanJuan-Confl'!M58+'CP-20'!M27+'CP-21'!M30 -> 13548 | N69: ='CP-1'!N49+'CP-2'!N54+Stateline!N30+'CP-3'!N27+'CP-4'!N51+'CP-5'!N36+'CP-6'!N72+'CP-7'!N62+'CP-8'!N34+'CP-9'!N36+'CP-10'!N37+'CP-11'!N71+'CP-12'!N42+'CP-13'!N45+Jensen!N69+'CP-14'!N40+'CP-15'!N52+Ouray!N55+'CP-16'!N58+'CP-17'!N27+'Grn-Colo-Confl'!N43+'CP-18'!N52+'CP-19'!N136+'Colo-SanJuan-Confl'!N58+'CP-20'!N27+'CP-21'!N30 -> 15381 | O69: ='CP-1'!O49+'CP-2'!O54+Stateline!O30+'CP-3'!O27+'CP-4'!O51+'CP-5'!O36+'CP-6'!O72+'CP-7'!O62+'CP-8'!O34+'CP-9'!O36+'CP-10'!O37+'CP-11'!O71+'CP-12'!O42+'CP-13'!O45+Jensen!O69+'CP-14'!O40+'CP-15'!O52+Ouray!O55+'CP-16'!O58+'CP-17'!O27+'Grn-Colo-Confl'!O43+'CP-18'!O52+'CP-19'!O136+'Colo-SanJuan-Confl'!O58+'CP-20'!O27+'CP-21'!O30 -> 14146 | P69: ='CP-1'!P49+'CP-2'!P54+Stateline!P30+'CP-3'!P27+'CP-4'!P51+'CP-5'!P36+'CP-6'!P72+'CP-7'!P62+'CP-8'!P34+'CP-9'!P36+'CP-10'!P37+'CP-11'!P71+'CP-12'!P42+'CP-13'!P45+Jensen!P69+'CP-14'!P40+'CP-15'!P52+Ouray!P55+'CP-16'!P58+'CP-17'!P27+'Grn-Colo-Confl'!P43+'CP-18'!P52+'CP-19'!P136+'Colo-SanJuan-Confl'!P58+'CP-20'!P27+'CP-21'!P30 -> 15798 | Q69: ='CP-1'!Q49+'CP-2'!Q54+Stateline!Q30+'CP-3'!Q27+'CP-4'!Q51+'CP-5'!Q36+'CP-6'!Q72+'CP-7'!Q62+'CP-8'!Q34+'CP-9'!Q36+'CP-10'!Q37+'CP-11'!Q71+'CP-12'!Q42+'CP-13'!Q45+Jensen!Q69+'CP-14'!Q40+'CP-15'!Q52+Ouray!Q55+'CP-16'!Q58+'CP-17'!Q27+'Grn-Colo-Confl'!Q43+'CP-18'!Q52+'CP-19'!Q136+'Colo-SanJuan-Confl'!Q58+'CP-20'!Q27+'CP-21'!Q30 -> 21301.60535 | R69: ='CP-1'!R49+'CP-2'!R54+Stateline!R30+'CP-3'!R27+'CP-4'!R51+'CP-5'!R36+'CP-6'!R72+'CP-7'!R62+'CP-8'!R34+'CP-9'!R36+'CP-10'!R37+'CP-11'!R71+'CP-12'!R42+'CP-13'!R45+Jensen!R69+'CP-14'!R40+'CP-15'!R52+Ouray!R55+'CP-16'!R58+'CP-17'!R27+'Grn-Colo-Confl'!R43+'CP-18'!R52+'CP-19'!R136+'Colo-SanJuan-Confl'!R58+'CP-20'!R27+'CP-21'!R30 -> 20421.84164 | S69: ='CP-1'!S49+'CP-2'!S54+Stateline!S30+'CP-3'!S27+'CP-4'!S51+'CP-5'!S36+'CP-6'!S72+'CP-7'!S62+'CP-8'!S34+'CP-9'!S36+'CP-10'!S37+'CP-11'!S71+'CP-12'!S42+'CP-13'!S45+Jensen!S69+'CP-14'!S40+'CP-15'!S52+Ouray!S55+'CP-16'!S58+'CP-17'!S27+'Grn-Colo-Confl'!S43+'CP-18'!S52+'CP-19'!S136+'Colo-SanJuan-Confl'!S58+'CP-20'!S27+'CP-21'!S30 -> 20529.07164 | T69: ='CP-1'!T49+'CP-2'!T54+Stateline!T30+'CP-3'!T27+'CP-4'!T51+'CP-5'!T36+'CP-6'!T72+'CP-7'!T62+'CP-8'!T34+'CP-9'!T36+'CP-10'!T37+'CP-11'!T71+'CP-12'!T42+'CP-13'!T45+Jensen!T69+'CP-14'!T40+'CP-15'!T52+Ouray!T55+'CP-16'!T58+'CP-17'!T27+'Grn-Colo-Confl'!T43+'CP-18'!T52+'CP-19'!T136+'Colo-SanJuan-Confl'!T58+'CP-20'!T27+'CP-21'!T30 -> 20596.98164 | U69: ='CP-1'!U49+'CP-2'!U54+Stateline!U30+'CP-3'!U27+'CP-4'!U51+'CP-5'!U36+'CP-6'!U72+'CP-7'!U62+'CP-8'!U34+'CP-9'!U36+'CP-10'!U37+'CP-11'!U71+'CP-12'!U42+'CP-13'!U45+Jensen!U69+'CP-14'!U40+'CP-15'!U52+Ouray!U55+'CP-16'!U58+'CP-17'!U27+'Grn-Colo-Confl'!U43+'CP-18'!U52+'CP-19'!U136+'Colo-SanJuan-Confl'!U58+'CP-20'!U27+'CP-21'!U30 -> 20136.70164 | V69: ='CP-1'!V49+'CP-2'!V54+Stateline!V30+'CP-3'!V27+'CP-4'!V51+'CP-5'!V36+'CP-6'!V72+'CP-7'!V62+'CP-8'!V34+'CP-9'!V36+'CP-10'!V37+'CP-11'!V71+'CP-12'!V42+'CP-13'!V45+Jensen!V69+'CP-14'!V40+'CP-15'!V52+Ouray!V55+'CP-16'!V58+'CP-17'!V27+'Grn-Colo-Confl'!V43+'CP-18'!V52+'CP-19'!V136+'Colo-SanJuan-Confl'!V58+'CP-20'!V27+'CP-21'!V30 -> 20542.5 | W69: ='CP-1'!W49+'CP-2'!W54+Stateline!W30+'CP-3'!W27+'CP-4'!W51+'CP-5'!W36+'CP-6'!W72+'CP-7'!W62+'CP-8'!W34+'CP-9'!W36+'CP-10'!W37+'CP-11'!W71+'CP-12'!W42+'CP-13'!W45+Jensen!W69+'CP-14'!W40+'CP-15'!W52+Ouray!W55+'CP-16'!W58+'CP-17'!W27+'Grn-Colo-Confl'!W43+'CP-18'!W52+'CP-19'!W136+'Colo-SanJuan-Confl'!W58+'CP-20'!W27+'CP-21'!W30 -> 22910 | X69: ='CP-1'!X49+'CP-2'!X54+Stateline!X30+'CP-3'!X27+'CP-4'!X51+'CP-5'!X36+'CP-6'!X72+'CP-7'!X62+'CP-8'!X34+'CP-9'!X36+'CP-10'!X37+'CP-11'!X71+'CP-12'!X42+'CP-13'!X45+Jensen!X69+'CP-14'!X40+'CP-15'!X52+Ouray!X55+'CP-16'!X58+'CP-17'!X27+'Grn-Colo-Confl'!X43+'CP-18'!X52+'CP-19'!X136+'Colo-SanJuan-Confl'!X58+'CP-20'!X27+'CP-21'!X30 -> 22896 | Y69: ='CP-1'!Y49+'CP-2'!Y54+Stateline!Y30+'CP-3'!Y27+'CP-4'!Y51+'CP-5'!Y36+'CP-6'!Y72+'CP-7'!Y62+'CP-8'!Y34+'CP-9'!Y36+'CP-10'!Y37+'CP-11'!Y71+'CP-12'!Y42+'CP-13'!Y45+Jensen!Y69+'CP-14'!Y40+'CP-15'!Y52+Ouray!Y55+'CP-16'!Y58+'CP-17'!Y27+'Grn-Colo-Confl'!Y43+'CP-18'!Y52+'CP-19'!Y136+'Colo-SanJuan-Confl'!Y58+'CP-20'!Y27+'CP-21'!Y30 -> 23906 | Z69: ='CP-1'!Z49+'CP-2'!Z54+Stateline!Z30+'CP-3'!Z27+'CP-4'!Z51+'CP-5'!Z36+'CP-6'!Z72+'CP-7'!Z62+'CP-8'!Z34+'CP-9'!Z36+'CP-10'!Z37+'CP-11'!Z71+'CP-12'!Z42+'CP-13'!Z45+Jensen!Z69+'CP-14'!Z40+'CP-15'!Z52+Ouray!Z55+'CP-16'!Z58+'CP-17'!Z27+'Grn-Colo-Confl'!Z43+'CP-18'!Z52+'CP-19'!Z136+'Colo-SanJuan-Confl'!Z58+'CP-20'!Z27+'CP-21'!Z30 -> 21890 | AA69: ='CP-1'!AA49+'CP-2'!AA54+Stateline!AA30+'CP-3'!AA27+'CP-4'!AA51+'CP-5'!AA36+'CP-6'!AA72+'CP-7'!AA62+'CP-8'!AA34+'CP-9'!AA36+'CP-10'!AA37+'CP-11'!AA71+'CP-12'!AA42+'CP-13'!AA45+Jensen!AA69+'CP-14'!AA40+'CP-15'!AA52+Ouray!AA55+'CP-16'!AA58+'CP-17'!AA27+'Grn-Colo-Confl'!AA43+'CP-18'!AA52+'CP-19'!AA136+'Colo-SanJuan-Confl'!AA58+'CP-20'!AA27+'CP-21'!AA30 -> 22565 | AB69: ='CP-1'!AB49+'CP-2'!AB54+Stateline!AB30+'CP-3'!AB27+'CP-4'!AB51+'CP-5'!AB36+'CP-6'!AB72+'CP-7'!AB62+'CP-8'!AB34+'CP-9'!AB36+'CP-10'!AB37+'CP-11'!AB71+'CP-12'!AB42+'CP-13'!AB45+Jensen!AB69+'CP-14'!AB40+'CP-15'!AB52+Ouray!AB55+'CP-16'!AB58+'CP-17'!AB27+'Grn-Colo-Confl'!AB43+'CP-18'!AB52+'CP-19'!AB136+'Colo-SanJuan-Confl'!AB58+'CP-20'!AB27+'CP-21'!AB30 -> 22356 | AC69: ='CP-1'!AC49+'CP-2'!AC54+Stateline!AC30+'CP-3'!AC27+'CP-4'!AC51+'CP-5'!AC36+'CP-6'!AC72+'CP-7'!AC62+'CP-8'!AC34+'CP-9'!AC36+'CP-10'!AC37+'CP-11'!AC71+'CP-12'!AC42+'CP-13'!AC45+Jensen!AC69+'CP-14'!AC40+'CP-15'!AC52+Ouray!AC55+'CP-16'!AC58+'CP-17'!AC27+'Grn-Colo-Confl'!AC43+'CP-18'!AC52+'CP-19'!AC136+'Colo-SanJuan-Confl'!AC58+'CP-20'!AC27+'CP-21'!AC30 -> 21723 | AD69: ='CP-1'!AD49+'CP-2'!AD54+Stateline!AD30+'CP-3'!AD27+'CP-4'!AD51+'CP-5'!AD36+'CP-6'!AD72+'CP-7'!AD62+'CP-8'!AD34+'CP-9'!AD36+'CP-10'!AD37+'CP-11'!AD71+'CP-12'!AD42+'CP-13'!AD45+Jensen!AD69+'CP-14'!AD40+'CP-15'!AD52+Ouray!AD55+'CP-16'!AD58+'CP-17'!AD27+'Grn-Colo-Confl'!AD43+'CP-18'!AD52+'CP-19'!AD136+'Colo-SanJuan-Confl'!AD58+'CP-20'!AD27+'CP-21'!AD30 -> 23289 | AE69: ='CP-1'!AE49+'CP-2'!AE54+Stateline!AE30+'CP-3'!AE27+'CP-4'!AE51+'CP-5'!AE36+'CP-6'!AE72+'CP-7'!AE62+'CP-8'!AE34+'CP-9'!AE36+'CP-10'!AE37+'CP-11'!AE71+'CP-12'!AE42+'CP-13'!AE45+Jensen!AE69+'CP-14'!AE40+'CP-15'!AE52+Ouray!AE55+'CP-16'!AE58+'CP-17'!AE27+'Grn-Colo-Confl'!AE43+'CP-18'!AE52+'CP-19'!AE136+'Colo-SanJuan-Confl'!AE58+'CP-20'!AE27+'CP-21'!AE30 -> 21668 | AF69: ='CP-1'!AF49+'CP-2'!AF54+Stateline!AF30+'CP-3'!AF27+'CP-4'!AF51+'CP-5'!AF36+'CP-6'!AF72+'CP-7'!AF62+'CP-8'!AF34+'CP-9'!AF36+'CP-10'!AF37+'CP-11'!AF71+'CP-12'!AF42+'CP-13'!AF45+Jensen!AF69+'CP-14'!AF40+'CP-15'!AF52+Ouray!AF55+'CP-16'!AF58+'CP-17'!AF27+'Grn-Colo-Confl'!AF43+'CP-18'!AF52+'CP-19'!AF136+'Colo-SanJuan-Confl'!AF58+'CP-20'!AF27+'CP-21'!AF30 -> 22361.52282 | AG69: ='CP-1'!AG49+'CP-2'!AG54+Stateline!AG30+'CP-3'!AG27+'CP-4'!AG51+'CP-5'!AG36+'CP-6'!AG72+'CP-7'!AG62+'CP-8'!AG34+'CP-9'!AG36+'CP-10'!AG37+'CP-11'!AG71+'CP-12'!AG42+'CP-13'!AG45+Jensen!AG69+'CP-14'!AG40+'CP-15'!AG52+Ouray!AG55+'CP-16'!AG58+'CP-17'!AG27+'Grn-Colo-Confl'!AG43+'CP-18'!AG52+'CP-19'!AG136+'Colo-SanJuan-Confl'!AG58+'CP-20'!AG27+'CP-21'!AG30 -> 20897.74234 | AH69: ='CP-1'!AH49+'CP-2'!AH54+Stateline!AH30+'CP-3'!AH27+'CP-4'!AH51+'CP-5'!AH36+'CP-6'!AH72+'CP-7'!AH62+'CP-8'!AH34+'CP-9'!AH36+'CP-10'!AH37+'CP-11'!AH71+'CP-12'!AH42+'CP-13'!AH45+Jensen!AH69+'CP-14'!AH40+'CP-15'!AH52+Ouray!AH55+'CP-16'!AH58+'CP-17'!AH27+'Grn-Colo-Confl'!AH43+'CP-18'!AH52+'CP-19'!AH136+'Colo-SanJuan-Confl'!AH58+'CP-20'!AH27+'CP-21'!AH30 -> 23055.73877 | AI69: ='CP-1'!AI49+'CP-2'!AI54+Stateline!AI30+'CP-3'!AI27+'CP-4'!AI51+'CP-5'!AI36+'CP-6'!AI72+'CP-7'!AI62+'CP-8'!AI34+'CP-9'!AI36+'CP-10'!AI37+'CP-11'!AI71+'CP-12'!AI42+'CP-13'!AI45+Jensen!AI69+'CP-14'!AI40+'CP-15'!AI52+Ouray!AI55+'CP-16'!AI58+'CP-17'!AI27+'Grn-Colo-Confl'!AI43+'CP-18'!AI52+'CP-19'!AI136+'Colo-SanJuan-Confl'!AI58+'CP-20'!AI27+'CP-21'!AI30 -> 23133.70222 | AJ69: ='CP-1'!AJ49+'CP-2'!AJ54+Stateline!AJ30+'CP-3'!AJ27+'CP-4'!AJ51+'CP-5'!AJ36+'CP-6'!AJ72+'CP-7'!AJ62+'CP-8'!AJ34+'CP-9'!AJ36+'CP-10'!AJ37+'CP-11'!AJ71+'CP-12'!AJ42+'CP-13'!AJ45+Jensen!AJ69+'CP-14'!AJ40+'CP-15'!AJ52+Ouray!AJ55+'CP-16'!AJ58+'CP-17'!AJ27+'Grn-Colo-Confl'!AJ43+'CP-18'!AJ52+'CP-19'!AJ136+'Colo-SanJuan-Confl'!AJ58+'CP-20'!AJ27+'CP-21'!AJ30 -> 23605.85979 | AK69: ='CP-1'!AK49+'CP-2'!AK54+Stateline!AK30+'CP-3'!AK27+'CP-4'!AK51+'CP-5'!AK36+'CP-6'!AK72+'CP-7'!AK62+'CP-8'!AK34+'CP-9'!AK36+'CP-10'!AK37+'CP-11'!AK71+'CP-12'!AK42+'CP-13'!AK45+Jensen!AK69+'CP-14'!AK40+'CP-15'!AK52+Ouray!AK55+'CP-16'!AK58+'CP-17'!AK27+'Grn-Colo-Confl'!AK43+'CP-18'!AK52+'CP-19'!AK136+'Colo-SanJuan-Confl'!AK58+'CP-20'!AK27+'CP-21'!AK30 -> 23448.69206 | AL69: ='CP-1'!AL49+'CP-2'!AL54+Stateline!AL30+'CP-3'!AL27+'CP-4'!AL51+'CP-5'!AL36+'CP-6'!AL72+'CP-7'!AL62+'CP-8'!AL34+'CP-9'!AL36+'CP-10'!AL37+'CP-11'!AL71+'CP-12'!AL42+'CP-13'!AL45+Jensen!AL69+'CP-14'!AL40+'CP-15'!AL52+Ouray!AL55+'CP-16'!AL58+'CP-17'!AL27+'Grn-Colo-Confl'!AL43+'CP-18'!AL52+'CP-19'!AL136+'Colo-SanJuan-Confl'!AL58+'CP-20'!AL27+'CP-21'!AL30 -> 24024.09269 | AM69: ='CP-1'!AM49+'CP-2'!AM54+Stateline!AM30+'CP-3'!AM27+'CP-4'!AM51+'CP-5'!AM36+'CP-6'!AM72+'CP-7'!AM62+'CP-8'!AM34+'CP-9'!AM36+'CP-10'!AM37+'CP-11'!AM71+'CP-12'!AM42+'CP-13'!AM45+Jensen!AM69+'CP-14'!AM40+'CP-15'!AM52+Ouray!AM55+'CP-16'!AM58+'CP-17'!AM27+'Grn-Colo-Confl'!AM43+'CP-18'!AM52+'CP-19'!AM136+'Colo-SanJuan-Confl'!AM58+'CP-20'!AM27+'CP-21'!AM30 -> 23580.56067 | AN69: ='CP-1'!AN49+'CP-2'!AN54+Stateline!AN30+'CP-3'!AN27+'CP-4'!AN51+'CP-5'!AN36+'CP-6'!AN72+'CP-7'!AN62+'CP-8'!AN34+'CP-9'!AN36+'CP-10'!AN37+'CP-11'!AN71+'CP-12'!AN42+'CP-13'!AN45+Jensen!AN69+'CP-14'!AN40+'CP-15'!AN52+Ouray!AN55+'CP-16'!AN58+'CP-17'!AN27+'Grn-Colo-Confl'!AN43+'CP-18'!AN52+'CP-19'!AN136+'Colo-SanJuan-Confl'!AN58+'CP-20'!AN27+'CP-21'!AN30 -> 22657.86995 | AO69: ='CP-1'!AO49+'CP-2'!AO54+Stateline!AO30+'CP-3'!AO27+'CP-4'!AO51+'CP-5'!AO36+'CP-6'!AO72+'CP-7'!AO62+'CP-8'!AO34+'CP-9'!AO36+'CP-10'!AO37+'CP-11'!AO71+'CP-12'!AO42+'CP-13'!AO45+Jensen!AO69+'CP-14'!AO40+'CP-15'!AO52+Ouray!AO55+'CP-16'!AO58+'CP-17'!AO27+'Grn-Colo-Confl'!AO43+'CP-18'!AO52+'CP-19'!AO136+'Colo-SanJuan-Confl'!AO58+'CP-20'!AO27+'CP-21'!AO30 -> 21682.46541 | AP69: ='CP-1'!AP49+'CP-2'!AP54+Stateline!AP30+'CP-3'!AP27+'CP-4'!AP51+'CP-5'!AP36+'CP-6'!AP72+'CP-7'!AP62+'CP-8'!AP34+'CP-9'!AP36+'CP-10'!AP37+'CP-11'!AP71+'CP-12'!AP42+'CP-13'!AP45+Jensen!AP69+'CP-14'!AP40+'CP-15'!AP52+Ouray!AP55+'CP-16'!AP58+'CP-17'!AP27+'Grn-Colo-Confl'!AP43+'CP-18'!AP52+'CP-19'!AP136+'Colo-SanJuan-Confl'!AP58+'CP-20'!AP27+'CP-21'!AP30 -> 23097.06037 | AQ69: ='CP-1'!AQ49+'CP-2'!AQ54+Stateline!AQ30+'CP-3'!AQ27+'CP-4'!AQ51+'CP-5'!AQ36+'CP-6'!AQ72+'CP-7'!AQ62+'CP-8'!AQ34+'CP-9'!AQ36+'CP-10'!AQ37+'CP-11'!AQ71+'CP-12'!AQ42+'CP-13'!AQ45+Jensen!AQ69+'CP-14'!AQ40+'CP-15'!AQ52+Ouray!AQ55+'CP-16'!AQ58+'CP-17'!AQ27+'Grn-Colo-Confl'!AQ43+'CP-18'!AQ52+'CP-19'!AQ136+'Colo-SanJuan-Confl'!AQ58+'CP-20'!AQ27+'CP-21'!AQ30 -> 22716.64974 | AR69: ='CP-1'!AR49+'CP-2'!AR54+Stateline!AR30+'CP-3'!AR27+'CP-4'!AR51+'CP-5'!AR36+'CP-6'!AR72+'CP-7'!AR62+'CP-8'!AR34+'CP-9'!AR36+'CP-10'!AR37+'CP-11'!AR71+'CP-12'!AR42+'CP-13'!AR45+Jensen!AR69+'CP-14'!AR40+'CP-15'!AR52+Ouray!AR55+'CP-16'!AR58+'CP-17'!AR27+'Grn-Colo-Confl'!AR43+'CP-18'!AR52+'CP-19'!AR136+'Colo-SanJuan-Confl'!AR58+'CP-20'!AR27+'CP-21'!AR30 -> 23216 | AS69: ='CP-1'!AS49+'CP-2'!AS54+Stateline!AS30+'CP-3'!AS27+'CP-4'!AS51+'CP-5'!AS36+'CP-6'!AS72+'CP-7'!AS62+'CP-8'!AS34+'CP-9'!AS36+'CP-10'!AS37+'CP-11'!AS71+'CP-12'!AS42+'CP-13'!AS45+Jensen!AS69+'CP-14'!AS40+'CP-15'!AS52+Ouray!AS55+'CP-16'!AS58+'CP-17'!AS27+'Grn-Colo-Confl'!AS43+'CP-18'!AS52+'CP-19'!AS136+'Colo-SanJuan-Confl'!AS58+'CP-20'!AS27+'CP-21'!AS30 -> 23703.89903 | AT69: ='CP-1'!AT49+'CP-2'!AT54+Stateline!AT30+'CP-3'!AT27+'CP-4'!AT51+'CP-5'!AT36+'CP-6'!AT72+'CP-7'!AT62+'CP-8'!AT34+'CP-9'!AT36+'CP-10'!AT37+'CP-11'!AT71+'CP-12'!AT42+'CP-13'!AT45+Jensen!AT69+'CP-14'!AT40+'CP-15'!AT52+Ouray!AT55+'CP-16'!AT58+'CP-17'!AT27+'Grn-Colo-Confl'!AT43+'CP-18'!AT52+'CP-19'!AT136+'Colo-SanJuan-Confl'!AT58+'CP-20'!AT27+'CP-21'!AT30 -> 22778.84802 | AU69: ='CP-1'!AU49+'CP-2'!AU54+Stateline!AU30+'CP-3'!AU27+'CP-4'!AU51+'CP-5'!AU36+'CP-6'!AU72+'CP-7'!AU62+'CP-8'!AU34+'CP-9'!AU36+'CP-10'!AU37+'CP-11'!AU71+'CP-12'!AU42+'CP-13'!AU45+Jensen!AU69+'CP-14'!AU40+'CP-15'!AU52+Ouray!AU55+'CP-16'!AU58+'CP-17'!AU27+'Grn-Colo-Confl'!AU43+'CP-18'!AU52+'CP-19'!AU136+'Colo-SanJuan-Confl'!AU58+'CP-20'!AU27+'CP-21'!AU30 -> 23242.36056 | AV69: ='CP-1'!AV49+'CP-2'!AV54+Stateline!AV30+'CP-3'!AV27+'CP-4'!AV51+'CP-5'!AV36+'CP-6'!AV72+'CP-7'!AV62+'CP-8'!AV34+'CP-9'!AV36+'CP-10'!AV37+'CP-11'!AV71+'CP-12'!AV42+'CP-13'!AV45+Jensen!AV69+'CP-14'!AV40+'CP-15'!AV52+Ouray!AV55+'CP-16'!AV58+'CP-17'!AV27+'Grn-Colo-Confl'!AV43+'CP-18'!AV52+'CP-19'!AV136+'Colo-SanJuan-Confl'!AV58+'CP-20'!AV27+'CP-21'!AV30 -> 23898.81805 | AW69: ='CP-1'!AW49+'CP-2'!AW54+Stateline!AW30+'CP-3'!AW27+'CP-4'!AW51+'CP-5'!AW36+'CP-6'!AW72+'CP-7'!AW62+'CP-8'!AW34+'CP-9'!AW36+'CP-10'!AW37+'CP-11'!AW71+'CP-12'!AW42+'CP-13'!AW45+Jensen!AW69+'CP-14'!AW40+'CP-15'!AW52+Ouray!AW55+'CP-16'!AW58+'CP-17'!AW27+'Grn-Colo-Confl'!AW43+'CP-18'!AW52+'CP-19'!AW136+'Colo-SanJuan-Confl'!AW58+'CP-20'!AW27+'CP-21'!AW30 -> 23141.00104 | AX69: ='CP-1'!AX49+'CP-2'!AX54+Stateline!AX30+'CP-3'!AX27+'CP-4'!AX51+'CP-5'!AX36+'CP-6'!AX72+'CP-7'!AX62+'CP-8'!AX34+'CP-9'!AX36+'CP-10'!AX37+'CP-11'!AX71+'CP-12'!AX42+'CP-13'!AX45+Jensen!AX69+'CP-14'!AX40+'CP-15'!AX52+Ouray!AX55+'CP-16'!AX58+'CP-17'!AX27+'Grn-Colo-Confl'!AX43+'CP-18'!AX52+'CP-19'!AX136+'Colo-SanJuan-Confl'!AX58+'CP-20'!AX27+'CP-21'!AX30 -> 22863.32624 | AY69: ='CP-1'!AY49+'CP-2'!AY54+Stateline!AY30+'CP-3'!AY27+'CP-4'!AY51+'CP-5'!AY36+'CP-6'!AY72+'CP-7'!AY62+'CP-8'!AY34+'CP-9'!AY36+'CP-10'!AY37+'CP-11'!AY71+'CP-12'!AY42+'CP-13'!AY45+Jensen!AY69+'CP-14'!AY40+'CP-15'!AY52+Ouray!AY55+'CP-16'!AY58+'CP-17'!AY27+'Grn-Colo-Confl'!AY43+'CP-18'!AY52+'CP-19'!AY136+'Colo-SanJuan-Confl'!AY58+'CP-20'!AY27+'CP-21'!AY30 -> 21475.27227 | AZ69: ='CP-1'!AZ49+'CP-2'!AZ54+Stateline!AZ30+'CP-3'!AZ27+'CP-4'!AZ51+'CP-5'!AZ36+'CP-6'!AZ72+'CP-7'!AZ62+'CP-8'!AZ34+'CP-9'!AZ36+'CP-10'!AZ37+'CP-11'!AZ71+'CP-12'!AZ42+'CP-13'!AZ45+Jensen!AZ69+'CP-14'!AZ40+'CP-15'!AZ52+Ouray!AZ55+'CP-16'!AZ58+'CP-17'!AZ27+'Grn-Colo-Confl'!AZ43+'CP-18'!AZ52+'CP-19'!AZ136+'Colo-SanJuan-Confl'!AZ58+'CP-20'!AZ27+'CP-21'!AZ30 -> 23529.09405 | BA69: ='CP-1'!BA49+'CP-2'!BA54+Stateline!BA30+'CP-3'!BA27+'CP-4'!BA51+'CP-5'!BA36+'CP-6'!BA72+'CP-7'!BA62+'CP-8'!BA34+'CP-9'!BA36+'CP-10'!BA37+'CP-11'!BA71+'CP-12'!BA42+'CP-13'!BA45+Jensen!BA69+'CP-14'!BA40+'CP-15'!BA52+Ouray!BA55+'CP-16'!BA58+'CP-17'!BA27+'Grn-Colo-Confl'!BA43+'CP-18'!BA52+'CP-19'!BA136+'Colo-SanJuan-Confl'!BA58+'CP-20'!BA27+'CP-21'!BA30 -> 23624.26002 | BB69: ='CP-1'!BB49+'CP-2'!BB54+Stateline!BB30+'CP-3'!BB27+'CP-4'!BB51+'CP-5'!BB36+'CP-6'!BB72+'CP-7'!BB62+'CP-8'!BB34+'CP-9'!BB36+'CP-10'!BB37+'CP-11'!BB71+'CP-12'!BB42+'CP-13'!BB45+Jensen!BB69+'CP-14'!BB40+'CP-15'!BB52+Ouray!BB55+'CP-16'!BB58+'CP-17'!BB27+'Grn-Colo-Confl'!BB43+'CP-18'!BB52+'CP-19'!BB136+'Colo-SanJuan-Confl'!BB58+'CP-20'!BB27+'CP-21'!BB30 -> 0 | BC69: ='CP-1'!BC49+'CP-2'!BC54+Stateline!BC30+'CP-3'!BC27+'CP-4'!BC51+'CP-5'!BC36+'CP-6'!BC72+'CP-7'!BC62+'CP-8'!BC34+'CP-9'!BC36+'CP-10'!BC37+'CP-11'!BC71+'CP-12'!BC42+'CP-13'!BC45+Jensen!BC69+'CP-14'!BC40+'CP-15'!BC52+Ouray!BC55+'CP-16'!BC58+'CP-17'!BC27+'Grn-Colo-Confl'!BC43+'CP-18'!BC52+'CP-19'!BC136+'Colo-SanJuan-Confl'!BC58+'CP-20'!BC27+'CP-21'!BC30 -> 0 | BD69: ='CP-1'!BD49+'CP-2'!BD54+Stateline!BD30+'CP-3'!BD27+'CP-4'!BD51+'CP-5'!BD36+'CP-6'!BD72+'CP-7'!BD62+'CP-8'!BD34+'CP-9'!BD36+'CP-10'!BD37+'CP-11'!BD71+'CP-12'!BD42+'CP-13'!BD45+Jensen!BD69+'CP-14'!BD40+'CP-15'!BD52+Ouray!BD55+'CP-16'!BD58+'CP-17'!BD27+'Grn-Colo-Confl'!BD43+'CP-18'!BD52+'CP-19'!BD136+'Colo-SanJuan-Confl'!BD58+'CP-20'!BD27+'CP-21'!BD30 -> 0
D71: Arizona | F71: san juan-colorado river | G71: ='CP-19'!G107+'CP-19'!G117+'CP-19'!G128+'CP-19'!G129+'CP-19'!G133+'Colo-SanJuan-Confl'!G55+'CP-20'!G24 -> 1100 | H71: ='CP-19'!H107+'CP-19'!H117+'CP-19'!H128+'CP-19'!H129+'CP-19'!H133+'Colo-SanJuan-Confl'!H55+'CP-20'!H24 -> 1100 | I71: ='CP-19'!I107+'CP-19'!I117+'CP-19'!I128+'CP-19'!I129+'CP-19'!I133+'Colo-SanJuan-Confl'!I55+'CP-20'!I24 -> 900 | J71: ='CP-19'!J107+'CP-19'!J117+'CP-19'!J128+'CP-19'!J129+'CP-19'!J133+'Colo-SanJuan-Confl'!J55+'CP-20'!J24 -> 1164 | K71: ='CP-19'!K107+'CP-19'!K117+'CP-19'!K128+'CP-19'!K129+'CP-19'!K133+'Colo-SanJuan-Confl'!K55+'CP-20'!K24 -> 920 | L71: ='CP-19'!L107+'CP-19'!L117+'CP-19'!L128+'CP-19'!L129+'CP-19'!L133+'Colo-SanJuan-Confl'!L55+'CP-20'!L24 -> 1020 | M71: ='CP-19'!M107+'CP-19'!M117+'CP-19'!M128+'CP-19'!M129+'CP-19'!M133+'Colo-SanJuan-Confl'!M55+'CP-20'!M24 -> 1050 | N71: ='CP-19'!N107+'CP-19'!N117+'CP-19'!N128+'CP-19'!N129+'CP-19'!N133+'Colo-SanJuan-Confl'!N55+'CP-20'!N24 -> 1080 | O71: ='CP-19'!O107+'CP-19'!O117+'CP-19'!O128+'CP-19'!O129+'CP-19'!O133+'Colo-SanJuan-Confl'!O55+'CP-20'!O24 -> 930 | P71: ='CP-19'!P107+'CP-19'!P117+'CP-19'!P128+'CP-19'!P129+'CP-19'!P133+'Colo-SanJuan-Confl'!P55+'CP-20'!P24 -> 996 | Q71: ='CP-19'!Q107+'CP-19'!Q117+'CP-19'!Q128+'CP-19'!Q129+'CP-19'!Q133+'Colo-SanJuan-Confl'!Q55+'CP-20'!Q24 -> 1083 | R71: ='CP-19'!R107+'CP-19'!R117+'CP-19'!R128+'CP-19'!R129+'CP-19'!R133+'Colo-SanJuan-Confl'!R55+'CP-20'!R24 -> 1000 | S71: ='CP-19'!S107+'CP-19'!S117+'CP-19'!S128+'CP-19'!S129+'CP-19'!S133+'Colo-SanJuan-Confl'!S55+'CP-20'!S24 -> 1100 | T71: ='CP-19'!T107+'CP-19'!T117+'CP-19'!T128+'CP-19'!T129+'CP-19'!T133+'Colo-SanJuan-Confl'!T55+'CP-20'!T24 -> 900 | U71: ='CP-19'!U107+'CP-19'!U117+'CP-19'!U128+'CP-19'!U129+'CP-19'!U133+'Colo-SanJuan-Confl'!U55+'CP-20'!U24 -> 100 | V71: ='CP-19'!V107+'CP-19'!V117+'CP-19'!V128+'CP-19'!V129+'CP-19'!V133+'Colo-SanJuan-Confl'!V55+'CP-20'!V24 -> 1006.5 | W71: ='CP-19'!W107+'CP-19'!W117+'CP-19'!W128+'CP-19'!W129+'CP-19'!W133+'Colo-SanJuan-Confl'!W55+'CP-20'!W24 -> 836 | X71: ='CP-19'!X107+'CP-19'!X117+'CP-19'!X128+'CP-19'!X129+'CP-19'!X133+'Colo-SanJuan-Confl'!X55+'CP-20'!X24 -> 807 | Y71: ='CP-19'!Y107+'CP-19'!Y117+'CP-19'!Y128+'CP-19'!Y129+'CP-19'!Y133+'Colo-SanJuan-Confl'!Y55+'CP-20'!Y24 -> 535 | Z71: ='CP-19'!Z107+'CP-19'!Z117+'CP-19'!Z128+'CP-19'!Z129+'CP-19'!Z133+'Colo-SanJuan-Confl'!Z55+'CP-20'!Z24 -> 480 | AA71: ='CP-19'!AA107+'CP-19'!AA117+'CP-19'!AA128+'CP-19'!AA129+'CP-19'!AA133+'Colo-SanJuan-Confl'!AA55+'CP-20'!AA24 -> 510 | AB71: ='CP-19'!AB107+'CP-19'!AB117+'CP-19'!AB128+'CP-19'!AB129+'CP-19'!AB133+'Colo-SanJuan-Confl'!AB55+'CP-20'!AB24 -> 690 | AC71: ='CP-19'!AC107+'CP-19'!AC117+'CP-19'!AC128+'CP-19'!AC129+'CP-19'!AC133+'Colo-SanJuan-Confl'!AC55+'CP-20'!AC24 -> 670 | AD71: ='CP-19'!AD107+'CP-19'!AD117+'CP-19'!AD128+'CP-19'!AD129+'CP-19'!AD133+'Colo-SanJuan-Confl'!AD55+'CP-20'!AD24 -> 657 | AE71: ='CP-19'!AE107+'CP-19'!AE117+'CP-19'!AE128+'CP-19'!AE129+'CP-19'!AE133+'Colo-SanJuan-Confl'!AE55+'CP-20'!AE24 -> 633 | AF71: ='CP-19'!AF107+'CP-19'!AF117+'CP-19'!AF128+'CP-19'!AF129+'CP-19'!AF133+'Colo-SanJuan-Confl'!AF55+'CP-20'!AF24 -> 681.5228202 | AG71: ='CP-19'!AG107+'CP-19'!AG117+'CP-19'!AG128+'CP-19'!AG129+'CP-19'!AG133+'Colo-SanJuan-Confl'!AG55+'CP-20'!AG24 -> 685.7423384 | AH71: ='CP-19'!AH107+'CP-19'!AH117+'CP-19'!AH128+'CP-19'!AH129+'CP-19'!AH133+'Colo-SanJuan-Confl'!AH55+'CP-20'!AH24 -> 896.7387736 | AI71: ='CP-19'!AI107+'CP-19'!AI117+'CP-19'!AI128+'CP-19'!AI129+'CP-19'!AI133+'Colo-SanJuan-Confl'!AI55+'CP-20'!AI24 -> 865.7022209 | AJ71: ='CP-19'!AJ107+'CP-19'!AJ117+'CP-19'!AJ128+'CP-19'!AJ129+'CP-19'!AJ133+'Colo-SanJuan-Confl'!AJ55+'CP-20'!AJ24 -> 919.8597941 | AK71: ='CP-19'!AK107+'CP-19'!AK117+'CP-19'!AK128+'CP-19'!AK129+'CP-19'!AK133+'Colo-SanJuan-Confl'!AK55+'CP-20'!AK24 -> 899.692061 | AL71: ='CP-19'!AL107+'CP-19'!AL117+'CP-19'!AL128+'CP-19'!AL129+'CP-19'!AL133+'Colo-SanJuan-Confl'!AL55+'CP-20'!AL24 -> 693.0926935 | AM71: ='CP-19'!AM107+'CP-19'!AM117+'CP-19'!AM128+'CP-19'!AM129+'CP-19'!AM133+'Colo-SanJuan-Confl'!AM55+'CP-20'!AM24 -> 733.5606686 | AN71: ='CP-19'!AN107+'CP-19'!AN117+'CP-19'!AN128+'CP-19'!AN129+'CP-19'!AN133+'Colo-SanJuan-Confl'!AN55+'CP-20'!AN24 -> 917.8699497 | AO71: ='CP-19'!AO107+'CP-19'!AO117+'CP-19'!AO128+'CP-19'!AO129+'CP-19'!AO133+'Colo-SanJuan-Confl'!AO55+'CP-20'!AO24 -> 873.4654131 | AP71: ='CP-19'!AP107+'CP-19'!AP117+'CP-19'!AP128+'CP-19'!AP129+'CP-19'!AP133+'Colo-SanJuan-Confl'!AP55+'CP-20'!AP24 -> 780.0603736 | AQ71: ='CP-19'!AQ107+'CP-19'!AQ117+'CP-19'!AQ128+'CP-19'!AQ129+'CP-19'!AQ133+'Colo-SanJuan-Confl'!AQ55+'CP-20'!AQ24 -> 866.6497357 | AR71: ='CP-19'!AR107+'CP-19'!AR117+'CP-19'!AR128+'CP-19'!AR129+'CP-19'!AR133+'Colo-SanJuan-Confl'!AR55+'CP-20'!AR24 -> 897 | AS71: ='CP-19'!AS107+'CP-19'!AS117+'CP-19'!AS128+'CP-19'!AS129+'CP-19'!AS133+'Colo-SanJuan-Confl'!AS55+'CP-20'!AS24 -> 734.899029 | AT71: ='CP-19'!AT107+'CP-19'!AT117+'CP-19'!AT128+'CP-19'!AT129+'CP-19'!AT133+'Colo-SanJuan-Confl'!AT55+'CP-20'!AT24 -> 919.8480247 | AU71: ='CP-19'!AU107+'CP-19'!AU117+'CP-19'!AU128+'CP-19'!AU129+'CP-19'!AU133+'Colo-SanJuan-Confl'!AU55+'CP-20'!AU24 -> 898.3605618 | AV71: ='CP-19'!AV107+'CP-19'!AV117+'CP-19'!AV128+'CP-19'!AV129+'CP-19'!AV133+'Colo-SanJuan-Confl'!AV55+'CP-20'!AV24 -> 527.818051 | AW71: ='CP-19'!AW107+'CP-19'!AW117+'CP-19'!AW128+'CP-19'!AW129+'CP-19'!AW133+'Colo-SanJuan-Confl'!AW55+'CP-20'!AW24 -> 882.0010423 | AX71: ='CP-19'!AX107+'CP-19'!AX117+'CP-19'!AX128+'CP-19'!AX129+'CP-19'!AX133+'Colo-SanJuan-Confl'!AX55+'CP-20'!AX24 -> 708.3262445 | AY71: ='CP-19'!AY107+'CP-19'!AY117+'CP-19'!AY128+'CP-19'!AY129+'CP-19'!AY133+'Colo-SanJuan-Confl'!AY55+'CP-20'!AY24 -> 851.2722685 | AZ71: ='CP-19'!AZ107+'CP-19'!AZ117+'CP-19'!AZ128+'CP-19'!AZ129+'CP-19'!AZ133+'Colo-SanJuan-Confl'!AZ55+'CP-20'!AZ24 -> 950.0940497 | BA71: ='CP-19'!BA107+'CP-19'!BA117+'CP-19'!BA128+'CP-19'!BA129+'CP-19'!BA133+'Colo-SanJuan-Confl'!BA55+'CP-20'!BA24 -> 939.2600243 | BB71: ='CP-19'!BB107+'CP-19'!BB117+'CP-19'!BB128+'CP-19'!BB129+'CP-19'!BB133+'Colo-SanJuan-Confl'!BB55+'CP-20'!BB24 -> 0 | BC71: ='CP-19'!BC107+'CP-19'!BC117+'CP-19'!BC128+'CP-19'!BC129+'CP-19'!BC133+'Colo-SanJuan-Confl'!BC55+'CP-20'!BC24 -> 0 | BD71: ='CP-19'!BD107+'CP-19'!BD117+'CP-19'!BD128+'CP-19'!BD129+'CP-19'!BD133+'Colo-SanJuan-Confl'!BD55+'CP-20'!BD24 -> 0
D72: Colorado | F72: green river | G72: ='CP-11'!G54+'CP-12'!G42+'CP-13'!G37+'CP-13'!G38+Jensen!G53+Jensen!G62+Jensen!G64+'CP-15'!G42+'CP-15'!G44+'CP-15'!G46+'CP-15'!G47+Ouray!G43+Ouray!G44+Ouray!G48 -> 3323.044097 | H72: ='CP-11'!H54+'CP-12'!H42+'CP-13'!H37+'CP-13'!H38+Jensen!H53+Jensen!H62+Jensen!H64+'CP-15'!H42+'CP-15'!H44+'CP-15'!H46+'CP-15'!H47+Ouray!H43+Ouray!H44+Ouray!H48 -> 2778.28277 | I72: ='CP-11'!I54+'CP-12'!I42+'CP-13'!I37+'CP-13'!I38+Jensen!I53+Jensen!I62+Jensen!I64+'CP-15'!I42+'CP-15'!I44+'CP-15'!I46+'CP-15'!I47+Ouray!I43+Ouray!I44+Ouray!I48 -> 2669.330504 | J72: ='CP-11'!J54+'CP-12'!J42+'CP-13'!J37+'CP-13'!J38+Jensen!J53+Jensen!J62+Jensen!J64+'CP-15'!J42+'CP-15'!J44+'CP-15'!J46+'CP-15'!J47+Ouray!J43+Ouray!J44+Ouray!J48 -> 3050.663433 | K72: ='CP-11'!K54+'CP-12'!K42+'CP-13'!K37+'CP-13'!K38+Jensen!K53+Jensen!K62+Jensen!K64+'CP-15'!K42+'CP-15'!K44+'CP-15'!K46+'CP-15'!K47+Ouray!K43+Ouray!K44+Ouray!K48 -> 2832.758902 | L72: ='CP-11'!L54+'CP-12'!L42+'CP-13'!L37+'CP-13'!L38+Jensen!L53+Jensen!L62+Jensen!L64+'CP-15'!L42+'CP-15'!L44+'CP-15'!L46+'CP-15'!L47+Ouray!L43+Ouray!L44+Ouray!L48 -> 1254 | M72: ='CP-11'!M54+'CP-12'!M42+'CP-13'!M37+'CP-13'!M38+Jensen!M53+Jensen!M62+Jensen!M64+'CP-15'!M42+'CP-15'!M44+'CP-15'!M46+'CP-15'!M47+Ouray!M43+Ouray!M44+Ouray!M48 -> 1582 | N72: ='CP-11'!N54+'CP-12'!N42+'CP-13'!N37+'CP-13'!N38+Jensen!N53+Jensen!N62+Jensen!N64+'CP-15'!N42+'CP-15'!N44+'CP-15'!N46+'CP-15'!N47+Ouray!N43+Ouray!N44+Ouray!N48 -> 1687 | O72: ='CP-11'!O54+'CP-12'!O42+'CP-13'!O37+'CP-13'!O38+Jensen!O53+Jensen!O62+Jensen!O64+'CP-15'!O42+'CP-15'!O44+'CP-15'!O46+'CP-15'!O47+Ouray!O43+Ouray!O44+Ouray!O48 -> 1678 | P72: ='CP-11'!P54+'CP-12'!P42+'CP-13'!P37+'CP-13'!P38+Jensen!P53+Jensen!P62+Jensen!P64+'CP-15'!P42+'CP-15'!P44+'CP-15'!P46+'CP-15'!P47+Ouray!P43+Ouray!P44+Ouray!P48 -> 1861 | Q72: ='CP-11'!Q54+'CP-12'!Q42+'CP-13'!Q37+'CP-13'!Q38+Jensen!Q53+Jensen!Q62+Jensen!Q64+'CP-15'!Q42+'CP-15'!Q44+'CP-15'!Q46+'CP-15'!Q47+Ouray!Q43+Ouray!Q44+Ouray!Q48 -> 1892.37 | R72: ='CP-11'!R54+'CP-12'!R42+'CP-13'!R37+'CP-13'!R38+Jensen!R53+Jensen!R62+Jensen!R64+'CP-15'!R42+'CP-15'!R44+'CP-15'!R46+'CP-15'!R47+Ouray!R43+Ouray!R44+Ouray!R48 -> 1892.37 | S72: ='CP-11'!S54+'CP-12'!S42+'CP-13'!S37+'CP-13'!S38+Jensen!S53+Jensen!S62+Jensen!S64+'CP-15'!S42+'CP-15'!S44+'CP-15'!S46+'CP-15'!S47+Ouray!S43+Ouray!S44+Ouray!S48 -> 1892.37 | T72: ='CP-11'!T54+'CP-12'!T42+'CP-13'!T37+'CP-13'!T38+Jensen!T53+Jensen!T62+Jensen!T64+'CP-15'!T42+'CP-15'!T44+'CP-15'!T46+'CP-15'!T47+Ouray!T43+Ouray!T44+Ouray!T48 -> 1892.37 | U72: ='CP-11'!U54+'CP-12'!U42+'CP-13'!U37+'CP-13'!U38+Jensen!U53+Jensen!U62+Jensen!U64+'CP-15'!U42+'CP-15'!U44+'CP-15'!U46+'CP-15'!U47+Ouray!U43+Ouray!U44+Ouray!U48 -> 1892.37 | V72: ='CP-11'!V54+'CP-12'!V42+'CP-13'!V37+'CP-13'!V38+Jensen!V53+Jensen!V62+Jensen!V64+'CP-15'!V42+'CP-15'!V44+'CP-15'!V46+'CP-15'!V47+Ouray!V43+Ouray!V44+Ouray!V48 -> 2075 | W72: ='CP-11'!W54+'CP-12'!W42+'CP-13'!W37+'CP-13'!W38+Jensen!W53+Jensen!W62+Jensen!W64+'CP-15'!W42+'CP-15'!W44+'CP-15'!W46+'CP-15'!W47+Ouray!W43+Ouray!W44+Ouray!W48 -> 2174 | X72: ='CP-11'!X54+'CP-12'!X42+'CP-13'!X37+'CP-13'!X38+Jensen!X53+Jensen!X62+Jensen!X64+'CP-15'!X42+'CP-15'!X44+'CP-15'!X46+'CP-15'!X47+Ouray!X43+Ouray!X44+Ouray!X48 -> 2174 | Y72: ='CP-11'!Y54+'CP-12'!Y42+'CP-13'!Y37+'CP-13'!Y38+Jensen!Y53+Jensen!Y62+Jensen!Y64+'CP-15'!Y42+'CP-15'!Y44+'CP-15'!Y46+'CP-15'!Y47+Ouray!Y43+Ouray!Y44+Ouray!Y48 -> 2174 | Z72: ='CP-11'!Z54+'CP-12'!Z42+'CP-13'!Z37+'CP-13'!Z38+Jensen!Z53+Jensen!Z62+Jensen!Z64+'CP-15'!Z42+'CP-15'!Z44+'CP-15'!Z46+'CP-15'!Z47+Ouray!Z43+Ouray!Z44+Ouray!Z48 -> 2174 | AA72: ='CP-11'!AA54+'CP-12'!AA42+'CP-13'!AA37+'CP-13'!AA38+Jensen!AA53+Jensen!AA62+Jensen!AA64+'CP-15'!AA42+'CP-15'!AA44+'CP-15'!AA46+'CP-15'!AA47+Ouray!AA43+Ouray!AA44+Ouray!AA48 -> 2174 | AB72: ='CP-11'!AB54+'CP-12'!AB42+'CP-13'!AB37+'CP-13'!AB38+Jensen!AB53+Jensen!AB62+Jensen!AB64+'CP-15'!AB42+'CP-15'!AB44+'CP-15'!AB46+'CP-15'!AB47+Ouray!AB43+Ouray!AB44+Ouray!AB48 -> 2174 | AC72: ='CP-11'!AC54+'CP-12'!AC42+'CP-13'!AC37+'CP-13'!AC38+Jensen!AC53+Jensen!AC62+Jensen!AC64+'CP-15'!AC42+'CP-15'!AC44+'CP-15'!AC46+'CP-15'!AC47+Ouray!AC43+Ouray!AC44+Ouray!AC48 -> 2174 | AD72: ='CP-11'!AD54+'CP-12'!AD42+'CP-13'!AD37+'CP-13'!AD38+Jensen!AD53+Jensen!AD62+Jensen!AD64+'CP-15'!AD42+'CP-15'!AD44+'CP-15'!AD46+'CP-15'!AD47+Ouray!AD43+Ouray!AD44+Ouray!AD48 -> 2174 | AE72: ='CP-11'!AE54+'CP-12'!AE42+'CP-13'!AE37+'CP-13'!AE38+Jensen!AE53+Jensen!AE62+Jensen!AE64+'CP-15'!AE42+'CP-15'!AE44+'CP-15'!AE46+'CP-15'!AE47+Ouray!AE43+Ouray!AE44+Ouray!AE48 -> 1986 | AF72: ='CP-11'!AF54+'CP-12'!AF42+'CP-13'!AF37+'CP-13'!AF38+Jensen!AF53+Jensen!AF62+Jensen!AF64+'CP-15'!AF42+'CP-15'!AF44+'CP-15'!AF46+'CP-15'!AF47+Ouray!AF43+Ouray!AF44+Ouray!AF48 -> 1783 | AG72: ='CP-11'!AG54+'CP-12'!AG42+'CP-13'!AG37+'CP-13'!AG38+Jensen!AG53+Jensen!AG62+Jensen!AG64+'CP-15'!AG42+'CP-15'!AG44+'CP-15'!AG46+'CP-15'!AG47+Ouray!AG43+Ouray!AG44+Ouray!AG48 -> 1521 | AH72: ='CP-11'!AH54+'CP-12'!AH42+'CP-13'!AH37+'CP-13'!AH38+Jensen!AH53+Jensen!AH62+Jensen!AH64+'CP-15'!AH42+'CP-15'!AH44+'CP-15'!AH46+'CP-15'!AH47+Ouray!AH43+Ouray!AH44+Ouray!AH48 -> 1982 | AI72: ='CP-11'!AI54+'CP-12'!AI42+'CP-13'!AI37+'CP-13'!AI38+Jensen!AI53+Jensen!AI62+Jensen!AI64+'CP-15'!AI42+'CP-15'!AI44+'CP-15'!AI46+'CP-15'!AI47+Ouray!AI43+Ouray!AI44+Ouray!AI48 -> 2036 | AJ72: ='CP-11'!AJ54+'CP-12'!AJ42+'CP-13'!AJ37+'CP-13'!AJ38+Jensen!AJ53+Jensen!AJ62+Jensen!AJ64+'CP-15'!AJ42+'CP-15'!AJ44+'CP-15'!AJ46+'CP-15'!AJ47+Ouray!AJ43+Ouray!AJ44+Ouray!AJ48 -> 2122 | AK72: ='CP-11'!AK54+'CP-12'!AK42+'CP-13'!AK37+'CP-13'!AK38+Jensen!AK53+Jensen!AK62+Jensen!AK64+'CP-15'!AK42+'CP-15'!AK44+'CP-15'!AK46+'CP-15'!AK47+Ouray!AK43+Ouray!AK44+Ouray!AK48 -> 2174 | AL72: ='CP-11'!AL54+'CP-12'!AL42+'CP-13'!AL37+'CP-13'!AL38+Jensen!AL53+Jensen!AL62+Jensen!AL64+'CP-15'!AL42+'CP-15'!AL44+'CP-15'!AL46+'CP-15'!AL47+Ouray!AL43+Ouray!AL44+Ouray!AL48 -> 2174 | AM72: ='CP-11'!AM54+'CP-12'!AM42+'CP-13'!AM37+'CP-13'!AM38+Jensen!AM53+Jensen!AM62+Jensen!AM64+'CP-15'!AM42+'CP-15'!AM44+'CP-15'!AM46+'CP-15'!AM47+Ouray!AM43+Ouray!AM44+Ouray!AM48 -> 2174 | AN72: ='CP-11'!AN54+'CP-12'!AN42+'CP-13'!AN37+'CP-13'!AN38+Jensen!AN53+Jensen!AN62+Jensen!AN64+'CP-15'!AN42+'CP-15'!AN44+'CP-15'!AN46+'CP-15'!AN47+Ouray!AN43+Ouray!AN44+Ouray!AN48 -> 2174 | AO72: ='CP-11'!AO54+'CP-12'!AO42+'CP-13'!AO37+'CP-13'!AO38+Jensen!AO53+Jensen!AO62+Jensen!AO64+'CP-15'!AO42+'CP-15'!AO44+'CP-15'!AO46+'CP-15'!AO47+Ouray!AO43+Ouray!AO44+Ouray!AO48 -> 2072 | AP72: ='CP-11'!AP54+'CP-12'!AP42+'CP-13'!AP37+'CP-13'!AP38+Jensen!AP53+Jensen!AP62+Jensen!AP64+'CP-15'!AP42+'CP-15'!AP44+'CP-15'!AP46+'CP-15'!AP47+Ouray!AP43+Ouray!AP44+Ouray!AP48 -> 2174 | AQ72: ='CP-11'!AQ54+'CP-12'!AQ42+'CP-13'!AQ37+'CP-13'!AQ38+Jensen!AQ53+Jensen!AQ62+Jensen!AQ64+'CP-15'!AQ42+'CP-15'!AQ44+'CP-15'!AQ46+'CP-15'!AQ47+Ouray!AQ43+Ouray!AQ44+Ouray!AQ48 -> 1787 | AR72: ='CP-11'!AR54+'CP-12'!AR42+'CP-13'!AR37+'CP-13'!AR38+Jensen!AR53+Jensen!AR62+Jensen!AR64+'CP-15'!AR42+'CP-15'!AR44+'CP-15'!AR46+'CP-15'!AR47+Ouray!AR43+Ouray!AR44+Ouray!AR48 -> 1977 | AS72: ='CP-11'!AS54+'CP-12'!AS42+'CP-13'!AS37+'CP-13'!AS38+Jensen!AS53+Jensen!AS62+Jensen!AS64+'CP-15'!AS42+'CP-15'!AS44+'CP-15'!AS46+'CP-15'!AS47+Ouray!AS43+Ouray!AS44+Ouray!AS48 -> 1889 | AT72: ='CP-11'!AT54+'CP-12'!AT42+'CP-13'!AT37+'CP-13'!AT38+Jensen!AT53+Jensen!AT62+Jensen!AT64+'CP-15'!AT42+'CP-15'!AT44+'CP-15'!AT46+'CP-15'!AT47+Ouray!AT43+Ouray!AT44+Ouray!AT48 -> 1836 | AU72: ='CP-11'!AU54+'CP-12'!AU42+'CP-13'!AU37+'CP-13'!AU38+Jensen!AU53+Jensen!AU62+Jensen!AU64+'CP-15'!AU42+'CP-15'!AU44+'CP-15'!AU46+'CP-15'!AU47+Ouray!AU43+Ouray!AU44+Ouray!AU48 -> 1803 | AV72: ='CP-11'!AV54+'CP-12'!AV42+'CP-13'!AV37+'CP-13'!AV38+Jensen!AV53+Jensen!AV62+Jensen!AV64+'CP-15'!AV42+'CP-15'!AV44+'CP-15'!AV46+'CP-15'!AV47+Ouray!AV43+Ouray!AV44+Ouray!AV48 -> 2174 | AW72: ='CP-11'!AW54+'CP-12'!AW42+'CP-13'!AW37+'CP-13'!AW38+Jensen!AW53+Jensen!AW62+Jensen!AW64+'CP-15'!AW42+'CP-15'!AW44+'CP-15'!AW46+'CP-15'!AW47+Ouray!AW43+Ouray!AW44+Ouray!AW48 -> 1967 | AX72: ='CP-11'!AX54+'CP-12'!AX42+'CP-13'!AX37+'CP-13'!AX38+Jensen!AX53+Jensen!AX62+Jensen!AX64+'CP-15'!AX42+'CP-15'!AX44+'CP-15'!AX46+'CP-15'!AX47+Ouray!AX43+Ouray!AX44+Ouray!AX48 -> 1912 | AY72: ='CP-11'!AY54+'CP-12'!AY42+'CP-13'!AY37+'CP-13'!AY38+Jensen!AY53+Jensen!AY62+Jensen!AY64+'CP-15'!AY42+'CP-15'!AY44+'CP-15'!AY46+'CP-15'!AY47+Ouray!AY43+Ouray!AY44+Ouray!AY48 -> 1760 | AZ72: ='CP-11'!AZ54+'CP-12'!AZ42+'CP-13'!AZ37+'CP-13'!AZ38+Jensen!AZ53+Jensen!AZ62+Jensen!AZ64+'CP-15'!AZ42+'CP-15'!AZ44+'CP-15'!AZ46+'CP-15'!AZ47+Ouray!AZ43+Ouray!AZ44+Ouray!AZ48 -> 1962 | BA72: ='CP-11'!BA54+'CP-12'!BA42+'CP-13'!BA37+'CP-13'!BA38+Jensen!BA53+Jensen!BA62+Jensen!BA64+'CP-15'!BA42+'CP-15'!BA44+'CP-15'!BA46+'CP-15'!BA47+Ouray!BA43+Ouray!BA44+Ouray!BA48 -> 1923 | BB72: ='CP-11'!BB54+'CP-12'!BB42+'CP-13'!BB37+'CP-13'!BB38+Jensen!BB53+Jensen!BB62+Jensen!BB64+'CP-15'!BB42+'CP-15'!BB44+'CP-15'!BB46+'CP-15'!BB47+Ouray!BB43+Ouray!BB44+Ouray!BB48 -> 0 | BC72: ='CP-11'!BC54+'CP-12'!BC42+'CP-13'!BC37+'CP-13'!BC38+Jensen!BC53+Jensen!BC62+Jensen!BC64+'CP-15'!BC42+'CP-15'!BC44+'CP-15'!BC46+'CP-15'!BC47+Ouray!BC43+Ouray!BC44+Ouray!BC48 -> 0 | BD72: ='CP-11'!BD54+'CP-12'!BD42+'CP-13'!BD37+'CP-13'!BD38+Jensen!BD53+Jensen!BD62+Jensen!BD64+'CP-15'!BD42+'CP-15'!BD44+'CP-15'!BD46+'CP-15'!BD47+Ouray!BD43+Ouray!BD44+Ouray!BD48 -> 0
F73: upper main stem | G73: ='CP-1'!G49+'CP-2'!G54+Stateline!G30+'CP-3'!G27+'CP-4'!G51+'CP-5'!G36+'CP-6'!G72+'CP-7'!G48+'CP-7'!G49+'CP-7'!G53+'CP-7'!G54+'CP-7'!G56+'CP-7'!G57+'CP-8'!G29 -> 4632.919605 | H73: ='CP-1'!H49+'CP-2'!H54+Stateline!H30+'CP-3'!H27+'CP-4'!H51+'CP-5'!H36+'CP-6'!H72+'CP-7'!H48+'CP-7'!H49+'CP-7'!H53+'CP-7'!H54+'CP-7'!H56+'CP-7'!H57+'CP-8'!H29 -> 5008.561735 | I73: ='CP-1'!I49+'CP-2'!I54+Stateline!I30+'CP-3'!I27+'CP-4'!I51+'CP-5'!I36+'CP-6'!I72+'CP-7'!I48+'CP-7'!I49+'CP-7'!I53+'CP-7'!I54+'CP-7'!I56+'CP-7'!I57+'CP-8'!I29 -> 5217.251808 | J73: ='CP-1'!J49+'CP-2'!J54+Stateline!J30+'CP-3'!J27+'CP-4'!J51+'CP-5'!J36+'CP-6'!J72+'CP-7'!J48+'CP-7'!J49+'CP-7'!J53+'CP-7'!J54+'CP-7'!J56+'CP-7'!J57+'CP-8'!J29 -> 5384.203865 | K73: ='CP-1'!K49+'CP-2'!K54+Stateline!K30+'CP-3'!K27+'CP-4'!K51+'CP-5'!K36+'CP-6'!K72+'CP-7'!K48+'CP-7'!K49+'CP-7'!K53+'CP-7'!K54+'CP-7'!K56+'CP-7'!K57+'CP-8'!K29 -> 4465.967547 | L73: ='CP-1'!L49+'CP-2'!L54+Stateline!L30+'CP-3'!L27+'CP-4'!L51+'CP-5'!L36+'CP-6'!L72+'CP-7'!L48+'CP-7'!L49+'CP-7'!L53+'CP-7'!L54+'CP-7'!L56+'CP-7'!L57+'CP-8'!L29 -> 1564 | M73: ='CP-1'!M49+'CP-2'!M54+Stateline!M30+'CP-3'!M27+'CP-4'!M51+'CP-5'!M36+'CP-6'!M72+'CP-7'!M48+'CP-7'!M49+'CP-7'!M53+'CP-7'!M54+'CP-7'!M56+'CP-7'!M57+'CP-8'!M29 -> 2052 | N73: ='CP-1'!N49+'CP-2'!N54+Stateline!N30+'CP-3'!N27+'CP-4'!N51+'CP-5'!N36+'CP-6'!N72+'CP-7'!N48+'CP-7'!N49+'CP-7'!N53+'CP-7'!N54+'CP-7'!N56+'CP-7'!N57+'CP-8'!N29 -> 2627 | O73: ='CP-1'!O49+'CP-2'!O54+Stateline!O30+'CP-3'!O27+'CP-4'!O51+'CP-5'!O36+'CP-6'!O72+'CP-7'!O48+'CP-7'!O49+'CP-7'!O53+'CP-7'!O54+'CP-7'!O56+'CP-7'!O57+'CP-8'!O29 -> 2229 | P73: ='CP-1'!P49+'CP-2'!P54+Stateline!P30+'CP-3'!P27+'CP-4'!P51+'CP-5'!P36+'CP-6'!P72+'CP-7'!P48+'CP-7'!P49+'CP-7'!P53+'CP-7'!P54+'CP-7'!P56+'CP-7'!P57+'CP-8'!P29 -> 2694 | Q73: ='CP-1'!Q49+'CP-2'!Q54+Stateline!Q30+'CP-3'!Q27+'CP-4'!Q51+'CP-5'!Q36+'CP-6'!Q72+'CP-7'!Q48+'CP-7'!Q49+'CP-7'!Q53+'CP-7'!Q54+'CP-7'!Q56+'CP-7'!Q57+'CP-8'!Q29 -> 3365.01 | R73: ='CP-1'!R49+'CP-2'!R54+Stateline!R30+'CP-3'!R27+'CP-4'!R51+'CP-5'!R36+'CP-6'!R72+'CP-7'!R48+'CP-7'!R49+'CP-7'!R53+'CP-7'!R54+'CP-7'!R56+'CP-7'!R57+'CP-8'!R29 -> 3365.01 | S73: ='CP-1'!S49+'CP-2'!S54+Stateline!S30+'CP-3'!S27+'CP-4'!S51+'CP-5'!S36+'CP-6'!S72+'CP-7'!S48+'CP-7'!S49+'CP-7'!S53+'CP-7'!S54+'CP-7'!S56+'CP-7'!S57+'CP-8'!S29 -> 3365.01 | T73: ='CP-1'!T49+'CP-2'!T54+Stateline!T30+'CP-3'!T27+'CP-4'!T51+'CP-5'!T36+'CP-6'!T72+'CP-7'!T48+'CP-7'!T49+'CP-7'!T53+'CP-7'!T54+'CP-7'!T56+'CP-7'!T57+'CP-8'!T29 -> 3365.01 | U73: ='CP-1'!U49+'CP-2'!U54+Stateline!U30+'CP-3'!U27+'CP-4'!U51+'CP-5'!U36+'CP-6'!U72+'CP-7'!U48+'CP-7'!U49+'CP-7'!U53+'CP-7'!U54+'CP-7'!U56+'CP-7'!U57+'CP-8'!U29 -> 3365.01 | V73: ='CP-1'!V49+'CP-2'!V54+Stateline!V30+'CP-3'!V27+'CP-4'!V51+'CP-5'!V36+'CP-6'!V72+'CP-7'!V48+'CP-7'!V49+'CP-7'!V53+'CP-7'!V54+'CP-7'!V56+'CP-7'!V57+'CP-8'!V29 -> 2404 | W73: ='CP-1'!W49+'CP-2'!W54+Stateline!W30+'CP-3'!W27+'CP-4'!W51+'CP-5'!W36+'CP-6'!W72+'CP-7'!W48+'CP-7'!W49+'CP-7'!W53+'CP-7'!W54+'CP-7'!W56+'CP-7'!W57+'CP-8'!W29 -> 3895 | X73: ='CP-1'!X49+'CP-2'!X54+Stateline!X30+'CP-3'!X27+'CP-4'!X51+'CP-5'!X36+'CP-6'!X72+'CP-7'!X48+'CP-7'!X49+'CP-7'!X53+'CP-7'!X54+'CP-7'!X56+'CP-7'!X57+'CP-8'!X29 -> 3727 | Y73: ='CP-1'!Y49+'CP-2'!Y54+Stateline!Y30+'CP-3'!Y27+'CP-4'!Y51+'CP-5'!Y36+'CP-6'!Y72+'CP-7'!Y48+'CP-7'!Y49+'CP-7'!Y53+'CP-7'!Y54+'CP-7'!Y56+'CP-7'!Y57+'CP-8'!Y29 -> 3895 | Z73: ='CP-1'!Z49+'CP-2'!Z54+Stateline!Z30+'CP-3'!Z27+'CP-4'!Z51+'CP-5'!Z36+'CP-6'!Z72+'CP-7'!Z48+'CP-7'!Z49+'CP-7'!Z53+'CP-7'!Z54+'CP-7'!Z56+'CP-7'!Z57+'CP-8'!Z29 -> 3601 | AA73: ='CP-1'!AA49+'CP-2'!AA54+Stateline!AA30+'CP-3'!AA27+'CP-4'!AA51+'CP-5'!AA36+'CP-6'!AA72+'CP-7'!AA48+'CP-7'!AA49+'CP-7'!AA53+'CP-7'!AA54+'CP-7'!AA56+'CP-7'!AA57+'CP-8'!AA29 -> 3650 | AB73: ='CP-1'!AB49+'CP-2'!AB54+Stateline!AB30+'CP-3'!AB27+'CP-4'!AB51+'CP-5'!AB36+'CP-6'!AB72+'CP-7'!AB48+'CP-7'!AB49+'CP-7'!AB53+'CP-7'!AB54+'CP-7'!AB56+'CP-7'!AB57+'CP-8'!AB29 -> 3196 | AC73: ='CP-1'!AC49+'CP-2'!AC54+Stateline!AC30+'CP-3'!AC27+'CP-4'!AC51+'CP-5'!AC36+'CP-6'!AC72+'CP-7'!AC48+'CP-7'!AC49+'CP-7'!AC53+'CP-7'!AC54+'CP-7'!AC56+'CP-7'!AC57+'CP-8'!AC29 -> 2606 | AD73: ='CP-1'!AD49+'CP-2'!AD54+Stateline!AD30+'CP-3'!AD27+'CP-4'!AD51+'CP-5'!AD36+'CP-6'!AD72+'CP-7'!AD48+'CP-7'!AD49+'CP-7'!AD53+'CP-7'!AD54+'CP-7'!AD56+'CP-7'!AD57+'CP-8'!AD29 -> 3895 | AE73: ='CP-1'!AE49+'CP-2'!AE54+Stateline!AE30+'CP-3'!AE27+'CP-4'!AE51+'CP-5'!AE36+'CP-6'!AE72+'CP-7'!AE48+'CP-7'!AE49+'CP-7'!AE53+'CP-7'!AE54+'CP-7'!AE56+'CP-7'!AE57+'CP-8'!AE29 -> 2402 | AF73: ='CP-1'!AF49+'CP-2'!AF54+Stateline!AF30+'CP-3'!AF27+'CP-4'!AF51+'CP-5'!AF36+'CP-6'!AF72+'CP-7'!AF48+'CP-7'!AF49+'CP-7'!AF53+'CP-7'!AF54+'CP-7'!AF56+'CP-7'!AF57+'CP-8'!AF29 -> 3477 | AG73: ='CP-1'!AG49+'CP-2'!AG54+Stateline!AG30+'CP-3'!AG27+'CP-4'!AG51+'CP-5'!AG36+'CP-6'!AG72+'CP-7'!AG48+'CP-7'!AG49+'CP-7'!AG53+'CP-7'!AG54+'CP-7'!AG56+'CP-7'!AG57+'CP-8'!AG29 -> 3273 | AH73: ='CP-1'!AH49+'CP-2'!AH54+Stateline!AH30+'CP-3'!AH27+'CP-4'!AH51+'CP-5'!AH36+'CP-6'!AH72+'CP-7'!AH48+'CP-7'!AH49+'CP-7'!AH53+'CP-7'!AH54+'CP-7'!AH56+'CP-7'!AH57+'CP-8'!AH29 -> 3854 | AI73: ='CP-1'!AI49+'CP-2'!AI54+Stateline!AI30+'CP-3'!AI27+'CP-4'!AI51+'CP-5'!AI36+'CP-6'!AI72+'CP-7'!AI48+'CP-7'!AI49+'CP-7'!AI53+'CP-7'!AI54+'CP-7'!AI56+'CP-7'!AI57+'CP-8'!AI29 -> 3764 | AJ73: ='CP-1'!AJ49+'CP-2'!AJ54+Stateline!AJ30+'CP-3'!AJ27+'CP-4'!AJ51+'CP-5'!AJ36+'CP-6'!AJ72+'CP-7'!AJ48+'CP-7'!AJ49+'CP-7'!AJ53+'CP-7'!AJ54+'CP-7'!AJ56+'CP-7'!AJ57+'CP-8'!AJ29 -> 3895 | AK73: ='CP-1'!AK49+'CP-2'!AK54+Stateline!AK30+'CP-3'!AK27+'CP-4'!AK51+'CP-5'!AK36+'CP-6'!AK72+'CP-7'!AK48+'CP-7'!AK49+'CP-7'!AK53+'CP-7'!AK54+'CP-7'!AK56+'CP-7'!AK57+'CP-8'!AK29 -> 3708 | AL73: ='CP-1'!AL49+'CP-2'!AL54+Stateline!AL30+'CP-3'!AL27+'CP-4'!AL51+'CP-5'!AL36+'CP-6'!AL72+'CP-7'!AL48+'CP-7'!AL49+'CP-7'!AL53+'CP-7'!AL54+'CP-7'!AL56+'CP-7'!AL57+'CP-8'!AL29 -> 3895 | AM73: ='CP-1'!AM49+'CP-2'!AM54+Stateline!AM30+'CP-3'!AM27+'CP-4'!AM51+'CP-5'!AM36+'CP-6'!AM72+'CP-7'!AM48+'CP-7'!AM49+'CP-7'!AM53+'CP-7'!AM54+'CP-7'!AM56+'CP-7'!AM57+'CP-8'!AM29 -> 3775 | AN73: ='CP-1'!AN49+'CP-2'!AN54+Stateline!AN30+'CP-3'!AN27+'CP-4'!AN51+'CP-5'!AN36+'CP-6'!AN72+'CP-7'!AN48+'CP-7'!AN49+'CP-7'!AN53+'CP-7'!AN54+'CP-7'!AN56+'CP-7'!AN57+'CP-8'!AN29 -> 3585 | AO73: ='CP-1'!AO49+'CP-2'!AO54+Stateline!AO30+'CP-3'!AO27+'CP-4'!AO51+'CP-5'!AO36+'CP-6'!AO72+'CP-7'!AO48+'CP-7'!AO49+'CP-7'!AO53+'CP-7'!AO54+'CP-7'!AO56+'CP-7'!AO57+'CP-8'!AO29 -> 2812 | AP73: ='CP-1'!AP49+'CP-2'!AP54+Stateline!AP30+'CP-3'!AP27+'CP-4'!AP51+'CP-5'!AP36+'CP-6'!AP72+'CP-7'!AP48+'CP-7'!AP49+'CP-7'!AP53+'CP-7'!AP54+'CP-7'!AP56+'CP-7'!AP57+'CP-8'!AP29 -> 3895 | AQ73: ='CP-1'!AQ49+'CP-2'!AQ54+Stateline!AQ30+'CP-3'!AQ27+'CP-4'!AQ51+'CP-5'!AQ36+'CP-6'!AQ72+'CP-7'!AQ48+'CP-7'!AQ49+'CP-7'!AQ53+'CP-7'!AQ54+'CP-7'!AQ56+'CP-7'!AQ57+'CP-8'!AQ29 -> 3681 | AR73: ='CP-1'!AR49+'CP-2'!AR54+Stateline!AR30+'CP-3'!AR27+'CP-4'!AR51+'CP-5'!AR36+'CP-6'!AR72+'CP-7'!AR48+'CP-7'!AR49+'CP-7'!AR53+'CP-7'!AR54+'CP-7'!AR56+'CP-7'!AR57+'CP-8'!AR29 -> 3835 | AS73: ='CP-1'!AS49+'CP-2'!AS54+Stateline!AS30+'CP-3'!AS27+'CP-4'!AS51+'CP-5'!AS36+'CP-6'!AS72+'CP-7'!AS48+'CP-7'!AS49+'CP-7'!AS53+'CP-7'!AS54+'CP-7'!AS56+'CP-7'!AS57+'CP-8'!AS29 -> 3895 | AT73: ='CP-1'!AT49+'CP-2'!AT54+Stateline!AT30+'CP-3'!AT27+'CP-4'!AT51+'CP-5'!AT36+'CP-6'!AT72+'CP-7'!AT48+'CP-7'!AT49+'CP-7'!AT53+'CP-7'!AT54+'CP-7'!AT56+'CP-7'!AT57+'CP-8'!AT29 -> 3489 | AU73: ='CP-1'!AU49+'CP-2'!AU54+Stateline!AU30+'CP-3'!AU27+'CP-4'!AU51+'CP-5'!AU36+'CP-6'!AU72+'CP-7'!AU48+'CP-7'!AU49+'CP-7'!AU53+'CP-7'!AU54+'CP-7'!AU56+'CP-7'!AU57+'CP-8'!AU29 -> 3745 | AV73: ='CP-1'!AV49+'CP-2'!AV54+Stateline!AV30+'CP-3'!AV27+'CP-4'!AV51+'CP-5'!AV36+'CP-6'!AV72+'CP-7'!AV48+'CP-7'!AV49+'CP-7'!AV53+'CP-7'!AV54+'CP-7'!AV56+'CP-7'!AV57+'CP-8'!AV29 -> 3895 | AW73: ='CP-1'!AW49+'CP-2'!AW54+Stateline!AW30+'CP-3'!AW27+'CP-4'!AW51+'CP-5'!AW36+'CP-6'!AW72+'CP-7'!AW48+'CP-7'!AW49+'CP-7'!AW53+'CP-7'!AW54+'CP-7'!AW56+'CP-7'!AW57+'CP-8'!AW29 -> 3697 | AX73: ='CP-1'!AX49+'CP-2'!AX54+Stateline!AX30+'CP-3'!AX27+'CP-4'!AX51+'CP-5'!AX36+'CP-6'!AX72+'CP-7'!AX48+'CP-7'!AX49+'CP-7'!AX53+'CP-7'!AX54+'CP-7'!AX56+'CP-7'!AX57+'CP-8'!AX29 -> 3646 | AY73: ='CP-1'!AY49+'CP-2'!AY54+Stateline!AY30+'CP-3'!AY27+'CP-4'!AY51+'CP-5'!AY36+'CP-6'!AY72+'CP-7'!AY48+'CP-7'!AY49+'CP-7'!AY53+'CP-7'!AY54+'CP-7'!AY56+'CP-7'!AY57+'CP-8'!AY29 -> 3373 | AZ73: ='CP-1'!AZ49+'CP-2'!AZ54+Stateline!AZ30+'CP-3'!AZ27+'CP-4'!AZ51+'CP-5'!AZ36+'CP-6'!AZ72+'CP-7'!AZ48+'CP-7'!AZ49+'CP-7'!AZ53+'CP-7'!AZ54+'CP-7'!AZ56+'CP-7'!AZ57+'CP-8'!AZ29 -> 3795 | BA73: ='CP-1'!BA49+'CP-2'!BA54+Stateline!BA30+'CP-3'!BA27+'CP-4'!BA51+'CP-5'!BA36+'CP-6'!BA72+'CP-7'!BA48+'CP-7'!BA49+'CP-7'!BA53+'CP-7'!BA54+'CP-7'!BA56+'CP-7'!BA57+'CP-8'!BA29 -> 3895 | BB73: ='CP-1'!BB49+'CP-2'!BB54+Stateline!BB30+'CP-3'!BB27+'CP-4'!BB51+'CP-5'!BB36+'CP-6'!BB72+'CP-7'!BB48+'CP-7'!BB49+'CP-7'!BB53+'CP-7'!BB54+'CP-7'!BB56+'CP-7'!BB57+'CP-8'!BB29 -> 0 | BC73: ='CP-1'!BC49+'CP-2'!BC54+Stateline!BC30+'CP-3'!BC27+'CP-4'!BC51+'CP-5'!BC36+'CP-6'!BC72+'CP-7'!BC48+'CP-7'!BC49+'CP-7'!BC53+'CP-7'!BC54+'CP-7'!BC56+'CP-7'!BC57+'CP-8'!BC29 -> 0 | BD73: ='CP-1'!BD49+'CP-2'!BD54+Stateline!BD30+'CP-3'!BD27+'CP-4'!BD51+'CP-5'!BD36+'CP-6'!BD72+'CP-7'!BD48+'CP-7'!BD49+'CP-7'!BD53+'CP-7'!BD54+'CP-7'!BD56+'CP-7'!BD57+'CP-8'!BD29 -> 0
F74: san juan-colorado river | G74: ='CP-18'!G41+'CP-18'!G42+'CP-18'!G43+'CP-18'!G50+'CP-19'!G103+'CP-19'!G109+'CP-19'!G115+'CP-19'!G121+'CP-19'!G123+'CP-19'!G124 -> 3893.485779 | H74: ='CP-18'!H41+'CP-18'!H42+'CP-18'!H43+'CP-18'!H50+'CP-19'!H103+'CP-19'!H109+'CP-19'!H115+'CP-19'!H121+'CP-19'!H123+'CP-19'!H124 -> 4113.871767 | I74: ='CP-18'!I41+'CP-18'!I42+'CP-18'!I43+'CP-18'!I50+'CP-19'!I103+'CP-19'!I109+'CP-19'!I115+'CP-19'!I121+'CP-19'!I123+'CP-19'!I124 -> 2718.093846 | J74: ='CP-18'!J41+'CP-18'!J42+'CP-18'!J43+'CP-18'!J50+'CP-19'!J103+'CP-19'!J109+'CP-19'!J115+'CP-19'!J121+'CP-19'!J123+'CP-19'!J124 -> 3599.637796 | K74: ='CP-18'!K41+'CP-18'!K42+'CP-18'!K43+'CP-18'!K50+'CP-19'!K103+'CP-19'!K109+'CP-19'!K115+'CP-19'!K121+'CP-19'!K123+'CP-19'!K124 -> 2791.555842 | L74: ='CP-18'!L41+'CP-18'!L42+'CP-18'!L43+'CP-18'!L50+'CP-19'!L103+'CP-19'!L109+'CP-19'!L115+'CP-19'!L121+'CP-19'!L123+'CP-19'!L124 -> 2537 | M74: ='CP-18'!M41+'CP-18'!M42+'CP-18'!M43+'CP-18'!M50+'CP-19'!M103+'CP-19'!M109+'CP-19'!M115+'CP-19'!M121+'CP-19'!M123+'CP-19'!M124 -> 2626 | N74: ='CP-18'!N41+'CP-18'!N42+'CP-18'!N43+'CP-18'!N50+'CP-19'!N103+'CP-19'!N109+'CP-19'!N115+'CP-19'!N121+'CP-19'!N123+'CP-19'!N124 -> 3155 | O74: ='CP-18'!O41+'CP-18'!O42+'CP-18'!O43+'CP-18'!O50+'CP-19'!O103+'CP-19'!O109+'CP-19'!O115+'CP-19'!O121+'CP-19'!O123+'CP-19'!O124 -> 2638 | P74: ='CP-18'!P41+'CP-18'!P42+'CP-18'!P43+'CP-18'!P50+'CP-19'!P103+'CP-19'!P109+'CP-19'!P115+'CP-19'!P121+'CP-19'!P123+'CP-19'!P124 -> 3644 | Q74: ='CP-18'!Q41+'CP-18'!Q42+'CP-18'!Q43+'CP-18'!Q50+'CP-19'!Q103+'CP-19'!Q109+'CP-19'!Q115+'CP-19'!Q121+'CP-19'!Q123+'CP-19'!Q124 -> 3781.72 | R74: ='CP-18'!R41+'CP-18'!R42+'CP-18'!R43+'CP-18'!R50+'CP-19'!R103+'CP-19'!R109+'CP-19'!R115+'CP-19'!R121+'CP-19'!R123+'CP-19'!R124 -> 3781.72 | S74: ='CP-18'!S41+'CP-18'!S42+'CP-18'!S43+'CP-18'!S50+'CP-19'!S103+'CP-19'!S109+'CP-19'!S115+'CP-19'!S121+'CP-19'!S123+'CP-19'!S124 -> 3781.72 | T74: ='CP-18'!T41+'CP-18'!T42+'CP-18'!T43+'CP-18'!T50+'CP-19'!T103+'CP-19'!T109+'CP-19'!T115+'CP-19'!T121+'CP-19'!T123+'CP-19'!T124 -> 3781.72 | U74: ='CP-18'!U41+'CP-18'!U42+'CP-18'!U43+'CP-18'!U50+'CP-19'!U103+'CP-19'!U109+'CP-19'!U115+'CP-19'!U121+'CP-19'!U123+'CP-19'!U124 -> 3781.72 | V74: ='CP-18'!V41+'CP-18'!V42+'CP-18'!V43+'CP-18'!V50+'CP-19'!V103+'CP-19'!V109+'CP-19'!V115+'CP-19'!V121+'CP-19'!V123+'CP-19'!V124 -> 2817 | W74: ='CP-18'!W41+'CP-18'!W42+'CP-18'!W43+'CP-18'!W50+'CP-19'!W103+'CP-19'!W109+'CP-19'!W115+'CP-19'!W121+'CP-19'!W123+'CP-19'!W124 -> 3767 | X74: ='CP-18'!X41+'CP-18'!X42+'CP-18'!X43+'CP-18'!X50+'CP-19'!X103+'CP-19'!X109+'CP-19'!X115+'CP-19'!X121+'CP-19'!X123+'CP-19'!X124 -> 3948 | Y74: ='CP-18'!Y41+'CP-18'!Y42+'CP-18'!Y43+'CP-18'!Y50+'CP-19'!Y103+'CP-19'!Y109+'CP-19'!Y115+'CP-19'!Y121+'CP-19'!Y123+'CP-19'!Y124 -> 5062 | Z74: ='CP-18'!Z41+'CP-18'!Z42+'CP-18'!Z43+'CP-18'!Z50+'CP-19'!Z103+'CP-19'!Z109+'CP-19'!Z115+'CP-19'!Z121+'CP-19'!Z123+'CP-19'!Z124 -> 3395 | AA74: ='CP-18'!AA41+'CP-18'!AA42+'CP-18'!AA43+'CP-18'!AA50+'CP-19'!AA103+'CP-19'!AA109+'CP-19'!AA115+'CP-19'!AA121+'CP-19'!AA123+'CP-19'!AA124 -> 3991 | AB74: ='CP-18'!AB41+'CP-18'!AB42+'CP-18'!AB43+'CP-18'!AB50+'CP-19'!AB103+'CP-19'!AB109+'CP-19'!AB115+'CP-19'!AB121+'CP-19'!AB123+'CP-19'!AB124 -> 4056 | AC74: ='CP-18'!AC41+'CP-18'!AC42+'CP-18'!AC43+'CP-18'!AC50+'CP-19'!AC103+'CP-19'!AC109+'CP-19'!AC115+'CP-19'!AC121+'CP-19'!AC123+'CP-19'!AC124 -> 4033 | AD74: ='CP-18'!AD41+'CP-18'!AD42+'CP-18'!AD43+'CP-18'!AD50+'CP-19'!AD103+'CP-19'!AD109+'CP-19'!AD115+'CP-19'!AD121+'CP-19'!AD123+'CP-19'!AD124 -> 4323 | AE74: ='CP-18'!AE41+'CP-18'!AE42+'CP-18'!AE43+'CP-18'!AE50+'CP-19'!AE103+'CP-19'!AE109+'CP-19'!AE115+'CP-19'!AE121+'CP-19'!AE123+'CP-19'!AE124 -> 4407 | AF74: ='CP-18'!AF41+'CP-18'!AF42+'CP-18'!AF43+'CP-18'!AF50+'CP-19'!AF103+'CP-19'!AF109+'CP-19'!AF115+'CP-19'!AF121+'CP-19'!AF123+'CP-19'!AF124 -> 4180 | AG74: ='CP-18'!AG41+'CP-18'!AG42+'CP-18'!AG43+'CP-18'!AG50+'CP-19'!AG103+'CP-19'!AG109+'CP-19'!AG115+'CP-19'!AG121+'CP-19'!AG123+'CP-19'!AG124 -> 3503 | AH74: ='CP-18'!AH41+'CP-18'!AH42+'CP-18'!AH43+'CP-18'!AH50+'CP-19'!AH103+'CP-19'!AH109+'CP-19'!AH115+'CP-19'!AH121+'CP-19'!AH123+'CP-19'!AH124 -> 4083 | AI74: ='CP-18'!AI41+'CP-18'!AI42+'CP-18'!AI43+'CP-18'!AI50+'CP-19'!AI103+'CP-19'!AI109+'CP-19'!AI115+'CP-19'!AI121+'CP-19'!AI123+'CP-19'!AI124 -> 4228 | AJ74: ='CP-18'!AJ41+'CP-18'!AJ42+'CP-18'!AJ43+'CP-18'!AJ50+'CP-19'!AJ103+'CP-19'!AJ109+'CP-19'!AJ115+'CP-19'!AJ121+'CP-19'!AJ123+'CP-19'!AJ124 -> 4429 | AK74: ='CP-18'!AK41+'CP-18'!AK42+'CP-18'!AK43+'CP-18'!AK50+'CP-19'!AK103+'CP-19'!AK109+'CP-19'!AK115+'CP-19'!AK121+'CP-19'!AK123+'CP-19'!AK124 -> 4427 | AL74: ='CP-18'!AL41+'CP-18'!AL42+'CP-18'!AL43+'CP-18'!AL50+'CP-19'!AL103+'CP-19'!AL109+'CP-19'!AL115+'CP-19'!AL121+'CP-19'!AL123+'CP-19'!AL124 -> 5022 | AM74: ='CP-18'!AM41+'CP-18'!AM42+'CP-18'!AM43+'CP-18'!AM50+'CP-19'!AM103+'CP-19'!AM109+'CP-19'!AM115+'CP-19'!AM121+'CP-19'!AM123+'CP-19'!AM124 -> 4658 | AN74: ='CP-18'!AN41+'CP-18'!AN42+'CP-18'!AN43+'CP-18'!AN50+'CP-19'!AN103+'CP-19'!AN109+'CP-19'!AN115+'CP-19'!AN121+'CP-19'!AN123+'CP-19'!AN124 -> 3741 | AO74: ='CP-18'!AO41+'CP-18'!AO42+'CP-18'!AO43+'CP-18'!AO50+'CP-19'!AO103+'CP-19'!AO109+'CP-19'!AO115+'CP-19'!AO121+'CP-19'!AO123+'CP-19'!AO124 -> 3685 | AP74: ='CP-18'!AP41+'CP-18'!AP42+'CP-18'!AP43+'CP-18'!AP50+'CP-19'!AP103+'CP-19'!AP109+'CP-19'!AP115+'CP-19'!AP121+'CP-19'!AP123+'CP-19'!AP124 -> 4008 | AQ74: ='CP-18'!AQ41+'CP-18'!AQ42+'CP-18'!AQ43+'CP-18'!AQ50+'CP-19'!AQ103+'CP-19'!AQ109+'CP-19'!AQ115+'CP-19'!AQ121+'CP-19'!AQ123+'CP-19'!AQ124 -> 4142 | AR74: ='CP-18'!AR41+'CP-18'!AR42+'CP-18'!AR43+'CP-18'!AR50+'CP-19'!AR103+'CP-19'!AR109+'CP-19'!AR115+'CP-19'!AR121+'CP-19'!AR123+'CP-19'!AR124 -> 4267 | AS74: ='CP-18'!AS41+'CP-18'!AS42+'CP-18'!AS43+'CP-18'!AS50+'CP-19'!AS103+'CP-19'!AS109+'CP-19'!AS115+'CP-19'!AS121+'CP-19'!AS123+'CP-19'!AS124 -> 4945 | AT74: ='CP-18'!AT41+'CP-18'!AT42+'CP-18'!AT43+'CP-18'!AT50+'CP-19'!AT103+'CP-19'!AT109+'CP-19'!AT115+'CP-19'!AT121+'CP-19'!AT123+'CP-19'!AT124 -> 4294 | AU74: ='CP-18'!AU41+'CP-18'!AU42+'CP-18'!AU43+'CP-18'!AU50+'CP-19'!AU103+'CP-19'!AU109+'CP-19'!AU115+'CP-19'!AU121+'CP-19'!AU123+'CP-19'!AU124 -> 4556 | AV74: ='CP-18'!AV41+'CP-18'!AV42+'CP-18'!AV43+'CP-18'!AV50+'CP-19'!AV103+'CP-19'!AV109+'CP-19'!AV115+'CP-19'!AV121+'CP-19'!AV123+'CP-19'!AV124 -> 5062 | AW74: ='CP-18'!AW41+'CP-18'!AW42+'CP-18'!AW43+'CP-18'!AW50+'CP-19'!AW103+'CP-19'!AW109+'CP-19'!AW115+'CP-19'!AW121+'CP-19'!AW123+'CP-19'!AW124 -> 4355 | AX74: ='CP-18'!AX41+'CP-18'!AX42+'CP-18'!AX43+'CP-18'!AX50+'CP-19'!AX103+'CP-19'!AX109+'CP-19'!AX115+'CP-19'!AX121+'CP-19'!AX123+'CP-19'!AX124 -> 4357 | AY74: ='CP-18'!AY41+'CP-18'!AY42+'CP-18'!AY43+'CP-18'!AY50+'CP-19'!AY103+'CP-19'!AY109+'CP-19'!AY115+'CP-19'!AY121+'CP-19'!AY123+'CP-19'!AY124 -> 3660 | AZ74: ='CP-18'!AZ41+'CP-18'!AZ42+'CP-18'!AZ43+'CP-18'!AZ50+'CP-19'!AZ103+'CP-19'!AZ109+'CP-19'!AZ115+'CP-19'!AZ121+'CP-19'!AZ123+'CP-19'!AZ124 -> 4582 | BA74: ='CP-18'!BA41+'CP-18'!BA42+'CP-18'!BA43+'CP-18'!BA50+'CP-19'!BA103+'CP-19'!BA109+'CP-19'!BA115+'CP-19'!BA121+'CP-19'!BA123+'CP-19'!BA124 -> 4627 | BB74: ='CP-18'!BB41+'CP-18'!BB42+'CP-18'!BB43+'CP-18'!BB50+'CP-19'!BB103+'CP-19'!BB109+'CP-19'!BB115+'CP-19'!BB121+'CP-19'!BB123+'CP-19'!BB124 -> 0 | BC74: ='CP-18'!BC41+'CP-18'!BC42+'CP-18'!BC43+'CP-18'!BC50+'CP-19'!BC103+'CP-19'!BC109+'CP-19'!BC115+'CP-19'!BC121+'CP-19'!BC123+'CP-19'!BC124 -> 0 | BD74: ='CP-18'!BD41+'CP-18'!BD42+'CP-18'!BD43+'CP-18'!BD50+'CP-19'!BD103+'CP-19'!BD109+'CP-19'!BD115+'CP-19'!BD121+'CP-19'!BD123+'CP-19'!BD124 -> 0
F75: Total | G75: =SUM(G72:G74) -> 11849.44948 | H75: 11900.71627 | I75: 10604.67616 | J75: 12034.50509 | K75: 10090.28229 | L75: 5355 | M75: 6260 | N75: 7469 | O75: 6545 | P75: 8199 | Q75: 9039.1 | R75: 9039.1 | S75: 9039.1 | T75: 9039.1 | U75: 9039.1 | V75: =SUM(V72:V74) -> 7296 | W75: 9836 | X75: 9849 | Y75: 11131 | Z75: 9170 | AA75: 9815 | AB75: 9426 | AC75: 8813 | AD75: 10392 | AE75: 8795 | AF75: =SUM(AF72:AF74) -> 9440 | AG75: =SUM(AG72:AG74) -> 8297 | AH75: =SUM(AH72:AH74) -> 9919 | AI75: =SUM(AI72:AI74) -> 10028 | AJ75: =SUM(AJ72:AJ74) -> 10446 | AK75: =SUM(AK72:AK74) -> 10309 | AL75: 11091 | AM75: 10607 | AN75: 9500 | AO75: 8569 | AP75: 10077 | AQ75: 9610 | AR75: 10079 | AS75: 10729 | AT75: 9619 | AU75: 10104 | AV75: 11131 | AW75: 10019 | AX75: 9915 | AY75: 8793 | AZ75: =SUM(AZ72:AZ74) -> 10339 | BA75: 10445 | BB75: 0 | BC75: 0 | BD75: 0
B76: Stkpond | D76: New Mexico | F76: san juan-colorado river | G76: ='CP-18'!G45+'CP-19'!G101+'CP-19'!G105+'CP-19'!G111+'CP-19'!G113+'CP-19'!G131 -> 2292.816147 | H76: ='CP-18'!H45+'CP-19'!H101+'CP-19'!H105+'CP-19'!H111+'CP-19'!H113+'CP-19'!H131 -> 2374.702438 | I76: ='CP-18'!I45+'CP-19'!I101+'CP-19'!I105+'CP-19'!I111+'CP-19'!I113+'CP-19'!I131 -> 1883.384693 | J76: ='CP-18'!J45+'CP-19'!J101+'CP-19'!J105+'CP-19'!J111+'CP-19'!J113+'CP-19'!J131 -> 2456.588729 | K76: ='CP-18'!K45+'CP-19'!K101+'CP-19'!K105+'CP-19'!K111+'CP-19'!K113+'CP-19'!K131 -> 1965.270984 | L76: ='CP-18'!L45+'CP-19'!L101+'CP-19'!L105+'CP-19'!L111+'CP-19'!L113+'CP-19'!L131 -> 717 | M76: ='CP-18'!M45+'CP-19'!M101+'CP-19'!M105+'CP-19'!M111+'CP-19'!M113+'CP-19'!M131 -> 732 | N76: ='CP-18'!N45+'CP-19'!N101+'CP-19'!N105+'CP-19'!N111+'CP-19'!N113+'CP-19'!N131 -> 872 | O76: ='CP-18'!O45+'CP-19'!O101+'CP-19'!O105+'CP-19'!O111+'CP-19'!O113+'CP-19'!O131 -> 718 | P76: ='CP-18'!P45+'CP-19'!P101+'CP-19'!P105+'CP-19'!P111+'CP-19'!P113+'CP-19'!P131 -> 964 | Q76: ='CP-18'!Q45+'CP-19'!Q101+'CP-19'!Q105+'CP-19'!Q111+'CP-19'!Q113+'CP-19'!Q131 -> 2293.565348 | R76: ='CP-18'!R45+'CP-19'!R101+'CP-19'!R105+'CP-19'!R111+'CP-19'!R113+'CP-19'!R131 -> 2375.451639 | S76: ='CP-18'!S45+'CP-19'!S101+'CP-19'!S105+'CP-19'!S111+'CP-19'!S113+'CP-19'!S131 -> 2375.451639 | T76: ='CP-18'!T45+'CP-19'!T101+'CP-19'!T105+'CP-19'!T111+'CP-19'!T113+'CP-19'!T131 -> 2375.451639 | U76: ='CP-18'!U45+'CP-19'!U101+'CP-19'!U105+'CP-19'!U111+'CP-19'!U113+'CP-19'!U131 -> 2375.451639 | V76: ='CP-18'!V45+'CP-19'!V101+'CP-19'!V105+'CP-19'!V111+'CP-19'!V113+'CP-19'!V131 -> 3680 | W76: ='CP-18'!W45+'CP-19'!W101+'CP-19'!W105+'CP-19'!W111+'CP-19'!W113+'CP-19'!W131 -> 3680 | X76: ='CP-18'!X45+'CP-19'!X101+'CP-19'!X105+'CP-19'!X111+'CP-19'!X113+'CP-19'!X131 -> 3680 | Y76: ='CP-18'!Y45+'CP-19'!Y101+'CP-19'!Y105+'CP-19'!Y111+'CP-19'!Y113+'CP-19'!Y131 -> 3680 | Z76: ='CP-18'!Z45+'CP-19'!Z101+'CP-19'!Z105+'CP-19'!Z111+'CP-19'!Z113+'CP-19'!Z131 -> 3680 | AA76: ='CP-18'!AA45+'CP-19'!AA101+'CP-19'!AA105+'CP-19'!AA111+'CP-19'!AA113+'CP-19'!AA131 -> 3680 | AB76: ='CP-18'!AB45+'CP-19'!AB101+'CP-19'!AB105+'CP-19'!AB111+'CP-19'!AB113+'CP-19'!AB131 -> 3680 | AC76: ='CP-18'!AC45+'CP-19'!AC101+'CP-19'!AC105+'CP-19'!AC111+'CP-19'!AC113+'CP-19'!AC131 -> 3680 | AD76: ='CP-18'!AD45+'CP-19'!AD101+'CP-19'!AD105+'CP-19'!AD111+'CP-19'!AD113+'CP-19'!AD131 -> 3680 | AE76: ='CP-18'!AE45+'CP-19'!AE101+'CP-19'!AE105+'CP-19'!AE111+'CP-19'!AE113+'CP-19'!AE131 -> 3680 | AF76: ='CP-18'!AF45+'CP-19'!AF101+'CP-19'!AF105+'CP-19'!AF111+'CP-19'!AF113+'CP-19'!AF131 -> 3680 | AG76: ='CP-18'!AG45+'CP-19'!AG101+'CP-19'!AG105+'CP-19'!AG111+'CP-19'!AG113+'CP-19'!AG131 -> 3680 | AH76: ='CP-18'!AH45+'CP-19'!AH101+'CP-19'!AH105+'CP-19'!AH111+'CP-19'!AH113+'CP-19'!AH131 -> 3680 | AI76: ='CP-18'!AI45+'CP-19'!AI101+'CP-19'!AI105+'CP-19'!AI111+'CP-19'!AI113+'CP-19'!AI131 -> 3680 | AJ76: ='CP-18'!AJ45+'CP-19'!AJ101+'CP-19'!AJ105+'CP-19'!AJ111+'CP-19'!AJ113+'CP-19'!AJ131 -> 3680 | AK76: ='CP-18'!AK45+'CP-19'!AK101+'CP-19'!AK105+'CP-19'!AK111+'CP-19'!AK113+'CP-19'!AK131 -> 3680 | AL76: ='CP-18'!AL45+'CP-19'!AL101+'CP-19'!AL105+'CP-19'!AL111+'CP-19'!AL113+'CP-19'!AL131 -> 3680 | AM76: ='CP-18'!AM45+'CP-19'!AM101+'CP-19'!AM105+'CP-19'!AM111+'CP-19'!AM113+'CP-19'!AM131 -> 3680 | AN76: ='CP-18'!AN45+'CP-19'!AN101+'CP-19'!AN105+'CP-19'!AN111+'CP-19'!AN113+'CP-19'!AN131 -> 3680 | AO76: ='CP-18'!AO45+'CP-19'!AO101+'CP-19'!AO105+'CP-19'!AO111+'CP-19'!AO113+'CP-19'!AO131 -> 3680 | AP76: ='CP-18'!AP45+'CP-19'!AP101+'CP-19'!AP105+'CP-19'!AP111+'CP-19'!AP113+'CP-19'!AP131 -> 3680 | AQ76: ='CP-18'!AQ45+'CP-19'!AQ101+'CP-19'!AQ105+'CP-19'!AQ111+'CP-19'!AQ113+'CP-19'!AQ131 -> 3680 | AR76: ='CP-18'!AR45+'CP-19'!AR101+'CP-19'!AR105+'CP-19'!AR111+'CP-19'!AR113+'CP-19'!AR131 -> 3680 | AS76: ='CP-18'!AS45+'CP-19'!AS101+'CP-19'!AS105+'CP-19'!AS111+'CP-19'!AS113+'CP-19'!AS131 -> 3680 | AT76: ='CP-18'!AT45+'CP-19'!AT101+'CP-19'!AT105+'CP-19'!AT111+'CP-19'!AT113+'CP-19'!AT131 -> 3680 | AU76: ='CP-18'!AU45+'CP-19'!AU101+'CP-19'!AU105+'CP-19'!AU111+'CP-19'!AU113+'CP-19'!AU131 -> 3680 | AV76: ='CP-18'!AV45+'CP-19'!AV101+'CP-19'!AV105+'CP-19'!AV111+'CP-19'!AV113+'CP-19'!AV131 -> 3680 | AW76: ='CP-18'!AW45+'CP-19'!AW101+'CP-19'!AW105+'CP-19'!AW111+'CP-19'!AW113+'CP-19'!AW131 -> 3680 | AX76: ='CP-18'!AX45+'CP-19'!AX101+'CP-19'!AX105+'CP-19'!AX111+'CP-19'!AX113+'CP-19'!AX131 -> 3680 | AY76: ='CP-18'!AY45+'CP-19'!AY101+'CP-19'!AY105+'CP-19'!AY111+'CP-19'!AY113+'CP-19'!AY131 -> 3680 | AZ76: ='CP-18'!AZ45+'CP-19'!AZ101+'CP-19'!AZ105+'CP-19'!AZ111+'CP-19'!AZ113+'CP-19'!AZ131 -> 3680 | BA76: ='CP-18'!BA45+'CP-19'!BA101+'CP-19'!BA105+'CP-19'!BA111+'CP-19'!BA113+'CP-19'!BA131 -> 3680 | BB76: ='CP-18'!BB45+'CP-19'!BB101+'CP-19'!BB105+'CP-19'!BB111+'CP-19'!BB113+'CP-19'!BB131 -> 0 | BC76: ='CP-18'!BC45+'CP-19'!BC101+'CP-19'!BC105+'CP-19'!BC111+'CP-19'!BC113+'CP-19'!BC131 -> 0 | BD76: ='CP-18'!BD45+'CP-19'!BD101+'CP-19'!BD105+'CP-19'!BD111+'CP-19'!BD113+'CP-19'!BD131 -> 0
D77: Utah | F77: green river | G77: ='CP-11'!G56+'CP-11'!G57+'CP-11'!G58+Jensen!G55+Jensen!G56+Jensen!G57+Jensen!G66+'CP-14'!G40+'CP-15'!G49+Ouray!G46+Ouray!G50+Ouray!G52+'CP-16'!G58+'CP-17'!G27+'Grn-Colo-Confl'!G38+'Grn-Colo-Confl'!G40 -> 2545.71875 | H77: ='CP-11'!H56+'CP-11'!H57+'CP-11'!H58+Jensen!H55+Jensen!H56+Jensen!H57+Jensen!H66+'CP-14'!H40+'CP-15'!H49+Ouray!H46+Ouray!H50+Ouray!H52+'CP-16'!H58+'CP-17'!H27+'Grn-Colo-Confl'!H38+'Grn-Colo-Confl'!H40 -> 2606.331102 | I77: ='CP-11'!I56+'CP-11'!I57+'CP-11'!I58+Jensen!I55+Jensen!I56+Jensen!I57+Jensen!I66+'CP-14'!I40+'CP-15'!I49+Ouray!I46+Ouray!I50+Ouray!I52+'CP-16'!I58+'CP-17'!I27+'Grn-Colo-Confl'!I38+'Grn-Colo-Confl'!I40 -> 2182.044643 | J77: ='CP-11'!J56+'CP-11'!J57+'CP-11'!J58+Jensen!J55+Jensen!J56+Jensen!J57+Jensen!J66+'CP-14'!J40+'CP-15'!J49+Ouray!J46+Ouray!J50+Ouray!J52+'CP-16'!J58+'CP-17'!J27+'Grn-Colo-Confl'!J38+'Grn-Colo-Confl'!J40 -> 2909.392858 | K77: ='CP-11'!K56+'CP-11'!K57+'CP-11'!K58+Jensen!K55+Jensen!K56+Jensen!K57+Jensen!K66+'CP-14'!K40+'CP-15'!K49+Ouray!K46+Ouray!K50+Ouray!K52+'CP-16'!K58+'CP-17'!K27+'Grn-Colo-Confl'!K38+'Grn-Colo-Confl'!K40 -> 2727.555804 | L77: ='CP-11'!L56+'CP-11'!L57+'CP-11'!L58+Jensen!L55+Jensen!L56+Jensen!L57+Jensen!L66+'CP-14'!L40+'CP-15'!L49+Ouray!L46+Ouray!L50+Ouray!L52+'CP-16'!L58+'CP-17'!L27+'Grn-Colo-Confl'!L38+'Grn-Colo-Confl'!L40 -> 1644 | M77: ='CP-11'!M56+'CP-11'!M57+'CP-11'!M58+Jensen!M55+Jensen!M56+Jensen!M57+Jensen!M66+'CP-14'!M40+'CP-15'!M49+Ouray!M46+Ouray!M50+Ouray!M52+'CP-16'!M58+'CP-17'!M27+'Grn-Colo-Confl'!M38+'Grn-Colo-Confl'!M40 -> 1805 | N77: ='CP-11'!N56+'CP-11'!N57+'CP-11'!N58+Jensen!N55+Jensen!N56+Jensen!N57+Jensen!N66+'CP-14'!N40+'CP-15'!N49+Ouray!N46+Ouray!N50+Ouray!N52+'CP-16'!N58+'CP-17'!N27+'Grn-Colo-Confl'!N38+'Grn-Colo-Confl'!N40 -> 1944 | O77: ='CP-11'!O56+'CP-11'!O57+'CP-11'!O58+Jensen!O55+Jensen!O56+Jensen!O57+Jensen!O66+'CP-14'!O40+'CP-15'!O49+Ouray!O46+Ouray!O50+Ouray!O52+'CP-16'!O58+'CP-17'!O27+'Grn-Colo-Confl'!O38+'Grn-Colo-Confl'!O40 -> 1954 | P77: ='CP-11'!P56+'CP-11'!P57+'CP-11'!P58+Jensen!P55+Jensen!P56+Jensen!P57+Jensen!P66+'CP-14'!P40+'CP-15'!P49+Ouray!P46+Ouray!P50+Ouray!P52+'CP-16'!P58+'CP-17'!P27+'Grn-Colo-Confl'!P38+'Grn-Colo-Confl'!P40 -> 1787 | Q77: ='CP-11'!Q56+'CP-11'!Q57+'CP-11'!Q58+Jensen!Q55+Jensen!Q56+Jensen!Q57+Jensen!Q66+'CP-14'!Q40+'CP-15'!Q49+Ouray!Q46+Ouray!Q50+Ouray!Q52+'CP-16'!Q58+'CP-17'!Q27+'Grn-Colo-Confl'!Q38+'Grn-Colo-Confl'!Q40 -> 3225.1 | R77: ='CP-11'!R56+'CP-11'!R57+'CP-11'!R58+Jensen!R55+Jensen!R56+Jensen!R57+Jensen!R66+'CP-14'!R40+'CP-15'!R49+Ouray!R46+Ouray!R50+Ouray!R52+'CP-16'!R58+'CP-17'!R27+'Grn-Colo-Confl'!R38+'Grn-Colo-Confl'!R40 -> 2873.48 | S77: ='CP-11'!S56+'CP-11'!S57+'CP-11'!S58+Jensen!S55+Jensen!S56+Jensen!S57+Jensen!S66+'CP-14'!S40+'CP-15'!S49+Ouray!S46+Ouray!S50+Ouray!S52+'CP-16'!S58+'CP-17'!S27+'Grn-Colo-Confl'!S38+'Grn-Colo-Confl'!S40 -> 2929.36 | T77: ='CP-11'!T56+'CP-11'!T57+'CP-11'!T58+Jensen!T55+Jensen!T56+Jensen!T57+Jensen!T66+'CP-14'!T40+'CP-15'!T49+Ouray!T46+Ouray!T50+Ouray!T52+'CP-16'!T58+'CP-17'!T27+'Grn-Colo-Confl'!T38+'Grn-Colo-Confl'!T40 -> 2952.48 | U77: ='CP-11'!U56+'CP-11'!U57+'CP-11'!U58+Jensen!U55+Jensen!U56+Jensen!U57+Jensen!U66+'CP-14'!U40+'CP-15'!U49+Ouray!U46+Ouray!U50+Ouray!U52+'CP-16'!U58+'CP-17'!U27+'Grn-Colo-Confl'!U38+'Grn-Colo-Confl'!U40 -> 3009.31 | V77: ='CP-11'!V56+'CP-11'!V57+'CP-11'!V58+Jensen!V55+Jensen!V56+Jensen!V57+Jensen!V66+'CP-14'!V40+'CP-15'!V49+Ouray!V46+Ouray!V50+Ouray!V52+'CP-16'!V58+'CP-17'!V27+'Grn-Colo-Confl'!V38+'Grn-Colo-Confl'!V40 -> 2602 | W77: ='CP-11'!W56+'CP-11'!W57+'CP-11'!W58+Jensen!W55+Jensen!W56+Jensen!W57+Jensen!W66+'CP-14'!W40+'CP-15'!W49+Ouray!W46+Ouray!W50+Ouray!W52+'CP-16'!W58+'CP-17'!W27+'Grn-Colo-Confl'!W38+'Grn-Colo-Confl'!W40 -> 2602 | X77: ='CP-11'!X56+'CP-11'!X57+'CP-11'!X58+Jensen!X55+Jensen!X56+Jensen!X57+Jensen!X66+'CP-14'!X40+'CP-15'!X49+Ouray!X46+Ouray!X50+Ouray!X52+'CP-16'!X58+'CP-17'!X27+'Grn-Colo-Confl'!X38+'Grn-Colo-Confl'!X40 -> 2602 | Y77: ='CP-11'!Y56+'CP-11'!Y57+'CP-11'!Y58+Jensen!Y55+Jensen!Y56+Jensen!Y57+Jensen!Y66+'CP-14'!Y40+'CP-15'!Y49+Ouray!Y46+Ouray!Y50+Ouray!Y52+'CP-16'!Y58+'CP-17'!Y27+'Grn-Colo-Confl'!Y38+'Grn-Colo-Confl'!Y40 -> 2602 | Z77: ='CP-11'!Z56+'CP-11'!Z57+'CP-11'!Z58+Jensen!Z55+Jensen!Z56+Jensen!Z57+Jensen!Z66+'CP-14'!Z40+'CP-15'!Z49+Ouray!Z46+Ouray!Z50+Ouray!Z52+'CP-16'!Z58+'CP-17'!Z27+'Grn-Colo-Confl'!Z38+'Grn-Colo-Confl'!Z40 -> 2602 | AA77: ='CP-11'!AA56+'CP-11'!AA57+'CP-11'!AA58+Jensen!AA55+Jensen!AA56+Jensen!AA57+Jensen!AA66+'CP-14'!AA40+'CP-15'!AA49+Ouray!AA46+Ouray!AA50+Ouray!AA52+'CP-16'!AA58+'CP-17'!AA27+'Grn-Colo-Confl'!AA38+'Grn-Colo-Confl'!AA40 -> 2602 | AB77: ='CP-11'!AB56+'CP-11'!AB57+'CP-11'!AB58+Jensen!AB55+Jensen!AB56+Jensen!AB57+Jensen!AB66+'CP-14'!AB40+'CP-15'!AB49+Ouray!AB46+Ouray!AB50+Ouray!AB52+'CP-16'!AB58+'CP-17'!AB27+'Grn-Colo-Confl'!AB38+'Grn-Colo-Confl'!AB40 -> 2602 | AC77: ='CP-11'!AC56+'CP-11'!AC57+'CP-11'!AC58+Jensen!AC55+Jensen!AC56+Jensen!AC57+Jensen!AC66+'CP-14'!AC40+'CP-15'!AC49+Ouray!AC46+Ouray!AC50+Ouray!AC52+'CP-16'!AC58+'CP-17'!AC27+'Grn-Colo-Confl'!AC38+'Grn-Colo-Confl'!AC40 -> 2602 | AD77: ='CP-11'!AD56+'CP-11'!AD57+'CP-11'!AD58+Jensen!AD55+Jensen!AD56+Jensen!AD57+Jensen!AD66+'CP-14'!AD40+'CP-15'!AD49+Ouray!AD46+Ouray!AD50+Ouray!AD52+'CP-16'!AD58+'CP-17'!AD27+'Grn-Colo-Confl'!AD38+'Grn-Colo-Confl'!AD40 -> 2602 | AE77: ='CP-11'!AE56+'CP-11'!AE57+'CP-11'!AE58+Jensen!AE55+Jensen!AE56+Jensen!AE57+Jensen!AE66+'CP-14'!AE40+'CP-15'!AE49+Ouray!AE46+Ouray!AE50+Ouray!AE52+'CP-16'!AE58+'CP-17'!AE27+'Grn-Colo-Confl'!AE38+'Grn-Colo-Confl'!AE40 -> 2602 | AF77: ='CP-11'!AF56+'CP-11'!AF57+'CP-11'!AF58+Jensen!AF55+Jensen!AF56+Jensen!AF57+Jensen!AF66+'CP-14'!AF40+'CP-15'!AF49+Ouray!AF46+Ouray!AF50+Ouray!AF52+'CP-16'!AF58+'CP-17'!AF27+'Grn-Colo-Confl'!AF38+'Grn-Colo-Confl'!AF40 -> 2602 | AG77: ='CP-11'!AG56+'CP-11'!AG57+'CP-11'!AG58+Jensen!AG55+Jensen!AG56+Jensen!AG57+Jensen!AG66+'CP-14'!AG40+'CP-15'!AG49+Ouray!AG46+Ouray!AG50+Ouray!AG52+'CP-16'!AG58+'CP-17'!AG27+'Grn-Colo-Confl'!AG38+'Grn-Colo-Confl'!AG40 -> 2430 | AH77: ='CP-11'!AH56+'CP-11'!AH57+'CP-11'!AH58+Jensen!AH55+Jensen!AH56+Jensen!AH57+Jensen!AH66+'CP-14'!AH40+'CP-15'!AH49+Ouray!AH46+Ouray!AH50+Ouray!AH52+'CP-16'!AH58+'CP-17'!AH27+'Grn-Colo-Confl'!AH38+'Grn-Colo-Confl'!AH40 -> 2602 | AI77: ='CP-11'!AI56+'CP-11'!AI57+'CP-11'!AI58+Jensen!AI55+Jensen!AI56+Jensen!AI57+Jensen!AI66+'CP-14'!AI40+'CP-15'!AI49+Ouray!AI46+Ouray!AI50+Ouray!AI52+'CP-16'!AI58+'CP-17'!AI27+'Grn-Colo-Confl'!AI38+'Grn-Colo-Confl'!AI40 -> 2602 | AJ77: ='CP-11'!AJ56+'CP-11'!AJ57+'CP-11'!AJ58+Jensen!AJ55+Jensen!AJ56+Jensen!AJ57+Jensen!AJ66+'CP-14'!AJ40+'CP-15'!AJ49+Ouray!AJ46+Ouray!AJ50+Ouray!AJ52+'CP-16'!AJ58+'CP-17'!AJ27+'Grn-Colo-Confl'!AJ38+'Grn-Colo-Confl'!AJ40 -> 2602 | AK77: ='CP-11'!AK56+'CP-11'!AK57+'CP-11'!AK58+Jensen!AK55+Jensen!AK56+Jensen!AK57+Jensen!AK66+'CP-14'!AK40+'CP-15'!AK49+Ouray!AK46+Ouray!AK50+Ouray!AK52+'CP-16'!AK58+'CP-17'!AK27+'Grn-Colo-Confl'!AK38+'Grn-Colo-Confl'!AK40 -> 2602 | AL77: ='CP-11'!AL56+'CP-11'!AL57+'CP-11'!AL58+Jensen!AL55+Jensen!AL56+Jensen!AL57+Jensen!AL66+'CP-14'!AL40+'CP-15'!AL49+Ouray!AL46+Ouray!AL50+Ouray!AL52+'CP-16'!AL58+'CP-17'!AL27+'Grn-Colo-Confl'!AL38+'Grn-Colo-Confl'!AL40 -> 2602 | AM77: ='CP-11'!AM56+'CP-11'!AM57+'CP-11'!AM58+Jensen!AM55+Jensen!AM56+Jensen!AM57+Jensen!AM66+'CP-14'!AM40+'CP-15'!AM49+Ouray!AM46+Ouray!AM50+Ouray!AM52+'CP-16'!AM58+'CP-17'!AM27+'Grn-Colo-Confl'!AM38+'Grn-Colo-Confl'!AM40 -> 2602 | AN77: ='CP-11'!AN56+'CP-11'!AN57+'CP-11'!AN58+Jensen!AN55+Jensen!AN56+Jensen!AN57+Jensen!AN66+'CP-14'!AN40+'CP-15'!AN49+Ouray!AN46+Ouray!AN50+Ouray!AN52+'CP-16'!AN58+'CP-17'!AN27+'Grn-Colo-Confl'!AN38+'Grn-Colo-Confl'!AN40 -> 2602 | AO77: ='CP-11'!AO56+'CP-11'!AO57+'CP-11'!AO58+Jensen!AO55+Jensen!AO56+Jensen!AO57+Jensen!AO66+'CP-14'!AO40+'CP-15'!AO49+Ouray!AO46+Ouray!AO50+Ouray!AO52+'CP-16'!AO58+'CP-17'!AO27+'Grn-Colo-Confl'!AO38+'Grn-Colo-Confl'!AO40 -> 2602 | AP77: ='CP-11'!AP56+'CP-11'!AP57+'CP-11'!AP58+Jensen!AP55+Jensen!AP56+Jensen!AP57+Jensen!AP66+'CP-14'!AP40+'CP-15'!AP49+Ouray!AP46+Ouray!AP50+Ouray!AP52+'CP-16'!AP58+'CP-17'!AP27+'Grn-Colo-Confl'!AP38+'Grn-Colo-Confl'!AP40 -> 2602 | AQ77: ='CP-11'!AQ56+'CP-11'!AQ57+'CP-11'!AQ58+Jensen!AQ55+Jensen!AQ56+Jensen!AQ57+Jensen!AQ66+'CP-14'!AQ40+'CP-15'!AQ49+Ouray!AQ46+Ouray!AQ50+Ouray!AQ52+'CP-16'!AQ58+'CP-17'!AQ27+'Grn-Colo-Confl'!AQ38+'Grn-Colo-Confl'!AQ40 -> 2602 | AR77: ='CP-11'!AR56+'CP-11'!AR57+'CP-11'!AR58+Jensen!AR55+Jensen!AR56+Jensen!AR57+Jensen!AR66+'CP-14'!AR40+'CP-15'!AR49+Ouray!AR46+Ouray!AR50+Ouray!AR52+'CP-16'!AR58+'CP-17'!AR27+'Grn-Colo-Confl'!AR38+'Grn-Colo-Confl'!AR40 -> 2602 | AS77: ='CP-11'!AS56+'CP-11'!AS57+'CP-11'!AS58+Jensen!AS55+Jensen!AS56+Jensen!AS57+Jensen!AS66+'CP-14'!AS40+'CP-15'!AS49+Ouray!AS46+Ouray!AS50+Ouray!AS52+'CP-16'!AS58+'CP-17'!AS27+'Grn-Colo-Confl'!AS38+'Grn-Colo-Confl'!AS40 -> 2602 | AT77: ='CP-11'!AT56+'CP-11'!AT57+'CP-11'!AT58+Jensen!AT55+Jensen!AT56+Jensen!AT57+Jensen!AT66+'CP-14'!AT40+'CP-15'!AT49+Ouray!AT46+Ouray!AT50+Ouray!AT52+'CP-16'!AT58+'CP-17'!AT27+'Grn-Colo-Confl'!AT38+'Grn-Colo-Confl'!AT40 -> 2602 | AU77: ='CP-11'!AU56+'CP-11'!AU57+'CP-11'!AU58+Jensen!AU55+Jensen!AU56+Jensen!AU57+Jensen!AU66+'CP-14'!AU40+'CP-15'!AU49+Ouray!AU46+Ouray!AU50+Ouray!AU52+'CP-16'!AU58+'CP-17'!AU27+'Grn-Colo-Confl'!AU38+'Grn-Colo-Confl'!AU40 -> 2602 | AV77: ='CP-11'!AV56+'CP-11'!AV57+'CP-11'!AV58+Jensen!AV55+Jensen!AV56+Jensen!AV57+Jensen!AV66+'CP-14'!AV40+'CP-15'!AV49+Ouray!AV46+Ouray!AV50+Ouray!AV52+'CP-16'!AV58+'CP-17'!AV27+'Grn-Colo-Confl'!AV38+'Grn-Colo-Confl'!AV40 -> 2602 | AW77: ='CP-11'!AW56+'CP-11'!AW57+'CP-11'!AW58+Jensen!AW55+Jensen!AW56+Jensen!AW57+Jensen!AW66+'CP-14'!AW40+'CP-15'!AW49+Ouray!AW46+Ouray!AW50+Ouray!AW52+'CP-16'!AW58+'CP-17'!AW27+'Grn-Colo-Confl'!AW38+'Grn-Colo-Confl'!AW40 -> 2602 | AX77: ='CP-11'!AX56+'CP-11'!AX57+'CP-11'!AX58+Jensen!AX55+Jensen!AX56+Jensen!AX57+Jensen!AX66+'CP-14'!AX40+'CP-15'!AX49+Ouray!AX46+Ouray!AX50+Ouray!AX52+'CP-16'!AX58+'CP-17'!AX27+'Grn-Colo-Confl'!AX38+'Grn-Colo-Confl'!AX40 -> 2602 | AY77: ='CP-11'!AY56+'CP-11'!AY57+'CP-11'!AY58+Jensen!AY55+Jensen!AY56+Jensen!AY57+Jensen!AY66+'CP-14'!AY40+'CP-15'!AY49+Ouray!AY46+Ouray!AY50+Ouray!AY52+'CP-16'!AY58+'CP-17'!AY27+'Grn-Colo-Confl'!AY38+'Grn-Colo-Confl'!AY40 -> 2602 | AZ77: ='CP-11'!AZ56+'CP-11'!AZ57+'CP-11'!AZ58+Jensen!AZ55+Jensen!AZ56+Jensen!AZ57+Jensen!AZ66+'CP-14'!AZ40+'CP-15'!AZ49+Ouray!AZ46+Ouray!AZ50+Ouray!AZ52+'CP-16'!AZ58+'CP-17'!AZ27+'Grn-Colo-Confl'!AZ38+'Grn-Colo-Confl'!AZ40 -> 2602 | BA77: ='CP-11'!BA56+'CP-11'!BA57+'CP-11'!BA58+Jensen!BA55+Jensen!BA56+Jensen!BA57+Jensen!BA66+'CP-14'!BA40+'CP-15'!BA49+Ouray!BA46+Ouray!BA50+Ouray!BA52+'CP-16'!BA58+'CP-17'!BA27+'Grn-Colo-Confl'!BA38+'Grn-Colo-Confl'!BA40 -> 2602 | BB77: ='CP-11'!BB56+'CP-11'!BB57+'CP-11'!BB58+Jensen!BB55+Jensen!BB56+Jensen!BB57+Jensen!BB66+'CP-14'!BB40+'CP-15'!BB49+Ouray!BB46+Ouray!BB50+Ouray!BB52+'CP-16'!BB58+'CP-17'!BB27+'Grn-Colo-Confl'!BB38+'Grn-Colo-Confl'!BB40 -> 0 | BC77: ='CP-11'!BC56+'CP-11'!BC57+'CP-11'!BC58+Jensen!BC55+Jensen!BC56+Jensen!BC57+Jensen!BC66+'CP-14'!BC40+'CP-15'!BC49+Ouray!BC46+Ouray!BC50+Ouray!BC52+'CP-16'!BC58+'CP-17'!BC27+'Grn-Colo-Confl'!BC38+'Grn-Colo-Confl'!BC40 -> 0 | BD77: ='CP-11'!BD56+'CP-11'!BD57+'CP-11'!BD58+Jensen!BD55+Jensen!BD56+Jensen!BD57+Jensen!BD66+'CP-14'!BD40+'CP-15'!BD49+Ouray!BD46+Ouray!BD50+Ouray!BD52+'CP-16'!BD58+'CP-17'!BD27+'Grn-Colo-Confl'!BD38+'Grn-Colo-Confl'!BD40 -> 0
F78: upper main stem | G78: ='CP-7'!G51+'CP-7'!G59+'CP-8'!G31+'Grn-Colo-Confl'!G37 -> 213.5615073 | H78: ='CP-7'!H51+'CP-7'!H59+'CP-8'!H31+'Grn-Colo-Confl'!H37 -> 170.8492058 | I78: ='CP-7'!I51+'CP-7'!I59+'CP-8'!I31+'Grn-Colo-Confl'!I37 -> 170.8492058 | J78: ='CP-7'!J51+'CP-7'!J59+'CP-8'!J31+'Grn-Colo-Confl'!J37 -> 213.5615073 | K78: ='CP-7'!K51+'CP-7'!K59+'CP-8'!K31+'Grn-Colo-Confl'!K37 -> 170.8492058 | L78: ='CP-7'!L51+'CP-7'!L59+'CP-8'!L31+'Grn-Colo-Confl'!L37 -> 37 | M78: ='CP-7'!M51+'CP-7'!M59+'CP-8'!M31+'Grn-Colo-Confl'!M37 -> 44 | N78: ='CP-7'!N51+'CP-7'!N59+'CP-8'!N31+'Grn-Colo-Confl'!N37 -> 46 | O78: ='CP-7'!O51+'CP-7'!O59+'CP-8'!O31+'Grn-Colo-Confl'!O37 -> 37 | P78: ='CP-7'!P51+'CP-7'!P59+'CP-8'!P31+'Grn-Colo-Confl'!P37 -> 44 | Q78: ='CP-7'!Q51+'CP-7'!Q59+'CP-8'!Q31+'Grn-Colo-Confl'!Q37 -> 69.85 | R78: ='CP-7'!R51+'CP-7'!R59+'CP-8'!R31+'Grn-Colo-Confl'!R37 -> 66.47 | S78: ='CP-7'!S51+'CP-7'!S59+'CP-8'!S31+'Grn-Colo-Confl'!S37 -> 60.58 | T78: ='CP-7'!T51+'CP-7'!T59+'CP-8'!T31+'Grn-Colo-Confl'!T37 -> 65.28 | U78: ='CP-7'!U51+'CP-7'!U59+'CP-8'!U31+'Grn-Colo-Confl'!U37 -> 61.07 | V78: ='CP-7'!V51+'CP-7'!V59+'CP-8'!V31+'Grn-Colo-Confl'!V37 -> 89 | W78: ='CP-7'!W51+'CP-7'!W59+'CP-8'!W31+'Grn-Colo-Confl'!W37 -> 87 | X78: ='CP-7'!X51+'CP-7'!X59+'CP-8'!X31+'Grn-Colo-Confl'!X37 -> 89 | Y78: ='CP-7'!Y51+'CP-7'!Y59+'CP-8'!Y31+'Grn-Colo-Confl'!Y37 -> 89 | Z78: ='CP-7'!Z51+'CP-7'!Z59+'CP-8'!Z31+'Grn-Colo-Confl'!Z37 -> 89 | AA78: ='CP-7'!AA51+'CP-7'!AA59+'CP-8'!AA31+'Grn-Colo-Confl'!AA37 -> 89 | AB78: ='CP-7'!AB51+'CP-7'!AB59+'CP-8'!AB31+'Grn-Colo-Confl'!AB37 -> 89 | AC78: ='CP-7'!AC51+'CP-7'!AC59+'CP-8'!AC31+'Grn-Colo-Confl'!AC37 -> 89 | AD78: ='CP-7'!AD51+'CP-7'!AD59+'CP-8'!AD31+'Grn-Colo-Confl'!AD37 -> 89 | AE78: ='CP-7'!AE51+'CP-7'!AE59+'CP-8'!AE31+'Grn-Colo-Confl'!AE37 -> 89 | AF78: ='CP-7'!AF51+'CP-7'!AF59+'CP-8'!AF31+'Grn-Colo-Confl'!AF37 -> 89 | AG78: ='CP-7'!AG51+'CP-7'!AG59+'CP-8'!AG31+'Grn-Colo-Confl'!AG37 -> 89 | AH78: ='CP-7'!AH51+'CP-7'!AH59+'CP-8'!AH31+'Grn-Colo-Confl'!AH37 -> 89 | AI78: ='CP-7'!AI51+'CP-7'!AI59+'CP-8'!AI31+'Grn-Colo-Confl'!AI37 -> 89 | AJ78: ='CP-7'!AJ51+'CP-7'!AJ59+'CP-8'!AJ31+'Grn-Colo-Confl'!AJ37 -> 89 | AK78: ='CP-7'!AK51+'CP-7'!AK59+'CP-8'!AK31+'Grn-Colo-Confl'!AK37 -> 89 | AL78: ='CP-7'!AL51+'CP-7'!AL59+'CP-8'!AL31+'Grn-Colo-Confl'!AL37 -> 89 | AM78: ='CP-7'!AM51+'CP-7'!AM59+'CP-8'!AM31+'Grn-Colo-Confl'!AM37 -> 89 | AN78: ='CP-7'!AN51+'CP-7'!AN59+'CP-8'!AN31+'Grn-Colo-Confl'!AN37 -> 89 | AO78: ='CP-7'!AO51+'CP-7'!AO59+'CP-8'!AO31+'Grn-Colo-Confl'!AO37 -> 89 | AP78: ='CP-7'!AP51+'CP-7'!AP59+'CP-8'!AP31+'Grn-Colo-Confl'!AP37 -> 89 | AQ78: ='CP-7'!AQ51+'CP-7'!AQ59+'CP-8'!AQ31+'Grn-Colo-Confl'!AQ37 -> 89 | AR78: ='CP-7'!AR51+'CP-7'!AR59+'CP-8'!AR31+'Grn-Colo-Confl'!AR37 -> 89 | AS78: ='CP-7'!AS51+'CP-7'!AS59+'CP-8'!AS31+'Grn-Colo-Confl'!AS37 -> 89 | AT78: ='CP-7'!AT51+'CP-7'!AT59+'CP-8'!AT31+'Grn-Colo-Confl'!AT37 -> 89 | AU78: ='CP-7'!AU51+'CP-7'!AU59+'CP-8'!AU31+'Grn-Colo-Confl'!AU37 -> 89 | AV78: ='CP-7'!AV51+'CP-7'!AV59+'CP-8'!AV31+'Grn-Colo-Confl'!AV37 -> 89 | AW78: ='CP-7'!AW51+'CP-7'!AW59+'CP-8'!AW31+'Grn-Colo-Confl'!AW37 -> 89 | AX78: ='CP-7'!AX51+'CP-7'!AX59+'CP-8'!AX31+'Grn-Colo-Confl'!AX37 -> 89 | AY78: ='CP-7'!AY51+'CP-7'!AY59+'CP-8'!AY31+'Grn-Colo-Confl'!AY37 -> 89 | AZ78: ='CP-7'!AZ51+'CP-7'!AZ59+'CP-8'!AZ31+'Grn-Colo-Confl'!AZ37 -> 89 | BA78: ='CP-7'!BA51+'CP-7'!BA59+'CP-8'!BA31+'Grn-Colo-Confl'!BA37 -> 89 | BB78: ='CP-7'!BB51+'CP-7'!BB59+'CP-8'!BB31+'Grn-Colo-Confl'!BB37 -> 0 | BC78: ='CP-7'!BC51+'CP-7'!BC59+'CP-8'!BC31+'Grn-Colo-Confl'!BC37 -> 0 | BD78: ='CP-7'!BD51+'CP-7'!BD59+'CP-8'!BD31+'Grn-Colo-Confl'!BD37 -> 0
